Workbook

Sheet B0_Instructions
B2: Breakdown of Costs (version date 2/17/11) | D2: MULTIPLIERS | V2: MULTIPLIERS | AN2: MULTIPLIERS
B3: ALAMEDACTC CONTRACT NUMBER: To Be Assigned by Alameda CTC | D3: % of budget in Current Year (CY) | G3: 0.2 | H3: Accepted Overhead | K3: 1.5 | V3: % of budget in Current Year (CY) | Y3: =$G3 -> 0.2 | Z3: Accepted Overhead | AC3: 1.55 | AN3: % of budget in Current Year (CY) | AQ3: =$G3 -> 0.2 | AR3: Accepted Overhead | AU3: 0
D4: % of budget in CY+1 | G4: 0.6 | H4: Fringe | K4: 0 | V4: % of budget in CY+1 | Y4: =$G4 -> 0.6 | Z4: FCCM | AC4: 0 | AN4: % of budget in CY+1 | AQ4: =$G4 -> 0.6 | AR4: FCCM | AU4: 0
B5: PROJECT NAME: [Enter Project Name] | D5: % of budget in CY+2 | G5: 0.2 | H5: Negotiated Profit | K5: 0.09 | V5: % of budget in CY+2 | Y5: =$G5 -> 0.2 | Z5: Negotiated Profit | AC5: =$K5 -> 0.09 | AN5: % of budget in CY+2 | AQ5: =$G5 -> 0.2 | AR5: Negotiated Profit | AU5: 0
D6: % of budget in CY+3 | G6: 0 | H6: Annual Escalation Rate | K6: 0.045 | V6: % of budget in CY+3 | Y6: =$G6 -> 0 | Z6: Annual Escalation Rate | AC6: 0.045 | AN6: % of budget in CY+3 | AQ6: =$G6 -> 0 | AR6: Annual Escalation Rate | AU6: 0
D7: Weighted Escalation Factor | G7: =(G3+G4*(1+K6)+G5*(1+K6)^2+G6*(1+K6)^3) -> 1.045405 | V7: Weighted Escalation Factor | Y7: =(Y3+Y4*(1+AC6)+Y5*(1+AC6)^2+Y6*(1+AC6)^3) -> 1.045405 | AN7: Weighted Escalation Factor | AQ7: =(AQ3+AQ4*(1+AU6)+AQ5*(1+AU6)^2+AQ6*(1+AU6)^3) -> 1
D8: [Enter Prime Consultant's Name] | V8: [Subconsultant's Name] | AN8: [Subconsultant's Name] | BF8: Project Summary
D9: DATA ENTRY SECTION | N9: CALCULATION SECTION | V9: DATA ENTRY SECTION | AF9: CALCULATION SECTION | AN9: DATA ENTRY SECTION | AX9: CALCULATION SECTION | BF9: CALCULATION SECTION
C10: Job Classifications (Individuals' names are optional) | D10: Job Classifications | E10: Job Classifications | F10: Job Classifications | G10: Job Classifications | H10: Job Classifications | I10: Job Classifications | J10: Job Classifications | K10: Job Classifications | L10: Job Classifications | M10: Direct Expenses ($) | N10: Hours | O10: Escalated Direct Labor or NBR $ | P10: Overhead | Q10: FCCM | R10: Direct Expenses | S10: TOTAL COST | T10: Profit | V10: Class X Avg/Individual | W10: Class X Avg/Individual | X10: Class X Avg/Individual | Y10: Class X Avg/Individual | Z10: Class X Avg/Individual | AA10: Class X Avg/Individual | AB10: Class X Avg/Individual | AC10: Class X Avg/Individual | AD10: Class X Avg/Individual | AE10: Class X Avg/Individual | AF10: Hours | AG10: Escalated Direct Labor or NBR $ | AH10: Overhead | AI10: FCCM | AJ10: Direct Expenses | AK10: TOTAL COST | AL10: Profit | AN10: Class X Avg/Individual | AO10: Class X Avg/Individual | AP10: Class X Avg/Individual | AQ10: Class X Avg/Individual | AR10: Class X Avg/Individual | AS10: Class X Avg/Individual | AT10: Class X Avg/Individual | AU10: Class X Avg/Individual | AV10: Class X Avg/Individual | AW10: Class X Avg/Individual | AX10: Hours | AY10: Escalated Direct Labor or NBR $ | AZ10: Overhead | BA10: FCCM | BB10: Direct Expenses | BC10: TOTAL COST | BD10: Profit | BF10: Hours | BG10: Escalated Direct Labor or NBR $ | BH10: Overhead | BI10: FCCM | BJ10: Direct Expenses | BK10: Total Cost | BL10: Profit | BM10: Cost + Profit | BN10: % of Total Non-Contingency Labor Costs
C11: Direct Salary Rate (Average, Actual, Max) for Current Year | D11: 30 | E11: 0 | F11: 0 | G11: 0 | H11: 0 | I11: 0 | J11: 0 | K11: 0 | L11: 0 | M11: 0 | V11: 0 | W11: 0 | X11: 0 | Y11: 0 | Z11: 0 | AA11: 0 | AB11: 0 | AC11: 0 | AD11: 0 | AE11: 0 | AH11: =AC3 -> 1.55 | AI11: =AC4 -> 0 | AL11: =$K$5 -> 0.09 | AN11: 80 | AO11: 0 | AP11: 0 | AQ11: 0 | AR11: 0 | AS11: 0 | AT11: 0 | AU11: 0 | AV11: 0 | AW11: 0 | AZ11: =AU3 -> 0 | BA11: =AU4 -> 0 | BD11: =AU5 -> 0
C12: Annualized Direct Salary Rate (or enter Negotiated Billing Rate) | D12: =D11*$G7 -> 31.36215 | E12: =E11*$G7 -> 0 | F12: 0 | G12: 0 | H12: 0 | I12: 0 | J12: 0 | K12: 0 | L12: 0 | M12: 0 | V12: =V11*$Y7 -> 0 | W12: =W11*$Y7 -> 0 | X12: 0 | Y12: 0 | Z12: 0 | AA12: 0 | AB12: 0 | AC12: 0 | AD12: 0 | AE12: 0 | AN12: =AN11*$AQ7 -> 80 | AO12: =AO11*$AQ7 -> 0 | AP12: 0 | AQ12: 0 | AR12: 0 | AS12: 0 | AT12: 0 | AU12: 0 | AV12: 0 | AW12: 0
B13: Task # | C13: Fully Burdened Billing Rate | D13: =D12*$G8 -> 0 | E13: =E12*$G8 -> 0 | F13: 0 | G13: 0 | H13: 0 | I13: 0 | J13: 0 | K13: 0 | L13: 0 | M13: 0 | V13: =V12*$Y8 -> 0 | W13: =W12*$Y8 -> 0 | X13: 0 | Y13: 0 | Z13: 0 | AA13: 0 | AB13: 0 | AC13: 0 | AD13: 0 | AE13: 0 | AN13: =AN12*$AQ8 -> 0 | AO13: =AO12*$AQ8 -> 0 | AP13: 0 | AQ13: 0 | AR13: 0 | AS13: 0 | AT13: 0 | AU13: 0 | AV13: 0 | AW13: 0
B14: NON-CONTINGENCY TASKS/DELIVERABLES
B15: 1 | C15: TASK 1 NAME | D15: =SUBTOTAL(9,D16:D19) -> 5 | E15: =SUBTOTAL(9,E16:E19) -> 0 | F15: 0 | G15: 0 | H15: 0 | I15: 0 | J15: 0 | K15: 0 | L15: 0 | M15: 516 | N15: 521 | O15: 156.81075 | P15: 235.216125 | Q15: 0 | R15: 516.25 | S15: 908.276875 | T15: 35.28241875 | V15: =SUBTOTAL(9,V16:V19) -> 0 | W15: 0 | X15: 0 | Y15: 0 | Z15: 0 | AA15: 0 | AB15: 0 | AC15: 0 | AD15: 0 | AE15: 0 | AF15: 0 | AG15: 0 | AH15: 0 | AI15: 0 | AJ15: 0 | AK15: 0 | AL15: 0 | AM15: 0 | AN15: 0 | AO15: 0 | AP15: 0 | AQ15: 0 | AR15: 0 | AS15: 0 | AT15: 0 | AU15: 0 | AV15: 0 | AW15: 0 | AX15: 0 | AY15: 0 | AZ15: 0 | BA15: 0 | BB15: 0 | BC15: 0 | BD15: 0 | BE15: 0 | BF15: =SUMIF($D$10:$BC$10,BF$10,$D15:$BC15) -> 521 | BG15: 156.81075 | BH15: 235.216125 | BI15: 0 | BJ15: 516.25 | BK15: 908.276875 | BL15: 35.28241875 | BM15: =BK15+BL15 -> 943.5592938 | BN15: =(BK15-BJ15)/(BK$90-BJ$90) -> 1
B16: 1.1 | C16: Subtask name | D16: 1 | M16: 516 | N16: =SUM(D16:M16) -> 517 | O16: =SUMPRODUCT(D$12:M$12,D16:M16) -> 31.36215 | P16: =O16*K$3 -> 47.043225 | Q16: =O16*Q$11 -> 0 | R16: 516.25 | S16: =SUM(O16:R16) -> 594.655375 | T16: =(O16+P16)*K$5 -> 7.05648375 | AF16: =SUM(V16:AE16) -> 0 | AG16: =SUMPRODUCT(V$12:AE$12,V16:AE16) -> 0 | AH16: =AG16*AH$11 -> 0 | AI16: =AG16*AI$11 -> 0 | AJ16: 0 | AK16: =SUM(AG16:AJ16) -> 0 | AL16: =(AG16+AH16)*AL$11 -> 0 | AX16: =SUM(AN16:AW16) -> 0 | AY16: =SUMPRODUCT(AN$12:AW$12,AN16:AW16) -> 0 | AZ16: =AY16*AZ$11 -> 0 | BA16: =AY16*BA$11 -> 0 | BB16: 0 | BC16: =SUM(AY16:BB16) -> 0 | BD16: =(AY16+AZ16)*BD$11 -> 0 | BF16: 517 | BG16: 31.36215 | BH16: 47.043225 | BI16: 0 | BJ16: 516.25 | BK16: 594.655375 | BL16: 7.05648375 | BM16: =BK16+BL16 -> 601.7118588 | BN16: =(BK16-BJ16)/(BK$90-BJ$90) -> 0.2
B17: 1.2 | C17: Subtask name | N17: =SUM(D17:M17) -> 0 | O17: =SUMPRODUCT(D$12:M$12,D17:M17) -> 0 | P17: =O17*K$3 -> 0 | Q17: 0 | R17: 0 | S17: =SUM(O17:R17) -> 0 | T17: =(O17+P17)*K$5 -> 0 | AF17: =SUM(V17:AE17) -> 0 | AG17: =SUMPRODUCT(V$12:AE$12,V17:AE17) -> 0 | AH17: 0 | AI17: =AG17*AI$11 -> 0 | AJ17: 0 | AK17: =SUM(AG17:AJ17) -> 0 | AL17: =(AG17+AH17)*AL$11 -> 0 | AX17: =SUM(AN17:AW17) -> 0 | AY17: =SUMPRODUCT(AN$12:AW$12,AN17:AW17) -> 0 | AZ17: 0 | BA17: =AY17*BA$11 -> 0 | BB17: 0 | BC17: =SUM(AY17:BB17) -> 0 | BD17: =(AY17+AZ17)*BD$11 -> 0 | BF17: 0 | BG17: 0 | BH17: 0 | BI17: 0 | BJ17: 0 | BK17: 0 | BL17: 0 | BM17: =BK17+BL17 -> 0 | BN17: 0
B18: 1.3 | C18: Subtask name | N18: =SUM(D18:M18) -> 0 | O18: =SUMPRODUCT(D$12:M$12,D18:M18) -> 0 | P18: =O18*K$3 -> 0 | Q18: 0 | R18: 0 | S18: =SUM(O18:R18) -> 0 | T18: =(O18+P18)*K$5 -> 0 | AF18: =SUM(V18:AE18) -> 0 | AG18: =SUMPRODUCT(V$12:AE$12,V18:AE18) -> 0 | AH18: 0 | AI18: =AG18*AI$11 -> 0 | AJ18: 0 | AK18: =SUM(AG18:AJ18) -> 0 | AL18: =(AG18+AH18)*AL$11 -> 0 | AX18: =SUM(AN18:AW18) -> 0 | AY18: =SUMPRODUCT(AN$12:AW$12,AN18:AW18) -> 0 | AZ18: 0 | BA18: =AY18*BA$11 -> 0 | BB18: 0 | BC18: =SUM(AY18:BB18) -> 0 | BD18: =(AY18+AZ18)*BD$11 -> 0 | BF18: 0 | BG18: 0 | BH18: 0 | BI18: 0 | BJ18: 0 | BK18: 0 | BL18: 0 | BM18: 0 | BN18: 0
B19: 1.4 | C19: Subtask name | D19: 4 | N19: =SUM(D19:M19) -> 4 | O19: =SUMPRODUCT(D$12:M$12,D19:M19) -> 125.4486 | P19: =O19*K$3 -> 188.1729 | Q19: 0 | R19: 0 | S19: =SUM(O19:R19) -> 313.6215 | T19: =(O19+P19)*K$5 -> 28.225935 | AF19: =SUM(V19:AE19) -> 0 | AG19: =SUMPRODUCT(V$12:AE$12,V19:AE19) -> 0 | AH19: 0 | AI19: =AG19*AI$11 -> 0 | AJ19: 0 | AK19: =SUM(AG19:AJ19) -> 0 | AL19: =(AG19+AH19)*AL$11 -> 0 | AX19: =SUM(AN19:AW19) -> 0 | AY19: =SUMPRODUCT(AN$12:AW$12,AN19:AW19) -> 0 | AZ19: 0 | BA19: =AY19*BA$11 -> 0 | BB19: 0 | BC19: =SUM(AY19:BB19) -> 0 | BD19: =(AY19+AZ19)*BD$11 -> 0 | BF19: 4 | BG19: 125.4486 | BH19: 188.1729 | BI19: 0 | BJ19: 0 | BK19: 313.6215 | BL19: 28.225935 | BM19: 341.847435 | BN19: 0.8
B20: 2 | C20: TASK 2 NAME | D20: =SUBTOTAL(9,D21:D24) -> 0 | E20: =SUBTOTAL(9,E21:E24) -> 0 | F20: 0 | G20: 0 | H20: 0 | I20: 0 | J20: 0 | K20: 0 | L20: 0 | M20: 0 | N20: 0 | O20: 0 | P20: 0 | Q20: 0 | R20: 0 | S20: 0 | T20: 0 | V20: =SUBTOTAL(9,V21:V24) -> 0 | W20: 0 | X20: 0 | Y20: 0 | Z20: 0 | AA20: 0 | AB20: 0 | AC20: 0 | AD20: 0 | AE20: 0 | AF20: 0 | AG20: 0 | AH20: 0 | AI20: 0 | AJ20: 0 | AK20: 0 | AL20: 0 | AN20: =SUBTOTAL(9,AN21:AN24) -> 0 | AO20: 0 | AP20: 0 | AQ20: 0 | AR20: 0 | AS20: 0 | AT20: 0 | AU20: 0 | AV20: 0 | AW20: 0 | AX20: 0 | AY20: 0 | AZ20: 0 | BA20: 0 | BB20: 0 | BC20: 0 | BD20: 0 | BF20: 0 | BG20: 0 | BH20: 0 | BI20: 0 | BJ20: 0 | BK20: 0 | BL20: 0 | BM20: 0 | BN20: 0
B21: 2.1 | C21: Subtask name | N21: =SUM(D21:M21) -> 0 | O21: =SUMPRODUCT(D$12:M$12,D21:M21) -> 0 | P21: =O21*K$3 -> 0 | Q21: 0 | R21: 0 | S21: =SUM(O21:R21) -> 0 | T21: =(O21+P21)*K$5 -> 0 | AF21: =SUM(V21:AE21) -> 0 | AG21: =SUMPRODUCT(V$12:AE$12,V21:AE21) -> 0 | AH21: 0 | AI21: =AG21*AI$11 -> 0 | AJ21: 0 | AK21: =SUM(AG21:AJ21) -> 0 | AL21: =(AG21+AH21)*AL$11 -> 0 | AX21: =SUM(AN21:AW21) -> 0 | AY21: =SUMPRODUCT(AN$12:AW$12,AN21:AW21) -> 0 | AZ21: 0 | BA21: =AY21*BA$11 -> 0 | BB21: 0 | BC21: =SUM(AY21:BB21) -> 0 | BD21: =(AY21+AZ21)*BD$11 -> 0 | BF21: 0 | BG21: 0 | BH21: 0 | BI21: 0 | BJ21: 0 | BK21: 0 | BL21: 0 | BM21: 0 | BN21: 0
B22: 2.2 | C22: Subtask name | N22: =SUM(D22:M22) -> 0 | O22: =SUMPRODUCT(D$12:M$12,D22:M22) -> 0 | P22: =O22*K$3 -> 0 | Q22: 0 | R22: 0 | S22: =SUM(O22:R22) -> 0 | T22: =(O22+P22)*K$5 -> 0 | AF22: =SUM(V22:AE22) -> 0 | AG22: =SUMPRODUCT(V$12:AE$12,V22:AE22) -> 0 | AH22: 0 | AI22: =AG22*AI$11 -> 0 | AJ22: 0 | AK22: =SUM(AG22:AJ22) -> 0 | AL22: =(AG22+AH22)*AL$11 -> 0 | AX22: =SUM(AN22:AW22) -> 0 | AY22: =SUMPRODUCT(AN$12:AW$12,AN22:AW22) -> 0 | AZ22: 0 | BA22: =AY22*BA$11 -> 0 | BB22: 0 | BC22: =SUM(AY22:BB22) -> 0 | BD22: =(AY22+AZ22)*BD$11 -> 0 | BF22: 0 | BG22: 0 | BH22: 0 | BI22: 0 | BJ22: 0 | BK22: 0 | BL22: 0 | BM22: 0 | BN22: 0
B23: 2.3 | C23: Subtask name | N23: =SUM(D23:M23) -> 0 | O23: =SUMPRODUCT(D$12:M$12,D23:M23) -> 0 | P23: =O23*K$3 -> 0 | Q23: 0 | R23: 0 | S23: =SUM(O23:R23) -> 0 | T23: =(O23+P23)*K$5 -> 0 | AF23: =SUM(V23:AE23) -> 0 | AG23: =SUMPRODUCT(V$12:AE$12,V23:AE23) -> 0 | AH23: 0 | AI23: =AG23*AI$11 -> 0 | AJ23: 0 | AK23: =SUM(AG23:AJ23) -> 0 | AL23: =(AG23+AH23)*AL$11 -> 0 | AX23: =SUM(AN23:AW23) -> 0 | AY23: =SUMPRODUCT(AN$12:AW$12,AN23:AW23) -> 0 | AZ23: 0 | BA23: =AY23*BA$11 -> 0 | BB23: 0 | BC23: =SUM(AY23:BB23) -> 0 | BD23: =(AY23+AZ23)*BD$11 -> 0 | BF23: 0 | BG23: 0 | BH23: 0 | BI23: 0 | BJ23: 0 | BK23: 0 | BL23: 0 | BM23: 0 | BN23: 0
B24: 2.4 | C24: Subtask name | N24: =SUM(D24:M24) -> 0 | O24: =SUMPRODUCT(D$12:M$12,D24:M24) -> 0 | P24: =O24*K$3 -> 0 | Q24: 0 | R24: 0 | S24: =SUM(O24:R24) -> 0 | T24: =(O24+P24)*K$5 -> 0 | AF24: =SUM(V24:AE24) -> 0 | AG24: =SUMPRODUCT(V$12:AE$12,V24:AE24) -> 0 | AH24: 0 | AI24: =AG24*AI$11 -> 0 | AJ24: 0 | AK24: =SUM(AG24:AJ24) -> 0 | AL24: =(AG24+AH24)*AL$11 -> 0 | AX24: =SUM(AN24:AW24) -> 0 | AY24: =SUMPRODUCT(AN$12:AW$12,AN24:AW24) -> 0 | AZ24: 0 | BA24: =AY24*BA$11 -> 0 | BB24: 0 | BC24: =SUM(AY24:BB24) -> 0 | BD24: =(AY24+AZ24)*BD$11 -> 0 | BF24: 0 | BG24: 0 | BH24: 0 | BI24: 0 | BJ24: 0 | BK24: 0 | BL24: 0 | BM24: 0 | BN24: 0
B25: 3 | C25: TASK 3 | D25: =SUBTOTAL(9,D26:D29) -> 0 | E25: =SUBTOTAL(9,E26:E29) -> 0 | F25: 0 | G25: 0 | H25: 0 | I25: 0 | J25: 0 | K25: 0 | L25: 0 | M25: 0 | N25: 0 | O25: 0 | P25: 0 | Q25: 0 | R25: 0 | S25: 0 | T25: 0 | V25: =SUBTOTAL(9,V26:V29) -> 0 | W25: 0 | X25: 0 | Y25: 0 | Z25: 0 | AA25: 0 | AB25: 0 | AC25: 0 | AD25: 0 | AE25: 0 | AF25: 0 | AG25: 0 | AH25: 0 | AI25: 0 | AJ25: 0 | AK25: 0 | AL25: 0 | AN25: =SUBTOTAL(9,AN26:AN29) -> 0 | AO25: 0 | AP25: 0 | AQ25: 0 | AR25: 0 | AS25: 0 | AT25: 0 | AU25: 0 | AV25: 0 | AW25: 0 | AX25: 0 | AY25: 0 | AZ25: 0 | BA25: 0 | BB25: 0 | BC25: 0 | BD25: 0 | BF25: 0 | BG25: 0 | BH25: 0 | BI25: 0 | BJ25: 0 | BK25: 0 | BL25: 0 | BM25: 0 | BN25: 0
B26: 3.1 | C26: Task 3.1 | N26: =SUM(D26:M26) -> 0 | O26: =SUMPRODUCT(D$12:M$12,D26:M26) -> 0 | P26: =O26*P$11 -> 0 | Q26: 0 | R26: 0 | S26: =SUM(O26:R26) -> 0 | T26: =(O26+P26)*T$11 -> 0 | AF26: =SUM(V26:AE26) -> 0 | AG26: =SUMPRODUCT(V$12:AE$12,V26:AE26) -> 0 | AH26: 0 | AI26: =AG26*AI$11 -> 0 | AJ26: 0 | AK26: =SUM(AG26:AJ26) -> 0 | AL26: =(AG26+AH26)*AL$11 -> 0 | AX26: =SUM(AN26:AW26) -> 0 | AY26: =SUMPRODUCT(AN$12:AW$12,AN26:AW26) -> 0 | AZ26: 0 | BA26: =AY26*BA$11 -> 0 | BB26: 0 | BC26: =SUM(AY26:BB26) -> 0 | BD26: =(AY26+AZ26)*BD$11 -> 0 | BF26: 0 | BG26: 0 | BH26: 0 | BI26: 0 | BJ26: 0 | BK26: 0 | BL26: 0 | BM26: 0 | BN26: 0
B27: 3.2 | C27: Task 3.2 | N27: =SUM(D27:M27) -> 0 | O27: =SUMPRODUCT(D$12:M$12,D27:M27) -> 0 | P27: 0 | Q27: 0 | R27: 0 | S27: =SUM(O27:R27) -> 0 | T27: 0 | AF27: =SUM(V27:AE27) -> 0 | AG27: =SUMPRODUCT(V$12:AE$12,V27:AE27) -> 0 | AH27: 0 | AI27: =AG27*AI$11 -> 0 | AJ27: 0 | AK27: =SUM(AG27:AJ27) -> 0 | AL27: =(AG27+AH27)*AL$11 -> 0 | AX27: =SUM(AN27:AW27) -> 0 | AY27: =SUMPRODUCT(AN$12:AW$12,AN27:AW27) -> 0 | AZ27: 0 | BA27: =AY27*BA$11 -> 0 | BB27: 0 | BC27: =SUM(AY27:BB27) -> 0 | BD27: =(AY27+AZ27)*BD$11 -> 0 | BF27: 0 | BG27: 0 | BH27: 0 | BI27: 0 | BJ27: 0 | BK27: 0 | BL27: 0 | BM27: 0 | BN27: 0
B28: 3.3 | C28: Task 3.3 | N28: =SUM(D28:M28) -> 0 | O28: =SUMPRODUCT(D$12:M$12,D28:M28) -> 0 | P28: 0 | Q28: 0 | R28: 0 | S28: =SUM(O28:R28) -> 0 | T28: 0 | AF28: =SUM(V28:AE28) -> 0 | AG28: =SUMPRODUCT(V$12:AE$12,V28:AE28) -> 0 | AH28: 0 | AI28: =AG28*AI$11 -> 0 | AJ28: 0 | AK28: =SUM(AG28:AJ28) -> 0 | AL28: =(AG28+AH28)*AL$11 -> 0 | AX28: =SUM(AN28:AW28) -> 0 | AY28: =SUMPRODUCT(AN$12:AW$12,AN28:AW28) -> 0 | AZ28: 0 | BA28: =AY28*BA$11 -> 0 | BB28: 0 | BC28: =SUM(AY28:BB28) -> 0 | BD28: =(AY28+AZ28)*BD$11 -> 0 | BF28: 0 | BG28: 0 | BH28: 0 | BI28: 0 | BJ28: 0 | BK28: 0 | BL28: 0 | BM28: 0 | BN28: 0
B29: 3.4 | C29: Task 3.4 | N29: =SUM(D29:M29) -> 0 | O29: =SUMPRODUCT(D$12:M$12,D29:M29) -> 0 | P29: 0 | Q29: 0 | R29: 0 | S29: =SUM(O29:R29) -> 0 | T29: 0 | AF29: =SUM(V29:AE29) -> 0 | AG29: =SUMPRODUCT(V$12:AE$12,V29:AE29) -> 0 | AH29: 0 | AI29: =AG29*AI$11 -> 0 | AJ29: 0 | AK29: =SUM(AG29:AJ29) -> 0 | AL29: =(AG29+AH29)*AL$11 -> 0 | AX29: =SUM(AN29:AW29) -> 0 | AY29: =SUMPRODUCT(AN$12:AW$12,AN29:AW29) -> 0 | AZ29: 0 | BA29: =AY29*BA$11 -> 0 | BB29: 0 | BC29: =SUM(AY29:BB29) -> 0 | BD29: =(AY29+AZ29)*BD$11 -> 0 | BF29: 0 | BG29: 0 | BH29: 0 | BI29: 0 | BJ29: 0 | BK29: 0 | BL29: 0 | BM29: 0 | BN29: 0
B30: 4 | C30: TASK 4 | D30: =SUBTOTAL(9,D31:D34) -> 0 | E30: =SUBTOTAL(9,E31:E34) -> 0 | F30: 0 | G30: 0 | H30: 0 | I30: 0 | J30: 0 | K30: 0 | L30: 0 | M30: 0 | N30: 0 | O30: 0 | P30: 0 | Q30: 0 | R30: 0 | S30: 0 | T30: 0 | V30: =SUBTOTAL(9,V31:V34) -> 0 | W30: 0 | X30: 0 | Y30: 0 | Z30: 0 | AA30: 0 | AB30: 0 | AC30: 0 | AD30: 0 | AE30: 0 | AF30: 0 | AG30: 0 | AH30: 0 | AI30: 0 | AJ30: 0 | AK30: 0 | AL30: 0 | AN30: =SUBTOTAL(9,AN31:AN34) -> 0 | AO30: 0 | AP30: 0 | AQ30: 0 | AR30: 0 | AS30: 0 | AT30: 0 | AU30: 0 | AV30: 0 | AW30: 0 | AX30: 0 | AY30: 0 | AZ30: 0 | BA30: 0 | BB30: 0 | BC30: 0 | BD30: 0 | BF30: 0 | BG30: 0 | BH30: 0 | BI30: 0 | BJ30: 0 | BK30: 0 | BL30: 0 | BM30: 0 | BN30: 0
B31: 4.1 | C31: Task 4.1 | N31: =SUM(D31:M31) -> 0 | O31: =SUMPRODUCT(D$12:M$12,D31:M31) -> 0 | P31: 0 | Q31: 0 | R31: 0 | S31: =SUM(O31:R31) -> 0 | T31: 0 | AF31: =SUM(V31:AE31) -> 0 | AG31: =SUMPRODUCT(V$12:AE$12,V31:AE31) -> 0 | AH31: 0 | AI31: =AG31*AI$11 -> 0 | AJ31: 0 | AK31: =SUM(AG31:AJ31) -> 0 | AL31: =(AG31+AH31)*AL$11 -> 0 | AX31: =SUM(AN31:AW31) -> 0 | AY31: =SUMPRODUCT(AN$12:AW$12,AN31:AW31) -> 0 | AZ31: 0 | BA31: =AY31*BA$11 -> 0 | BB31: 0 | BC31: =SUM(AY31:BB31) -> 0 | BD31: =(AY31+AZ31)*BD$11 -> 0 | BF31: 0 | BG31: 0 | BH31: 0 | BI31: 0 | BJ31: 0 | BK31: 0 | BL31: 0 | BM31: 0 | BN31: 0
B32: 4.3 | C32: Task 4.2 | N32: =SUM(D32:M32) -> 0 | O32: =SUMPRODUCT(D$12:M$12,D32:M32) -> 0 | P32: 0 | Q32: 0 | R32: 0 | S32: =SUM(O32:R32) -> 0 | T32: 0 | AF32: =SUM(V32:AE32) -> 0 | AG32: =SUMPRODUCT(V$12:AE$12,V32:AE32) -> 0 | AH32: 0 | AI32: =AG32*AI$11 -> 0 | AJ32: 0 | AK32: =SUM(AG32:AJ32) -> 0 | AL32: =(AG32+AH32)*AL$11 -> 0 | AX32: =SUM(AN32:AW32) -> 0 | AY32: =SUMPRODUCT(AN$12:AW$12,AN32:AW32) -> 0 | AZ32: 0 | BA32: =AY32*BA$11 -> 0 | BB32: 0 | BC32: =SUM(AY32:BB32) -> 0 | BD32: =(AY32+AZ32)*BD$11 -> 0 | BF32: 0 | BG32: 0 | BH32: 0 | BI32: 0 | BJ32: 0 | BK32: 0 | BL32: 0 | BM32: 0 | BN32: 0
B33: 4.4 | C33: Task 4.3 | N33: =SUM(D33:M33) -> 0 | O33: =SUMPRODUCT(D$12:M$12,D33:M33) -> 0 | P33: 0 | Q33: 0 | R33: 0 | S33: =SUM(O33:R33) -> 0 | T33: 0 | AF33: =SUM(V33:AE33) -> 0 | AG33: =SUMPRODUCT(V$12:AE$12,V33:AE33) -> 0 | AH33: 0 | AI33: =AG33*AI$11 -> 0 | AJ33: 0 | AK33: =SUM(AG33:AJ33) -> 0 | AL33: =(AG33+AH33)*AL$11 -> 0 | AX33: =SUM(AN33:AW33) -> 0 | AY33: =SUMPRODUCT(AN$12:AW$12,AN33:AW33) -> 0 | AZ33: 0 | BA33: =AY33*BA$11 -> 0 | BB33: 0 | BC33: =SUM(AY33:BB33) -> 0 | BD33: =(AY33+AZ33)*BD$11 -> 0 | BF33: =SUMIF($D$10:$BC$10,BF$10,$D33:$BC33) -> 0 | BG33: 0 | BH33: 0 | BI33: 0 | BJ33: 0 | BK33: 0 | BL33: 0 | BM33: 0 | BN33: 0
B34: 4.5 | C34: Task 4.4 | N34: =SUM(D34:M34) -> 0 | O34: =SUMPRODUCT(D$12:M$12,D34:M34) -> 0 | P34: 0 | Q34: 0 | R34: 0 | S34: =SUM(O34:R34) -> 0 | T34: 0 | AF34: =SUM(V34:AE34) -> 0 | AG34: =SUMPRODUCT(V$12:AE$12,V34:AE34) -> 0 | AH34: 0 | AI34: =AG34*AI$11 -> 0 | AJ34: 0 | AK34: =SUM(AG34:AJ34) -> 0 | AL34: =(AG34+AH34)*AL$11 -> 0 | AX34: =SUM(AN34:AW34) -> 0 | AY34: =SUMPRODUCT(AN$12:AW$12,AN34:AW34) -> 0 | AZ34: 0 | BA34: =AY34*BA$11 -> 0 | BB34: 0 | BC34: =SUM(AY34:BB34) -> 0 | BD34: =(AY34+AZ34)*BD$11 -> 0 | BF34: 0 | BG34: 0 | BH34: 0 | BI34: 0 | BJ34: 0 | BK34: 0 | BL34: 0 | BM34: 0 | BN34: 0
B35: 5 | C35: TASK 5 | D35: =SUBTOTAL(9,D36:D39) -> 0 | E35: =SUBTOTAL(9,E36:E39) -> 0 | F35: 0 | G35: 0 | H35: 0 | I35: 0 | J35: 0 | K35: 0 | L35: 0 | M35: 0 | N35: 0 | O35: 0 | P35: 0 | Q35: 0 | R35: 0 | S35: 0 | T35: 0 | V35: =SUBTOTAL(9,V36:V39) -> 0 | W35: 0 | X35: 0 | Y35: 0 | Z35: 0 | AA35: 0 | AB35: 0 | AC35: 0 | AD35: 0 | AE35: 0 | AF35: 0 | AG35: 0 | AH35: 0 | AI35: 0 | AJ35: 0 | AK35: 0 | AL35: 0 | AN35: =SUBTOTAL(9,AN36:AN39) -> 0 | AO35: 0 | AP35: 0 | AQ35: 0 | AR35: 0 | AS35: 0 | AT35: 0 | AU35: 0 | AV35: 0 | AW35: 0 | AX35: 0 | AY35: 0 | AZ35: 0 | BA35: 0 | BB35: 0 | BC35: 0 | BD35: 0 | BF35: 0 | BG35: 0 | BH35: 0 | BI35: 0 | BJ35: 0 | BK35: 0 | BL35: 0 | BM35: 0 | BN35: 0
B36: 5.1 | C36: Task 5.1 | N36: =SUM(D36:M36) -> 0 | O36: =SUMPRODUCT(D$12:M$12,D36:M36) -> 0 | P36: 0 | Q36: 0 | R36: 0 | S36: =SUM(O36:R36) -> 0 | T36: 0 | AF36: =SUM(V36:AE36) -> 0 | AG36: =SUMPRODUCT(V$12:AE$12,V36:AE36) -> 0 | AH36: 0 | AI36: =AG36*AI$11 -> 0 | AJ36: 0 | AK36: =SUM(AG36:AJ36) -> 0 | AL36: =(AG36+AH36)*AL$11 -> 0 | AX36: =SUM(AN36:AW36) -> 0 | AY36: =SUMPRODUCT(AN$12:AW$12,AN36:AW36) -> 0 | AZ36: 0 | BA36: =AY36*BA$11 -> 0 | BB36: 0 | BC36: =SUM(AY36:BB36) -> 0 | BD36: =(AY36+AZ36)*BD$11 -> 0 | BF36: 0 | BG36: 0 | BH36: 0 | BI36: 0 | BJ36: 0 | BK36: 0 | BL36: 0 | BM36: 0 | BN36: 0
B37: 5.2 | C37: Task 5.2 | N37: =SUM(D37:M37) -> 0 | O37: =SUMPRODUCT(D$12:M$12,D37:M37) -> 0 | P37: 0 | Q37: 0 | R37: 0 | S37: =SUM(O37:R37) -> 0 | T37: 0 | AF37: =SUM(V37:AE37) -> 0 | AG37: =SUMPRODUCT(V$12:AE$12,V37:AE37) -> 0 | AH37: 0 | AI37: =AG37*AI$11 -> 0 | AJ37: 0 | AK37: =SUM(AG37:AJ37) -> 0 | AL37: =(AG37+AH37)*AL$11 -> 0 | AX37: =SUM(AN37:AW37) -> 0 | AY37: =SUMPRODUCT(AN$12:AW$12,AN37:AW37) -> 0 | AZ37: 0 | BA37: =AY37*BA$11 -> 0 | BB37: 0 | BC37: =SUM(AY37:BB37) -> 0 | BD37: =(AY37+AZ37)*BD$11 -> 0 | BF37: 0 | BG37: 0 | BH37: 0 | BI37: 0 | BJ37: 0 | BK37: 0 | BL37: 0 | BM37: 0 | BN37: 0
B38: 5.3 | C38: Task 5.3 | N38: =SUM(D38:M38) -> 0 | O38: =SUMPRODUCT(D$12:M$12,D38:M38) -> 0 | P38: 0 | Q38: 0 | R38: 0 | S38: =SUM(O38:R38) -> 0 | T38: 0 | AF38: =SUM(V38:AE38) -> 0 | AG38: =SUMPRODUCT(V$12:AE$12,V38:AE38) -> 0 | AH38: 0 | AI38: =AG38*AI$11 -> 0 | AJ38: 0 | AK38: =SUM(AG38:AJ38) -> 0 | AL38: =(AG38+AH38)*AL$11 -> 0 | AX38: =SUM(AN38:AW38) -> 0 | AY38: =SUMPRODUCT(AN$12:AW$12,AN38:AW38) -> 0 | AZ38: 0 | BA38: =AY38*BA$11 -> 0 | BB38: 0 | BC38: =SUM(AY38:BB38) -> 0 | BD38: =(AY38+AZ38)*BD$11 -> 0 | BF38: 0 | BG38: 0 | BH38: 0 | BI38: 0 | BJ38: 0 | BK38: 0 | BL38: 0 | BM38: 0 | BN38: 0
B39: 5.4 | C39: Task 5.4 | N39: =SUM(D39:M39) -> 0 | O39: =SUMPRODUCT(D$12:M$12,D39:M39) -> 0 | P39: 0 | Q39: 0 | R39: 0 | S39: =SUM(O39:R39) -> 0 | T39: 0 | AF39: =SUM(V39:AE39) -> 0 | AG39: =SUMPRODUCT(V$12:AE$12,V39:AE39) -> 0 | AH39: 0 | AI39: =AG39*AI$11 -> 0 | AJ39: 0 | AK39: =SUM(AG39:AJ39) -> 0 | AL39: =(AG39+AH39)*AL$11 -> 0 | AX39: =SUM(AN39:AW39) -> 0 | AY39: =SUMPRODUCT(AN$12:AW$12,AN39:AW39) -> 0 | AZ39: 0 | BA39: =AY39*BA$11 -> 0 | BB39: 0 | BC39: =SUM(AY39:BB39) -> 0 | BD39: =(AY39+AZ39)*BD$11 -> 0 | BF39: 0 | BG39: 0 | BH39: 0 | BI39: 0 | BJ39: 0 | BK39: 0 | BL39: 0 | BM39: 0 | BN39: 0
B40: 6 | C40: TASK 6 | D40: =SUBTOTAL(9,D41:D44) -> 0 | E40: =SUBTOTAL(9,E41:E44) -> 0 | F40: 0 | G40: 0 | H40: 0 | I40: 0 | J40: 0 | K40: 0 | L40: 0 | M40: 0 | N40: 0 | O40: 0 | P40: 0 | Q40: 0 | R40: 0 | S40: 0 | T40: 0 | V40: =SUBTOTAL(9,V41:V44) -> 0 | W40: 0 | X40: 0 | Y40: 0 | Z40: 0 | AA40: 0 | AB40: 0 | AC40: 0 | AD40: 0 | AE40: 0 | AF40: 0 | AG40: 0 | AH40: 0 | AI40: 0 | AJ40: 0 | AK40: 0 | AL40: 0 | AN40: =SUBTOTAL(9,AN41:AN44) -> 0 | AO40: 0 | AP40: 0 | AQ40: 0 | AR40: 0 | AS40: 0 | AT40: 0 | AU40: 0 | AV40: 0 | AW40: 0 | AX40: 0 | AY40: 0 | AZ40: 0 | BA40: 0 | BB40: 0 | BC40: 0 | BD40: 0 | BF40: 0 | BG40: 0 | BH40: 0 | BI40: 0 | BJ40: 0 | BK40: 0 | BL40: 0 | BM40: 0 | BN40: 0
B41: 6.1 | C41: Task 6.1 | N41: =SUM(D41:M41) -> 0 | O41: =SUMPRODUCT(D$12:M$12,D41:M41) -> 0 | P41: 0 | Q41: 0 | R41: 0 | S41: =SUM(O41:R41) -> 0 | T41: 0 | AF41: =SUM(V41:AE41) -> 0 | AG41: =SUMPRODUCT(V$12:AE$12,V41:AE41) -> 0 | AH41: 0 | AI41: =AG41*AI$11 -> 0 | AJ41: 0 | AK41: =SUM(AG41:AJ41) -> 0 | AL41: =(AG41+AH41)*AL$11 -> 0 | AX41: =SUM(AN41:AW41) -> 0 | AY41: =SUMPRODUCT(AN$12:AW$12,AN41:AW41) -> 0 | AZ41: 0 | BA41: =AY41*BA$11 -> 0 | BB41: 0 | BC41: =SUM(AY41:BB41) -> 0 | BD41: =(AY41+AZ41)*BD$11 -> 0 | BF41: 0 | BG41: 0 | BH41: 0 | BI41: 0 | BJ41: 0 | BK41: 0 | BL41: 0 | BM41: 0 | BN41: 0
B42: 6.2 | C42: Task 6.2 | N42: =SUM(D42:M42) -> 0 | O42: =SUMPRODUCT(D$12:M$12,D42:M42) -> 0 | P42: 0 | Q42: 0 | R42: 0 | S42: =SUM(O42:R42) -> 0 | T42: 0 | AF42: =SUM(V42:AE42) -> 0 | AG42: =SUMPRODUCT(V$12:AE$12,V42:AE42) -> 0 | AH42: 0 | AI42: =AG42*AI$11 -> 0 | AJ42: 0 | AK42: =SUM(AG42:AJ42) -> 0 | AL42: =(AG42+AH42)*AL$11 -> 0 | AX42: =SUM(AN42:AW42) -> 0 | AY42: =SUMPRODUCT(AN$12:AW$12,AN42:AW42) -> 0 | AZ42: 0 | BA42: =AY42*BA$11 -> 0 | BB42: 0 | BC42: =SUM(AY42:BB42) -> 0 | BD42: =(AY42+AZ42)*BD$11 -> 0 | BF42: 0 | BG42: 0 | BH42: 0 | BI42: 0 | BJ42: 0 | BK42: 0 | BL42: 0 | BM42: 0 | BN42: 0
B43: 6.3 | C43: Task 6.3 | N43: =SUM(D43:M43) -> 0 | O43: =SUMPRODUCT(D$12:M$12,D43:M43) -> 0 | P43: 0 | Q43: 0 | R43: 0 | S43: =SUM(O43:R43) -> 0 | T43: 0 | AF43: =SUM(V43:AE43) -> 0 | AG43: =SUMPRODUCT(V$12:AE$12,V43:AE43) -> 0 | AH43: 0 | AI43: =AG43*AI$11 -> 0 | AJ43: 0 | AK43: =SUM(AG43:AJ43) -> 0 | AL43: =(AG43+AH43)*AL$11 -> 0 | AX43: =SUM(AN43:AW43) -> 0 | AY43: =SUMPRODUCT(AN$12:AW$12,AN43:AW43) -> 0 | AZ43: 0 | BA43: =AY43*BA$11 -> 0 | BB43: 0 | BC43: =SUM(AY43:BB43) -> 0 | BD43: =(AY43+AZ43)*BD$11 -> 0 | BF43: 0 | BG43: 0 | BH43: 0 | BI43: 0 | BJ43: 0 | BK43: 0 | BL43: 0 | BM43: 0 | BN43: 0
B44: 6.4 | C44: Task 6.4 | N44: =SUM(D44:M44) -> 0 | O44: =SUMPRODUCT(D$12:M$12,D44:M44) -> 0 | P44: 0 | Q44: 0 | R44: 0 | S44: =SUM(O44:R44) -> 0 | T44: 0 | AF44: =SUM(V44:AE44) -> 0 | AG44: =SUMPRODUCT(V$12:AE$12,V44:AE44) -> 0 | AH44: 0 | AI44: =AG44*AI$11 -> 0 | AJ44: 0 | AK44: =SUM(AG44:AJ44) -> 0 | AL44: =(AG44+AH44)*AL$11 -> 0 | AX44: =SUM(AN44:AW44) -> 0 | AY44: =SUMPRODUCT(AN$12:AW$12,AN44:AW44) -> 0 | AZ44: 0 | BA44: =AY44*BA$11 -> 0 | BB44: 0 | BC44: =SUM(AY44:BB44) -> 0 | BD44: =(AY44+AZ44)*BD$11 -> 0 | BF44: 0 | BG44: 0 | BH44: 0 | BI44: 0 | BJ44: 0 | BK44: 0 | BL44: 0 | BM44: 0 | BN44: 0
B45: 7 | C45: TASK 7 | D45: =SUBTOTAL(9,D46:D49) -> 0 | E45: =SUBTOTAL(9,E46:E49) -> 0 | F45: 0 | G45: 0 | H45: 0 | I45: 0 | J45: 0 | K45: 0 | L45: 0 | M45: 0 | N45: 0 | O45: 0 | P45: 0 | Q45: 0 | R45: 0 | S45: 0 | T45: 0 | V45: =SUBTOTAL(9,V46:V49) -> 0 | W45: 0 | X45: 0 | Y45: 0 | Z45: 0 | AA45: 0 | AB45: 0 | AC45: 0 | AD45: 0 | AE45: 0 | AF45: 0 | AG45: 0 | AH45: 0 | AI45: 0 | AJ45: 0 | AK45: 0 | AL45: 0 | AN45: =SUBTOTAL(9,AN46:AN49) -> 0 | AO45: 0 | AP45: 0 | AQ45: 0 | AR45: 0 | AS45: 0 | AT45: 0 | AU45: 0 | AV45: 0 | AW45: 0 | AX45: 0 | AY45: 0 | AZ45: 0 | BA45: 0 | BB45: 0 | BC45: 0 | BD45: 0 | BF45: 0 | BG45: 0 | BH45: 0 | BI45: 0 | BJ45: 0 | BK45: 0 | BL45: 0 | BM45: 0 | BN45: 0
B46: 7.1 | C46: Task 7.1 | N46: =SUM(D46:M46) -> 0 | O46: =SUMPRODUCT(D$12:M$12,D46:M46) -> 0 | P46: 0 | Q46: 0 | R46: 0 | S46: =SUM(O46:R46) -> 0 | T46: 0 | AF46: =SUM(V46:AE46) -> 0 | AG46: =SUMPRODUCT(V$12:AE$12,V46:AE46) -> 0 | AH46: 0 | AI46: =AG46*AI$11 -> 0 | AJ46: 0 | AK46: =SUM(AG46:AJ46) -> 0 | AL46: =(AG46+AH46)*AL$11 -> 0 | AX46: =SUM(AN46:AW46) -> 0 | AY46: =SUMPRODUCT(AN$12:AW$12,AN46:AW46) -> 0 | AZ46: 0 | BA46: =AY46*BA$11 -> 0 | BB46: 0 | BC46: =SUM(AY46:BB46) -> 0 | BD46: =(AY46+AZ46)*BD$11 -> 0 | BF46: 0 | BG46: 0 | BH46: 0 | BI46: 0 | BJ46: 0 | BK46: 0 | BL46: 0 | BM46: 0 | BN46: 0
B47: 7.2 | C47: Task 7.2 | N47: =SUM(D47:M47) -> 0 | O47: =SUMPRODUCT(D$12:M$12,D47:M47) -> 0 | P47: 0 | Q47: =O47*Q$11 -> 0 | R47: 0 | S47: =SUM(O47:R47) -> 0 | T47: =(O47+P47)*T$11 -> 0 | AF47: =SUM(V47:AE47) -> 0 | AG47: =SUMPRODUCT(V$12:AE$12,V47:AE47) -> 0 | AH47: 0 | AI47: =AG47*AI$11 -> 0 | AJ47: 0 | AK47: =SUM(AG47:AJ47) -> 0 | AL47: =(AG47+AH47)*AL$11 -> 0 | AX47: =SUM(AN47:AW47) -> 0 | AY47: =SUMPRODUCT(AN$12:AW$12,AN47:AW47) -> 0 | AZ47: 0 | BA47: =AY47*BA$11 -> 0 | BB47: 0 | BC47: =SUM(AY47:BB47) -> 0 | BD47: =(AY47+AZ47)*BD$11 -> 0 | BF47: 0 | BG47: 0 | BH47: 0 | BI47: 0 | BJ47: 0 | BK47: 0 | BL47: 0 | BM47: 0 | BN47: 0
B48: 7.3 | C48: Task 7.3 | N48: =SUM(D48:M48) -> 0 | O48: =SUMPRODUCT(D$12:M$12,D48:M48) -> 0 | P48: 0 | Q48: =O48*Q$11 -> 0 | R48: 0 | S48: =SUM(O48:R48) -> 0 | T48: =(O48+P48)*T$11 -> 0 | AF48: =SUM(V48:AE48) -> 0 | AG48: =SUMPRODUCT(V$12:AE$12,V48:AE48) -> 0 | AH48: 0 | AI48: =AG48*AI$11 -> 0 | AJ48: 0 | AK48: =SUM(AG48:AJ48) -> 0 | AL48: =(AG48+AH48)*AL$11 -> 0 | AX48: =SUM(AN48:AW48) -> 0 | AY48: =SUMPRODUCT(AN$12:AW$12,AN48:AW48) -> 0 | AZ48: 0 | BA48: =AY48*BA$11 -> 0 | BB48: 0 | BC48: =SUM(AY48:BB48) -> 0 | BD48: =(AY48+AZ48)*BD$11 -> 0 | BF48: 0 | BG48: 0 | BH48: 0 | BI48: 0 | BJ48: 0 | BK48: 0 | BL48: 0 | BM48: 0 | BN48: 0
B49: 7.4 | C49: Task 7.4 | N49: =SUM(D49:M49) -> 0 | O49: =SUMPRODUCT(D$12:M$12,D49:M49) -> 0 | P49: 0 | Q49: =O49*Q$11 -> 0 | R49: 0 | S49: =SUM(O49:R49) -> 0 | T49: =(O49+P49)*T$11 -> 0 | AF49: =SUM(V49:AE49) -> 0 | AG49: =SUMPRODUCT(V$12:AE$12,V49:AE49) -> 0 | AH49: 0 | AI49: =AG49*AI$11 -> 0 | AJ49: 0 | AK49: =SUM(AG49:AJ49) -> 0 | AL49: =(AG49+AH49)*AL$11 -> 0 | AX49: =SUM(AN49:AW49) -> 0 | AY49: =SUMPRODUCT(AN$12:AW$12,AN49:AW49) -> 0 | AZ49: 0 | BA49: =AY49*BA$11 -> 0 | BB49: 0 | BC49: =SUM(AY49:BB49) -> 0 | BD49: =(AY49+AZ49)*BD$11 -> 0 | BF49: 0 | BG49: 0 | BH49: 0 | BI49: 0 | BJ49: 0 | BK49: 0 | BL49: 0 | BM49: 0 | BN49: 0
B50: 8 | C50: TASK 8 | D50: =SUBTOTAL(9,D51:D54) -> 0 | E50: =SUBTOTAL(9,E51:E54) -> 0 | F50: 0 | G50: 0 | H50: 0 | I50: 0 | J50: 0 | K50: 0 | L50: 0 | M50: 0 | N50: 0 | O50: 0 | P50: 0 | Q50: 0 | R50: 0 | S50: 0 | T50: 0 | V50: =SUBTOTAL(9,V51:V54) -> 0 | W50: 0 | X50: 0 | Y50: 0 | Z50: 0 | AA50: 0 | AB50: 0 | AC50: 0 | AD50: 0 | AE50: 0 | AF50: 0 | AG50: 0 | AH50: 0 | AI50: 0 | AJ50: 0 | AK50: 0 | AL50: 0 | AN50: =SUBTOTAL(9,AN51:AN54) -> 0 | AO50: 0 | AP50: 0 | AQ50: 0 | AR50: 0 | AS50: 0 | AT50: 0 | AU50: 0 | AV50: 0 | AW50: 0 | AX50: 0 | AY50: 0 | AZ50: 0 | BA50: 0 | BB50: 0 | BC50: 0 | BD50: 0 | BF50: 0 | BG50: 0 | BH50: 0 | BI50: 0 | BJ50: 0 | BK50: 0 | BL50: 0 | BM50: 0 | BN50: 0
B51: 8.1 | C51: Task 8.1 | N51: =SUM(D51:M51) -> 0 | O51: =SUMPRODUCT(D$12:M$12,D51:M51) -> 0 | P51: 0 | Q51: 0 | R51: 0 | S51: =SUM(O51:R51) -> 0 | T51: 0 | AF51: =SUM(V51:AE51) -> 0 | AG51: =SUMPRODUCT(V$12:AE$12,V51:AE51) -> 0 | AH51: 0 | AI51: =AG51*AI$11 -> 0 | AJ51: 0 | AK51: =SUM(AG51:AJ51) -> 0 | AL51: =(AG51+AH51)*AL$11 -> 0 | AX51: =SUM(AN51:AW51) -> 0 | AY51: =SUMPRODUCT(AN$12:AW$12,AN51:AW51) -> 0 | AZ51: 0 | BA51: =AY51*BA$11 -> 0 | BB51: 0 | BC51: =SUM(AY51:BB51) -> 0 | BD51: =(AY51+AZ51)*BD$11 -> 0 | BF51: 0 | BG51: 0 | BH51: 0 | BI51: 0 | BJ51: 0 | BK51: 0 | BL51: 0 | BM51: 0 | BN51: 0
B52: 8.2 | C52: Task 8.2 | N52: =SUM(D52:M52) -> 0 | O52: =SUMPRODUCT(D$12:M$12,D52:M52) -> 0 | P52: 0 | Q52: 0 | R52: 0 | S52: =SUM(O52:R52) -> 0 | T52: 0 | AF52: =SUM(V52:AE52) -> 0 | AG52: =SUMPRODUCT(V$12:AE$12,V52:AE52) -> 0 | AH52: 0 | AI52: =AG52*AI$11 -> 0 | AJ52: 0 | AK52: =SUM(AG52:AJ52) -> 0 | AL52: =(AG52+AH52)*AL$11 -> 0 | AX52: =SUM(AN52:AW52) -> 0 | AY52: =SUMPRODUCT(AN$12:AW$12,AN52:AW52) -> 0 | AZ52: 0 | BA52: =AY52*BA$11 -> 0 | BB52: 0 | BC52: =SUM(AY52:BB52) -> 0 | BD52: =(AY52+AZ52)*BD$11 -> 0 | BF52: 0 | BG52: 0 | BH52: 0 | BI52: 0 | BJ52: 0 | BK52: 0 | BL52: 0 | BM52: 0 | BN52: 0
B53: 8.3 | C53: Task 8.3 | N53: =SUM(D53:M53) -> 0 | O53: =SUMPRODUCT(D$12:M$12,D53:M53) -> 0 | P53: 0 | Q53: 0 | R53: 0 | S53: =SUM(O53:R53) -> 0 | T53: 0 | AF53: =SUM(V53:AE53) -> 0 | AG53: =SUMPRODUCT(V$12:AE$12,V53:AE53) -> 0 | AH53: 0 | AI53: =AG53*AI$11 -> 0 | AJ53: 0 | AK53: =SUM(AG53:AJ53) -> 0 | AL53: =(AG53+AH53)*AL$11 -> 0 | AX53: =SUM(AN53:AW53) -> 0 | AY53: =SUMPRODUCT(AN$12:AW$12,AN53:AW53) -> 0 | AZ53: 0 | BA53: =AY53*BA$11 -> 0 | BB53: 0 | BC53: =SUM(AY53:BB53) -> 0 | BD53: =(AY53+AZ53)*BD$11 -> 0 | BF53: 0 | BG53: 0 | BH53: 0 | BI53: 0 | BJ53: 0 | BK53: 0 | BL53: 0 | BM53: 0 | BN53: 0
B54: 8.4 | C54: Task 8.4 | N54: =SUM(D54:M54) -> 0 | O54: =SUMPRODUCT(D$12:M$12,D54:M54) -> 0 | P54: 0 | Q54: 0 | R54: 0 | S54: =SUM(O54:R54) -> 0 | T54: 0 | AF54: =SUM(V54:AE54) -> 0 | AG54: =SUMPRODUCT(V$12:AE$12,V54:AE54) -> 0 | AH54: 0 | AI54: =AG54*AI$11 -> 0 | AJ54: 0 | AK54: =SUM(AG54:AJ54) -> 0 | AL54: =(AG54+AH54)*AL$11 -> 0 | AX54: =SUM(AN54:AW54) -> 0 | AY54: =SUMPRODUCT(AN$12:AW$12,AN54:AW54) -> 0 | AZ54: 0 | BA54: =AY54*BA$11 -> 0 | BB54: 0 | BC54: =SUM(AY54:BB54) -> 0 | BD54: =(AY54+AZ54)*BD$11 -> 0 | BF54: 0 | BG54: 0 | BH54: 0 | BI54: 0 | BJ54: 0 | BK54: 0 | BL54: 0 | BM54: 0 | BN54: 0
B55: 9 | C55: TASK 9 | D55: =SUBTOTAL(9,D56:D59) -> 0 | E55: =SUBTOTAL(9,E56:E59) -> 0 | F55: 0 | G55: 0 | H55: 0 | I55: 0 | J55: 0 | K55: 0 | L55: 0 | M55: 0 | N55: 0 | O55: 0 | P55: 0 | Q55: 0 | R55: 0 | S55: 0 | T55: 0 | V55: =SUBTOTAL(9,V56:V59) -> 0 | W55: 0 | X55: 0 | Y55: 0 | Z55: 0 | AA55: 0 | AB55: 0 | AC55: 0 | AD55: 0 | AE55: 0 | AF55: 0 | AG55: 0 | AH55: 0 | AI55: 0 | AJ55: 0 | AK55: 0 | AL55: 0 | AN55: =SUBTOTAL(9,AN56:AN59) -> 0 | AO55: 0 | AP55: 0 | AQ55: 0 | AR55: 0 | AS55: 0 | AT55: 0 | AU55: 0 | AV55: 0 | AW55: 0 | AX55: 0 | AY55: 0 | AZ55: 0 | BA55: 0 | BB55: 0 | BC55: 0 | BD55: 0 | BF55: 0 | BG55: 0 | BH55: 0 | BI55: 0 | BJ55: 0 | BK55: 0 | BL55: 0 | BM55: 0 | BN55: 0
B56: 9.1 | C56: Task 9.1 | N56: =SUM(D56:M56) -> 0 | O56: =SUMPRODUCT(D$12:M$12,D56:M56) -> 0 | P56: =O56*P$11 -> 0 | Q56: =O56*Q$11 -> 0 | R56: 0 | S56: =SUM(O56:R56) -> 0 | T56: =(O56+P56)*T$11 -> 0 | AF56: =SUM(V56:AE56) -> 0 | AG56: =SUMPRODUCT(V$12:AE$12,V56:AE56) -> 0 | AH56: =AG56*AH$11 -> 0 | AI56: =AG56*AI$11 -> 0 | AJ56: 0 | AK56: =SUM(AG56:AJ56) -> 0 | AL56: =(AG56+AH56)*AL$11 -> 0 | AX56: =SUM(AN56:AW56) -> 0 | AY56: =SUMPRODUCT(AN$12:AW$12,AN56:AW56) -> 0 | AZ56: =AY56*AZ$11 -> 0 | BA56: =AY56*BA$11 -> 0 | BB56: 0 | BC56: =SUM(AY56:BB56) -> 0 | BD56: =(AY56+AZ56)*BD$11 -> 0 | BF56: 0 | BG56: 0 | BH56: 0 | BI56: 0 | BJ56: 0 | BK56: 0 | BL56: 0 | BM56: 0 | BN56: 0
B57: 9.2 | C57: Task 9.2 | N57: =SUM(D57:M57) -> 0 | O57: =SUMPRODUCT(D$12:M$12,D57:M57) -> 0 | P57: 0 | Q57: =O57*Q$11 -> 0 | R57: 0 | S57: =SUM(O57:R57) -> 0 | T57: =(O57+P57)*T$11 -> 0 | AF57: =SUM(V57:AE57) -> 0 | AG57: =SUMPRODUCT(V$12:AE$12,V57:AE57) -> 0 | AH57: 0 | AI57: =AG57*AI$11 -> 0 | AJ57: 0 | AK57: =SUM(AG57:AJ57) -> 0 | AL57: =(AG57+AH57)*AL$11 -> 0 | AX57: =SUM(AN57:AW57) -> 0 | AY57: =SUMPRODUCT(AN$12:AW$12,AN57:AW57) -> 0 | AZ57: 0 | BA57: =AY57*BA$11 -> 0 | BB57: 0 | BC57: =SUM(AY57:BB57) -> 0 | BD57: =(AY57+AZ57)*BD$11 -> 0 | BF57: 0 | BG57: 0 | BH57: 0 | BI57: 0 | BJ57: 0 | BK57: 0 | BL57: 0 | BM57: 0 | BN57: 0
B58: 9.3 | C58: Task 9.3 | N58: =SUM(D58:M58) -> 0 | O58: =SUMPRODUCT(D$12:M$12,D58:M58) -> 0 | P58: 0 | Q58: =O58*Q$11 -> 0 | R58: 0 | S58: =SUM(O58:R58) -> 0 | T58: =(O58+P58)*T$11 -> 0 | AF58: =SUM(V58:AE58) -> 0 | AG58: =SUMPRODUCT(V$12:AE$12,V58:AE58) -> 0 | AH58: 0 | AI58: =AG58*AI$11 -> 0 | AJ58: 0 | AK58: =SUM(AG58:AJ58) -> 0 | AL58: =(AG58+AH58)*AL$11 -> 0 | AX58: =SUM(AN58:AW58) -> 0 | AY58: =SUMPRODUCT(AN$12:AW$12,AN58:AW58) -> 0 | AZ58: 0 | BA58: =AY58*BA$11 -> 0 | BB58: 0 | BC58: =SUM(AY58:BB58) -> 0 | BD58: =(AY58+AZ58)*BD$11 -> 0 | BF58: 0 | BG58: 0 | BH58: 0 | BI58: 0 | BJ58: 0 | BK58: 0 | BL58: 0 | BM58: 0 | BN58: 0
B59: 9.4 | C59: Task 9.4 | N59: =SUM(D59:M59) -> 0 | O59: =SUMPRODUCT(D$12:M$12,D59:M59) -> 0 | P59: 0 | Q59: =O59*Q$11 -> 0 | R59: 0 | S59: =SUM(O59:R59) -> 0 | T59: =(O59+P59)*T$11 -> 0 | AF59: =SUM(V59:AE59) -> 0 | AG59: =SUMPRODUCT(V$12:AE$12,V59:AE59) -> 0 | AH59: 0 | AI59: =AG59*AI$11 -> 0 | AJ59: 0 | AK59: =SUM(AG59:AJ59) -> 0 | AL59: =(AG59+AH59)*AL$11 -> 0 | AX59: =SUM(AN59:AW59) -> 0 | AY59: =SUMPRODUCT(AN$12:AW$12,AN59:AW59) -> 0 | AZ59: 0 | BA59: =AY59*BA$11 -> 0 | BB59: 0 | BC59: =SUM(AY59:BB59) -> 0 | BD59: =(AY59+AZ59)*BD$11 -> 0 | BF59: 0 | BG59: 0 | BH59: 0 | BI59: 0 | BJ59: 0 | BK59: 0 | BL59: 0 | BM59: 0 | BN59: 0
B60: 10 | C60: TASK 10 | D60: =SUBTOTAL(9,D61:D64) -> 0 | E60: =SUBTOTAL(9,E61:E64) -> 0 | F60: 0 | G60: 0 | H60: 0 | I60: 0 | J60: 0 | K60: 0 | L60: 0 | M60: 0 | N60: 0 | O60: 0 | P60: 0 | Q60: 0 | R60: 0 | S60: 0 | T60: 0 | V60: =SUBTOTAL(9,V61:V64) -> 0 | W60: 0 | X60: 0 | Y60: 0 | Z60: 0 | AA60: 0 | AB60: 0 | AC60: 0 | AD60: 0 | AE60: 0 | AF60: 0 | AG60: 0 | AH60: 0 | AI60: 0 | AJ60: 0 | AK60: 0 | AL60: 0 | AN60: =SUBTOTAL(9,AN61:AN64) -> 0 | AO60: 0 | AP60: 0 | AQ60: 0 | AR60: 0 | AS60: 0 | AT60: 0 | AU60: 0 | AV60: 0 | AW60: 0 | AX60: 0 | AY60: 0 | AZ60: 0 | BA60: 0 | BB60: 0 | BC60: 0 | BD60: 0 | BF60: 0 | BG60: 0 | BH60: 0 | BI60: 0 | BJ60: 0 | BK60: 0 | BL60: 0 | BM60: 0 | BN60: 0
B61: 10.1 | C61: Task 10.1 | N61: =SUM(D61:M61) -> 0 | O61: =SUMPRODUCT(D$12:M$12,D61:M61) -> 0 | P61: 0 | Q61: =O61*Q$11 -> 0 | R61: 0 | S61: =SUM(O61:R61) -> 0 | T61: =(O61+P61)*T$11 -> 0 | AF61: =SUM(V61:AE61) -> 0 | AG61: =SUMPRODUCT(V$12:AE$12,V61:AE61) -> 0 | AH61: 0 | AI61: =AG61*AI$11 -> 0 | AJ61: 0 | AK61: =SUM(AG61:AJ61) -> 0 | AL61: =(AG61+AH61)*AL$11 -> 0 | AX61: =SUM(AN61:AW61) -> 0 | AY61: =SUMPRODUCT(AN$12:AW$12,AN61:AW61) -> 0 | AZ61: 0 | BA61: =AY61*BA$11 -> 0 | BB61: 0 | BC61: =SUM(AY61:BB61) -> 0 | BD61: =(AY61+AZ61)*BD$11 -> 0 | BF61: 0 | BG61: 0 | BH61: 0 | BI61: 0 | BJ61: 0 | BK61: 0 | BL61: 0 | BM61: 0 | BN61: 0
B62: 10.2 | C62: Task 10.2 | N62: =SUM(D62:M62) -> 0 | O62: =SUMPRODUCT(D$12:M$12,D62:M62) -> 0 | P62: 0 | Q62: =O62*Q$11 -> 0 | R62: 0 | S62: =SUM(O62:R62) -> 0 | T62: =(O62+P62)*T$11 -> 0 | AF62: =SUM(V62:AE62) -> 0 | AG62: =SUMPRODUCT(V$12:AE$12,V62:AE62) -> 0 | AH62: 0 | AI62: =AG62*AI$11 -> 0 | AJ62: 0 | AK62: =SUM(AG62:AJ62) -> 0 | AL62: =(AG62+AH62)*AL$11 -> 0 | AX62: =SUM(AN62:AW62) -> 0 | AY62: =SUMPRODUCT(AN$12:AW$12,AN62:AW62) -> 0 | AZ62: 0 | BA62: =AY62*BA$11 -> 0 | BB62: 0 | BC62: =SUM(AY62:BB62) -> 0 | BD62: =(AY62+AZ62)*BD$11 -> 0 | BF62: 0 | BG62: 0 | BH62: 0 | BI62: 0 | BJ62: 0 | BK62: 0 | BL62: 0 | BM62: 0 | BN62: 0
B63: 10.3 | C63: Task 10.3 | N63: =SUM(D63:M63) -> 0 | O63: =SUMPRODUCT(D$12:M$12,D63:M63) -> 0 | P63: 0 | Q63: =O63*Q$11 -> 0 | R63: 0 | S63: =SUM(O63:R63) -> 0 | T63: =(O63+P63)*T$11 -> 0 | AF63: =SUM(V63:AE63) -> 0 | AG63: =SUMPRODUCT(V$12:AE$12,V63:AE63) -> 0 | AH63: 0 | AI63: =AG63*AI$11 -> 0 | AJ63: 0 | AK63: =SUM(AG63:AJ63) -> 0 | AL63: =(AG63+AH63)*AL$11 -> 0 | AX63: =SUM(AN63:AW63) -> 0 | AY63: =SUMPRODUCT(AN$12:AW$12,AN63:AW63) -> 0 | AZ63: 0 | BA63: =AY63*BA$11 -> 0 | BB63: 0 | BC63: =SUM(AY63:BB63) -> 0 | BD63: =(AY63+AZ63)*BD$11 -> 0 | BF63: 0 | BG63: 0 | BH63: 0 | BI63: 0 | BJ63: 0 | BK63: 0 | BL63: 0 | BM63: 0 | BN63: 0
B64: 10.4 | C64: Task 10.4 | N64: =SUM(D64:M64) -> 0 | O64: =SUMPRODUCT(D$12:M$12,D64:M64) -> 0 | P64: 0 | Q64: =O64*Q$11 -> 0 | R64: 0 | S64: =SUM(O64:R64) -> 0 | T64: =(O64+P64)*T$11 -> 0 | AF64: =SUM(V64:AE64) -> 0 | AG64: =SUMPRODUCT(V$12:AE$12,V64:AE64) -> 0 | AH64: 0 | AI64: =AG64*AI$11 -> 0 | AJ64: 0 | AK64: =SUM(AG64:AJ64) -> 0 | AL64: =(AG64+AH64)*AL$11 -> 0 | AX64: =SUM(AN64:AW64) -> 0 | AY64: =SUMPRODUCT(AN$12:AW$12,AN64:AW64) -> 0 | AZ64: 0 | BA64: =AY64*BA$11 -> 0 | BB64: 0 | BC64: =SUM(AY64:BB64) -> 0 | BD64: =(AY64+AZ64)*BD$11 -> 0 | BF64: 0 | BG64: 0 | BH64: 0 | BI64: 0 | BJ64: 0 | BK64: 0 | BL64: 0 | BM64: 0 | BN64: 0
B65: 11 | C65: TASK 11 | D65: =SUBTOTAL(9,D66:D69) -> 0 | E65: =SUBTOTAL(9,E66:E69) -> 0 | F65: 0 | G65: 0 | H65: 0 | I65: 0 | J65: 0 | K65: 0 | L65: 0 | M65: 0 | N65: 0 | O65: 0 | P65: 0 | Q65: 0 | R65: 0 | S65: 0 | T65: 0 | V65: =SUBTOTAL(9,V66:V69) -> 0 | W65: 0 | X65: 0 | Y65: 0 | Z65: 0 | AA65: 0 | AB65: 0 | AC65: 0 | AD65: 0 | AE65: 0 | AF65: 0 | AG65: 0 | AH65: 0 | AI65: 0 | AJ65: 0 | AK65: 0 | AL65: 0 | AN65: =SUBTOTAL(9,AN66:AN69) -> 0 | AO65: 0 | AP65: 0 | AQ65: 0 | AR65: 0 | AS65: 0 | AT65: 0 | AU65: 0 | AV65: 0 | AW65: 0 | AX65: 0 | AY65: 0 | AZ65: 0 | BA65: 0 | BB65: 0 | BC65: 0 | BD65: 0 | BF65: 0 | BG65: 0 | BH65: 0 | BI65: 0 | BJ65: 0 | BK65: 0 | BL65: 0 | BM65: 0 | BN65: 0
B66: 11.1 | C66: Task 11.1 | N66: =SUM(D66:M66) -> 0 | O66: =SUMPRODUCT(D$12:M$12,D66:M66) -> 0 | P66: 0 | Q66: =O66*Q$11 -> 0 | R66: 0 | S66: =SUM(O66:R66) -> 0 | T66: =(O66+P66)*T$11 -> 0 | AF66: =SUM(V66:AE66) -> 0 | AG66: =SUMPRODUCT(V$12:AE$12,V66:AE66) -> 0 | AH66: 0 | AI66: =AG66*AI$11 -> 0 | AJ66: 0 | AK66: =SUM(AG66:AJ66) -> 0 | AL66: =(AG66+AH66)*AL$11 -> 0 | AX66: =SUM(AN66:AW66) -> 0 | AY66: =SUMPRODUCT(AN$12:AW$12,AN66:AW66) -> 0 | AZ66: 0 | BA66: =AY66*BA$11 -> 0 | BB66: 0 | BC66: =SUM(AY66:BB66) -> 0 | BD66: =(AY66+AZ66)*BD$11 -> 0 | BF66: 0 | BG66: 0 | BH66: 0 | BI66: 0 | BJ66: 0 | BK66: 0 | BL66: 0 | BM66: 0 | BN66: 0
B67: 11.2 | C67: Task 11.2 | N67: =SUM(D67:M67) -> 0 | O67: =SUMPRODUCT(D$12:M$12,D67:M67) -> 0 | P67: 0 | Q67: =O67*Q$11 -> 0 | R67: 0 | S67: =SUM(O67:R67) -> 0 | T67: =(O67+P67)*T$11 -> 0 | AF67: =SUM(V67:AE67) -> 0 | AG67: =SUMPRODUCT(V$12:AE$12,V67:AE67) -> 0 | AH67: 0 | AI67: =AG67*AI$11 -> 0 | AJ67: 0 | AK67: =SUM(AG67:AJ67) -> 0 | AL67: =(AG67+AH67)*AL$11 -> 0 | AX67: =SUM(AN67:AW67) -> 0 | AY67: =SUMPRODUCT(AN$12:AW$12,AN67:AW67) -> 0 | AZ67: 0 | BA67: =AY67*BA$11 -> 0 | BB67: 0 | BC67: =SUM(AY67:BB67) -> 0 | BD67: =(AY67+AZ67)*BD$11 -> 0 | BF67: 0 | BG67: 0 | BH67: 0 | BI67: 0 | BJ67: 0 | BK67: 0 | BL67: 0 | BM67: 0 | BN67: 0
B68: 11.3 | C68: Task 11.3 | N68: =SUM(D68:M68) -> 0 | O68: =SUMPRODUCT(D$12:M$12,D68:M68) -> 0 | P68: 0 | Q68: =O68*Q$11 -> 0 | R68: 0 | S68: =SUM(O68:R68) -> 0 | T68: =(O68+P68)*T$11 -> 0 | AF68: =SUM(V68:AE68) -> 0 | AG68: =SUMPRODUCT(V$12:AE$12,V68:AE68) -> 0 | AH68: 0 | AI68: =AG68*AI$11 -> 0 | AJ68: 0 | AK68: =SUM(AG68:AJ68) -> 0 | AL68: =(AG68+AH68)*AL$11 -> 0 | AX68: =SUM(AN68:AW68) -> 0 | AY68: =SUMPRODUCT(AN$12:AW$12,AN68:AW68) -> 0 | AZ68: 0 | BA68: =AY68*BA$11 -> 0 | BB68: 0 | BC68: =SUM(AY68:BB68) -> 0 | BD68: =(AY68+AZ68)*BD$11 -> 0 | BF68: 0 | BG68: 0 | BH68: 0 | BI68: 0 | BJ68: 0 | BK68: 0 | BL68: 0 | BM68: 0 | BN68: 0
B69: 11.4 | C69: Task 11.4 | N69: =SUM(D69:M69) -> 0 | O69: =SUMPRODUCT(D$12:M$12,D69:M69) -> 0 | P69: 0 | Q69: =O69*Q$11 -> 0 | R69: 0 | S69: =SUM(O69:R69) -> 0 | T69: =(O69+P69)*T$11 -> 0 | AF69: =SUM(V69:AE69) -> 0 | AG69: =SUMPRODUCT(V$12:AE$12,V69:AE69) -> 0 | AH69: 0 | AI69: =AG69*AI$11 -> 0 | AJ69: 0 | AK69: =SUM(AG69:AJ69) -> 0 | AL69: =(AG69+AH69)*AL$11 -> 0 | AX69: =SUM(AN69:AW69) -> 0 | AY69: =SUMPRODUCT(AN$12:AW$12,AN69:AW69) -> 0 | AZ69: 0 | BA69: =AY69*BA$11 -> 0 | BB69: 0 | BC69: =SUM(AY69:BB69) -> 0 | BD69: =(AY69+AZ69)*BD$11 -> 0 | BF69: 0 | BG69: 0 | BH69: 0 | BI69: =SUMIF($D$10:$BC$10,BI$10,$D69:$BC69) -> 0 | BJ69: 0 | BK69: 0 | BL69: 0 | BM69: 0 | BN69: 0
B70: 12 | C70: TASK 12 | D70: =SUBTOTAL(9,D71:D74) -> 0 | E70: =SUBTOTAL(9,E71:E74) -> 0 | F70: 0 | G70: 0 | H70: 0 | I70: 0 | J70: 0 | K70: 0 | L70: 0 | M70: 0 | N70: 0 | O70: 0 | P70: 0 | Q70: 0 | R70: 0 | S70: 0 | T70: 0 | V70: =SUBTOTAL(9,V71:V74) -> 0 | W70: 0 | X70: 0 | Y70: 0 | Z70: 0 | AA70: 0 | AB70: 0 | AC70: 0 | AD70: 0 | AE70: 0 | AF70: 0 | AG70: 0 | AH70: 0 | AI70: 0 | AJ70: 0 | AK70: 0 | AL70: 0 | AN70: =SUBTOTAL(9,AN71:AN74) -> 0 | AO70: 0 | AP70: 0 | AQ70: 0 | AR70: 0 | AS70: 0 | AT70: 0 | AU70: 0 | AV70: 0 | AW70: 0 | AX70: 0 | AY70: 0 | AZ70: 0 | BA70: 0 | BB70: 0 | BC70: 0 | BD70: 0 | BF70: =SUMIF($D$10:$BC$10,BF$10,$D70:$BC70) -> 0 | BG70: 0 | BH70: 0 | BI70: 0 | BJ70: 0 | BK70: 0 | BL70: 0 | BM70: 0 | BN70: 0
B71: 12.1 | C71: Task 12.1 | N71: =SUM(D71:M71) -> 0 | O71: =SUMPRODUCT(D$12:M$12,D71:M71) -> 0 | P71: 0 | Q71: =O71*Q$11 -> 0 | R71: 0 | S71: =SUM(O71:R71) -> 0 | T71: =(O71+P71)*T$11 -> 0 | AF71: =SUM(V71:AE71) -> 0 | AG71: =SUMPRODUCT(V$12:AE$12,V71:AE71) -> 0 | AH71: 0 | AI71: =AG71*AI$11 -> 0 | AJ71: 0 | AK71: =SUM(AG71:AJ71) -> 0 | AL71: =(AG71+AH71)*AL$11 -> 0 | AX71: =SUM(AN71:AW71) -> 0 | AY71: =SUMPRODUCT(AN$12:AW$12,AN71:AW71) -> 0 | AZ71: 0 | BA71: =AY71*BA$11 -> 0 | BB71: 0 | BC71: =SUM(AY71:BB71) -> 0 | BD71: =(AY71+AZ71)*BD$11 -> 0 | BF71: 0 | BG71: 0 | BH71: 0 | BI71: 0 | BJ71: 0 | BK71: 0 | BL71: 0 | BM71: 0 | BN71: 0
B72: 12.2 | C72: Task 12.2 | N72: =SUM(D72:M72) -> 0 | O72: =SUMPRODUCT(D$12:M$12,D72:M72) -> 0 | P72: 0 | Q72: =O72*Q$11 -> 0 | R72: 0 | S72: =SUM(O72:R72) -> 0 | T72: =(O72+P72)*T$11 -> 0 | AF72: =SUM(V72:AE72) -> 0 | AG72: =SUMPRODUCT(V$12:AE$12,V72:AE72) -> 0 | AH72: 0 | AI72: =AG72*AI$11 -> 0 | AJ72: 0 | AK72: =SUM(AG72:AJ72) -> 0 | AL72: =(AG72+AH72)*AL$11 -> 0 | AX72: =SUM(AN72:AW72) -> 0 | AY72: =SUMPRODUCT(AN$12:AW$12,AN72:AW72) -> 0 | AZ72: 0 | BA72: =AY72*BA$11 -> 0 | BB72: 0 | BC72: =SUM(AY72:BB72) -> 0 | BD72: =(AY72+AZ72)*BD$11 -> 0 | BF72: 0 | BG72: 0 | BH72: 0 | BI72: 0 | BJ72: 0 | BK72: 0 | BL72: 0 | BM72: 0 | BN72: 0
B73: 12.3 | C73: Task 12.3 | N73: =SUM(D73:M73) -> 0 | O73: =SUMPRODUCT(D$12:M$12,D73:M73) -> 0 | P73: 0 | Q73: =O73*Q$11 -> 0 | R73: 0 | S73: =SUM(O73:R73) -> 0 | T73: =(O73+P73)*T$11 -> 0 | AF73: =SUM(V73:AE73) -> 0 | AG73: =SUMPRODUCT(V$12:AE$12,V73:AE73) -> 0 | AH73: 0 | AI73: =AG73*AI$11 -> 0 | AJ73: 0 | AK73: =SUM(AG73:AJ73) -> 0 | AL73: =(AG73+AH73)*AL$11 -> 0 | AX73: =SUM(AN73:AW73) -> 0 | AY73: =SUMPRODUCT(AN$12:AW$12,AN73:AW73) -> 0 | AZ73: 0 | BA73: =AY73*BA$11 -> 0 | BB73: 0 | BC73: =SUM(AY73:BB73) -> 0 | BD73: =(AY73+AZ73)*BD$11 -> 0 | BF73: 0 | BG73: 0 | BH73: 0 | BI73: 0 | BJ73: 0 | BK73: 0 | BL73: 0 | BM73: 0 | BN73: 0
B74: 12.4 | C74: Task 12.4 | N74: =SUM(D74:M74) -> 0 | O74: =SUMPRODUCT(D$12:M$12,D74:M74) -> 0 | P74: 0 | Q74: =O74*Q$11 -> 0 | R74: 0 | S74: =SUM(O74:R74) -> 0 | T74: =(O74+P74)*T$11 -> 0 | AF74: =SUM(V74:AE74) -> 0 | AG74: =SUMPRODUCT(V$12:AE$12,V74:AE74) -> 0 | AH74: 0 | AI74: =AG74*AI$11 -> 0 | AJ74: 0 | AK74: =SUM(AG74:AJ74) -> 0 | AL74: =(AG74+AH74)*AL$11 -> 0 | AX74: =SUM(AN74:AW74) -> 0 | AY74: =SUMPRODUCT(AN$12:AW$12,AN74:AW74) -> 0 | AZ74: 0 | BA74: =AY74*BA$11 -> 0 | BB74: 0 | BC74: =SUM(AY74:BB74) -> 0 | BD74: =(AY74+AZ74)*BD$11 -> 0 | BF74: 0 | BG74: 0 | BH74: 0 | BI74: 0 | BJ74: 0 | BK74: 0 | BL74: 0 | BM74: 0 | BN74: 0
B75: 13 | C75: TASK 13 | D75: =SUBTOTAL(9,D76:D79) -> 0 | E75: =SUBTOTAL(9,E76:E79) -> 0 | F75: 0 | G75: 0 | H75: 0 | I75: 0 | J75: 0 | K75: 0 | L75: 0 | M75: 0 | N75: 0 | O75: 0 | P75: 0 | Q75: 0 | R75: 0 | S75: 0 | T75: 0 | V75: =SUBTOTAL(9,V76:V79) -> 0 | W75: 0 | X75: 0 | Y75: 0 | Z75: 0 | AA75: 0 | AB75: 0 | AC75: 0 | AD75: 0 | AE75: 0 | AF75: 0 | AG75: 0 | AH75: 0 | AI75: 0 | AJ75: 0 | AK75: 0 | AL75: 0 | AN75: =SUBTOTAL(9,AN76:AN79) -> 0 | AO75: 0 | AP75: 0 | AQ75: 0 | AR75: 0 | AS75: 0 | AT75: 0 | AU75: 0 | AV75: 0 | AW75: 0 | AX75: 0 | AY75: 0 | AZ75: 0 | BA75: 0 | BB75: 0 | BC75: 0 | BD75: 0 | BF75: 0 | BG75: 0 | BH75: 0 | BI75: 0 | BJ75: 0 | BK75: 0 | BL75: 0 | BM75: 0 | BN75: 0
B76: 13.1 | C76: Task 13.1 | N76: =SUM(D76:M76) -> 0 | O76: =SUMPRODUCT(D$12:M$12,D76:M76) -> 0 | P76: 0 | Q76: =O76*Q$11 -> 0 | R76: 0 | S76: =SUM(O76:R76) -> 0 | T76: =(O76+P76)*T$11 -> 0 | AF76: =SUM(V76:AE76) -> 0 | AG76: =SUMPRODUCT(V$12:AE$12,V76:AE76) -> 0 | AH76: 0 | AI76: =AG76*AI$11 -> 0 | AJ76: 0 | AK76: =SUM(AG76:AJ76) -> 0 | AL76: =(AG76+AH76)*AL$11 -> 0 | AX76: =SUM(AN76:AW76) -> 0 | AY76: =SUMPRODUCT(AN$12:AW$12,AN76:AW76) -> 0 | AZ76: 0 | BA76: =AY76*BA$11 -> 0 | BB76: 0 | BC76: =SUM(AY76:BB76) -> 0 | BD76: =(AY76+AZ76)*BD$11 -> 0 | BF76: 0 | BG76: 0 | BH76: 0 | BI76: 0 | BJ76: 0 | BK76: 0 | BL76: 0 | BM76: 0 | BN76: 0
B77: 13.2 | C77: Task 13.2 | N77: =SUM(D77:M77) -> 0 | O77: =SUMPRODUCT(D$12:M$12,D77:M77) -> 0 | P77: 0 | Q77: =O77*Q$11 -> 0 | R77: 0 | S77: =SUM(O77:R77) -> 0 | T77: =(O77+P77)*T$11 -> 0 | AF77: =SUM(V77:AE77) -> 0 | AG77: =SUMPRODUCT(V$12:AE$12,V77:AE77) -> 0 | AH77: 0 | AI77: =AG77*AI$11 -> 0 | AJ77: 0 | AK77: =SUM(AG77:AJ77) -> 0 | AL77: =(AG77+AH77)*AL$11 -> 0 | AX77: =SUM(AN77:AW77) -> 0 | AY77: =SUMPRODUCT(AN$12:AW$12,AN77:AW77) -> 0 | AZ77: 0 | BA77: =AY77*BA$11 -> 0 | BB77: 0 | BC77: =SUM(AY77:BB77) -> 0 | BD77: =(AY77+AZ77)*BD$11 -> 0 | BF77: 0 | BG77: 0 | BH77: 0 | BI77: 0 | BJ77: 0 | BK77: 0 | BL77: 0 | BM77: 0 | BN77: 0
B78: 13.3 | C78: Task 13.3 | N78: =SUM(D78:M78) -> 0 | O78: =SUMPRODUCT(D$12:M$12,D78:M78) -> 0 | P78: 0 | Q78: =O78*Q$11 -> 0 | R78: 0 | S78: =SUM(O78:R78) -> 0 | T78: =(O78+P78)*T$11 -> 0 | AF78: =SUM(V78:AE78) -> 0 | AG78: =SUMPRODUCT(V$12:AE$12,V78:AE78) -> 0 | AH78: 0 | AI78: =AG78*AI$11 -> 0 | AJ78: 0 | AK78: =SUM(AG78:AJ78) -> 0 | AL78: =(AG78+AH78)*AL$11 -> 0 | AX78: =SUM(AN78:AW78) -> 0 | AY78: =SUMPRODUCT(AN$12:AW$12,AN78:AW78) -> 0 | AZ78: 0 | BA78: =AY78*BA$11 -> 0 | BB78: 0 | BC78: =SUM(AY78:BB78) -> 0 | BD78: =(AY78+AZ78)*BD$11 -> 0 | BF78: 0 | BG78: 0 | BH78: 0 | BI78: 0 | BJ78: 0 | BK78: 0 | BL78: 0 | BM78: 0 | BN78: 0
B79: 13.4 | C79: Task 13.4 | N79: =SUM(D79:M79) -> 0 | O79: =SUMPRODUCT(D$12:M$12,D79:M79) -> 0 | P79: 0 | Q79: =O79*Q$11 -> 0 | R79: 0 | S79: =SUM(O79:R79) -> 0 | T79: =(O79+P79)*T$11 -> 0 | AF79: =SUM(V79:AE79) -> 0 | AG79: =SUMPRODUCT(V$12:AE$12,V79:AE79) -> 0 | AH79: 0 | AI79: =AG79*AI$11 -> 0 | AJ79: 0 | AK79: =SUM(AG79:AJ79) -> 0 | AL79: =(AG79+AH79)*AL$11 -> 0 | AX79: =SUM(AN79:AW79) -> 0 | AY79: =SUMPRODUCT(AN$12:AW$12,AN79:AW79) -> 0 | AZ79: 0 | BA79: =AY79*BA$11 -> 0 | BB79: 0 | BC79: =SUM(AY79:BB79) -> 0 | BD79: =(AY79+AZ79)*BD$11 -> 0 | BF79: 0 | BG79: 0 | BH79: 0 | BI79: 0 | BJ79: 0 | BK79: 0 | BL79: 0 | BM79: 0 | BN79: 0
B80: 14 | C80: TASK 14 | D80: =SUBTOTAL(9,D81:D84) -> 0 | E80: =SUBTOTAL(9,E81:E84) -> 0 | F80: 0 | G80: 0 | H80: 0 | I80: 0 | J80: 0 | K80: 0 | L80: 0 | M80: 0 | N80: 0 | O80: 0 | P80: 0 | Q80: 0 | R80: 0 | S80: 0 | T80: 0 | V80: =SUBTOTAL(9,V81:V84) -> 0 | W80: 0 | X80: 0 | Y80: 0 | Z80: 0 | AA80: 0 | AB80: 0 | AC80: 0 | AD80: 0 | AE80: 0 | AF80: 0 | AG80: 0 | AH80: 0 | AI80: 0 | AJ80: 0 | AK80: 0 | AL80: 0 | AN80: =SUBTOTAL(9,AN81:AN84) -> 0 | AO80: 0 | AP80: 0 | AQ80: 0 | AR80: 0 | AS80: 0 | AT80: 0 | AU80: 0 | AV80: 0 | AW80: 0 | AX80: 0 | AY80: 0 | AZ80: 0 | BA80: 0 | BB80: 0 | BC80: 0 | BD80: 0 | BF80: 0 | BG80: 0 | BH80: 0 | BI80: 0 | BJ80: 0 | BK80: 0 | BL80: 0 | BM80: 0 | BN80: =(BK80-BJ80)/(BK$90-BJ$90) -> 0
B81: 14.1 | C81: Task 14.1 | N81: =SUM(D81:M81) -> 0 | O81: =SUMPRODUCT(D$12:M$12,D81:M81) -> 0 | P81: 0 | Q81: =O81*Q$11 -> 0 | R81: 0 | S81: =SUM(O81:R81) -> 0 | T81: =(O81+P81)*T$11 -> 0 | AF81: =SUM(V81:AE81) -> 0 | AG81: =SUMPRODUCT(V$12:AE$12,V81:AE81) -> 0 | AH81: 0 | AI81: =AG81*AI$11 -> 0 | AJ81: 0 | AK81: =SUM(AG81:AJ81) -> 0 | AL81: =(AG81+AH81)*AL$11 -> 0 | AX81: =SUM(AN81:AW81) -> 0 | AY81: =SUMPRODUCT(AN$12:AW$12,AN81:AW81) -> 0 | AZ81: 0 | BA81: =AY81*BA$11 -> 0 | BB81: 0 | BC81: =SUM(AY81:BB81) -> 0 | BD81: =(AY81+AZ81)*BD$11 -> 0 | BF81: 0 | BG81: 0 | BH81: 0 | BI81: 0 | BJ81: 0 | BK81: 0 | BL81: 0 | BM81: =BK81+BL81 -> 0 | BN81: 0
B82: 14.2 | C82: Task 14.2 | N82: =SUM(D82:M82) -> 0 | O82: =SUMPRODUCT(D$12:M$12,D82:M82) -> 0 | P82: 0 | Q82: =O82*Q$11 -> 0 | R82: 0 | S82: =SUM(O82:R82) -> 0 | T82: =(O82+P82)*T$11 -> 0 | AF82: =SUM(V82:AE82) -> 0 | AG82: =SUMPRODUCT(V$12:AE$12,V82:AE82) -> 0 | AH82: 0 | AI82: =AG82*AI$11 -> 0 | AJ82: 0 | AK82: =SUM(AG82:AJ82) -> 0 | AL82: =(AG82+AH82)*AL$11 -> 0 | AX82: =SUM(AN82:AW82) -> 0 | AY82: =SUMPRODUCT(AN$12:AW$12,AN82:AW82) -> 0 | AZ82: 0 | BA82: =AY82*BA$11 -> 0 | BB82: 0 | BC82: =SUM(AY82:BB82) -> 0 | BD82: =(AY82+AZ82)*BD$11 -> 0 | BF82: 0 | BG82: 0 | BH82: 0 | BI82: 0 | BJ82: 0 | BK82: 0 | BL82: 0 | BM82: 0 | BN82: 0
B83: 14.3 | C83: Task 14.3 | N83: =SUM(D83:M83) -> 0 | O83: =SUMPRODUCT(D$12:M$12,D83:M83) -> 0 | P83: 0 | Q83: =O83*Q$11 -> 0 | R83: 0 | S83: =SUM(O83:R83) -> 0 | T83: =(O83+P83)*T$11 -> 0 | AF83: =SUM(V83:AE83) -> 0 | AG83: =SUMPRODUCT(V$12:AE$12,V83:AE83) -> 0 | AH83: 0 | AI83: =AG83*AI$11 -> 0 | AJ83: 0 | AK83: =SUM(AG83:AJ83) -> 0 | AL83: =(AG83+AH83)*AL$11 -> 0 | AX83: =SUM(AN83:AW83) -> 0 | AY83: =SUMPRODUCT(AN$12:AW$12,AN83:AW83) -> 0 | AZ83: 0 | BA83: =AY83*BA$11 -> 0 | BB83: 0 | BC83: =SUM(AY83:BB83) -> 0 | BD83: =(AY83+AZ83)*BD$11 -> 0 | BF83: 0 | BG83: 0 | BH83: 0 | BI83: 0 | BJ83: 0 | BK83: 0 | BL83: 0 | BM83: 0 | BN83: 0
B84: 14.4 | C84: Task 14.4 | N84: =SUM(D84:M84) -> 0 | O84: =SUMPRODUCT(D$12:M$12,D84:M84) -> 0 | P84: 0 | Q84: =O84*Q$11 -> 0 | R84: 0 | S84: =SUM(O84:R84) -> 0 | T84: =(O84+P84)*T$11 -> 0 | AF84: =SUM(V84:AE84) -> 0 | AG84: =SUMPRODUCT(V$12:AE$12,V84:AE84) -> 0 | AH84: 0 | AI84: =AG84*AI$11 -> 0 | AJ84: 0 | AK84: =SUM(AG84:AJ84) -> 0 | AL84: =(AG84+AH84)*AL$11 -> 0 | AX84: =SUM(AN84:AW84) -> 0 | AY84: =SUMPRODUCT(AN$12:AW$12,AN84:AW84) -> 0 | AZ84: 0 | BA84: =AY84*BA$11 -> 0 | BB84: 0 | BC84: =SUM(AY84:BB84) -> 0 | BD84: =(AY84+AZ84)*BD$11 -> 0 | BF84: 0 | BG84: 0 | BH84: 0 | BI84: 0 | BJ84: 0 | BK84: 0 | BL84: 0 | BM84: 0 | BN84: 0
B85: 15 | C85: TASK 15 | D85: =SUBTOTAL(9,D86:D89) -> 0 | E85: =SUBTOTAL(9,E86:E89) -> 0 | F85: 0 | G85: 0 | H85: 0 | I85: 0 | J85: 0 | K85: 0 | L85: 0 | M85: 0 | N85: 0 | O85: 0 | P85: 0 | Q85: 0 | R85: 0 | S85: 0 | T85: 0 | V85: =SUBTOTAL(9,V86:V89) -> 0 | W85: 0 | X85: 0 | Y85: 0 | Z85: 0 | AA85: 0 | AB85: 0 | AC85: 0 | AD85: 0 | AE85: 0 | AF85: 0 | AG85: 0 | AH85: 0 | AI85: 0 | AJ85: 0 | AK85: 0 | AL85: 0 | AN85: =SUBTOTAL(9,AN86:AN89) -> 0 | AO85: 0 | AP85: 0 | AQ85: 0 | AR85: 0 | AS85: 0 | AT85: 0 | AU85: 0 | AV85: 0 | AW85: 0 | AX85: 0 | AY85: 0 | AZ85: 0 | BA85: 0 | BB85: 0 | BC85: 0 | BD85: 0 | BF85: 0 | BG85: 0 | BH85: 0 | BI85: 0 | BJ85: 0 | BK85: 0 | BL85: 0 | BM85: 0 | BN85: 0
B86: 15.1 | C86: Task 15.1 | N86: =SUM(D86:M86) -> 0 | O86: =SUMPRODUCT(D$12:M$12,D86:M86) -> 0 | P86: 0 | Q86: =O86*Q$11 -> 0 | R86: 0 | S86: =SUM(O86:R86) -> 0 | T86: =(O86+P86)*T$11 -> 0 | AF86: =SUM(V86:AE86) -> 0 | AG86: =SUMPRODUCT(V$12:AE$12,V86:AE86) -> 0 | AH86: 0 | AI86: =AG86*AI$11 -> 0 | AJ86: 0 | AK86: =SUM(AG86:AJ86) -> 0 | AL86: =(AG86+AH86)*AL$11 -> 0 | AX86: =SUM(AN86:AW86) -> 0 | AY86: =SUMPRODUCT(AN$12:AW$12,AN86:AW86) -> 0 | AZ86: 0 | BA86: =AY86*BA$11 -> 0 | BB86: 0 | BC86: =SUM(AY86:BB86) -> 0 | BD86: =(AY86+AZ86)*BD$11 -> 0 | BF86: 0 | BG86: 0 | BH86: 0 | BI86: 0 | BJ86: 0 | BK86: 0 | BL86: 0 | BM86: 0 | BN86: 0
B87: 15.2 | C87: Task 15.2 | N87: =SUM(D87:M87) -> 0 | O87: =SUMPRODUCT(D$12:M$12,D87:M87) -> 0 | P87: 0 | Q87: =O87*Q$11 -> 0 | R87: 0 | S87: =SUM(O87:R87) -> 0 | T87: =(O87+P87)*T$11 -> 0 | AF87: =SUM(V87:AE87) -> 0 | AG87: =SUMPRODUCT(V$12:AE$12,V87:AE87) -> 0 | AH87: 0 | AI87: =AG87*AI$11 -> 0 | AJ87: 0 | AK87: =SUM(AG87:AJ87) -> 0 | AL87: =(AG87+AH87)*AL$11 -> 0 | AX87: =SUM(AN87:AW87) -> 0 | AY87: =SUMPRODUCT(AN$12:AW$12,AN87:AW87) -> 0 | AZ87: 0 | BA87: =AY87*BA$11 -> 0 | BB87: 0 | BC87: =SUM(AY87:BB87) -> 0 | BD87: =(AY87+AZ87)*BD$11 -> 0 | BF87: 0 | BG87: 0 | BH87: 0 | BI87: 0 | BJ87: 0 | BK87: 0 | BL87: 0 | BM87: 0 | BN87: 0
B88: 15.3 | C88: Task 15.3 | N88: =SUM(D88:M88) -> 0 | O88: =SUMPRODUCT(D$12:M$12,D88:M88) -> 0 | P88: 0 | Q88: =O88*Q$11 -> 0 | R88: 0 | S88: =SUM(O88:R88) -> 0 | T88: =(O88+P88)*T$11 -> 0 | AF88: =SUM(V88:AE88) -> 0 | AG88: =SUMPRODUCT(V$12:AE$12,V88:AE88) -> 0 | AH88: 0 | AI88: =AG88*AI$11 -> 0 | AJ88: 0 | AK88: =SUM(AG88:AJ88) -> 0 | AL88: =(AG88+AH88)*AL$11 -> 0 | AX88: =SUM(AN88:AW88) -> 0 | AY88: =SUMPRODUCT(AN$12:AW$12,AN88:AW88) -> 0 | AZ88: 0 | BA88: =AY88*BA$11 -> 0 | BB88: 0 | BC88: =SUM(AY88:BB88) -> 0 | BD88: =(AY88+AZ88)*BD$11 -> 0 | BF88: 0 | BG88: 0 | BH88: 0 | BI88: 0 | BJ88: 0 | BK88: 0 | BL88: 0 | BM88: 0 | BN88: 0
B89: 15.4 | C89: Task 15.4 | N89: =SUM(D89:M89) -> 0 | O89: =SUMPRODUCT(D$12:M$12,D89:M89) -> 0 | P89: 0 | Q89: =O89*Q$11 -> 0 | R89: 0 | S89: =SUM(O89:R89) -> 0 | T89: =(O89+P89)*T$11 -> 0 | AF89: =SUM(V89:AE89) -> 0 | AG89: =SUMPRODUCT(V$12:AE$12,V89:AE89) -> 0 | AH89: 0 | AI89: =AG89*AI$11 -> 0 | AJ89: 0 | AK89: =SUM(AG89:AJ89) -> 0 | AL89: =(AG89+AH89)*AL$11 -> 0 | AX89: =SUM(AN89:AW89) -> 0 | AY89: =SUMPRODUCT(AN$12:AW$12,AN89:AW89) -> 0 | AZ89: 0 | BA89: =AY89*BA$11 -> 0 | BB89: 0 | BC89: =SUM(AY89:BB89) -> 0 | BD89: =(AY89+AZ89)*BD$11 -> 0 | BF89: 0 | BG89: 0 | BH89: 0 | BI89: 0 | BJ89: 0 | BK89: 0 | BL89: 0 | BM89: 0 | BN89: 0
C90: TOTAL Non-Contingency | D90: =SUBTOTAL(9,D15:D89) -> 5 | E90: =SUBTOTAL(9,E15:E89) -> 0 | F90: 0 | G90: 0 | H90: 0 | I90: 0 | J90: 0 | K90: 0 | L90: 0 | M90: 516 | N90: 521 | O90: 156.81075 | P90: 235.216125 | Q90: 0 | R90: 516.25 | S90: 908.276875 | T90: 35.28241875 | V90: =SUBTOTAL(9,V15:V89) -> 0 | W90: 0 | X90: 0 | Y90: 0 | Z90: 0 | AA90: 0 | AB90: 0 | AC90: 0 | AD90: 0 | AE90: 0 | AF90: 0 | AG90: 0 | AH90: 0 | AI90: 0 | AJ90: 0 | AK90: 0 | AL90: 0 | AN90: =SUBTOTAL(9,AN15:AN89) -> 0 | AO90: 0 | AP90: 0 | AQ90: 0 | AR90: 0 | AS90: 0 | AT90: 0 | AU90: 0 | AV90: 0 | AW90: 0 | AX90: 0 | AY90: 0 | AZ90: 0 | BA90: 0 | BB90: 0 | BC90: 0 | BD90: 0 | BF90: =SUMIF($D$10:$BC$10,BF$10,$D90:$BC90) -> 521 | BG90: =SUMIF($D$10:$BC$10,BG$10,$D90:$BC90) -> 156.81075 | BH90: 235.216125 | BI90: 0 | BJ90: 516.25 | BK90: 908.276875 | BL90: 35.28241875 | BM90: =BK90+BL90 -> 943.5592938 | BN90: =BK90/(BJ90+BK90) -> 0.6375989747
B92: CONTINGENCY TASKS/DELIVERABLES
B93: C1 | C93: [Task Description. Use Task Naming and Numbering associated with the corresponding Non-contingency task (preceded by a "C" for Contingency tasks).] | D93: =SUBTOTAL(9,D94:D97) -> 0 | E93: =SUBTOTAL(9,E94:E97) -> 0 | F93: 0 | G93: 0 | H93: 0 | I93: 0 | J93: 0 | K93: 0 | L93: 0 | M93: 0 | N93: 0 | O93: 0 | P93: 0 | Q93: 0 | R93: 0 | S93: 0 | T93: 0 | V93: =SUBTOTAL(9,V94:V97) -> 0 | W93: 0 | X93: 0 | Y93: 0 | Z93: 0 | AA93: 0 | AB93: 0 | AC93: 0 | AD93: 0 | AE93: 0 | AF93: 0 | AG93: 0 | AH93: 0 | AI93: 0 | AJ93: 0 | AK93: 0 | AL93: 0 | AN93: =SUBTOTAL(9,AN94:AN97) -> 0 | AO93: 0 | AP93: 0 | AQ93: 0 | AR93: 0 | AS93: 0 | AT93: 0 | AU93: 0 | AV93: 0 | AW93: 0 | AX93: 0 | AY93: 0 | AZ93: 0 | BA93: 0 | BB93: 0 | BC93: 0 | BD93: 0 | BF93: =SUMIF($D$10:$BC$10,BF$10,$D93:$BC93) -> 0 | BG93: 0 | BH93: 0 | BI93: 0 | BJ93: 0 | BK93: 0 | BL93: 0 | BM93: =BK93+BL93 -> 0
B94: C1.1 | C94: Subtask name | N94: =SUM(D94:M94) -> 0 | O94: =SUMPRODUCT(D$12:M$12,D94:M94) -> 0 | P94: =O94*P$11 -> 0 | Q94: =O94*Q$11 -> 0 | R94: 0 | S94: =SUM(O94:R94) -> 0 | T94: =(O94+P94)*T$11 -> 0 | AF94: =SUM(V94:AE94) -> 0 | AG94: =SUMPRODUCT(V$12:AE$12,V94:AE94) -> 0 | AH94: =AG94*AH$11 -> 0 | AI94: =AG94*AI$11 -> 0 | AJ94: 0 | AK94: =SUM(AG94:AJ94) -> 0 | AL94: =(AG94+AH94)*AL$11 -> 0 | AX94: =SUM(AN94:AW94) -> 0 | AY94: =SUMPRODUCT(AN$12:AW$12,AN94:AW94) -> 0 | AZ94: =AY94*AZ$11 -> 0 | BA94: =AY94*BA$11 -> 0 | BB94: 0 | BC94: =SUM(AY94:BB94) -> 0 | BD94: =(AY94+AZ94)*BD$11 -> 0 | BF94: 0 | BG94: 0 | BH94: 0 | BI94: 0 | BJ94: 0 | BK94: 0 | BL94: 0 | BM94: 0
B95: C1.2 | C95: Subtask name | N95: =SUM(D95:M95) -> 0 | O95: =SUMPRODUCT(D$12:M$12,D95:M95) -> 0 | P95: 0 | Q95: 0 | R95: 0 | S95: =SUM(O95:R95) -> 0 | T95: 0 | AF95: =SUM(V95:AE95) -> 0 | AG95: =SUMPRODUCT(V$12:AE$12,V95:AE95) -> 0 | AH95: 0 | AI95: =AG95*AI$11 -> 0 | AJ95: 0 | AK95: =SUM(AG95:AJ95) -> 0 | AL95: =(AG95+AH95)*AL$11 -> 0 | AX95: =SUM(AN95:AW95) -> 0 | AY95: =SUMPRODUCT(AN$12:AW$12,AN95:AW95) -> 0 | AZ95: 0 | BA95: =AY95*BA$11 -> 0 | BB95: 0 | BC95: =SUM(AY95:BB95) -> 0 | BD95: =(AY95+AZ95)*BD$11 -> 0 | BF95: 0 | BG95: 0 | BH95: 0 | BI95: 0 | BJ95: 0 | BK95: 0 | BL95: 0 | BM95: 0
N96: =SUM(D96:M96) -> 0 | O96: =SUMPRODUCT(D$12:M$12,D96:M96) -> 0 | P96: 0 | Q96: 0 | R96: 0 | S96: =SUM(O96:R96) -> 0 | T96: 0 | AF96: =SUM(V96:AE96) -> 0 | AG96: =SUMPRODUCT(V$12:AE$12,V96:AE96) -> 0 | AH96: 0 | AI96: =AG96*AI$11 -> 0 | AJ96: 0 | AK96: =SUM(AG96:AJ96) -> 0 | AL96: =(AG96+AH96)*AL$11 -> 0 | AX96: =SUM(AN96:AW96) -> 0 | AY96: =SUMPRODUCT(AN$12:AW$12,AN96:AW96) -> 0 | AZ96: 0 | BA96: =AY96*BA$11 -> 0 | BB96: 0 | BC96: =SUM(AY96:BB96) -> 0 | BD96: =(AY96+AZ96)*BD$11 -> 0 | BF96: 0 | BG96: 0 | BH96: 0 | BI96: 0 | BJ96: 0 | BK96: 0 | BL96: 0 | BM96: 0
N97: =SUM(D97:M97) -> 0 | O97: =SUMPRODUCT(D$12:M$12,D97:M97) -> 0 | P97: 0 | Q97: 0 | R97: 0 | S97: =SUM(O97:R97) -> 0 | T97: 0 | AF97: =SUM(V97:AE97) -> 0 | AG97: =SUMPRODUCT(V$12:AE$12,V97:AE97) -> 0 | AH97: 0 | AI97: =AG97*AI$11 -> 0 | AJ97: 0 | AK97: =SUM(AG97:AJ97) -> 0 | AL97: =(AG97+AH97)*AL$11 -> 0 | AX97: =SUM(AN97:AW97) -> 0 | AY97: =SUMPRODUCT(AN$12:AW$12,AN97:AW97) -> 0 | AZ97: 0 | BA97: =AY97*BA$11 -> 0 | BB97: 0 | BC97: =SUM(AY97:BB97) -> 0 | BD97: =(AY97+AZ97)*BD$11 -> 0 | BF97: 0 | BG97: 0 | BH97: 0 | BI97: 0 | BJ97: 0 | BK97: 0 | BL97: 0 | BM97: 0
B98: C2 | C98: [Task Description. Use Task Naming and Numbering associated with the corresponding Non-contingency task (preceded by a "C" for Contingency tasks).] | D98: =SUBTOTAL(9,D99:D102) -> 0 | E98: =SUBTOTAL(9,E99:E102) -> 0 | F98: 0 | G98: 0 | H98: 0 | I98: 0 | J98: 0 | K98: 0 | L98: 0 | M98: 0 | N98: 0 | O98: 0 | P98: 0 | Q98: 0 | R98: 0 | S98: 0 | T98: 0 | V98: =SUBTOTAL(9,V99:V102) -> 0 | W98: 0 | X98: 0 | Y98: 0 | Z98: 0 | AA98: 0 | AB98: 0 | AC98: 0 | AD98: 0 | AE98: 0 | AF98: 0 | AG98: 0 | AH98: 0 | AI98: 0 | AJ98: 0 | AK98: 0 | AL98: 0 | AN98: =SUBTOTAL(9,AN99:AN102) -> 0 | AO98: 0 | AP98: 0 | AQ98: 0 | AR98: 0 | AS98: 0 | AT98: 0 | AU98: 0 | AV98: 0 | AW98: 0 | AX98: 0 | AY98: 0 | AZ98: 0 | BA98: 0 | BB98: 0 | BC98: 0 | BD98: 0 | BF98: 0 | BG98: 0 | BH98: 0 | BI98: 0 | BJ98: 0 | BK98: 0 | BL98: 0 | BM98: 0
B99: C2.1 | C99: Subtask name | N99: =SUM(D99:M99) -> 0 | O99: =SUMPRODUCT(D$12:M$12,D99:M99) -> 0 | P99: 0 | Q99: 0 | R99: 0 | S99: =SUM(O99:R99) -> 0 | T99: 0 | AF99: =SUM(V99:AE99) -> 0 | AG99: =SUMPRODUCT(V$12:AE$12,V99:AE99) -> 0 | AH99: 0 | AI99: =AG99*AI$11 -> 0 | AJ99: 0 | AK99: =SUM(AG99:AJ99) -> 0 | AL99: =(AG99+AH99)*AL$11 -> 0 | AX99: =SUM(AN99:AW99) -> 0 | AY99: =SUMPRODUCT(AN$12:AW$12,AN99:AW99) -> 0 | AZ99: 0 | BA99: =AY99*BA$11 -> 0 | BB99: 0 | BC99: =SUM(AY99:BB99) -> 0 | BD99: =(AY99+AZ99)*BD$11 -> 0 | BF99: 0 | BG99: 0 | BH99: 0 | BI99: 0 | BJ99: 0 | BK99: 0 | BL99: 0 | BM99: 0
B100: C2.2 | C100: Subtask name | N100: =SUM(D100:M100) -> 0 | O100: =SUMPRODUCT(D$12:M$12,D100:M100) -> 0 | P100: 0 | Q100: 0 | R100: 0 | S100: =SUM(O100:R100) -> 0 | T100: 0 | AF100: =SUM(V100:AE100) -> 0 | AG100: =SUMPRODUCT(V$12:AE$12,V100:AE100) -> 0 | AH100: 0 | AI100: =AG100*AI$11 -> 0 | AJ100: 0 | AK100: =SUM(AG100:AJ100) -> 0 | AL100: =(AG100+AH100)*AL$11 -> 0 | AX100: =SUM(AN100:AW100) -> 0 | AY100: =SUMPRODUCT(AN$12:AW$12,AN100:AW100) -> 0 | AZ100: 0 | BA100: =AY100*BA$11 -> 0 | BB100: 0 | BC100: =SUM(AY100:BB100) -> 0 | BD100: =(AY100+AZ100)*BD$11 -> 0 | BF100: 0 | BG100: 0 | BH100: 0 | BI100: 0 | BJ100: 0 | BK100: 0 | BL100: 0 | BM100: 0
N101: =SUM(D101:M101) -> 0 | O101: =SUMPRODUCT(D$12:M$12,D101:M101) -> 0 | P101: 0 | Q101: 0 | R101: 0 | S101: =SUM(O101:R101) -> 0 | T101: 0 | AF101: =SUM(V101:AE101) -> 0 | AG101: =SUMPRODUCT(V$12:AE$12,V101:AE101) -> 0 | AH101: 0 | AI101: =AG101*AI$11 -> 0 | AJ101: 0 | AK101: =SUM(AG101:AJ101) -> 0 | AL101: =(AG101+AH101)*AL$11 -> 0 | AX101: =SUM(AN101:AW101) -> 0 | AY101: =SUMPRODUCT(AN$12:AW$12,AN101:AW101) -> 0 | AZ101: 0 | BA101: =AY101*BA$11 -> 0 | BB101: 0 | BC101: =SUM(AY101:BB101) -> 0 | BD101: =(AY101+AZ101)*BD$11 -> 0 | BF101: 0 | BG101: 0 | BH101: 0 | BI101: 0 | BJ101: 0 | BK101: 0 | BL101: 0 | BM101: 0
N102: =SUM(D102:M102) -> 0 | O102: =SUMPRODUCT(D$12:M$12,D102:M102) -> 0 | P102: 0 | Q102: 0 | R102: 0 | S102: =SUM(O102:R102) -> 0 | T102: 0 | AF102: =SUM(V102:AE102) -> 0 | AG102: =SUMPRODUCT(V$12:AE$12,V102:AE102) -> 0 | AH102: 0 | AI102: =AG102*AI$11 -> 0 | AJ102: 0 | AK102: =SUM(AG102:AJ102) -> 0 | AL102: =(AG102+AH102)*AL$11 -> 0 | AX102: =SUM(AN102:AW102) -> 0 | AY102: =SUMPRODUCT(AN$12:AW$12,AN102:AW102) -> 0 | AZ102: 0 | BA102: =AY102*BA$11 -> 0 | BB102: 0 | BC102: =SUM(AY102:BB102) -> 0 | BD102: =(AY102+AZ102)*BD$11 -> 0 | BF102: 0 | BG102: 0 | BH102: 0 | BI102: 0 | BJ102: 0 | BK102: 0 | BL102: 0 | BM102: 0
B103: C3 | C103: [Task Description. Use Task Naming and Numbering associated with the corresponding Non-contingency task (preceded by a "C" for Contingency tasks).] | D103: =SUBTOTAL(9,D104:D107) -> 0 | E103: =SUBTOTAL(9,E104:E107) -> 0 | F103: 0 | G103: 0 | H103: 0 | I103: 0 | J103: 0 | K103: 0 | L103: 0 | M103: 0 | N103: 0 | O103: 0 | P103: 0 | Q103: 0 | R103: 0 | S103: 0 | T103: 0 | V103: =SUBTOTAL(9,V104:V107) -> 0 | W103: 0 | X103: 0 | Y103: 0 | Z103: 0 | AA103: 0 | AB103: 0 | AC103: 0 | AD103: 0 | AE103: 0 | AF103: 0 | AG103: 0 | AH103: 0 | AI103: 0 | AJ103: 0 | AK103: 0 | AL103: 0 | AN103: =SUBTOTAL(9,AN104:AN107) -> 0 | AO103: 0 | AP103: 0 | AQ103: 0 | AR103: 0 | AS103: 0 | AT103: 0 | AU103: 0 | AV103: 0 | AW103: 0 | AX103: 0 | AY103: 0 | AZ103: 0 | BA103: 0 | BB103: 0 | BC103: 0 | BD103: 0 | BF103: 0 | BG103: 0 | BH103: 0 | BI103: 0 | BJ103: 0 | BK103: 0 | BL103: 0 | BM103: 0
N104: =SUM(D104:M104) -> 0 | O104: =SUMPRODUCT(D$12:M$12,D104:M104) -> 0 | P104: 0 | Q104: 0 | R104: 0 | S104: =SUM(O104:R104) -> 0 | T104: 0 | AF104: =SUM(V104:AE104) -> 0 | AG104: =SUMPRODUCT(V$12:AE$12,V104:AE104) -> 0 | AH104: 0 | AI104: =AG104*AI$11 -> 0 | AJ104: 0 | AK104: =SUM(AG104:AJ104) -> 0 | AL104: =(AG104+AH104)*AL$11 -> 0 | AX104: =SUM(AN104:AW104) -> 0 | AY104: =SUMPRODUCT(AN$12:AW$12,AN104:AW104) -> 0 | AZ104: 0 | BA104: =AY104*BA$11 -> 0 | BB104: 0 | BC104: =SUM(AY104:BB104) -> 0 | BD104: =(AY104+AZ104)*BD$11 -> 0 | BF104: 0 | BG104: 0 | BH104: 0 | BI104: 0 | BJ104: 0 | BK104: 0 | BL104: 0 | BM104: 0
N105: =SUM(D105:M105) -> 0 | O105: =SUMPRODUCT(D$12:M$12,D105:M105) -> 0 | P105: 0 | Q105: 0 | R105: 0 | S105: =SUM(O105:R105) -> 0 | T105: 0 | AF105: =SUM(V105:AE105) -> 0 | AG105: =SUMPRODUCT(V$12:AE$12,V105:AE105) -> 0 | AH105: 0 | AI105: =AG105*AI$11 -> 0 | AJ105: 0 | AK105: =SUM(AG105:AJ105) -> 0 | AL105: =(AG105+AH105)*AL$11 -> 0 | AX105: =SUM(AN105:AW105) -> 0 | AY105: =SUMPRODUCT(AN$12:AW$12,AN105:AW105) -> 0 | AZ105: 0 | BA105: =AY105*BA$11 -> 0 | BB105: 0 | BC105: =SUM(AY105:BB105) -> 0 | BD105: =(AY105+AZ105)*BD$11 -> 0 | BF105: 0 | BG105: 0 | BH105: 0 | BI105: 0 | BJ105: 0 | BK105: 0 | BL105: 0 | BM105: 0
N106: =SUM(D106:M106) -> 0 | O106: =SUMPRODUCT(D$12:M$12,D106:M106) -> 0 | P106: 0 | Q106: 0 | R106: 0 | S106: =SUM(O106:R106) -> 0 | T106: 0 | AF106: =SUM(V106:AE106) -> 0 | AG106: =SUMPRODUCT(V$12:AE$12,V106:AE106) -> 0 | AH106: 0 | AI106: =AG106*AI$11 -> 0 | AJ106: 0 | AK106: =SUM(AG106:AJ106) -> 0 | AL106: =(AG106+AH106)*AL$11 -> 0 | AX106: =SUM(AN106:AW106) -> 0 | AY106: =SUMPRODUCT(AN$12:AW$12,AN106:AW106) -> 0 | AZ106: 0 | BA106: =AY106*BA$11 -> 0 | BB106: 0 | BC106: =SUM(AY106:BB106) -> 0 | BD106: =(AY106+AZ106)*BD$11 -> 0 | BF106: 0 | BG106: 0 | BH106: 0 | BI106: 0 | BJ106: 0 | BK106: 0 | BL106: 0 | BM106: 0
N107: =SUM(D107:M107) -> 0 | O107: =SUMPRODUCT(D$12:M$12,D107:M107) -> 0 | P107: 0 | Q107: 0 | R107: 0 | S107: =SUM(O107:R107) -> 0 | T107: 0 | AF107: =SUM(V107:AE107) -> 0 | AG107: =SUMPRODUCT(V$12:AE$12,V107:AE107) -> 0 | AH107: 0 | AI107: =AG107*AI$11 -> 0 | AJ107: 0 | AK107: =SUM(AG107:AJ107) -> 0 | AL107: =(AG107+AH107)*AL$11 -> 0 | AX107: =SUM(AN107:AW107) -> 0 | AY107: =SUMPRODUCT(AN$12:AW$12,AN107:AW107) -> 0 | AZ107: 0 | BA107: =AY107*BA$11 -> 0 | BB107: 0 | BC107: =SUM(AY107:BB107) -> 0 | BD107: =(AY107+AZ107)*BD$11 -> 0 | BF107: 0 | BG107: 0 | BH107: 0 | BI107: 0 | BJ107: 0 | BK107: 0 | BL107: 0 | BM107: 0
B108: C4 | C108: [Task Description. Use Task Naming and Numbering associated with the corresponding Non-contingency task (preceded by a "C" for Contingency tasks).] | D108: =SUBTOTAL(9,D109:D112) -> 0 | E108: =SUBTOTAL(9,E109:E112) -> 0 | F108: 0 | G108: 0 | H108: 0 | I108: 0 | J108: 0 | K108: 0 | L108: 0 | M108: 0 | N108: 0 | O108: 0 | P108: 0 | Q108: 0 | R108: 0 | S108: 0 | T108: 0 | V108: =SUBTOTAL(9,V109:V112) -> 0 | W108: 0 | X108: 0 | Y108: 0 | Z108: 0 | AA108: 0 | AB108: 0 | AC108: 0 | AD108: 0 | AE108: 0 | AF108: 0 | AG108: 0 | AH108: 0 | AI108: 0 | AJ108: 0 | AK108: 0 | AL108: 0 | AN108: =SUBTOTAL(9,AN109:AN112) -> 0 | AO108: 0 | AP108: 0 | AQ108: 0 | AR108: 0 | AS108: 0 | AT108: 0 | AU108: 0 | AV108: 0 | AW108: 0 | AX108: 0 | AY108: 0 | AZ108: 0 | BA108: 0 | BB108: 0 | BC108: 0 | BD108: 0 | BF108: 0 | BG108: 0 | BH108: 0 | BI108: 0 | BJ108: 0 | BK108: 0 | BL108: 0 | BM108: 0
N109: =SUM(D109:M109) -> 0 | O109: =SUMPRODUCT(D$12:M$12,D109:M109) -> 0 | P109: 0 | Q109: 0 | R109: 0 | S109: =SUM(O109:R109) -> 0 | T109: 0 | AF109: =SUM(V109:AE109) -> 0 | AG109: =SUMPRODUCT(V$12:AE$12,V109:AE109) -> 0 | AH109: 0 | AI109: =AG109*AI$11 -> 0 | AJ109: 0 | AK109: =SUM(AG109:AJ109) -> 0 | AL109: =(AG109+AH109)*AL$11 -> 0 | AX109: =SUM(AN109:AW109) -> 0 | AY109: =SUMPRODUCT(AN$12:AW$12,AN109:AW109) -> 0 | AZ109: 0 | BA109: =AY109*BA$11 -> 0 | BB109: 0 | BC109: =SUM(AY109:BB109) -> 0 | BD109: =(AY109+AZ109)*BD$11 -> 0 | BF109: 0 | BG109: 0 | BH109: 0 | BI109: 0 | BJ109: 0 | BK109: 0 | BL109: 0 | BM109: 0
N110: =SUM(D110:M110) -> 0 | O110: =SUMPRODUCT(D$12:M$12,D110:M110) -> 0 | P110: 0 | Q110: 0 | R110: 0 | S110: =SUM(O110:R110) -> 0 | T110: 0 | AF110: =SUM(V110:AE110) -> 0 | AG110: =SUMPRODUCT(V$12:AE$12,V110:AE110) -> 0 | AH110: 0 | AI110: =AG110*AI$11 -> 0 | AJ110: 0 | AK110: =SUM(AG110:AJ110) -> 0 | AL110: =(AG110+AH110)*AL$11 -> 0 | AX110: =SUM(AN110:AW110) -> 0 | AY110: =SUMPRODUCT(AN$12:AW$12,AN110:AW110) -> 0 | AZ110: 0 | BA110: =AY110*BA$11 -> 0 | BB110: 0 | BC110: =SUM(AY110:BB110) -> 0 | BD110: =(AY110+AZ110)*BD$11 -> 0 | BF110: 0 | BG110: 0 | BH110: 0 | BI110: 0 | BJ110: 0 | BK110: 0 | BL110: 0 | BM110: 0
N111: =SUM(D111:M111) -> 0 | O111: =SUMPRODUCT(D$12:M$12,D111:M111) -> 0 | P111: 0 | Q111: 0 | R111: 0 | S111: =SUM(O111:R111) -> 0 | T111: 0 | AF111: =SUM(V111:AE111) -> 0 | AG111: =SUMPRODUCT(V$12:AE$12,V111:AE111) -> 0 | AH111: 0 | AI111: =AG111*AI$11 -> 0 | AJ111: 0 | AK111: =SUM(AG111:AJ111) -> 0 | AL111: =(AG111+AH111)*AL$11 -> 0 | AX111: =SUM(AN111:AW111) -> 0 | AY111: =SUMPRODUCT(AN$12:AW$12,AN111:AW111) -> 0 | AZ111: 0 | BA111: =AY111*BA$11 -> 0 | BB111: 0 | BC111: =SUM(AY111:BB111) -> 0 | BD111: =(AY111+AZ111)*BD$11 -> 0 | BF111: 0 | BG111: 0 | BH111: 0 | BI111: 0 | BJ111: 0 | BK111: 0 | BL111: 0 | BM111: 0
N112: =SUM(D112:M112) -> 0 | O112: =SUMPRODUCT(D$12:M$12,D112:M112) -> 0 | P112: 0 | Q112: 0 | R112: 0 | S112: =SUM(O112:R112) -> 0 | T112: 0 | AF112: =SUM(V112:AE112) -> 0 | AG112: =SUMPRODUCT(V$12:AE$12,V112:AE112) -> 0 | AH112: 0 | AI112: =AG112*AI$11 -> 0 | AJ112: 0 | AK112: =SUM(AG112:AJ112) -> 0 | AL112: =(AG112+AH112)*AL$11 -> 0 | AX112: =SUM(AN112:AW112) -> 0 | AY112: =SUMPRODUCT(AN$12:AW$12,AN112:AW112) -> 0 | AZ112: 0 | BA112: =AY112*BA$11 -> 0 | BB112: 0 | BC112: =SUM(AY112:BB112) -> 0 | BD112: =(AY112+AZ112)*BD$11 -> 0 | BF112: 0 | BG112: 0 | BH112: 0 | BI112: 0 | BJ112: 0 | BK112: 0 | BL112: 0 | BM112: 0
B113: C5 | C113: [Task Description. Use Task Naming and Numbering associated with the corresponding Non-contingency task (preceded by a "C" for Contingency tasks).] | D113: =SUBTOTAL(9,D114:D117) -> 0 | E113: =SUBTOTAL(9,E114:E117) -> 0 | F113: 0 | G113: 0 | H113: 0 | I113: 0 | J113: 0 | K113: 0 | L113: 0 | M113: 0 | N113: 0 | O113: 0 | P113: 0 | Q113: 0 | R113: 0 | S113: 0 | T113: 0 | V113: =SUBTOTAL(9,V114:V117) -> 0 | W113: 0 | X113: 0 | Y113: 0 | Z113: 0 | AA113: 0 | AB113: 0 | AC113: 0 | AD113: 0 | AE113: 0 | AF113: 0 | AG113: 0 | AH113: 0 | AI113: 0 | AJ113: 0 | AK113: 0 | AL113: 0 | AN113: =SUBTOTAL(9,AN114:AN117) -> 0 | AO113: 0 | AP113: 0 | AQ113: 0 | AR113: 0 | AS113: 0 | AT113: 0 | AU113: 0 | AV113: 0 | AW113: 0 | AX113: 0 | AY113: 0 | AZ113: 0 | BA113: 0 | BB113: 0 | BC113: 0 | BD113: 0 | BF113: 0 | BG113: 0 | BH113: 0 | BI113: 0 | BJ113: 0 | BK113: 0 | BL113: 0 | BM113: 0
N114: =SUM(D114:M114) -> 0 | O114: =SUMPRODUCT(D$12:M$12,D114:M114) -> 0 | P114: 0 | Q114: 0 | R114: 0 | S114: =SUM(O114:R114) -> 0 | T114: 0 | AF114: =SUM(V114:AE114) -> 0 | AG114: =SUMPRODUCT(V$12:AE$12,V114:AE114) -> 0 | AH114: 0 | AI114: =AG114*AI$11 -> 0 | AJ114: 0 | AK114: =SUM(AG114:AJ114) -> 0 | AL114: =(AG114+AH114)*AL$11 -> 0 | AX114: =SUM(AN114:AW114) -> 0 | AY114: =SUMPRODUCT(AN$12:AW$12,AN114:AW114) -> 0 | AZ114: 0 | BA114: =AY114*BA$11 -> 0 | BB114: 0 | BC114: =SUM(AY114:BB114) -> 0 | BD114: =(AY114+AZ114)*BD$11 -> 0 | BF114: 0 | BG114: 0 | BH114: 0 | BI114: 0 | BJ114: 0 | BK114: 0 | BL114: 0 | BM114: 0
N115: =SUM(D115:M115) -> 0 | O115: =SUMPRODUCT(D$12:M$12,D115:M115) -> 0 | P115: 0 | Q115: 0 | R115: 0 | S115: =SUM(O115:R115) -> 0 | T115: 0 | AF115: =SUM(V115:AE115) -> 0 | AG115: =SUMPRODUCT(V$12:AE$12,V115:AE115) -> 0 | AH115: 0 | AI115: =AG115*AI$11 -> 0 | AJ115: 0 | AK115: =SUM(AG115:AJ115) -> 0 | AL115: =(AG115+AH115)*AL$11 -> 0 | AX115: =SUM(AN115:AW115) -> 0 | AY115: =SUMPRODUCT(AN$12:AW$12,AN115:AW115) -> 0 | AZ115: 0 | BA115: =AY115*BA$11 -> 0 | BB115: 0 | BC115: =SUM(AY115:BB115) -> 0 | BD115: =(AY115+AZ115)*BD$11 -> 0 | BF115: 0 | BG115: 0 | BH115: 0 | BI115: 0 | BJ115: 0 | BK115: 0 | BL115: 0 | BM115: 0
N116: =SUM(D116:M116) -> 0 | O116: =SUMPRODUCT(D$12:M$12,D116:M116) -> 0 | P116: 0 | Q116: 0 | R116: 0 | S116: =SUM(O116:R116) -> 0 | T116: 0 | AF116: =SUM(V116:AE116) -> 0 | AG116: =SUMPRODUCT(V$12:AE$12,V116:AE116) -> 0 | AH116: 0 | AI116: =AG116*AI$11 -> 0 | AJ116: 0 | AK116: =SUM(AG116:AJ116) -> 0 | AL116: =(AG116+AH116)*AL$11 -> 0 | AX116: =SUM(AN116:AW116) -> 0 | AY116: =SUMPRODUCT(AN$12:AW$12,AN116:AW116) -> 0 | AZ116: 0 | BA116: =AY116*BA$11 -> 0 | BB116: 0 | BC116: =SUM(AY116:BB116) -> 0 | BD116: =(AY116+AZ116)*BD$11 -> 0 | BF116: 0 | BG116: 0 | BH116: 0 | BI116: 0 | BJ116: 0 | BK116: 0 | BL116: 0 | BM116: 0
N117: =SUM(D117:M117) -> 0 | O117: =SUMPRODUCT(D$12:M$12,D117:M117) -> 0 | P117: 0 | Q117: 0 | R117: 0 | S117: =SUM(O117:R117) -> 0 | T117: 0 | AF117: =SUM(V117:AE117) -> 0 | AG117: =SUMPRODUCT(V$12:AE$12,V117:AE117) -> 0 | AH117: 0 | AI117: =AG117*AI$11 -> 0 | AJ117: 0 | AK117: =SUM(AG117:AJ117) -> 0 | AL117: =(AG117+AH117)*AL$11 -> 0 | AX117: =SUM(AN117:AW117) -> 0 | AY117: =SUMPRODUCT(AN$12:AW$12,AN117:AW117) -> 0 | AZ117: 0 | BA117: =AY117*BA$11 -> 0 | BB117: 0 | BC117: =SUM(AY117:BB117) -> 0 | BD117: =(AY117+AZ117)*BD$11 -> 0 | BF117: 0 | BG117: 0 | BH117: 0 | BI117: 0 | BJ117: 0 | BK117: 0 | BL117: 0 | BM117: 0
C118: TOTAL Contingency | D118: =SUBTOTAL(9,D93:D117) -> 0 | E118: 0 | F118: 0 | G118: 0 | H118: 0 | I118: 0 | J118: 0 | K118: 0 | L118: 0 | M118: 0 | N118: 0 | O118: 0 | P118: 0 | Q118: 0 | R118: 0 | S118: 0 | T118: 0 | V118: =SUBTOTAL(9,V93:V117) -> 0 | W118: 0 | X118: 0 | Y118: 0 | Z118: 0 | AA118: 0 | AB118: 0 | AC118: 0 | AD118: 0 | AE118: 0 | AF118: 0 | AG118: 0 | AH118: 0 | AI118: 0 | AJ118: 0 | AK118: 0 | AL118: 0 | AN118: =SUBTOTAL(9,AN93:AN117) -> 0 | AO118: 0 | AP118: 0 | AQ118: 0 | AR118: 0 | AS118: 0 | AT118: 0 | AU118: 0 | AV118: 0 | AW118: 0 | AX118: 0 | AY118: 0 | AZ118: 0 | BA118: 0 | BB118: 0 | BC118: 0 | BD118: 0 | BF118: 0 | BG118: 0 | BH118: 0 | BI118: 0 | BJ118: 0 | BK118: 0 | BL118: 0 | BM118: 0
C121: TOTAL Non-Contingency + Contingency | D121: =D118+D90 -> 5 | E121: 0 | F121: 0 | G121: 0 | H121: 0 | I121: 0 | J121: 0 | K121: 0 | L121: 0 | M121: 516 | N121: 521 | O121: 156.81075 | P121: 235.216125 | Q121: 0 | R121: 516.25 | S121: 908.276875 | T121: 35.28241875 | U121: 0 | V121: 0 | W121: 0 | X121: 0 | Y121: 0 | Z121: 0 | AA121: 0 | AB121: 0 | AC121: 0 | AD121: 0 | AE121: 0 | AF121: 0 | AG121: 0 | AH121: 0 | AI121: 0 | AJ121: 0 | AK121: 0 | AL121: 0 | AM121: 0 | AN121: 0 | AO121: 0 | AP121: 0 | AQ121: 0 | AR121: 0 | AS121: 0 | AT121: 0 | AU121: 0 | AV121: 0 | AW121: 0 | AX121: 0 | AY121: 0 | AZ121: 0 | BA121: 0 | BB121: 0 | BC121: 0 | BD121: 0 | BE121: 0 | BF121: 521 | BG121: 156.81075 | BH121: 235.216125 | BI121: 0 | BJ121: 516.25 | BK121: 908.276875 | BL121: 35.28241875 | BM121: 943.5592938

Sheet B1_Breakdown_of_Costs
A1: Form B1: Breakdown of Costs | C1: MULTIPLIERS | T1: MULTIPLIERS | AK1: MULTIPLIERS | BB1: MULTIPLIERS | BS1: MULTIPLIERS | CJ1: MULTIPLIERS | DA1: MULTIPLIERS
A2: ALAMEDACTC CONTRACT NUMBER: | C2: % of budget in Current Year (CY) | F2: 1 | G2: Accepted Overhead Rate | J2: 0 | T2: % of budget in Current Year (CY) | W2: 1 | X2: Accepted Overhead Rate | AA2: 0 | AK2: % of budget in Current Year (CY) | AN2: 1 | AO2: Accepted Overhead Rate | AR2: 0 | BB2: % of budget in Current Year (CY) | BE2: 1 | BF2: Accepted Overhead Rate | BI2: 0 | BS2: % of budget in Current Year (CY) | BV2: 1 | BW2: Accepted Overhead Rate | BZ2: 0 | CJ2: % of budget in Current Year (CY) | CM2: 1 | CN2: Accepted Overhead Rate | CQ2: 0 | DA2: % of budget in Current Year (CY) | DD2: 1 | DE2: Accepted Overhead Rate | DH2: 0
C3: % of budget in CY+1 | F3: 0 | G3: Fringe Rate | J3: 0 | T3: % of budget in CY+1 | W3: 0 | X3: Fringe Rate | AA3: 0 | AK3: % of budget in CY+1 | AN3: 0 | AO3: Fringe Rate | AR3: 0 | BB3: % of budget in CY+1 | BE3: 0 | BF3: Fringe Rate | BI3: 0 | BS3: % of budget in CY+1 | BV3: 0 | BW3: Fringe Rate | BZ3: 0 | CJ3: % of budget in CY+1 | CM3: 0 | CN3: Fringe Rate | CQ3: 0 | DA3: % of budget in CY+1 | DD3: 0 | DE3: Fringe Rate | DH3: 0
A4: PROJECT NAME: | C4: % of budget in CY+2 | F4: 0 | G4: Negotiated Profit Rate | J4: 0.08 | T4: % of budget in CY+2 | W4: 0 | X4: Negotiated Profit Rate | AA4: 0.08 | AK4: % of budget in CY+2 | AN4: 0 | AO4: Negotiated Profit Rate | AR4: 0 | BB4: % of budget in CY+2 | BE4: 0 | BF4: Negotiated Profit Rate | BI4: 0 | BS4: % of budget in CY+2 | BV4: 0 | BW4: Negotiated Profit Rate | BZ4: 0 | CJ4: % of budget in CY+2 | CM4: 0 | CN4: Negotiated Profit Rate | CQ4: 0 | DA4: % of budget in CY+2 | DD4: 0 | DE4: Negotiated Profit Rate | DH4: 0
C5: % of budget in CY+3 | F5: 0 | G5: Annual Escalation Rate | J5: 0.03 | T5: % of budget in CY+3 | W5: 0 | X5: Annual Escalation Rate | AA5: 0.03 | AK5: % of budget in CY+3 | AN5: 0 | AO5: Annual Escalation Rate | AR5: 0 | BB5: % of budget in CY+3 | BE5: 0 | BF5: Annual Escalation Rate | BI5: 0 | BS5: % of budget in CY+3 | BV5: 0 | BW5: Annual Escalation Rate | BZ5: 0 | CJ5: % of budget in CY+3 | CM5: 0 | CN5: Annual Escalation Rate | CQ5: 0 | DA5: % of budget in CY+3 | DD5: 0 | DE5: Annual Escalation Rate | DH5: 0
C6: Annualization Factor | F6: =(F2+F3*(1+J5)+F4*(1+J5)^2+F5*(1+J5)^3) -> 1 | T6: Annualization Factor | W6: =(W2+W3*(1+AA5)+W4*(1+AA5)^2+W5*(1+AA5)^3) -> 1 | AK6: Annualization Factor | AN6: =(AN2+AN3*(1+AR5)+AN4*(1+AR5)^2+AN5*(1+AR5)^3) -> 1 | BB6: Annualization Factor | BE6: =(BE2+BE3*(1+BI5)+BE4*(1+BI5)^2+BE5*(1+BI5)^3) -> 1 | BS6: Annualization Factor | BV6: =(BV2+BV3*(1+BZ5)+BV4*(1+BZ5)^2+BV5*(1+BZ5)^3) -> 1 | CJ6: Annualization Factor | CM6: =(CM2+CM3*(1+CQ5)+CM4*(1+CQ5)^2+CM5*(1+CQ5)^3) -> 1 | DA6: Annualization Factor | DD6: =(DD2+DD3*(1+DH5)+DD4*(1+DH5)^2+DD5*(1+DH5)^3) -> 1
C7: Prime Consultant: | T7: Subconsultant: | AK7: Subconsultant: | BB7: Subconsultant: | BS7: Subconsultant: | CJ7: Subconsultant: | DA7: Subconsultant: | DR7: Project Summary
C8: DATA ENTRY SECTION | M8: CALCULATION SECTION | T8: DATA ENTRY SECTION | AD8: CALCULATION SECTION | AK8: DATA ENTRY SECTION | AU8: CALCULATION SECTION | BB8: DATA ENTRY SECTION | BL8: CALCULATION SECTION | BS8: DATA ENTRY SECTION | CC8: CALCULATION SECTION | CJ8: DATA ENTRY SECTION | CT8: CALCULATION SECTION | DA8: DATA ENTRY SECTION | DK8: CALCULATION SECTION | DR8: CALCULATION SECTION
B9: Names and Classification | C9: [__Insert Name and Classification__] | D9: [__Insert Name and Classification__] | E9: [__Insert Name and Classification__] | F9: [__Insert Name and Classification__] | G9: [__Insert Name and Classification__] | H9: [__Insert Name and Classification__] | I9: [__Insert Name and Classification__] | J9: [__Insert Name and Classification__] | K9: [__Insert Name and Classification__] | L9: Direct Expenses ($) | M9: Hours | N9: Escalated Direct Labor or NBR $ | O9: Fringe/Overhead | P9: Direct Expenses | Q9: TOTAL COST | R9: Profit | T9: [__Insert Name and Classification__] | U9: [__Insert Name and Classification__] | V9: [__Insert Name and Classification__] | W9: [__Insert Name and Classification__] | X9: [__Insert Name and Classification__] | Y9: [__Insert Name and Classification__] | Z9: [__Insert Name and Classification__] | AA9: [__Insert Name and Classification__] | AB9: [__Insert Name and Classification__] | AC9: Direct Expenses ($) | AD9: Hours | AE9: Escalated Direct Labor or NBR $ | AF9: Fringe/Overhead | AG9: Direct Expenses | AH9: TOTAL COST | AI9: Profit | AK9: [__Insert Name and Classification__] | AL9: [__Insert Name and Classification__] | AM9: [__Insert Name and Classification__] | AN9: [__Insert Name and Classification__] | AO9: [__Insert Name and Classification__] | AP9: [__Insert Name and Classification__] | AQ9: [__Insert Name and Classification__] | AR9: [__Insert Name and Classification__] | AS9: [__Insert Name and Classification__] | AT9: Direct Expenses ($) | AU9: Hours | AV9: Escalated Direct Labor or NBR $ | AW9: Fringe/Overhead | AX9: Direct Expenses | AY9: TOTAL COST | AZ9: Profit | BB9: [__Insert Name and Classification__] | BC9: [__Insert Name and Classification__] | BD9: [__Insert Name and Classification__] | BE9: [__Insert Name and Classification__] | BF9: [__Insert Name and Classification__] | BG9: [__Insert Name and Classification__] | BH9: [__Insert Name and Classification__] | BI9: [__Insert Name and Classification__] | BJ9: [__Insert Name and Classification__] | BK9: Direct Expenses ($) | BL9: Hours | BM9: Escalated Direct Labor or NBR $ | BN9: Fringe/Overhead | BO9: Direct Expenses | BP9: TOTAL COST | BQ9: Profit | BS9: [__Insert Name and Classification__] | BT9: [__Insert Name and Classification__] | BU9: [__Insert Name and Classification__] | BV9: [__Insert Name and Classification__] | BW9: [__Insert Name and Classification__] | BX9: [__Insert Name and Classification__] | BY9: [__Insert Name and Classification__] | BZ9: [__Insert Name and Classification__] | CA9: [__Insert Name and Classification__] | CB9: Direct Expenses ($) | CC9: Hours | CD9: Escalated Direct Labor or NBR $ | CE9: Fringe/Overhead | CF9: Direct Expenses | CG9: TOTAL COST | CH9: Profit | CJ9: [__Insert Name and Classification__] | CK9: [__Insert Name and Classification__] | CL9: [__Insert Name and Classification__] | CM9: [__Insert Name and Classification__] | CN9: [__Insert Name and Classification__] | CO9: [__Insert Name and Classification__] | CP9: [__Insert Name and Classification__] | CQ9: [__Insert Name and Classification__] | CR9: [__Insert Name and Classification__] | CS9: Direct Expenses ($) | CT9: Hours | CU9: Escalated Direct Labor or NBR $ | CV9: Fringe/Overhead | CW9: Direct Expenses | CX9: TOTAL COST | CY9: Profit | DA9: [__Insert Name and Classification__] | DB9: [__Insert Name and Classification__] | DC9: [__Insert Name and Classification__] | DD9: [__Insert Name and Classification__] | DE9: [__Insert Name and Classification__] | DF9: [__Insert Name and Classification__] | DG9: [__Insert Name and Classification__] | DH9: [__Insert Name and Classification__] | DI9: [__Insert Name and Classification__] | DJ9: Direct Expenses ($) | DK9: Hours | DL9: Escalated Direct Labor or NBR $ | DM9: Fringe/Overhead | DN9: Direct Expenses | DO9: TOTAL COST | DP9: Profit | DR9: Hours | DS9: Escalated Direct Labor or NBR $ | DT9: Fringe/Overhead | DU9: Direct Expenses | DV9: Total Cost | DW9: Profit | DX9: Total Cost + Profit | DY9: % of Total Non-Contingency Labor Costs
B10: Direct Salary Rate (Average, Actual, Max) for Current Year
B11: Annualized Direct Salary Rate (or enter Negotiated Billing Rate) | C11: =C10*$F6 -> 0 | D11: =D10*$F6 -> 0 | E11: =E10*$F6 -> 0 | F11: =F10*$F6 -> 0 | G11: 0 | H11: 0 | I11: 0 | J11: 0 | K11: 0 | T11: =T10*$W6 -> 0 | U11: =U10*$W6 -> 0 | V11: 0 | W11: 0 | X11: 0 | Y11: 0 | Z11: 0 | AA11: 0 | AB11: 0 | AK11: =AK10*$AN6 -> 0 | AL11: =AL10*$AN6 -> 0 | AM11: 0 | AN11: 0 | AO11: 0 | AP11: 0 | AQ11: 0 | AR11: 0 | AS11: 0 | BB11: =BB10*$BE6 -> 0 | BC11: =BC10*$BE6 -> 0 | BD11: 0 | BE11: 0 | BF11: 0 | BG11: 0 | BH11: 0 | BI11: 0 | BJ11: 0 | BS11: =BS10*$BV6 -> 0 | BT11: =BT10*$BV6 -> 0 | BU11: 0 | BV11: 0 | BW11: 0 | BX11: 0 | BY11: 0 | BZ11: 0 | CA11: 0 | CJ11: =CJ10*$CM6 -> 0 | CK11: =CK10*$CM6 -> 0 | CL11: 0 | CM11: 0 | CN11: 0 | CO11: 0 | CP11: 0 | CQ11: 0 | CR11: 0 | DA11: =DA10*$DD6 -> 0 | DB11: =DB10*$DD6 -> 0 | DC11: 0 | DD11: 0 | DE11: 0 | DF11: 0 | DG11: 0 | DH11: 0 | DI11: 0
A12: Task # | B12: Fully Burdened Billing Rate | C12: =+C11+(C11*$J2)+(C11*$J3)+SUM($J4*SUM(C11+(C11*$J2)+(C11*$J3))) -> 0 | D12: 0 | E12: 0 | F12: 0 | G12: 0 | H12: 0 | I12: 0 | J12: 0 | K12: 0 | T12: =+T11+(T11*$AA2)+(T11*$AA3)+SUM($AA4*SUM(T11+(T11*$AA2)+(T11*$AA3))) -> 0 | U12: =+U11+(U11*$AA2)+(U11*$AA3)+SUM($AA4*SUM(U11+(U11*$AA2)+(U11*$AA3))) -> 0 | V12: 0 | W12: 0 | X12: 0 | Y12: 0 | Z12: 0 | AA12: 0 | AB12: 0 | AK12: =+AK11+(AK11*$AR2)+(AK11*$AR3)+SUM($AR4*SUM(AK11+(AK11*$AR2)+(AK11*$AR3))) -> 0 | AL12: =+AL11+(AL11*$AR2)+(AL11*$AR3)+SUM($AR4*SUM(AL11+(AL11*$AR2)+(AL11*$AR3))) -> 0 | AM12: 0 | AN12: 0 | AO12: 0 | AP12: 0 | AQ12: 0 | AR12: 0 | AS12: 0 | BB12: =+BB11+(BB11*$BI2)+(BB11*$BI3)+SUM($BI4*SUM(BB11+(BB11*$BI2)+(BB11*$BI3))) -> 0 | BC12: =+BC11+(BC11*$BI2)+(BC11*$BI3)+SUM($BI4*SUM(BC11+(BC11*$BI2)+(BC11*$BI3))) -> 0 | BD12: 0 | BE12: 0 | BF12: 0 | BG12: 0 | BH12: 0 | BI12: 0 | BJ12: 0 | BS12: =+BS11+(BS11*$BZ2)+(BS11*$BZ3)+SUM($BZ4*SUM(BS11+(BS11*$BZ2)+(BS11*$BZ3))) -> 0 | BT12: =+BT11+(BT11*$BZ2)+(BT11*$BZ3)+SUM($BZ4*SUM(BT11+(BT11*$BZ2)+(BT11*$BZ3))) -> 0 | BU12: 0 | BV12: 0 | BW12: 0 | BX12: 0 | BY12: 0 | BZ12: 0 | CA12: 0 | CJ12: =+CJ11+(CJ11*$CQ2)+(CJ11*$CQ3)+SUM($CQ4*SUM(CJ11+(CJ11*$CQ2)+(CJ11*$CQ3))) -> 0 | CK12: =+CK11+(CK11*$CQ2)+(CK11*$CQ3)+SUM($CQ4*SUM(CK11+(CK11*$CQ2)+(CK11*$CQ3))) -> 0 | CL12: 0 | CM12: 0 | CN12: 0 | CO12: 0 | CP12: 0 | CQ12: 0 | CR12: 0 | DA12: =+DA11+(DA11*$DH2)+(DA11*$DH3)+SUM($DH4*SUM(DA11+(DA11*$DH2)+(DA11*$DH3))) -> 0 | DB12: =+DB11+(DB11*$DH2)+(DB11*$DH3)+SUM($DH4*SUM(DB11+(DB11*$DH2)+(DB11*$DH3))) -> 0 | DC12: 0 | DD12: 0 | DE12: 0 | DF12: 0 | DG12: 0 | DH12: 0 | DI12: 0
A13: NON-CONTINGENCY TASKS/DELIVERABLES
A14: 1 | C14: =SUBTOTAL(9,C15:C24) -> 0 | D14: 0 | E14: 0 | F14: 0 | G14: 0 | H14: 0 | I14: 0 | J14: 0 | K14: 0 | L14: 0 | M14: 0 | N14: 0 | O14: =SUBTOTAL(9,O15:O24) -> 0 | P14: 0 | Q14: 0 | R14: 0 | T14: =SUBTOTAL(9,T15:T24) -> 0 | U14: 0 | V14: 0 | W14: 0 | X14: 0 | Y14: 0 | Z14: 0 | AA14: 0 | AB14: 0 | AC14: 0 | AD14: 0 | AE14: 0 | AF14: 0 | AG14: 0 | AH14: 0 | AI14: 0 | AK14: =SUBTOTAL(9,AK15:AK24) -> 0 | AL14: 0 | AM14: 0 | AN14: 0 | AO14: 0 | AP14: 0 | AQ14: 0 | AR14: 0 | AS14: 0 | AT14: 0 | AU14: 0 | AV14: 0 | AW14: 0 | AX14: 0 | AY14: 0 | AZ14: 0 | BB14: =SUBTOTAL(9,BB15:BB24) -> 0 | BC14: 0 | BD14: 0 | BE14: 0 | BF14: 0 | BG14: 0 | BH14: 0 | BI14: 0 | BJ14: 0 | BK14: 0 | BL14: 0 | BM14: 0 | BN14: 0 | BO14: 0 | BP14: 0 | BQ14: 0 | BS14: =SUBTOTAL(9,BS15:BS24) -> 0 | BT14: 0 | BU14: 0 | BV14: 0 | BW14: 0 | BX14: 0 | BY14: 0 | BZ14: 0 | CA14: 0 | CB14: 0 | CC14: 0 | CD14: 0 | CE14: 0 | CF14: 0 | CG14: 0 | CH14: 0 | CJ14: =SUBTOTAL(9,CJ15:CJ24) -> 0 | CK14: 0 | CL14: 0 | CM14: 0 | CN14: 0 | CO14: 0 | CP14: 0 | CQ14: 0 | CR14: 0 | CS14: 0 | CT14: 0 | CU14: 0 | CV14: 0 | CW14: 0 | CX14: 0 | CY14: 0 | DA14: =SUBTOTAL(9,DA15:DA24) -> 0 | DB14: 0 | DC14: 0 | DD14: 0 | DE14: 0 | DF14: 0 | DG14: 0 | DH14: 0 | DI14: 0 | DJ14: 0 | DK14: 0 | DL14: 0 | DM14: 0 | DN14: 0 | DO14: 0 | DP14: 0 | DR14: =SUMIF($C$9:$DP$9,DR$9,$C14:$DP14) -> 0 | DS14: 0 | DT14: 0 | DU14: 0 | DV14: 0 | DW14: 0 | DX14: =DV14+DW14 -> 0 | DY14: =(DV14-DU14)/(DV$124-DU$124) -> 
A15: 1.1 | M15: 0 | N15: 0 | O15: =(N15*$J$2)+(N15*$J$3) -> 0 | P15: =L15 -> 0 | Q15: =SUM(N15:P15) -> 0 | R15: =(N15+O15)*$J$4 -> 0 | AD15: =SUM(T15:AB15) -> 0 | AE15: =SUMPRODUCT(T$11:AB$11,T15:AB15) -> 0 | AF15: =(AE15*AA$2)+(AE15*AA$3) -> 0 | AG15: =AC15 -> 0 | AH15: =SUM(AE15:AG15) -> 0 | AI15: =(AE15+AF15)*AA$4 -> 0 | AU15: =SUM(AK15:AS15) -> 0 | AV15: =SUMPRODUCT(AK$11:AS$11,AK15:AS15) -> 0 | AW15: =(AV15*AR$2)+(AV15*AR$3) -> 0 | AX15: =AT15 -> 0 | AY15: =SUM(AV15:AX15) -> 0 | AZ15: =(AV15+AW15)*AR$4 -> 0 | BL15: =SUM(BB15:BJ15) -> 0 | BM15: =SUMPRODUCT(BB$11:BJ$11,BB15:BJ15) -> 0 | BN15: =(BM15*BI$2)+(BM15*BI$3) -> 0 | BO15: =BK15 -> 0 | BP15: =SUM(BM15:BO15) -> 0 | BQ15: =(BM15+BN15)*BI$4 -> 0 | CC15: =SUM(BS15:CA15) -> 0 | CD15: =SUMPRODUCT(BS$11:CA$11,BS15:CA15) -> 0 | CE15: =(CD15*BZ$2)+(CD15*BZ$3) -> 0 | CF15: =CB15 -> 0 | CG15: =SUM(CD15:CF15) -> 0 | CH15: =(CD15+CE15)*BZ$4 -> 0 | CT15: =SUM(CJ15:CR15) -> 0 | CU15: =SUMPRODUCT(CJ$11:CR$11,CJ15:CR15) -> 0 | CV15: =(CU15*CQ$2)+(CU15*CQ$3) -> 0 | CW15: =CS15 -> 0 | CX15: =SUM(CU15:CW15) -> 0 | CY15: =(CU15+CV15)*CQ$4 -> 0 | DK15: =SUM(DA15:DI15) -> 0 | DL15: =SUMPRODUCT(DA$11:DI$11,DA15:DI15) -> 0 | DM15: =(DL15*DH$2)+(DL15*DH$3) -> 0 | DN15: =DJ15 -> 0 | DO15: =SUM(DL15:DN15) -> 0 | DP15: =(DL15+DM15)*DH$4 -> 0 | DR15: 0 | DS15: 0 | DT15: 0 | DU15: 0 | DV15: 0 | DW15: 0 | DX15: =DV15+DW15 -> 0 | DY15: =(DV15-DU15)/(DV$124-DU$124) -> 
A16: 1.2 | M16: 0 | N16: 0 | O16: =(N16*$J$2)+(N16*$J$3) -> 0 | P16: =L16 -> 0 | Q16: =SUM(N16:P16) -> 0 | R16: =(N16+O16)*$J$4 -> 0 | AD16: 0 | AE16: =SUMPRODUCT(T$11:AB$11,T16:AB16) -> 0 | AF16: =(AE16*AA$2)+(AE16*AA$3) -> 0 | AG16: =AC16 -> 0 | AH16: =SUM(AE16:AG16) -> 0 | AI16: =(AE16+AF16)*AA$4 -> 0 | AU16: =SUM(AK16:AS16) -> 0 | AV16: =SUMPRODUCT(AK$11:AS$11,AK16:AS16) -> 0 | AW16: =(AV16*AR$2)+(AV16*AR$3) -> 0 | AX16: =AT16 -> 0 | AY16: =SUM(AV16:AX16) -> 0 | AZ16: =(AV16+AW16)*AR$4 -> 0 | BL16: 0 | BM16: =SUMPRODUCT(BB$11:BJ$11,BB16:BJ16) -> 0 | BN16: =(BM16*BI$2)+(BM16*BI$3) -> 0 | BO16: =BK16 -> 0 | BP16: =SUM(BM16:BO16) -> 0 | BQ16: =(BM16+BN16)*BI$4 -> 0 | CC16: =SUM(BS16:CA16) -> 0 | CD16: =SUMPRODUCT(BS$11:CA$11,BS16:CA16) -> 0 | CE16: =(CD16*BZ$2)+(CD16*BZ$3) -> 0 | CF16: =CB16 -> 0 | CG16: =SUM(CD16:CF16) -> 0 | CH16: =(CD16+CE16)*BZ$4 -> 0 | CT16: 0 | CU16: =SUMPRODUCT(CJ$11:CR$11,CJ16:CR16) -> 0 | CV16: =(CU16*CQ$2)+(CU16*CQ$3) -> 0 | CW16: =CS16 -> 0 | CX16: =SUM(CU16:CW16) -> 0 | CY16: =(CU16+CV16)*CQ$4 -> 0 | DK16: =SUM(DA16:DI16) -> 0 | DL16: =SUMPRODUCT(DA$11:DI$11,DA16:DI16) -> 0 | DM16: =(DL16*DH$2)+(DL16*DH$3) -> 0 | DN16: =DJ16 -> 0 | DO16: =SUM(DL16:DN16) -> 0 | DP16: =(DL16+DM16)*DH$4 -> 0 | DR16: =SUMIF($C$9:$DP$9,DR$9,$C16:$DP16) -> 0 | DS16: 0 | DT16: 0 | DU16: 0 | DV16: 0 | DW16: 0 | DX16: =DV16+DW16 -> 0 | DY16: =(DV16-DU16)/(DV$124-DU$124) -> 
A17: 1.3 | M17: 0 | N17: 0 | O17: 0 | P17: =L17 -> 0 | Q17: =SUM(N17:P17) -> 0 | R17: =(N17+O17)*$J$4 -> 0 | AD17: 0 | AE17: 0 | AF17: 0 | AG17: 0 | AH17: 0 | AI17: 0 | AU17: 0 | AV17: 0 | AW17: 0 | AX17: 0 | AY17: 0 | AZ17: 0 | BL17: 0 | BM17: 0 | BN17: 0 | BO17: 0 | BP17: 0 | BQ17: 0 | CC17: 0 | CD17: 0 | CE17: 0 | CF17: 0 | CG17: 0 | CH17: 0 | CT17: 0 | CU17: 0 | CV17: 0 | CW17: 0 | CX17: 0 | CY17: 0 | DK17: 0 | DL17: 0 | DM17: 0 | DN17: 0 | DO17: 0 | DP17: 0 | DR17: 0 | DS17: 0 | DT17: 0 | DU17: 0 | DV17: 0 | DW17: 0 | DX17: 0
A18: 1.4 | M18: 0 | N18: 0 | O18: 0 | P18: =L18 -> 0 | Q18: =SUM(N18:P18) -> 0 | R18: =(N18+O18)*$J$4 -> 0 | AD18: 0 | AE18: 0 | AF18: 0 | AG18: 0 | AH18: 0 | AI18: 0 | AU18: 0 | AV18: 0 | AW18: 0 | AX18: 0 | AY18: 0 | AZ18: 0 | BL18: 0 | BM18: 0 | BN18: 0 | BO18: 0 | BP18: 0 | BQ18: 0 | CC18: 0 | CD18: 0 | CE18: 0 | CF18: 0 | CG18: 0 | CH18: 0 | CT18: 0 | CU18: 0 | CV18: 0 | CW18: 0 | CX18: 0 | CY18: 0 | DK18: 0 | DL18: 0 | DM18: 0 | DN18: 0 | DO18: 0 | DP18: 0 | DR18: 0 | DS18: 0 | DT18: 0 | DU18: 0 | DV18: 0 | DW18: 0 | DX18: 0
A19: 1.5 | M19: 0 | N19: =SUMPRODUCT(C$11:L$11,C19:L19) -> 0 | O19: 0 | P19: 0 | Q19: 0 | R19: 0 | AD19: 0 | AE19: 0 | AF19: 0 | AG19: 0 | AH19: 0 | AI19: 0 | AU19: 0 | AV19: 0 | AW19: 0 | AX19: 0 | AY19: 0 | AZ19: 0 | BL19: 0 | BM19: 0 | BN19: 0 | BO19: 0 | BP19: 0 | BQ19: 0 | CC19: 0 | CD19: 0 | CE19: 0 | CF19: 0 | CG19: 0 | CH19: 0 | CT19: 0 | CU19: 0 | CV19: 0 | CW19: 0 | CX19: 0 | CY19: 0 | DK19: 0 | DL19: 0 | DM19: 0 | DN19: 0 | DO19: 0 | DP19: 0 | DR19: 0 | DS19: 0 | DT19: 0 | DU19: 0 | DV19: 0 | DW19: 0 | DX19: 0
A20: 1.6 | M20: =SUM(C20:K20) -> 0 | N20: 0 | O20: 0 | P20: 0 | Q20: 0 | R20: 0 | AD20: 0 | AE20: 0 | AF20: 0 | AG20: 0 | AH20: 0 | AI20: 0 | AU20: 0 | AV20: 0 | AW20: 0 | AX20: 0 | AY20: 0 | AZ20: 0 | BL20: 0 | BM20: 0 | BN20: 0 | BO20: 0 | BP20: 0 | BQ20: 0 | CC20: 0 | CD20: 0 | CE20: 0 | CF20: 0 | CG20: 0 | CH20: 0 | CT20: 0 | CU20: 0 | CV20: 0 | CW20: 0 | CX20: 0 | CY20: 0 | DK20: 0 | DL20: 0 | DM20: 0 | DN20: 0 | DO20: 0 | DP20: 0 | DR20: 0 | DS20: 0 | DT20: 0 | DU20: 0 | DV20: 0 | DW20: 0 | DX20: 0
A21: 1.7 | M21: 0 | N21: 0 | O21: 0 | P21: 0 | Q21: 0 | R21: 0 | AD21: 0 | AE21: 0 | AF21: 0 | AG21: 0 | AH21: 0 | AI21: 0 | AU21: 0 | AV21: 0 | AW21: 0 | AX21: 0 | AY21: 0 | AZ21: 0 | BL21: 0 | BM21: 0 | BN21: 0 | BO21: 0 | BP21: 0 | BQ21: 0 | CC21: 0 | CD21: 0 | CE21: 0 | CF21: 0 | CG21: 0 | CH21: 0 | CT21: 0 | CU21: 0 | CV21: 0 | CW21: 0 | CX21: 0 | CY21: 0 | DK21: 0 | DL21: 0 | DM21: 0 | DN21: 0 | DO21: 0 | DP21: 0 | DR21: 0 | DS21: 0 | DT21: 0 | DU21: 0 | DV21: 0 | DW21: 0 | DX21: 0
A22: 1.8 | M22: 0 | N22: 0 | O22: 0 | P22: 0 | Q22: 0 | R22: 0 | AD22: 0 | AE22: 0 | AF22: 0 | AG22: 0 | AH22: 0 | AI22: 0 | AU22: 0 | AV22: 0 | AW22: 0 | AX22: 0 | AY22: 0 | AZ22: 0 | BL22: 0 | BM22: 0 | BN22: 0 | BO22: 0 | BP22: 0 | BQ22: 0 | CC22: 0 | CD22: 0 | CE22: 0 | CF22: 0 | CG22: 0 | CH22: 0 | CT22: 0 | CU22: 0 | CV22: 0 | CW22: 0 | CX22: 0 | CY22: 0 | DK22: 0 | DL22: 0 | DM22: 0 | DN22: 0 | DO22: 0 | DP22: 0 | DR22: 0 | DS22: 0 | DT22: 0 | DU22: 0 | DV22: 0 | DW22: 0 | DX22: 0
A23: 1.9 | M23: 0 | N23: 0 | O23: 0 | P23: 0 | Q23: 0 | R23: 0 | AD23: 0 | AE23: 0 | AF23: 0 | AG23: 0 | AH23: 0 | AI23: 0 | AU23: 0 | AV23: 0 | AW23: 0 | AX23: 0 | AY23: 0 | AZ23: 0 | BL23: 0 | BM23: 0 | BN23: 0 | BO23: 0 | BP23: 0 | BQ23: 0 | CC23: 0 | CD23: 0 | CE23: 0 | CF23: 0 | CG23: 0 | CH23: 0 | CT23: 0 | CU23: 0 | CV23: 0 | CW23: 0 | CX23: 0 | CY23: 0 | DK23: 0 | DL23: 0 | DM23: 0 | DN23: 0 | DO23: 0 | DP23: 0 | DR23: 0 | DS23: 0 | DT23: 0 | DU23: 0 | DV23: 0 | DW23: 0 | DX23: 0
A24: 1.10 | M24: 0 | N24: 0 | O24: 0 | P24: 0 | Q24: 0 | R24: 0 | AD24: 0 | AE24: 0 | AF24: 0 | AG24: 0 | AH24: 0 | AI24: 0 | AU24: 0 | AV24: 0 | AW24: 0 | AX24: 0 | AY24: 0 | AZ24: 0 | BL24: 0 | BM24: 0 | BN24: 0 | BO24: 0 | BP24: 0 | BQ24: 0 | CC24: 0 | CD24: 0 | CE24: 0 | CF24: 0 | CG24: 0 | CH24: 0 | CT24: 0 | CU24: 0 | CV24: 0 | CW24: 0 | CX24: 0 | CY24: 0 | DK24: 0 | DL24: 0 | DM24: 0 | DN24: 0 | DO24: 0 | DP24: 0 | DR24: 0 | DS24: 0 | DT24: 0 | DU24: 0 | DV24: 0 | DW24: 0 | DX24: 0
A25: 2 | C25: =SUBTOTAL(9,C26:C35) -> 0 | D25: 0 | E25: 0 | F25: 0 | G25: 0 | H25: 0 | I25: 0 | J25: 0 | K25: 0 | L25: 0 | M25: =SUBTOTAL(9,M26:M35) -> 0 | N25: 0 | O25: 0 | P25: 0 | Q25: 0 | R25: 0 | T25: =SUBTOTAL(9,T26:T35) -> 0 | U25: =SUBTOTAL(9,U26:U35) -> 0 | V25: 0 | W25: 0 | X25: 0 | Y25: 0 | Z25: 0 | AA25: 0 | AB25: 0 | AC25: 0 | AD25: 0 | AE25: 0 | AF25: 0 | AG25: 0 | AH25: 0 | AI25: 0 | AK25: =SUBTOTAL(9,AK26:AK35) -> 0 | AL25: 0 | AM25: 0 | AN25: 0 | AO25: 0 | AP25: 0 | AQ25: 0 | AR25: 0 | AS25: 0 | AT25: 0 | AU25: 0 | AV25: 0 | AW25: 0 | AX25: 0 | AY25: 0 | AZ25: 0 | BB25: =SUBTOTAL(9,BB26:BB35) -> 0 | BC25: 0 | BD25: 0 | BE25: 0 | BF25: 0 | BG25: 0 | BH25: 0 | BI25: 0 | BJ25: 0 | BK25: 0 | BL25: 0 | BM25: 0 | BN25: 0 | BO25: 0 | BP25: 0 | BQ25: 0 | BS25: =SUBTOTAL(9,BS26:BS35) -> 0 | BT25: 0 | BU25: 0 | BV25: 0 | BW25: 0 | BX25: 0 | BY25: 0 | BZ25: 0 | CA25: 0 | CB25: 0 | CC25: 0 | CD25: 0 | CE25: 0 | CF25: 0 | CG25: 0 | CH25: 0 | CJ25: =SUBTOTAL(9,CJ26:CJ35) -> 0 | CK25: 0 | CL25: 0 | CM25: 0 | CN25: 0 | CO25: 0 | CP25: 0 | CQ25: 0 | CR25: 0 | CS25: 0 | CT25: 0 | CU25: 0 | CV25: 0 | CW25: 0 | CX25: 0 | CY25: 0 | DA25: =SUBTOTAL(9,DA26:DA35) -> 0 | DB25: 0 | DC25: 0 | DD25: 0 | DE25: 0 | DF25: 0 | DG25: 0 | DH25: 0 | DI25: 0 | DJ25: 0 | DK25: 0 | DL25: 0 | DM25: 0 | DN25: 0 | DO25: 0 | DP25: 0 | DR25: 0 | DS25: 0 | DT25: 0 | DU25: 0 | DV25: 0 | DW25: 0 | DX25: =DV25+DW25 -> 0 | DY25: =(DV25-DU25)/(DV$124-DU$124) -> 
A26: 2.1 | M26: 0 | N26: =SUMPRODUCT(C$11:L$11,C26:L26) -> 0 | O26: 0 | P26: =L26 -> 0 | Q26: =SUM(N26:P26) -> 0 | R26: =(N26+O26)*$J$4 -> 0 | AD26: =SUM(T26:AB26) -> 0 | AE26: =SUMPRODUCT(T$11:AB$11,T26:AB26) -> 0 | AF26: =(AE26*AA$2)+(AE26*AA$3) -> 0 | AG26: =AC26 -> 0 | AH26: =SUM(AE26:AG26) -> 0 | AI26: =(AE26+AF26)*AA$4 -> 0 | AU26: 0 | AV26: =SUMPRODUCT(AK$11:AS$11,AK26:AS26) -> 0 | AW26: =(AV26*AR$2)+(AV26*AR$3) -> 0 | AX26: =AT26 -> 0 | AY26: =SUM(AV26:AX26) -> 0 | AZ26: =(AV26+AW26)*AR$4 -> 0 | BL26: =SUM(BB26:BJ26) -> 0 | BM26: =SUMPRODUCT(BB$11:BJ$11,BB26:BJ26) -> 0 | BN26: =(BM26*BI$2)+(BM26*BI$3) -> 0 | BO26: =BK26 -> 0 | BP26: =SUM(BM26:BO26) -> 0 | BQ26: =(BM26+BN26)*BI$4 -> 0 | CC26: =SUM(BS26:CA26) -> 0 | CD26: =SUMPRODUCT(BS$11:CA$11,BS26:CA26) -> 0 | CE26: =(CD26*BZ$2)+(CD26*BZ$3) -> 0 | CF26: =CB26 -> 0 | CG26: =SUM(CD26:CF26) -> 0 | CH26: =(CD26+CE26)*BZ$4 -> 0 | CT26: =SUM(CJ26:CR26) -> 0 | CU26: =SUMPRODUCT(CJ$11:CR$11,CJ26:CR26) -> 0 | CV26: =(CU26*CQ$2)+(CU26*CQ$3) -> 0 | CW26: =CS26 -> 0 | CX26: =SUM(CU26:CW26) -> 0 | CY26: =(CU26+CV26)*CQ$4 -> 0 | DK26: =SUM(DA26:DI26) -> 0 | DL26: =SUMPRODUCT(DA$11:DI$11,DA26:DI26) -> 0 | DM26: =(DL26*DH$2)+(DL26*DH$3) -> 0 | DN26: =DJ26 -> 0 | DO26: =SUM(DL26:DN26) -> 0 | DP26: =(DL26+DM26)*DH$4 -> 0 | DR26: 0 | DS26: 0 | DT26: 0 | DU26: 0 | DV26: 0 | DW26: 0 | DX26: 0
A27: 2.2 | M27: 0 | N27: =SUMPRODUCT(C$11:L$11,C27:L27) -> 0 | O27: 0 | P27: =L27 -> 0 | Q27: =SUM(N27:P27) -> 0 | R27: =(N27+O27)*$J$4 -> 0 | AD27: 0 | AE27: =SUMPRODUCT(T$11:AB$11,T27:AB27) -> 0 | AF27: =(AE27*AA$2)+(AE27*AA$3) -> 0 | AG27: =AC27 -> 0 | AH27: =SUM(AE27:AG27) -> 0 | AI27: =(AE27+AF27)*AA$4 -> 0 | AU27: 0 | AV27: =SUMPRODUCT(AK$11:AS$11,AK27:AS27) -> 0 | AW27: =(AV27*AR$2)+(AV27*AR$3) -> 0 | AX27: =AT27 -> 0 | AY27: =SUM(AV27:AX27) -> 0 | AZ27: =(AV27+AW27)*AR$4 -> 0 | BL27: 0 | BM27: =SUMPRODUCT(BB$11:BJ$11,BB27:BJ27) -> 0 | BN27: =(BM27*BI$2)+(BM27*BI$3) -> 0 | BO27: =BK27 -> 0 | BP27: =SUM(BM27:BO27) -> 0 | BQ27: =(BM27+BN27)*BI$4 -> 0 | CC27: 0 | CD27: =SUMPRODUCT(BS$11:CA$11,BS27:CA27) -> 0 | CE27: =(CD27*BZ$2)+(CD27*BZ$3) -> 0 | CF27: =CB27 -> 0 | CG27: =SUM(CD27:CF27) -> 0 | CH27: =(CD27+CE27)*BZ$4 -> 0 | CT27: 0 | CU27: =SUMPRODUCT(CJ$11:CR$11,CJ27:CR27) -> 0 | CV27: =(CU27*CQ$2)+(CU27*CQ$3) -> 0 | CW27: =CS27 -> 0 | CX27: =SUM(CU27:CW27) -> 0 | CY27: =(CU27+CV27)*CQ$4 -> 0 | DK27: 0 | DL27: =SUMPRODUCT(DA$11:DI$11,DA27:DI27) -> 0 | DM27: =(DL27*DH$2)+(DL27*DH$3) -> 0 | DN27: =DJ27 -> 0 | DO27: =SUM(DL27:DN27) -> 0 | DP27: =(DL27+DM27)*DH$4 -> 0 | DR27: 0 | DS27: 0 | DT27: 0 | DU27: 0 | DV27: 0 | DW27: 0 | DX27: 0
A28: 2.3 | M28: 0 | N28: =SUMPRODUCT(C$11:L$11,C28:L28) -> 0 | O28: 0 | P28: =L28 -> 0 | Q28: =SUM(N28:P28) -> 0 | R28: =(N28+O28)*$J$4 -> 0 | AD28: 0 | AE28: 0 | AF28: 0 | AG28: 0 | AH28: 0 | AI28: 0 | AU28: 0 | AV28: 0 | AW28: 0 | AX28: 0 | AY28: 0 | AZ28: 0 | BL28: 0 | BM28: 0 | BN28: 0 | BO28: 0 | BP28: 0 | BQ28: 0 | CC28: 0 | CD28: 0 | CE28: 0 | CF28: 0 | CG28: 0 | CH28: 0 | CT28: 0 | CU28: 0 | CV28: 0 | CW28: 0 | CX28: 0 | CY28: 0 | DK28: 0 | DL28: 0 | DM28: 0 | DN28: 0 | DO28: 0 | DP28: 0 | DR28: 0 | DS28: 0 | DT28: 0 | DU28: 0 | DV28: 0 | DW28: 0 | DX28: 0
A29: 2.4 | M29: 0 | N29: 0 | O29: 0 | P29: 0 | Q29: 0 | R29: 0 | AD29: 0 | AE29: 0 | AF29: 0 | AG29: 0 | AH29: 0 | AI29: 0 | AU29: 0 | AV29: 0 | AW29: 0 | AX29: 0 | AY29: 0 | AZ29: 0 | BL29: 0 | BM29: 0 | BN29: 0 | BO29: 0 | BP29: 0 | BQ29: 0 | CC29: 0 | CD29: 0 | CE29: 0 | CF29: 0 | CG29: 0 | CH29: 0 | CT29: 0 | CU29: 0 | CV29: 0 | CW29: 0 | CX29: 0 | CY29: 0 | DK29: 0 | DL29: 0 | DM29: 0 | DN29: 0 | DO29: 0 | DP29: 0 | DR29: 0 | DS29: 0 | DT29: 0 | DU29: 0 | DV29: 0 | DW29: 0 | DX29: 0
A30: 2.5 | M30: 0 | N30: 0 | O30: 0 | P30: 0 | Q30: 0 | R30: 0 | AD30: 0 | AE30: 0 | AF30: 0 | AG30: 0 | AH30: 0 | AI30: 0 | AU30: 0 | AV30: 0 | AW30: 0 | AX30: 0 | AY30: 0 | AZ30: 0 | BL30: 0 | BM30: 0 | BN30: 0 | BO30: 0 | BP30: 0 | BQ30: 0 | CC30: 0 | CD30: 0 | CE30: 0 | CF30: 0 | CG30: 0 | CH30: 0 | CT30: 0 | CU30: 0 | CV30: 0 | CW30: 0 | CX30: 0 | CY30: 0 | DK30: 0 | DL30: 0 | DM30: 0 | DN30: 0 | DO30: 0 | DP30: 0 | DR30: 0 | DS30: 0 | DT30: 0 | DU30: 0 | DV30: 0 | DW30: 0 | DX30: 0
A31: 2.6 | M31: 0 | N31: 0 | O31: 0 | P31: 0 | Q31: 0 | R31: 0 | AD31: 0 | AE31: 0 | AF31: 0 | AG31: 0 | AH31: 0 | AI31: 0 | AU31: 0 | AV31: 0 | AW31: 0 | AX31: 0 | AY31: 0 | AZ31: 0 | BL31: 0 | BM31: 0 | BN31: 0 | BO31: 0 | BP31: 0 | BQ31: 0 | CC31: 0 | CD31: 0 | CE31: 0 | CF31: 0 | CG31: 0 | CH31: 0 | CT31: 0 | CU31: 0 | CV31: 0 | CW31: 0 | CX31: 0 | CY31: 0 | DK31: 0 | DL31: 0 | DM31: 0 | DN31: 0 | DO31: 0 | DP31: 0 | DR31: 0 | DS31: 0 | DT31: 0 | DU31: 0 | DV31: 0 | DW31: 0 | DX31: 0
A32: 2.7 | M32: 0 | N32: 0 | O32: 0 | P32: 0 | Q32: 0 | R32: 0 | AD32: 0 | AE32: 0 | AF32: 0 | AG32: 0 | AH32: 0 | AI32: 0 | AU32: 0 | AV32: 0 | AW32: 0 | AX32: 0 | AY32: 0 | AZ32: 0 | BL32: 0 | BM32: 0 | BN32: 0 | BO32: 0 | BP32: 0 | BQ32: 0 | CC32: 0 | CD32: 0 | CE32: 0 | CF32: 0 | CG32: 0 | CH32: 0 | CT32: 0 | CU32: 0 | CV32: 0 | CW32: 0 | CX32: 0 | CY32: 0 | DK32: 0 | DL32: 0 | DM32: 0 | DN32: 0 | DO32: 0 | DP32: 0 | DR32: =SUMIF($C$9:$DP$9,DR$9,$C32:$DP32) -> 0 | DS32: 0 | DT32: 0 | DU32: 0 | DV32: 0 | DW32: 0 | DX32: 0
A33: 2.8 | M33: 0 | N33: 0 | O33: 0 | P33: 0 | Q33: 0 | R33: 0 | AD33: 0 | AE33: 0 | AF33: 0 | AG33: 0 | AH33: 0 | AI33: 0 | AU33: 0 | AV33: 0 | AW33: 0 | AX33: 0 | AY33: 0 | AZ33: 0 | BL33: 0 | BM33: 0 | BN33: 0 | BO33: 0 | BP33: 0 | BQ33: 0 | CC33: 0 | CD33: 0 | CE33: 0 | CF33: 0 | CG33: 0 | CH33: 0 | CT33: 0 | CU33: 0 | CV33: 0 | CW33: 0 | CX33: 0 | CY33: 0 | DK33: 0 | DL33: 0 | DM33: 0 | DN33: 0 | DO33: 0 | DP33: 0 | DR33: 0 | DS33: 0 | DT33: 0 | DU33: 0 | DV33: 0 | DW33: 0 | DX33: 0
A34: 2.9 | M34: 0 | N34: 0 | O34: 0 | P34: 0 | Q34: 0 | R34: 0 | AD34: 0 | AE34: 0 | AF34: 0 | AG34: 0 | AH34: 0 | AI34: 0 | AU34: 0 | AV34: 0 | AW34: 0 | AX34: 0 | AY34: 0 | AZ34: 0 | BL34: 0 | BM34: 0 | BN34: 0 | BO34: 0 | BP34: 0 | BQ34: 0 | CC34: 0 | CD34: 0 | CE34: 0 | CF34: 0 | CG34: 0 | CH34: 0 | CT34: 0 | CU34: 0 | CV34: 0 | CW34: 0 | CX34: 0 | CY34: 0 | DK34: 0 | DL34: 0 | DM34: 0 | DN34: 0 | DO34: 0 | DP34: 0 | DR34: 0 | DS34: 0 | DT34: 0 | DU34: 0 | DV34: 0 | DW34: 0 | DX34: 0
A35: 2.10 | M35: 0 | N35: =SUMPRODUCT(C$11:L$11,C35:L35) -> 0 | O35: 0 | P35: =L35 -> 0 | Q35: =SUM(N35:P35) -> 0 | R35: =(N35+O35)*$J$4 -> 0 | AD35: 0 | AE35: 0 | AF35: 0 | AG35: 0 | AH35: 0 | AI35: 0 | AU35: 0 | AV35: 0 | AW35: 0 | AX35: 0 | AY35: 0 | AZ35: 0 | BL35: 0 | BM35: 0 | BN35: 0 | BO35: 0 | BP35: 0 | BQ35: 0 | CC35: 0 | CD35: 0 | CE35: 0 | CF35: 0 | CG35: 0 | CH35: 0 | CT35: 0 | CU35: 0 | CV35: 0 | CW35: 0 | CX35: 0 | CY35: 0 | DK35: 0 | DL35: 0 | DM35: 0 | DN35: 0 | DO35: 0 | DP35: 0 | DR35: 0 | DS35: 0 | DT35: 0 | DU35: 0 | DV35: 0 | DW35: 0 | DX35: 0
A36: 3 | C36: =SUBTOTAL(9,C37:C46) -> 0 | D36: 0 | E36: 0 | F36: 0 | G36: 0 | H36: 0 | I36: 0 | J36: 0 | K36: 0 | L36: 0 | M36: =SUBTOTAL(9,M37:M46) -> 0 | N36: 0 | O36: 0 | P36: 0 | Q36: 0 | R36: 0 | T36: =SUBTOTAL(9,T37:T46) -> 0 | U36: =SUBTOTAL(9,U37:U46) -> 0 | V36: 0 | W36: 0 | X36: 0 | Y36: 0 | Z36: 0 | AA36: 0 | AB36: 0 | AC36: 0 | AD36: 0 | AE36: 0 | AF36: 0 | AG36: 0 | AH36: 0 | AI36: 0 | AK36: =SUBTOTAL(9,AK37:AK46) -> 0 | AL36: 0 | AM36: 0 | AN36: 0 | AO36: 0 | AP36: 0 | AQ36: 0 | AR36: 0 | AS36: 0 | AT36: 0 | AU36: 0 | AV36: 0 | AW36: 0 | AX36: 0 | AY36: 0 | AZ36: 0 | BB36: =SUBTOTAL(9,BB37:BB46) -> 0 | BC36: 0 | BD36: 0 | BE36: 0 | BF36: 0 | BG36: 0 | BH36: 0 | BI36: 0 | BJ36: 0 | BK36: 0 | BL36: 0 | BM36: 0 | BN36: 0 | BO36: 0 | BP36: 0 | BQ36: 0 | BS36: =SUBTOTAL(9,BS37:BS46) -> 0 | BT36: 0 | BU36: 0 | BV36: 0 | BW36: 0 | BX36: 0 | BY36: 0 | BZ36: 0 | CA36: 0 | CB36: 0 | CC36: 0 | CD36: 0 | CE36: 0 | CF36: 0 | CG36: 0 | CH36: 0 | CJ36: =SUBTOTAL(9,CJ37:CJ46) -> 0 | CK36: 0 | CL36: 0 | CM36: 0 | CN36: 0 | CO36: 0 | CP36: 0 | CQ36: 0 | CR36: 0 | CS36: 0 | CT36: 0 | CU36: 0 | CV36: 0 | CW36: 0 | CX36: 0 | CY36: 0 | DA36: =SUBTOTAL(9,DA37:DA46) -> 0 | DB36: 0 | DC36: 0 | DD36: 0 | DE36: 0 | DF36: 0 | DG36: 0 | DH36: 0 | DI36: 0 | DJ36: 0 | DK36: 0 | DL36: 0 | DM36: 0 | DN36: 0 | DO36: 0 | DP36: 0 | DR36: 0 | DS36: 0 | DT36: 0 | DU36: 0 | DV36: 0 | DW36: 0 | DX36: 0
A37: 3.1 | M37: 0 | N37: =SUMPRODUCT(C$11:L$11,C37:L37) -> 0 | O37: 0 | P37: =L37 -> 0 | Q37: =SUM(N37:P37) -> 0 | R37: =(N37+O37)*$J$4 -> 0 | AD37: =SUM(T37:AB37) -> 0 | AE37: =SUMPRODUCT(T$11:AB$11,T37:AB37) -> 0 | AF37: =(AE37*AA$2)+(AE37*AA$3) -> 0 | AG37: =AC37 -> 0 | AH37: =SUM(AE37:AG37) -> 0 | AI37: =(AE37+AF37)*AA$4 -> 0 | AU37: 0 | AV37: =SUMPRODUCT(AK$11:AS$11,AK37:AS37) -> 0 | AW37: =(AV37*AR$2)+(AV37*AR$3) -> 0 | AX37: =AT37 -> 0 | AY37: =SUM(AV37:AX37) -> 0 | AZ37: =(AV37+AW37)*AR$4 -> 0 | BL37: =SUM(BB37:BJ37) -> 0 | BM37: =SUMPRODUCT(BB$11:BJ$11,BB37:BJ37) -> 0 | BN37: =(BM37*BI$2)+(BM37*BI$3) -> 0 | BO37: =BK37 -> 0 | BP37: =SUM(BM37:BO37) -> 0 | BQ37: =(BM37+BN37)*BI$4 -> 0 | CC37: =SUM(BS37:CA37) -> 0 | CD37: =SUMPRODUCT(BS$11:CA$11,BS37:CA37) -> 0 | CE37: =(CD37*BZ$2)+(CD37*BZ$3) -> 0 | CF37: =CB37 -> 0 | CG37: =SUM(CD37:CF37) -> 0 | CH37: =(CD37+CE37)*BZ$4 -> 0 | CT37: =SUM(CJ37:CR37) -> 0 | CU37: =SUMPRODUCT(CJ$11:CR$11,CJ37:CR37) -> 0 | CV37: =(CU37*CQ$2)+(CU37*CQ$3) -> 0 | CW37: =CS37 -> 0 | CX37: =SUM(CU37:CW37) -> 0 | CY37: =(CU37+CV37)*CQ$4 -> 0 | DK37: =SUM(DA37:DI37) -> 0 | DL37: =SUMPRODUCT(DA$11:DI$11,DA37:DI37) -> 0 | DM37: =(DL37*DH$2)+(DL37*DH$3) -> 0 | DN37: =DJ37 -> 0 | DO37: =SUM(DL37:DN37) -> 0 | DP37: =(DL37+DM37)*DH$4 -> 0 | DR37: 0 | DS37: 0 | DT37: 0 | DU37: 0 | DV37: 0 | DW37: 0 | DX37: 0
A38: 3.2 | M38: 0 | N38: =SUMPRODUCT(C$11:L$11,C38:L38) -> 0 | O38: 0 | P38: =L38 -> 0 | Q38: =SUM(N38:P38) -> 0 | R38: =(N38+O38)*$J$4 -> 0 | AD38: 0 | AE38: =SUMPRODUCT(T$11:AB$11,T38:AB38) -> 0 | AF38: =(AE38*AA$2)+(AE38*AA$3) -> 0 | AG38: =AC38 -> 0 | AH38: =SUM(AE38:AG38) -> 0 | AI38: =(AE38+AF38)*AA$4 -> 0 | AU38: 0 | AV38: =SUMPRODUCT(AK$11:AS$11,AK38:AS38) -> 0 | AW38: =(AV38*AR$2)+(AV38*AR$3) -> 0 | AX38: =AT38 -> 0 | AY38: =SUM(AV38:AX38) -> 0 | AZ38: =(AV38+AW38)*AR$4 -> 0 | BL38: 0 | BM38: =SUMPRODUCT(BB$11:BJ$11,BB38:BJ38) -> 0 | BN38: =(BM38*BI$2)+(BM38*BI$3) -> 0 | BO38: =BK38 -> 0 | BP38: =SUM(BM38:BO38) -> 0 | BQ38: =(BM38+BN38)*BI$4 -> 0 | CC38: 0 | CD38: =SUMPRODUCT(BS$11:CA$11,BS38:CA38) -> 0 | CE38: =(CD38*BZ$2)+(CD38*BZ$3) -> 0 | CF38: =CB38 -> 0 | CG38: =SUM(CD38:CF38) -> 0 | CH38: =(CD38+CE38)*BZ$4 -> 0 | CT38: 0 | CU38: =SUMPRODUCT(CJ$11:CR$11,CJ38:CR38) -> 0 | CV38: =(CU38*CQ$2)+(CU38*CQ$3) -> 0 | CW38: =CS38 -> 0 | CX38: =SUM(CU38:CW38) -> 0 | CY38: =(CU38+CV38)*CQ$4 -> 0 | DK38: 0 | DL38: =SUMPRODUCT(DA$11:DI$11,DA38:DI38) -> 0 | DM38: =(DL38*DH$2)+(DL38*DH$3) -> 0 | DN38: =DJ38 -> 0 | DO38: =SUM(DL38:DN38) -> 0 | DP38: =(DL38+DM38)*DH$4 -> 0 | DR38: 0 | DS38: 0 | DT38: 0 | DU38: 0 | DV38: 0 | DW38: 0 | DX38: 0
A39: 3.3 | M39: 0 | N39: 0 | O39: 0 | P39: 0 | Q39: 0 | R39: 0 | AD39: 0 | AE39: 0 | AF39: 0 | AG39: 0 | AH39: 0 | AI39: 0 | AU39: 0 | AV39: 0 | AW39: 0 | AX39: 0 | AY39: 0 | AZ39: 0 | BL39: 0 | BM39: 0 | BN39: 0 | BO39: 0 | BP39: 0 | BQ39: 0 | CC39: 0 | CD39: 0 | CE39: 0 | CF39: 0 | CG39: 0 | CH39: 0 | CT39: 0 | CU39: 0 | CV39: 0 | CW39: 0 | CX39: 0 | CY39: 0 | DK39: 0 | DL39: 0 | DM39: 0 | DN39: 0 | DO39: 0 | DP39: 0 | DR39: 0 | DS39: 0 | DT39: 0 | DU39: 0 | DV39: 0 | DW39: 0 | DX39: 0
A40: 3.4 | M40: 0 | N40: 0 | O40: 0 | P40: 0 | Q40: 0 | R40: 0 | AD40: 0 | AE40: 0 | AF40: 0 | AG40: 0 | AH40: 0 | AI40: 0 | AU40: 0 | AV40: 0 | AW40: 0 | AX40: 0 | AY40: 0 | AZ40: 0 | BL40: 0 | BM40: 0 | BN40: 0 | BO40: 0 | BP40: 0 | BQ40: 0 | CC40: 0 | CD40: 0 | CE40: 0 | CF40: 0 | CG40: 0 | CH40: 0 | CT40: 0 | CU40: 0 | CV40: 0 | CW40: 0 | CX40: 0 | CY40: 0 | DK40: 0 | DL40: 0 | DM40: 0 | DN40: 0 | DO40: 0 | DP40: 0 | DR40: 0 | DS40: 0 | DT40: 0 | DU40: 0 | DV40: 0 | DW40: 0 | DX40: 0
A41: 3.5 | M41: 0 | N41: 0 | O41: 0 | P41: 0 | Q41: 0 | R41: 0 | AD41: 0 | AE41: 0 | AF41: 0 | AG41: 0 | AH41: 0 | AI41: 0 | AU41: 0 | AV41: 0 | AW41: 0 | AX41: 0 | AY41: 0 | AZ41: 0 | BL41: 0 | BM41: 0 | BN41: 0 | BO41: 0 | BP41: 0 | BQ41: 0 | CC41: 0 | CD41: 0 | CE41: 0 | CF41: 0 | CG41: 0 | CH41: 0 | CT41: 0 | CU41: 0 | CV41: 0 | CW41: 0 | CX41: 0 | CY41: 0 | DK41: 0 | DL41: 0 | DM41: 0 | DN41: 0 | DO41: 0 | DP41: 0 | DR41: 0 | DS41: 0 | DT41: 0 | DU41: 0 | DV41: 0 | DW41: 0 | DX41: 0
A42: 3.6 | M42: 0 | N42: 0 | O42: 0 | P42: 0 | Q42: 0 | R42: 0 | AD42: 0 | AE42: 0 | AF42: 0 | AG42: 0 | AH42: 0 | AI42: 0 | AU42: 0 | AV42: 0 | AW42: 0 | AX42: 0 | AY42: 0 | AZ42: 0 | BL42: 0 | BM42: 0 | BN42: 0 | BO42: 0 | BP42: 0 | BQ42: 0 | CC42: 0 | CD42: 0 | CE42: 0 | CF42: 0 | CG42: 0 | CH42: 0 | CT42: 0 | CU42: 0 | CV42: 0 | CW42: 0 | CX42: 0 | CY42: 0 | DK42: 0 | DL42: 0 | DM42: 0 | DN42: 0 | DO42: 0 | DP42: 0 | DR42: =SUMIF($C$9:$DP$9,DR$9,$C42:$DP42) -> 0 | DS42: 0 | DT42: 0 | DU42: 0 | DV42: 0 | DW42: 0 | DX42: 0
A43: 3.7 | M43: 0 | N43: 0 | O43: 0 | P43: 0 | Q43: 0 | R43: 0 | AD43: 0 | AE43: 0 | AF43: 0 | AG43: 0 | AH43: 0 | AI43: 0 | AU43: 0 | AV43: 0 | AW43: 0 | AX43: 0 | AY43: 0 | AZ43: 0 | BL43: 0 | BM43: 0 | BN43: 0 | BO43: 0 | BP43: 0 | BQ43: 0 | CC43: 0 | CD43: 0 | CE43: 0 | CF43: 0 | CG43: 0 | CH43: 0 | CT43: 0 | CU43: 0 | CV43: 0 | CW43: 0 | CX43: 0 | CY43: 0 | DK43: 0 | DL43: 0 | DM43: 0 | DN43: 0 | DO43: 0 | DP43: 0 | DR43: 0 | DS43: 0 | DT43: 0 | DU43: 0 | DV43: 0 | DW43: 0 | DX43: 0
A44: 3.8 | M44: 0 | N44: 0 | O44: 0 | P44: 0 | Q44: 0 | R44: 0 | AD44: 0 | AE44: 0 | AF44: 0 | AG44: 0 | AH44: 0 | AI44: 0 | AU44: 0 | AV44: 0 | AW44: 0 | AX44: 0 | AY44: 0 | AZ44: 0 | BL44: 0 | BM44: 0 | BN44: 0 | BO44: 0 | BP44: 0 | BQ44: 0 | CC44: 0 | CD44: 0 | CE44: 0 | CF44: 0 | CG44: 0 | CH44: 0 | CT44: 0 | CU44: 0 | CV44: 0 | CW44: 0 | CX44: 0 | CY44: 0 | DK44: 0 | DL44: 0 | DM44: 0 | DN44: 0 | DO44: 0 | DP44: 0 | DR44: 0 | DS44: 0 | DT44: 0 | DU44: 0 | DV44: 0 | DW44: 0 | DX44: 0
A45: 3.9 | M45: 0 | N45: 0 | O45: 0 | P45: 0 | Q45: 0 | R45: 0 | AD45: 0 | AE45: 0 | AF45: 0 | AG45: 0 | AH45: 0 | AI45: 0 | AU45: 0 | AV45: 0 | AW45: 0 | AX45: 0 | AY45: 0 | AZ45: 0 | BL45: 0 | BM45: 0 | BN45: 0 | BO45: 0 | BP45: 0 | BQ45: 0 | CC45: 0 | CD45: 0 | CE45: 0 | CF45: 0 | CG45: 0 | CH45: 0 | CT45: 0 | CU45: 0 | CV45: 0 | CW45: 0 | CX45: 0 | CY45: 0 | DK45: 0 | DL45: 0 | DM45: 0 | DN45: 0 | DO45: 0 | DP45: 0 | DR45: 0 | DS45: 0 | DT45: 0 | DU45: 0 | DV45: 0 | DW45: 0 | DX45: 0
A46: 3.10 | M46: 0 | N46: 0 | O46: 0 | P46: 0 | Q46: 0 | R46: 0 | AD46: 0 | AE46: 0 | AF46: 0 | AG46: 0 | AH46: 0 | AI46: 0 | AU46: 0 | AV46: 0 | AW46: 0 | AX46: 0 | AY46: 0 | AZ46: 0 | BL46: 0 | BM46: 0 | BN46: 0 | BO46: 0 | BP46: 0 | BQ46: 0 | CC46: 0 | CD46: 0 | CE46: 0 | CF46: 0 | CG46: 0 | CH46: 0 | CT46: 0 | CU46: 0 | CV46: 0 | CW46: 0 | CX46: 0 | CY46: 0 | DK46: 0 | DL46: 0 | DM46: 0 | DN46: 0 | DO46: 0 | DP46: 0 | DR46: 0 | DS46: 0 | DT46: 0 | DU46: 0 | DV46: 0 | DW46: 0 | DX46: 0
A47: 4 | C47: =SUBTOTAL(9,C48:C57) -> 0 | D47: 0 | E47: 0 | F47: 0 | G47: 0 | H47: 0 | I47: 0 | J47: 0 | K47: 0 | L47: 0 | M47: =SUBTOTAL(9,M48:M57) -> 0 | N47: 0 | O47: 0 | P47: 0 | Q47: 0 | R47: 0 | T47: =SUBTOTAL(9,T48:T57) -> 0 | U47: =SUBTOTAL(9,U48:U57) -> 0 | V47: 0 | W47: 0 | X47: 0 | Y47: 0 | Z47: 0 | AA47: 0 | AB47: 0 | AC47: 0 | AD47: 0 | AE47: 0 | AF47: 0 | AG47: 0 | AH47: 0 | AI47: 0 | AK47: =SUBTOTAL(9,AK48:AK57) -> 0 | AL47: 0 | AM47: 0 | AN47: 0 | AO47: 0 | AP47: 0 | AQ47: 0 | AR47: 0 | AS47: 0 | AT47: 0 | AU47: 0 | AV47: 0 | AW47: 0 | AX47: 0 | AY47: 0 | AZ47: 0 | BB47: =SUBTOTAL(9,BB48:BB57) -> 0 | BC47: 0 | BD47: 0 | BE47: 0 | BF47: 0 | BG47: 0 | BH47: 0 | BI47: 0 | BJ47: 0 | BK47: 0 | BL47: 0 | BM47: 0 | BN47: 0 | BO47: 0 | BP47: 0 | BQ47: 0 | BS47: =SUBTOTAL(9,BS48:BS57) -> 0 | BT47: 0 | BU47: 0 | BV47: 0 | BW47: 0 | BX47: 0 | BY47: 0 | BZ47: 0 | CA47: 0 | CB47: 0 | CC47: 0 | CD47: 0 | CE47: 0 | CF47: 0 | CG47: 0 | CH47: 0 | CJ47: =SUBTOTAL(9,CJ48:CJ57) -> 0 | CK47: 0 | CL47: 0 | CM47: 0 | CN47: 0 | CO47: 0 | CP47: 0 | CQ47: 0 | CR47: 0 | CS47: 0 | CT47: 0 | CU47: 0 | CV47: 0 | CW47: 0 | CX47: 0 | CY47: 0 | DA47: =SUBTOTAL(9,DA48:DA57) -> 0 | DB47: 0 | DC47: 0 | DD47: 0 | DE47: 0 | DF47: 0 | DG47: 0 | DH47: 0 | DI47: 0 | DJ47: 0 | DK47: 0 | DL47: 0 | DM47: 0 | DN47: 0 | DO47: 0 | DP47: 0 | DR47: 0 | DS47: 0 | DT47: 0 | DU47: 0 | DV47: 0 | DW47: 0 | DX47: 0
A48: 4.1 | M48: 0 | N48: =SUMPRODUCT(C$11:L$11,C48:L48) -> 0 | O48: 0 | P48: =L48 -> 0 | Q48: =SUM(N48:P48) -> 0 | R48: =(N48+O48)*$J$4 -> 0 | AD48: =SUM(T48:AB48) -> 0 | AE48: =SUMPRODUCT(T$11:AB$11,T48:AB48) -> 0 | AF48: =(AE48*AA$2)+(AE48*AA$3) -> 0 | AG48: =AC48 -> 0 | AH48: =SUM(AE48:AG48) -> 0 | AI48: =(AE48+AF48)*AA$4 -> 0 | AU48: 0 | AV48: =SUMPRODUCT(AK$11:AS$11,AK48:AS48) -> 0 | AW48: =(AV48*AR$2)+(AV48*AR$3) -> 0 | AX48: =AT48 -> 0 | AY48: =SUM(AV48:AX48) -> 0 | AZ48: =(AV48+AW48)*AR$4 -> 0 | BL48: =SUM(BB48:BJ48) -> 0 | BM48: =SUMPRODUCT(BB$11:BJ$11,BB48:BJ48) -> 0 | BN48: =(BM48*BI$2)+(BM48*BI$3) -> 0 | BO48: =BK48 -> 0 | BP48: =SUM(BM48:BO48) -> 0 | BQ48: =(BM48+BN48)*BI$4 -> 0 | CC48: =SUM(BS48:CA48) -> 0 | CD48: =SUMPRODUCT(BS$11:CA$11,BS48:CA48) -> 0 | CE48: =(CD48*BZ$2)+(CD48*BZ$3) -> 0 | CF48: =CB48 -> 0 | CG48: =SUM(CD48:CF48) -> 0 | CH48: =(CD48+CE48)*BZ$4 -> 0 | CT48: =SUM(CJ48:CR48) -> 0 | CU48: =SUMPRODUCT(CJ$11:CR$11,CJ48:CR48) -> 0 | CV48: =(CU48*CQ$2)+(CU48*CQ$3) -> 0 | CW48: =CS48 -> 0 | CX48: =SUM(CU48:CW48) -> 0 | CY48: =(CU48+CV48)*CQ$4 -> 0 | DK48: =SUM(DA48:DI48) -> 0 | DL48: =SUMPRODUCT(DA$11:DI$11,DA48:DI48) -> 0 | DM48: =(DL48*DH$2)+(DL48*DH$3) -> 0 | DN48: =DJ48 -> 0 | DO48: =SUM(DL48:DN48) -> 0 | DP48: =(DL48+DM48)*DH$4 -> 0 | DR48: 0 | DS48: 0 | DT48: 0 | DU48: 0 | DV48: 0 | DW48: 0 | DX48: 0
A49: 4.2 | M49: 0 | N49: =SUMPRODUCT(C$11:L$11,C49:L49) -> 0 | O49: 0 | P49: =L49 -> 0 | Q49: =SUM(N49:P49) -> 0 | R49: =(N49+O49)*$J$4 -> 0 | AD49: 0 | AE49: =SUMPRODUCT(T$11:AB$11,T49:AB49) -> 0 | AF49: =(AE49*AA$2)+(AE49*AA$3) -> 0 | AG49: =AC49 -> 0 | AH49: =SUM(AE49:AG49) -> 0 | AI49: =(AE49+AF49)*AA$4 -> 0 | AU49: 0 | AV49: =SUMPRODUCT(AK$11:AS$11,AK49:AS49) -> 0 | AW49: =(AV49*AR$2)+(AV49*AR$3) -> 0 | AX49: =AT49 -> 0 | AY49: =SUM(AV49:AX49) -> 0 | AZ49: =(AV49+AW49)*AR$4 -> 0 | BL49: 0 | BM49: =SUMPRODUCT(BB$11:BJ$11,BB49:BJ49) -> 0 | BN49: =(BM49*BI$2)+(BM49*BI$3) -> 0 | BO49: =BK49 -> 0 | BP49: =SUM(BM49:BO49) -> 0 | BQ49: =(BM49+BN49)*BI$4 -> 0 | CC49: 0 | CD49: =SUMPRODUCT(BS$11:CA$11,BS49:CA49) -> 0 | CE49: =(CD49*BZ$2)+(CD49*BZ$3) -> 0 | CF49: =CB49 -> 0 | CG49: =SUM(CD49:CF49) -> 0 | CH49: =(CD49+CE49)*BZ$4 -> 0 | CT49: 0 | CU49: =SUMPRODUCT(CJ$11:CR$11,CJ49:CR49) -> 0 | CV49: =(CU49*CQ$2)+(CU49*CQ$3) -> 0 | CW49: =CS49 -> 0 | CX49: =SUM(CU49:CW49) -> 0 | CY49: =(CU49+CV49)*CQ$4 -> 0 | DK49: 0 | DL49: =SUMPRODUCT(DA$11:DI$11,DA49:DI49) -> 0 | DM49: =(DL49*DH$2)+(DL49*DH$3) -> 0 | DN49: =DJ49 -> 0 | DO49: =SUM(DL49:DN49) -> 0 | DP49: =(DL49+DM49)*DH$4 -> 0 | DR49: 0 | DS49: 0 | DT49: 0 | DU49: 0 | DV49: 0 | DW49: 0 | DX49: 0
A50: 4.3 | M50: 0 | N50: =SUMPRODUCT(C$11:L$11,C50:L50) -> 0 | O50: 0 | P50: =L50 -> 0 | Q50: =SUM(N50:P50) -> 0 | R50: =(N50+O50)*$J$4 -> 0 | AD50: 0 | AE50: 0 | AF50: 0 | AG50: 0 | AH50: 0 | AI50: 0 | AU50: 0 | AV50: 0 | AW50: 0 | AX50: 0 | AY50: 0 | AZ50: 0 | BL50: 0 | BM50: 0 | BN50: 0 | BO50: 0 | BP50: 0 | BQ50: 0 | CC50: 0 | CD50: 0 | CE50: 0 | CF50: 0 | CG50: 0 | CH50: 0 | CT50: 0 | CU50: 0 | CV50: 0 | CW50: 0 | CX50: 0 | CY50: 0 | DK50: 0 | DL50: 0 | DM50: 0 | DN50: 0 | DO50: 0 | DP50: 0 | DR50: 0 | DS50: 0 | DT50: 0 | DU50: 0 | DV50: 0 | DW50: 0 | DX50: 0
A51: 4.4 | M51: 0 | N51: 0 | O51: 0 | P51: 0 | Q51: 0 | R51: 0 | AD51: 0 | AE51: 0 | AF51: 0 | AG51: 0 | AH51: 0 | AI51: 0 | AU51: 0 | AV51: 0 | AW51: 0 | AX51: 0 | AY51: 0 | AZ51: 0 | BL51: 0 | BM51: 0 | BN51: 0 | BO51: 0 | BP51: 0 | BQ51: 0 | CC51: 0 | CD51: 0 | CE51: 0 | CF51: 0 | CG51: 0 | CH51: 0 | CT51: 0 | CU51: 0 | CV51: 0 | CW51: 0 | CX51: 0 | CY51: 0 | DK51: 0 | DL51: 0 | DM51: 0 | DN51: 0 | DO51: 0 | DP51: 0 | DR51: 0 | DS51: 0 | DT51: 0 | DU51: 0 | DV51: 0 | DW51: 0 | DX51: 0
A52: 4.5 | M52: 0 | N52: 0 | O52: 0 | P52: 0 | Q52: 0 | R52: 0 | AD52: 0 | AE52: 0 | AF52: 0 | AG52: 0 | AH52: 0 | AI52: 0 | AU52: 0 | AV52: 0 | AW52: 0 | AX52: 0 | AY52: 0 | AZ52: 0 | BL52: 0 | BM52: 0 | BN52: 0 | BO52: 0 | BP52: 0 | BQ52: 0 | CC52: 0 | CD52: 0 | CE52: 0 | CF52: 0 | CG52: 0 | CH52: 0 | CT52: 0 | CU52: 0 | CV52: 0 | CW52: 0 | CX52: 0 | CY52: 0 | DK52: 0 | DL52: 0 | DM52: 0 | DN52: 0 | DO52: 0 | DP52: 0 | DR52: =SUMIF($C$9:$DP$9,DR$9,$C52:$DP52) -> 0 | DS52: 0 | DT52: 0 | DU52: 0 | DV52: 0 | DW52: 0 | DX52: 0
A53: 4.6 | M53: 0 | N53: 0 | O53: 0 | P53: 0 | Q53: 0 | R53: 0 | AD53: 0 | AE53: 0 | AF53: 0 | AG53: 0 | AH53: 0 | AI53: 0 | AU53: 0 | AV53: 0 | AW53: 0 | AX53: 0 | AY53: 0 | AZ53: 0 | BL53: 0 | BM53: 0 | BN53: 0 | BO53: 0 | BP53: 0 | BQ53: 0 | CC53: 0 | CD53: 0 | CE53: 0 | CF53: 0 | CG53: 0 | CH53: 0 | CT53: 0 | CU53: 0 | CV53: 0 | CW53: 0 | CX53: 0 | CY53: 0 | DK53: 0 | DL53: 0 | DM53: 0 | DN53: 0 | DO53: 0 | DP53: 0 | DR53: 0 | DS53: 0 | DT53: 0 | DU53: 0 | DV53: 0 | DW53: 0 | DX53: 0
A54: 4.7 | M54: 0 | N54: 0 | O54: 0 | P54: 0 | Q54: 0 | R54: 0 | AD54: 0 | AE54: 0 | AF54: 0 | AG54: 0 | AH54: 0 | AI54: 0 | AU54: 0 | AV54: 0 | AW54: 0 | AX54: 0 | AY54: 0 | AZ54: 0 | BL54: 0 | BM54: 0 | BN54: 0 | BO54: 0 | BP54: 0 | BQ54: 0 | CC54: 0 | CD54: 0 | CE54: 0 | CF54: 0 | CG54: 0 | CH54: 0 | CT54: 0 | CU54: 0 | CV54: 0 | CW54: 0 | CX54: 0 | CY54: 0 | DK54: 0 | DL54: 0 | DM54: 0 | DN54: 0 | DO54: 0 | DP54: 0 | DR54: 0 | DS54: 0 | DT54: 0 | DU54: 0 | DV54: 0 | DW54: 0 | DX54: 0
A55: 4.8 | M55: 0 | N55: 0 | O55: 0 | P55: 0 | Q55: 0 | R55: 0 | AD55: 0 | AE55: 0 | AF55: 0 | AG55: 0 | AH55: 0 | AI55: 0 | AU55: 0 | AV55: 0 | AW55: 0 | AX55: 0 | AY55: 0 | AZ55: 0 | BL55: 0 | BM55: 0 | BN55: 0 | BO55: 0 | BP55: 0 | BQ55: 0 | CC55: 0 | CD55: 0 | CE55: 0 | CF55: 0 | CG55: 0 | CH55: 0 | CT55: 0 | CU55: 0 | CV55: 0 | CW55: 0 | CX55: 0 | CY55: 0 | DK55: 0 | DL55: 0 | DM55: 0 | DN55: 0 | DO55: 0 | DP55: 0 | DR55: 0 | DS55: 0 | DT55: 0 | DU55: 0 | DV55: 0 | DW55: 0 | DX55: 0
A56: 4.9 | M56: 0 | N56: 0 | O56: 0 | P56: 0 | Q56: 0 | R56: 0 | AD56: 0 | AE56: 0 | AF56: 0 | AG56: 0 | AH56: 0 | AI56: 0 | AU56: 0 | AV56: 0 | AW56: 0 | AX56: 0 | AY56: 0 | AZ56: 0 | BL56: 0 | BM56: 0 | BN56: 0 | BO56: 0 | BP56: 0 | BQ56: 0 | CC56: 0 | CD56: 0 | CE56: 0 | CF56: 0 | CG56: 0 | CH56: 0 | CT56: 0 | CU56: 0 | CV56: 0 | CW56: 0 | CX56: 0 | CY56: 0 | DK56: 0 | DL56: 0 | DM56: 0 | DN56: 0 | DO56: 0 | DP56: 0 | DR56: 0 | DS56: 0 | DT56: 0 | DU56: 0 | DV56: 0 | DW56: 0 | DX56: 0
A57: 4.10 | M57: 0 | N57: =SUMPRODUCT(C$11:L$11,C57:L57) -> 0 | O57: 0 | P57: =L57 -> 0 | Q57: =SUM(N57:P57) -> 0 | R57: =(N57+O57)*$J$4 -> 0 | AD57: 0 | AE57: 0 | AF57: 0 | AG57: 0 | AH57: 0 | AI57: 0 | AU57: 0 | AV57: 0 | AW57: 0 | AX57: 0 | AY57: 0 | AZ57: 0 | BL57: 0 | BM57: 0 | BN57: 0 | BO57: 0 | BP57: 0 | BQ57: 0 | CC57: 0 | CD57: 0 | CE57: 0 | CF57: 0 | CG57: 0 | CH57: 0 | CT57: 0 | CU57: 0 | CV57: 0 | CW57: 0 | CX57: 0 | CY57: 0 | DK57: 0 | DL57: 0 | DM57: 0 | DN57: 0 | DO57: 0 | DP57: 0 | DR57: 0 | DS57: 0 | DT57: 0 | DU57: 0 | DV57: 0 | DW57: 0 | DX57: 0
A58: 5 | C58: =SUBTOTAL(9,C59:C68) -> 0 | D58: 0 | E58: 0 | F58: 0 | G58: 0 | H58: 0 | I58: 0 | J58: 0 | K58: 0 | L58: 0 | M58: =SUBTOTAL(9,M59:M68) -> 0 | N58: 0 | O58: 0 | P58: 0 | Q58: 0 | R58: 0 | T58: =SUBTOTAL(9,T59:T68) -> 0 | U58: =SUBTOTAL(9,U59:U68) -> 0 | V58: 0 | W58: 0 | X58: 0 | Y58: 0 | Z58: 0 | AA58: 0 | AB58: 0 | AC58: 0 | AD58: 0 | AE58: 0 | AF58: 0 | AG58: 0 | AH58: 0 | AI58: 0 | AK58: =SUBTOTAL(9,AK59:AK68) -> 0 | AL58: 0 | AM58: 0 | AN58: 0 | AO58: 0 | AP58: 0 | AQ58: 0 | AR58: 0 | AS58: 0 | AT58: 0 | AU58: 0 | AV58: 0 | AW58: 0 | AX58: 0 | AY58: 0 | AZ58: 0 | BB58: =SUBTOTAL(9,BB59:BB68) -> 0 | BC58: 0 | BD58: 0 | BE58: 0 | BF58: 0 | BG58: 0 | BH58: 0 | BI58: 0 | BJ58: 0 | BK58: 0 | BL58: 0 | BM58: 0 | BN58: 0 | BO58: 0 | BP58: 0 | BQ58: 0 | BS58: =SUBTOTAL(9,BS59:BS68) -> 0 | BT58: 0 | BU58: 0 | BV58: 0 | BW58: 0 | BX58: 0 | BY58: 0 | BZ58: 0 | CA58: 0 | CB58: 0 | CC58: 0 | CD58: 0 | CE58: 0 | CF58: 0 | CG58: 0 | CH58: 0 | CJ58: =SUBTOTAL(9,CJ59:CJ68) -> 0 | CK58: 0 | CL58: 0 | CM58: 0 | CN58: 0 | CO58: 0 | CP58: 0 | CQ58: 0 | CR58: 0 | CS58: 0 | CT58: 0 | CU58: 0 | CV58: 0 | CW58: 0 | CX58: 0 | CY58: 0 | DA58: =SUBTOTAL(9,DA59:DA68) -> 0 | DB58: 0 | DC58: 0 | DD58: 0 | DE58: 0 | DF58: 0 | DG58: 0 | DH58: 0 | DI58: 0 | DJ58: 0 | DK58: 0 | DL58: 0 | DM58: 0 | DN58: 0 | DO58: 0 | DP58: 0 | DR58: 0 | DS58: 0 | DT58: 0 | DU58: 0 | DV58: 0 | DW58: 0 | DX58: 0
A59: 5.1 | M59: 0 | N59: =SUMPRODUCT(C$11:L$11,C59:L59) -> 0 | O59: 0 | P59: =L59 -> 0 | Q59: =SUM(N59:P59) -> 0 | R59: =(N59+O59)*$J$4 -> 0 | AD59: =SUM(T59:AB59) -> 0 | AE59: =SUMPRODUCT(T$11:AB$11,T59:AB59) -> 0 | AF59: =(AE59*AA$2)+(AE59*AA$3) -> 0 | AG59: =AC59 -> 0 | AH59: =SUM(AE59:AG59) -> 0 | AI59: =(AE59+AF59)*AA$4 -> 0 | AU59: 0 | AV59: =SUMPRODUCT(AK$11:AS$11,AK59:AS59) -> 0 | AW59: =(AV59*AR$2)+(AV59*AR$3) -> 0 | AX59: =AT59 -> 0 | AY59: =SUM(AV59:AX59) -> 0 | AZ59: =(AV59+AW59)*AR$4 -> 0 | BL59: =SUM(BB59:BJ59) -> 0 | BM59: =SUMPRODUCT(BB$11:BJ$11,BB59:BJ59) -> 0 | BN59: =(BM59*BI$2)+(BM59*BI$3) -> 0 | BO59: =BK59 -> 0 | BP59: =SUM(BM59:BO59) -> 0 | BQ59: =(BM59+BN59)*BI$4 -> 0 | CC59: =SUM(BS59:CA59) -> 0 | CD59: =SUMPRODUCT(BS$11:CA$11,BS59:CA59) -> 0 | CE59: =(CD59*BZ$2)+(CD59*BZ$3) -> 0 | CF59: =CB59 -> 0 | CG59: =SUM(CD59:CF59) -> 0 | CH59: =(CD59+CE59)*BZ$4 -> 0 | CT59: =SUM(CJ59:CR59) -> 0 | CU59: =SUMPRODUCT(CJ$11:CR$11,CJ59:CR59) -> 0 | CV59: =(CU59*CQ$2)+(CU59*CQ$3) -> 0 | CW59: =CS59 -> 0 | CX59: =SUM(CU59:CW59) -> 0 | CY59: =(CU59+CV59)*CQ$4 -> 0 | DK59: =SUM(DA59:DI59) -> 0 | DL59: =SUMPRODUCT(DA$11:DI$11,DA59:DI59) -> 0 | DM59: =(DL59*DH$2)+(DL59*DH$3) -> 0 | DN59: =DJ59 -> 0 | DO59: =SUM(DL59:DN59) -> 0 | DP59: =(DL59+DM59)*DH$4 -> 0 | DR59: 0 | DS59: 0 | DT59: 0 | DU59: 0 | DV59: 0 | DW59: 0 | DX59: 0
A60: 5.2 | M60: 0 | N60: =SUMPRODUCT(C$11:L$11,C60:L60) -> 0 | O60: 0 | P60: =L60 -> 0 | Q60: =SUM(N60:P60) -> 0 | R60: =(N60+O60)*$J$4 -> 0 | AD60: 0 | AE60: =SUMPRODUCT(T$11:AB$11,T60:AB60) -> 0 | AF60: =(AE60*AA$2)+(AE60*AA$3) -> 0 | AG60: =AC60 -> 0 | AH60: =SUM(AE60:AG60) -> 0 | AI60: =(AE60+AF60)*AA$4 -> 0 | AU60: 0 | AV60: =SUMPRODUCT(AK$11:AS$11,AK60:AS60) -> 0 | AW60: =(AV60*AR$2)+(AV60*AR$3) -> 0 | AX60: =AT60 -> 0 | AY60: =SUM(AV60:AX60) -> 0 | AZ60: =(AV60+AW60)*AR$4 -> 0 | BL60: 0 | BM60: =SUMPRODUCT(BB$11:BJ$11,BB60:BJ60) -> 0 | BN60: =(BM60*BI$2)+(BM60*BI$3) -> 0 | BO60: =BK60 -> 0 | BP60: =SUM(BM60:BO60) -> 0 | BQ60: =(BM60+BN60)*BI$4 -> 0 | CC60: 0 | CD60: =SUMPRODUCT(BS$11:CA$11,BS60:CA60) -> 0 | CE60: =(CD60*BZ$2)+(CD60*BZ$3) -> 0 | CF60: =CB60 -> 0 | CG60: =SUM(CD60:CF60) -> 0 | CH60: =(CD60+CE60)*BZ$4 -> 0 | CT60: 0 | CU60: =SUMPRODUCT(CJ$11:CR$11,CJ60:CR60) -> 0 | CV60: =(CU60*CQ$2)+(CU60*CQ$3) -> 0 | CW60: =CS60 -> 0 | CX60: =SUM(CU60:CW60) -> 0 | CY60: =(CU60+CV60)*CQ$4 -> 0 | DK60: 0 | DL60: =SUMPRODUCT(DA$11:DI$11,DA60:DI60) -> 0 | DM60: =(DL60*DH$2)+(DL60*DH$3) -> 0 | DN60: =DJ60 -> 0 | DO60: =SUM(DL60:DN60) -> 0 | DP60: =(DL60+DM60)*DH$4 -> 0 | DR60: 0 | DS60: 0 | DT60: 0 | DU60: 0 | DV60: 0 | DW60: 0 | DX60: 0
A61: 5.3 | M61: 0 | N61: =SUMPRODUCT(C$11:L$11,C61:L61) -> 0 | O61: 0 | P61: =L61 -> 0 | Q61: =SUM(N61:P61) -> 0 | R61: =(N61+O61)*$J$4 -> 0 | AD61: 0 | AE61: 0 | AF61: 0 | AG61: 0 | AH61: 0 | AI61: 0 | AU61: 0 | AV61: 0 | AW61: 0 | AX61: 0 | AY61: 0 | AZ61: 0 | BL61: 0 | BM61: 0 | BN61: 0 | BO61: 0 | BP61: 0 | BQ61: 0 | CC61: 0 | CD61: 0 | CE61: 0 | CF61: 0 | CG61: 0 | CH61: 0 | CT61: 0 | CU61: 0 | CV61: 0 | CW61: 0 | CX61: 0 | CY61: 0 | DK61: 0 | DL61: 0 | DM61: 0 | DN61: 0 | DO61: 0 | DP61: 0 | DR61: 0 | DS61: 0 | DT61: 0 | DU61: 0 | DV61: 0 | DW61: 0 | DX61: 0
A62: 5.4 | M62: 0 | N62: 0 | O62: 0 | P62: 0 | Q62: 0 | R62: 0 | AD62: 0 | AE62: 0 | AF62: 0 | AG62: 0 | AH62: 0 | AI62: 0 | AU62: 0 | AV62: 0 | AW62: 0 | AX62: 0 | AY62: 0 | AZ62: 0 | BL62: 0 | BM62: 0 | BN62: 0 | BO62: 0 | BP62: 0 | BQ62: 0 | CC62: 0 | CD62: 0 | CE62: 0 | CF62: 0 | CG62: 0 | CH62: 0 | CT62: 0 | CU62: 0 | CV62: 0 | CW62: 0 | CX62: 0 | CY62: 0 | DK62: 0 | DL62: 0 | DM62: 0 | DN62: 0 | DO62: 0 | DP62: 0 | DR62: =SUMIF($C$9:$DP$9,DR$9,$C62:$DP62) -> 0 | DS62: 0 | DT62: 0 | DU62: 0 | DV62: 0 | DW62: 0 | DX62: 0
A63: 5.5 | M63: 0 | N63: 0 | O63: 0 | P63: 0 | Q63: 0 | R63: 0 | AD63: 0 | AE63: 0 | AF63: 0 | AG63: 0 | AH63: 0 | AI63: 0 | AU63: 0 | AV63: 0 | AW63: 0 | AX63: 0 | AY63: 0 | AZ63: 0 | BL63: 0 | BM63: 0 | BN63: 0 | BO63: 0 | BP63: 0 | BQ63: 0 | CC63: 0 | CD63: 0 | CE63: 0 | CF63: 0 | CG63: 0 | CH63: 0 | CT63: 0 | CU63: 0 | CV63: 0 | CW63: 0 | CX63: 0 | CY63: 0 | DK63: 0 | DL63: 0 | DM63: 0 | DN63: 0 | DO63: 0 | DP63: 0 | DR63: 0 | DS63: 0 | DT63: 0 | DU63: 0 | DV63: 0 | DW63: 0 | DX63: 0
A64: 5.6 | M64: 0 | N64: 0 | O64: 0 | P64: 0 | Q64: 0 | R64: 0 | AD64: 0 | AE64: 0 | AF64: 0 | AG64: 0 | AH64: 0 | AI64: 0 | AU64: 0 | AV64: 0 | AW64: 0 | AX64: 0 | AY64: 0 | AZ64: 0 | BL64: 0 | BM64: 0 | BN64: 0 | BO64: 0 | BP64: 0 | BQ64: 0 | CC64: 0 | CD64: 0 | CE64: 0 | CF64: 0 | CG64: 0 | CH64: 0 | CT64: 0 | CU64: 0 | CV64: 0 | CW64: 0 | CX64: 0 | CY64: 0 | DK64: 0 | DL64: 0 | DM64: 0 | DN64: 0 | DO64: 0 | DP64: 0 | DR64: 0 | DS64: 0 | DT64: 0 | DU64: 0 | DV64: 0 | DW64: 0 | DX64: 0
A65: 5.7 | M65: 0 | N65: 0 | O65: 0 | P65: 0 | Q65: 0 | R65: 0 | AD65: 0 | AE65: 0 | AF65: 0 | AG65: 0 | AH65: 0 | AI65: 0 | AU65: 0 | AV65: 0 | AW65: 0 | AX65: 0 | AY65: 0 | AZ65: 0 | BL65: 0 | BM65: 0 | BN65: 0 | BO65: 0 | BP65: 0 | BQ65: 0 | CC65: 0 | CD65: 0 | CE65: 0 | CF65: 0 | CG65: 0 | CH65: 0 | CT65: 0 | CU65: 0 | CV65: 0 | CW65: 0 | CX65: 0 | CY65: 0 | DK65: 0 | DL65: 0 | DM65: 0 | DN65: 0 | DO65: 0 | DP65: 0 | DR65: 0 | DS65: 0 | DT65: 0 | DU65: 0 | DV65: 0 | DW65: 0 | DX65: 0
A66: 5.8 | M66: 0 | N66: 0 | O66: 0 | P66: 0 | Q66: 0 | R66: 0 | AD66: 0 | AE66: 0 | AF66: 0 | AG66: 0 | AH66: 0 | AI66: 0 | AU66: 0 | AV66: 0 | AW66: 0 | AX66: 0 | AY66: 0 | AZ66: 0 | BL66: 0 | BM66: 0 | BN66: 0 | BO66: 0 | BP66: 0 | BQ66: 0 | CC66: 0 | CD66: 0 | CE66: 0 | CF66: 0 | CG66: 0 | CH66: 0 | CT66: 0 | CU66: 0 | CV66: 0 | CW66: 0 | CX66: 0 | CY66: 0 | DK66: 0 | DL66: 0 | DM66: 0 | DN66: 0 | DO66: 0 | DP66: 0 | DR66: 0 | DS66: 0 | DT66: 0 | DU66: 0 | DV66: 0 | DW66: 0 | DX66: 0
A67: 5.9 | M67: 0 | N67: 0 | O67: 0 | P67: 0 | Q67: 0 | R67: 0 | AD67: 0 | AE67: 0 | AF67: 0 | AG67: 0 | AH67: 0 | AI67: 0 | AU67: 0 | AV67: 0 | AW67: 0 | AX67: 0 | AY67: 0 | AZ67: 0 | BL67: 0 | BM67: 0 | BN67: 0 | BO67: 0 | BP67: 0 | BQ67: 0 | CC67: 0 | CD67: 0 | CE67: 0 | CF67: 0 | CG67: 0 | CH67: 0 | CT67: 0 | CU67: 0 | CV67: 0 | CW67: 0 | CX67: 0 | CY67: 0 | DK67: 0 | DL67: 0 | DM67: 0 | DN67: 0 | DO67: 0 | DP67: 0 | DR67: 0 | DS67: 0 | DT67: 0 | DU67: 0 | DV67: 0 | DW67: 0 | DX67: 0
A68: 5.10 | M68: 0 | N68: =SUMPRODUCT(C$11:L$11,C68:L68) -> 0 | O68: 0 | P68: =L68 -> 0 | Q68: =SUM(N68:P68) -> 0 | R68: =(N68+O68)*$J$4 -> 0 | AD68: 0 | AE68: 0 | AF68: 0 | AG68: 0 | AH68: 0 | AI68: 0 | AU68: 0 | AV68: 0 | AW68: 0 | AX68: 0 | AY68: 0 | AZ68: 0 | BL68: 0 | BM68: 0 | BN68: 0 | BO68: 0 | BP68: 0 | BQ68: 0 | CC68: 0 | CD68: 0 | CE68: 0 | CF68: 0 | CG68: 0 | CH68: 0 | CT68: 0 | CU68: 0 | CV68: 0 | CW68: 0 | CX68: 0 | CY68: 0 | DK68: 0 | DL68: 0 | DM68: 0 | DN68: 0 | DO68: 0 | DP68: 0 | DR68: 0 | DS68: 0 | DT68: 0 | DU68: 0 | DV68: 0 | DW68: 0 | DX68: 0
A69: 6 | C69: =SUBTOTAL(9,C70:C79) -> 0 | D69: 0 | E69: 0 | F69: 0 | G69: 0 | H69: 0 | I69: 0 | J69: 0 | K69: 0 | L69: 0 | M69: 0 | N69: 0 | O69: 0 | P69: 0 | Q69: 0 | R69: 0 | T69: =SUBTOTAL(9,T70:T79) -> 0 | U69: 0 | V69: 0 | W69: 0 | X69: 0 | Y69: 0 | Z69: 0 | AA69: 0 | AB69: 0 | AC69: 0 | AD69: 0 | AE69: 0 | AF69: 0 | AG69: 0 | AH69: 0 | AI69: 0 | AK69: =SUBTOTAL(9,AK70:AK79) -> 0 | AL69: 0 | AM69: 0 | AN69: 0 | AO69: 0 | AP69: 0 | AQ69: 0 | AR69: 0 | AS69: 0 | AT69: 0 | AU69: 0 | AV69: 0 | AW69: 0 | AX69: 0 | AY69: 0 | AZ69: 0 | BB69: =SUBTOTAL(9,BB70:BB79) -> 0 | BC69: 0 | BD69: 0 | BE69: 0 | BF69: 0 | BG69: 0 | BH69: 0 | BI69: 0 | BJ69: 0 | BK69: 0 | BL69: =SUBTOTAL(9,BL70:BL79) -> 0 | BM69: 0 | BN69: 0 | BO69: 0 | BP69: 0 | BQ69: 0 | BS69: =SUBTOTAL(9,BS70:BS79) -> 0 | BT69: 0 | BU69: 0 | BV69: 0 | BW69: 0 | BX69: 0 | BY69: 0 | BZ69: 0 | CA69: 0 | CB69: 0 | CC69: 0 | CD69: 0 | CE69: 0 | CF69: 0 | CG69: 0 | CH69: 0 | CJ69: =SUBTOTAL(9,CJ70:CJ79) -> 0 | CK69: 0 | CL69: 0 | CM69: 0 | CN69: 0 | CO69: 0 | CP69: 0 | CQ69: 0 | CR69: 0 | CS69: 0 | CT69: 0 | CU69: 0 | CV69: 0 | CW69: 0 | CX69: 0 | CY69: 0 | DA69: =SUBTOTAL(9,DA70:DA79) -> 0 | DB69: 0 | DC69: 0 | DD69: 0 | DE69: 0 | DF69: 0 | DG69: 0 | DH69: 0 | DI69: 0 | DJ69: 0 | DK69: 0 | DL69: 0 | DM69: 0 | DN69: 0 | DO69: 0 | DP69: 0 | DR69: =SUMIF($C$9:$DP$9,DR$9,$C69:$DP69) -> 0 | DS69: 0 | DT69: 0 | DU69: 0 | DV69: 0 | DW69: 0 | DX69: =DV69+DW69 -> 0 | DY69: =(DV69-DU69)/(DV$124-DU$124) -> 
A70: 6.1 | M70: 0 | N70: =SUMPRODUCT(C$11:L$11,C70:L70) -> 0 | O70: 0 | P70: =L70 -> 0 | Q70: =SUM(N70:P70) -> 0 | R70: =(N70+O70)*$J$4 -> 0 | AD70: =SUM(T70:AB70) -> 0 | AE70: =SUMPRODUCT(T$11:AB$11,T70:AB70) -> 0 | AF70: =(AE70*AA$2)+(AE70*AA$3) -> 0 | AG70: =AC70 -> 0 | AH70: =SUM(AE70:AG70) -> 0 | AI70: =(AE70+AF70)*AA$4 -> 0 | AU70: 0 | AV70: =SUMPRODUCT(AK$11:AS$11,AK70:AS70) -> 0 | AW70: =(AV70*AR$2)+(AV70*AR$3) -> 0 | AX70: =AT70 -> 0 | AY70: =SUM(AV70:AX70) -> 0 | AZ70: =(AV70+AW70)*AR$4 -> 0 | BL70: =SUM(BB70:BJ70) -> 0 | BM70: =SUMPRODUCT(BB$11:BJ$11,BB70:BJ70) -> 0 | BN70: =(BM70*BI$2)+(BM70*BI$3) -> 0 | BO70: =BK70 -> 0 | BP70: =SUM(BM70:BO70) -> 0 | BQ70: =(BM70+BN70)*BI$4 -> 0 | CC70: =SUM(BS70:CA70) -> 0 | CD70: =SUMPRODUCT(BS$11:CA$11,BS70:CA70) -> 0 | CE70: =(CD70*BZ$2)+(CD70*BZ$3) -> 0 | CF70: =CB70 -> 0 | CG70: =SUM(CD70:CF70) -> 0 | CH70: =(CD70+CE70)*BZ$4 -> 0 | CT70: =SUM(CJ70:CR70) -> 0 | CU70: =SUMPRODUCT(CJ$11:CR$11,CJ70:CR70) -> 0 | CV70: =(CU70*CQ$2)+(CU70*CQ$3) -> 0 | CW70: =CS70 -> 0 | CX70: =SUM(CU70:CW70) -> 0 | CY70: =(CU70+CV70)*CQ$4 -> 0 | DK70: =SUM(DA70:DI70) -> 0 | DL70: =SUMPRODUCT(DA$11:DI$11,DA70:DI70) -> 0 | DM70: =(DL70*DH$2)+(DL70*DH$3) -> 0 | DN70: =DJ70 -> 0 | DO70: =SUM(DL70:DN70) -> 0 | DP70: =(DL70+DM70)*DH$4 -> 0 | DR70: 0 | DS70: 0 | DT70: 0 | DU70: 0 | DV70: 0 | DW70: 0 | DX70: 0
A71: 6.2 | M71: 0 | N71: =SUMPRODUCT(C$11:L$11,C71:L71) -> 0 | O71: 0 | P71: =L71 -> 0 | Q71: =SUM(N71:P71) -> 0 | R71: =(N71+O71)*$J$4 -> 0 | AD71: 0 | AE71: =SUMPRODUCT(T$11:AB$11,T71:AB71) -> 0 | AF71: =(AE71*AA$2)+(AE71*AA$3) -> 0 | AG71: =AC71 -> 0 | AH71: =SUM(AE71:AG71) -> 0 | AI71: =(AE71+AF71)*AA$4 -> 0 | AU71: 0 | AV71: =SUMPRODUCT(AK$11:AS$11,AK71:AS71) -> 0 | AW71: =(AV71*AR$2)+(AV71*AR$3) -> 0 | AX71: =AT71 -> 0 | AY71: =SUM(AV71:AX71) -> 0 | AZ71: =(AV71+AW71)*AR$4 -> 0 | BL71: 0 | BM71: =SUMPRODUCT(BB$11:BJ$11,BB71:BJ71) -> 0 | BN71: =(BM71*BI$2)+(BM71*BI$3) -> 0 | BO71: =BK71 -> 0 | BP71: =SUM(BM71:BO71) -> 0 | BQ71: =(BM71+BN71)*BI$4 -> 0 | CC71: 0 | CD71: =SUMPRODUCT(BS$11:CA$11,BS71:CA71) -> 0 | CE71: =(CD71*BZ$2)+(CD71*BZ$3) -> 0 | CF71: =CB71 -> 0 | CG71: =SUM(CD71:CF71) -> 0 | CH71: =(CD71+CE71)*BZ$4 -> 0 | CT71: 0 | CU71: =SUMPRODUCT(CJ$11:CR$11,CJ71:CR71) -> 0 | CV71: =(CU71*CQ$2)+(CU71*CQ$3) -> 0 | CW71: =CS71 -> 0 | CX71: =SUM(CU71:CW71) -> 0 | CY71: =(CU71+CV71)*CQ$4 -> 0 | DK71: 0 | DL71: =SUMPRODUCT(DA$11:DI$11,DA71:DI71) -> 0 | DM71: =(DL71*DH$2)+(DL71*DH$3) -> 0 | DN71: =DJ71 -> 0 | DO71: =SUM(DL71:DN71) -> 0 | DP71: =(DL71+DM71)*DH$4 -> 0 | DR71: 0 | DS71: 0 | DT71: 0 | DU71: 0 | DV71: 0 | DW71: 0 | DX71: 0
A72: 6.3 | M72: 0 | N72: =SUMPRODUCT(C$11:L$11,C72:L72) -> 0 | O72: 0 | P72: =L72 -> 0 | Q72: =SUM(N72:P72) -> 0 | R72: =(N72+O72)*$J$4 -> 0 | AD72: 0 | AE72: 0 | AF72: 0 | AG72: 0 | AH72: 0 | AI72: 0 | AU72: 0 | AV72: 0 | AW72: 0 | AX72: 0 | AY72: 0 | AZ72: 0 | BL72: 0 | BM72: 0 | BN72: 0 | BO72: 0 | BP72: 0 | BQ72: 0 | CC72: 0 | CD72: 0 | CE72: 0 | CF72: 0 | CG72: 0 | CH72: 0 | CT72: 0 | CU72: 0 | CV72: 0 | CW72: 0 | CX72: 0 | CY72: 0 | DK72: 0 | DL72: 0 | DM72: 0 | DN72: 0 | DO72: 0 | DP72: 0 | DR72: 0 | DS72: 0 | DT72: 0 | DU72: 0 | DV72: 0 | DW72: 0 | DX72: 0
A73: 6.4 | M73: 0 | N73: 0 | O73: 0 | P73: 0 | Q73: 0 | R73: 0 | AD73: 0 | AE73: 0 | AF73: 0 | AG73: 0 | AH73: 0 | AI73: 0 | AU73: 0 | AV73: 0 | AW73: 0 | AX73: 0 | AY73: 0 | AZ73: 0 | BL73: 0 | BM73: 0 | BN73: 0 | BO73: 0 | BP73: 0 | BQ73: 0 | CC73: 0 | CD73: 0 | CE73: 0 | CF73: 0 | CG73: 0 | CH73: 0 | CT73: 0 | CU73: 0 | CV73: 0 | CW73: 0 | CX73: 0 | CY73: 0 | DK73: 0 | DL73: 0 | DM73: 0 | DN73: 0 | DO73: 0 | DP73: 0 | DR73: 0 | DS73: 0 | DT73: 0 | DU73: 0 | DV73: 0 | DW73: 0 | DX73: 0
A74: 6.5 | M74: 0 | N74: 0 | O74: 0 | P74: 0 | Q74: 0 | R74: 0 | AD74: 0 | AE74: 0 | AF74: 0 | AG74: 0 | AH74: 0 | AI74: 0 | AU74: 0 | AV74: 0 | AW74: 0 | AX74: 0 | AY74: 0 | AZ74: 0 | BL74: 0 | BM74: 0 | BN74: 0 | BO74: 0 | BP74: 0 | BQ74: 0 | CC74: 0 | CD74: 0 | CE74: 0 | CF74: 0 | CG74: 0 | CH74: 0 | CT74: 0 | CU74: 0 | CV74: 0 | CW74: 0 | CX74: 0 | CY74: 0 | DK74: 0 | DL74: 0 | DM74: 0 | DN74: 0 | DO74: 0 | DP74: 0 | DR74: 0 | DS74: 0 | DT74: 0 | DU74: 0 | DV74: 0 | DW74: 0 | DX74: 0
A75: 6.6 | M75: 0 | N75: 0 | O75: 0 | P75: 0 | Q75: 0 | R75: 0 | AD75: 0 | AE75: 0 | AF75: 0 | AG75: 0 | AH75: 0 | AI75: 0 | AU75: 0 | AV75: 0 | AW75: =(AV75*AR$2)+(AV75*AR$3) -> 0 | AX75: 0 | AY75: 0 | AZ75: 0 | BL75: 0 | BM75: 0 | BN75: =(BM75*BI$2)+(BM75*BI$3) -> 0 | BO75: 0 | BP75: 0 | BQ75: 0 | CC75: 0 | CD75: 0 | CE75: 0 | CF75: 0 | CG75: 0 | CH75: 0 | CT75: 0 | CU75: 0 | CV75: 0 | CW75: 0 | CX75: 0 | CY75: 0 | DK75: 0 | DL75: 0 | DM75: 0 | DN75: 0 | DO75: 0 | DP75: 0 | DR75: 0 | DS75: 0 | DT75: 0 | DU75: 0 | DV75: 0 | DW75: 0 | DX75: 0
A76: 6.7 | M76: 0 | N76: 0 | O76: 0 | P76: 0 | Q76: 0 | R76: 0 | AD76: 0 | AE76: 0 | AF76: 0 | AG76: 0 | AH76: 0 | AI76: 0 | AU76: 0 | AV76: =SUMPRODUCT(AK$11:AS$11,AK76:AS76) -> 0 | AW76: 0 | AX76: 0 | AY76: 0 | AZ76: 0 | BL76: 0 | BM76: =SUMPRODUCT(BB$11:BJ$11,BB76:BJ76) -> 0 | BN76: 0 | BO76: 0 | BP76: 0 | BQ76: 0 | CC76: 0 | CD76: =SUMPRODUCT(BS$11:CA$11,BS76:CA76) -> 0 | CE76: =(CD76*BZ$2)+(CD76*BZ$3) -> 0 | CF76: 0 | CG76: 0 | CH76: 0 | CT76: 0 | CU76: =SUMPRODUCT(CJ$11:CR$11,CJ76:CR76) -> 0 | CV76: =(CU76*CQ$2)+(CU76*CQ$3) -> 0 | CW76: 0 | CX76: 0 | CY76: 0 | DK76: 0 | DL76: =SUMPRODUCT(DA$11:DI$11,DA76:DI76) -> 0 | DM76: =(DL76*DH$2)+(DL76*DH$3) -> 0 | DN76: 0 | DO76: 0 | DP76: 0 | DR76: 0 | DS76: 0 | DT76: 0 | DU76: 0 | DV76: 0 | DW76: 0 | DX76: 0
A77: 6.8 | M77: 0 | N77: 0 | O77: 0 | P77: 0 | Q77: 0 | R77: 0 | AD77: 0 | AE77: 0 | AF77: 0 | AG77: 0 | AH77: 0 | AI77: 0 | AU77: 0 | AV77: 0 | AW77: 0 | AX77: 0 | AY77: 0 | AZ77: 0 | BL77: 0 | BM77: 0 | BN77: 0 | BO77: 0 | BP77: 0 | BQ77: 0 | CC77: 0 | CD77: 0 | CE77: 0 | CF77: 0 | CG77: 0 | CH77: 0 | CT77: 0 | CU77: 0 | CV77: 0 | CW77: 0 | CX77: 0 | CY77: 0 | DK77: 0 | DL77: 0 | DM77: 0 | DN77: 0 | DO77: 0 | DP77: 0 | DR77: 0 | DS77: 0 | DT77: 0 | DU77: 0 | DV77: 0 | DW77: 0 | DX77: 0
A78: 6.9 | M78: 0 | N78: 0 | O78: 0 | P78: 0 | Q78: 0 | R78: 0 | AD78: 0 | AE78: 0 | AF78: 0 | AG78: 0 | AH78: 0 | AI78: 0 | AU78: 0 | AV78: 0 | AW78: 0 | AX78: 0 | AY78: 0 | AZ78: 0 | BL78: 0 | BM78: 0 | BN78: 0 | BO78: 0 | BP78: 0 | BQ78: 0 | CC78: 0 | CD78: 0 | CE78: 0 | CF78: 0 | CG78: 0 | CH78: 0 | CT78: 0 | CU78: 0 | CV78: 0 | CW78: 0 | CX78: 0 | CY78: 0 | DK78: 0 | DL78: 0 | DM78: 0 | DN78: 0 | DO78: 0 | DP78: 0 | DR78: 0 | DS78: 0 | DT78: 0 | DU78: 0 | DV78: 0 | DW78: 0 | DX78: 0
A79: 6.10 | M79: 0 | N79: =SUMPRODUCT(C$11:L$11,C79:L79) -> 0 | O79: 0 | P79: =L79 -> 0 | Q79: =SUM(N79:P79) -> 0 | R79: =(N79+O79)*$J$4 -> 0 | AD79: 0 | AE79: 0 | AF79: 0 | AG79: 0 | AH79: 0 | AI79: 0 | AU79: 0 | AV79: 0 | AW79: 0 | AX79: 0 | AY79: 0 | AZ79: 0 | BL79: 0 | BM79: 0 | BN79: 0 | BO79: 0 | BP79: 0 | BQ79: 0 | CC79: =SUM(BS79:CA79) -> 0 | CD79: 0 | CE79: 0 | CF79: 0 | CG79: 0 | CH79: 0 | CT79: 0 | CU79: 0 | CV79: 0 | CW79: 0 | CX79: 0 | CY79: 0 | DK79: 0 | DL79: 0 | DM79: 0 | DN79: 0 | DO79: 0 | DP79: 0 | DR79: 0 | DS79: 0 | DT79: 0 | DU79: 0 | DV79: 0 | DW79: 0 | DX79: 0
A80: 7 | C80: =SUBTOTAL(9,C81:C90) -> 0 | D80: 0 | E80: 0 | F80: 0 | G80: 0 | H80: 0 | I80: 0 | J80: 0 | K80: 0 | L80: 0 | M80: 0 | N80: 0 | O80: 0 | P80: 0 | Q80: 0 | R80: 0 | T80: =SUBTOTAL(9,T81:T90) -> 0 | U80: 0 | V80: 0 | W80: 0 | X80: 0 | Y80: 0 | Z80: 0 | AA80: 0 | AB80: 0 | AC80: 0 | AD80: 0 | AE80: 0 | AF80: 0 | AG80: 0 | AH80: 0 | AI80: 0 | AK80: =SUBTOTAL(9,AK81:AK90) -> 0 | AL80: 0 | AM80: 0 | AN80: 0 | AO80: 0 | AP80: 0 | AQ80: 0 | AR80: 0 | AS80: 0 | AT80: 0 | AU80: 0 | AV80: 0 | AW80: 0 | AX80: 0 | AY80: 0 | AZ80: 0 | BB80: =SUBTOTAL(9,BB81:BB90) -> 0 | BC80: 0 | BD80: 0 | BE80: 0 | BF80: 0 | BG80: 0 | BH80: 0 | BI80: 0 | BJ80: 0 | BK80: 0 | BL80: =SUBTOTAL(9,BL81:BL90) -> 0 | BM80: 0 | BN80: 0 | BO80: 0 | BP80: 0 | BQ80: 0 | BS80: =SUBTOTAL(9,BS81:BS90) -> 0 | BT80: 0 | BU80: 0 | BV80: 0 | BW80: 0 | BX80: 0 | BY80: 0 | BZ80: 0 | CA80: 0 | CB80: 0 | CC80: 0 | CD80: 0 | CE80: 0 | CF80: 0 | CG80: 0 | CH80: 0 | CJ80: =SUBTOTAL(9,CJ81:CJ90) -> 0 | CK80: 0 | CL80: 0 | CM80: 0 | CN80: 0 | CO80: 0 | CP80: 0 | CQ80: 0 | CR80: 0 | CS80: 0 | CT80: 0 | CU80: 0 | CV80: 0 | CW80: 0 | CX80: 0 | CY80: 0 | DA80: =SUBTOTAL(9,DA81:DA90) -> 0 | DB80: 0 | DC80: 0 | DD80: 0 | DE80: 0 | DF80: 0 | DG80: 0 | DH80: 0 | DI80: 0 | DJ80: 0 | DK80: 0 | DL80: 0 | DM80: 0 | DN80: 0 | DO80: 0 | DP80: 0 | DR80: =SUMIF($C$9:$DP$9,DR$9,$C80:$DP80) -> 0 | DS80: 0 | DT80: 0 | DU80: 0 | DV80: 0 | DW80: 0 | DX80: 0
A81: 7.1 | M81: 0 | N81: =SUMPRODUCT(C$11:L$11,C81:L81) -> 0 | O81: 0 | P81: =L81 -> 0 | Q81: =SUM(N81:P81) -> 0 | R81: =(N81+O81)*$J$4 -> 0 | AD81: =SUM(T81:AB81) -> 0 | AE81: =SUMPRODUCT(T$11:AB$11,T81:AB81) -> 0 | AF81: =(AE81*AA$2)+(AE81*AA$3) -> 0 | AG81: =AC81 -> 0 | AH81: =SUM(AE81:AG81) -> 0 | AI81: =(AE81+AF81)*AA$4 -> 0 | AU81: 0 | AV81: =SUMPRODUCT(AK$11:AS$11,AK81:AS81) -> 0 | AW81: =(AV81*AR$2)+(AV81*AR$3) -> 0 | AX81: =AT81 -> 0 | AY81: =SUM(AV81:AX81) -> 0 | AZ81: =(AV81+AW81)*AR$4 -> 0 | BL81: =SUM(BB81:BJ81) -> 0 | BM81: =SUMPRODUCT(BB$11:BJ$11,BB81:BJ81) -> 0 | BN81: =(BM81*BI$2)+(BM81*BI$3) -> 0 | BO81: =BK81 -> 0 | BP81: =SUM(BM81:BO81) -> 0 | BQ81: =(BM81+BN81)*BI$4 -> 0 | CC81: =SUM(BS81:CA81) -> 0 | CD81: =SUMPRODUCT(BS$11:CA$11,BS81:CA81) -> 0 | CE81: =(CD81*BZ$2)+(CD81*BZ$3) -> 0 | CF81: =CB81 -> 0 | CG81: =SUM(CD81:CF81) -> 0 | CH81: =(CD81+CE81)*BZ$4 -> 0 | CT81: =SUM(CJ81:CR81) -> 0 | CU81: =SUMPRODUCT(CJ$11:CR$11,CJ81:CR81) -> 0 | CV81: =(CU81*CQ$2)+(CU81*CQ$3) -> 0 | CW81: =CS81 -> 0 | CX81: =SUM(CU81:CW81) -> 0 | CY81: =(CU81+CV81)*CQ$4 -> 0 | DK81: =SUM(DA81:DI81) -> 0 | DL81: =SUMPRODUCT(DA$11:DI$11,DA81:DI81) -> 0 | DM81: =(DL81*DH$2)+(DL81*DH$3) -> 0 | DN81: =DJ81 -> 0 | DO81: =SUM(DL81:DN81) -> 0 | DP81: =(DL81+DM81)*DH$4 -> 0 | DR81: 0 | DS81: 0 | DT81: 0 | DU81: 0 | DV81: 0 | DW81: 0 | DX81: 0
A82: 7.2 | M82: =SUM(C82:K82) -> 0 | N82: =SUMPRODUCT(C$11:L$11,C82:L82) -> 0 | O82: =(N82*$J$2)+(N82*$J$3) -> 0 | P82: =L82 -> 0 | Q82: =SUM(N82:P82) -> 0 | R82: =(N82+O82)*$J$4 -> 0 | AD82: 0 | AE82: =SUMPRODUCT(T$11:AB$11,T82:AB82) -> 0 | AF82: =(AE82*AA$2)+(AE82*AA$3) -> 0 | AG82: =AC82 -> 0 | AH82: =SUM(AE82:AG82) -> 0 | AI82: =(AE82+AF82)*AA$4 -> 0 | AU82: =SUM(AK82:AS82) -> 0 | AV82: =SUMPRODUCT(AK$11:AS$11,AK82:AS82) -> 0 | AW82: =(AV82*AR$2)+(AV82*AR$3) -> 0 | AX82: =AT82 -> 0 | AY82: =SUM(AV82:AX82) -> 0 | AZ82: =(AV82+AW82)*AR$4 -> 0 | BL82: 0 | BM82: =SUMPRODUCT(BB$11:BJ$11,BB82:BJ82) -> 0 | BN82: =(BM82*BI$2)+(BM82*BI$3) -> 0 | BO82: =BK82 -> 0 | BP82: =SUM(BM82:BO82) -> 0 | BQ82: =(BM82+BN82)*BI$4 -> 0 | CC82: 0 | CD82: =SUMPRODUCT(BS$11:CA$11,BS82:CA82) -> 0 | CE82: =(CD82*BZ$2)+(CD82*BZ$3) -> 0 | CF82: =CB82 -> 0 | CG82: =SUM(CD82:CF82) -> 0 | CH82: =(CD82+CE82)*BZ$4 -> 0 | CT82: 0 | CU82: =SUMPRODUCT(CJ$11:CR$11,CJ82:CR82) -> 0 | CV82: =(CU82*CQ$2)+(CU82*CQ$3) -> 0 | CW82: =CS82 -> 0 | CX82: =SUM(CU82:CW82) -> 0 | CY82: =(CU82+CV82)*CQ$4 -> 0 | DK82: 0 | DL82: =SUMPRODUCT(DA$11:DI$11,DA82:DI82) -> 0 | DM82: =(DL82*DH$2)+(DL82*DH$3) -> 0 | DN82: =DJ82 -> 0 | DO82: =SUM(DL82:DN82) -> 0 | DP82: =(DL82+DM82)*DH$4 -> 0 | DR82: 0 | DS82: 0 | DT82: 0 | DU82: 0 | DV82: 0 | DW82: 0 | DX82: 0
A83: 7.3 | M83: 0 | N83: =SUMPRODUCT(C$11:L$11,C83:L83) -> 0 | O83: 0 | P83: =L83 -> 0 | Q83: =SUM(N83:P83) -> 0 | R83: =(N83+O83)*$J$4 -> 0 | AD83: 0 | AE83: =SUMPRODUCT(T$11:AB$11,T83:AB83) -> 0 | AF83: =(AE83*AA$2)+(AE83*AA$3) -> 0 | AG83: 0 | AH83: 0 | AI83: 0 | AU83: 0 | AV83: 0 | AW83: 0 | AX83: 0 | AY83: 0 | AZ83: 0 | BL83: 0 | BM83: 0 | BN83: 0 | BO83: 0 | BP83: 0 | BQ83: 0 | CC83: 0 | CD83: 0 | CE83: 0 | CF83: 0 | CG83: 0 | CH83: 0 | CT83: 0 | CU83: 0 | CV83: 0 | CW83: 0 | CX83: 0 | CY83: 0 | DK83: 0 | DL83: 0 | DM83: 0 | DN83: 0 | DO83: 0 | DP83: 0 | DR83: 0 | DS83: 0 | DT83: 0 | DU83: 0 | DV83: 0 | DW83: 0 | DX83: 0
A84: 7.4 | M84: 0 | N84: 0 | O84: 0 | P84: 0 | Q84: 0 | R84: 0 | AD84: 0 | AE84: 0 | AF84: 0 | AG84: 0 | AH84: 0 | AI84: 0 | AU84: 0 | AV84: 0 | AW84: 0 | AX84: 0 | AY84: 0 | AZ84: 0 | BL84: 0 | BM84: 0 | BN84: 0 | BO84: 0 | BP84: 0 | BQ84: 0 | CC84: 0 | CD84: 0 | CE84: 0 | CF84: 0 | CG84: 0 | CH84: 0 | CT84: 0 | CU84: 0 | CV84: 0 | CW84: 0 | CX84: 0 | CY84: 0 | DK84: 0 | DL84: 0 | DM84: 0 | DN84: 0 | DO84: 0 | DP84: 0 | DR84: 0 | DS84: 0 | DT84: 0 | DU84: 0 | DV84: 0 | DW84: 0 | DX84: 0
A85: 7.5 | M85: 0 | N85: 0 | O85: 0 | P85: 0 | Q85: 0 | R85: 0 | AD85: 0 | AE85: 0 | AF85: 0 | AG85: 0 | AH85: 0 | AI85: 0 | AU85: 0 | AV85: 0 | AW85: 0 | AX85: 0 | AY85: 0 | AZ85: 0 | BL85: 0 | BM85: 0 | BN85: 0 | BO85: 0 | BP85: 0 | BQ85: 0 | CC85: 0 | CD85: 0 | CE85: 0 | CF85: 0 | CG85: 0 | CH85: 0 | CT85: 0 | CU85: 0 | CV85: 0 | CW85: 0 | CX85: 0 | CY85: 0 | DK85: 0 | DL85: 0 | DM85: 0 | DN85: 0 | DO85: 0 | DP85: 0 | DR85: 0 | DS85: 0 | DT85: 0 | DU85: 0 | DV85: 0 | DW85: 0 | DX85: 0
A86: 7.6 | M86: 0 | N86: 0 | O86: 0 | P86: 0 | Q86: 0 | R86: 0 | AD86: 0 | AE86: 0 | AF86: 0 | AG86: 0 | AH86: 0 | AI86: 0 | AU86: 0 | AV86: 0 | AW86: 0 | AX86: 0 | AY86: 0 | AZ86: 0 | BL86: 0 | BM86: 0 | BN86: 0 | BO86: 0 | BP86: 0 | BQ86: 0 | CC86: 0 | CD86: 0 | CE86: 0 | CF86: 0 | CG86: 0 | CH86: 0 | CT86: 0 | CU86: 0 | CV86: 0 | CW86: 0 | CX86: 0 | CY86: 0 | DK86: 0 | DL86: 0 | DM86: 0 | DN86: 0 | DO86: 0 | DP86: 0 | DR86: 0 | DS86: 0 | DT86: 0 | DU86: 0 | DV86: 0 | DW86: 0 | DX86: 0
A87: 7.7 | M87: 0 | N87: 0 | O87: 0 | P87: 0 | Q87: 0 | R87: 0 | AD87: 0 | AE87: 0 | AF87: 0 | AG87: 0 | AH87: 0 | AI87: 0 | AU87: 0 | AV87: 0 | AW87: 0 | AX87: 0 | AY87: 0 | AZ87: 0 | BL87: 0 | BM87: 0 | BN87: 0 | BO87: 0 | BP87: 0 | BQ87: 0 | CC87: 0 | CD87: 0 | CE87: 0 | CF87: 0 | CG87: 0 | CH87: 0 | CT87: 0 | CU87: 0 | CV87: 0 | CW87: 0 | CX87: 0 | CY87: 0 | DK87: 0 | DL87: 0 | DM87: 0 | DN87: 0 | DO87: 0 | DP87: 0 | DR87: 0 | DS87: 0 | DT87: 0 | DU87: 0 | DV87: 0 | DW87: 0 | DX87: 0
A88: 7.8 | M88: 0 | N88: 0 | O88: 0 | P88: 0 | Q88: 0 | R88: 0 | AD88: 0 | AE88: 0 | AF88: 0 | AG88: 0 | AH88: 0 | AI88: 0 | AU88: 0 | AV88: 0 | AW88: 0 | AX88: 0 | AY88: 0 | AZ88: 0 | BL88: 0 | BM88: 0 | BN88: 0 | BO88: 0 | BP88: 0 | BQ88: 0 | CC88: 0 | CD88: 0 | CE88: 0 | CF88: 0 | CG88: 0 | CH88: 0 | CT88: 0 | CU88: 0 | CV88: 0 | CW88: 0 | CX88: 0 | CY88: 0 | DK88: 0 | DL88: 0 | DM88: 0 | DN88: 0 | DO88: 0 | DP88: 0 | DR88: 0 | DS88: 0 | DT88: 0 | DU88: 0 | DV88: 0 | DW88: 0 | DX88: 0
A89: 7.9 | M89: 0 | N89: 0 | O89: 0 | P89: 0 | Q89: 0 | R89: 0 | AD89: 0 | AE89: 0 | AF89: 0 | AG89: 0 | AH89: 0 | AI89: 0 | AU89: 0 | AV89: 0 | AW89: 0 | AX89: 0 | AY89: 0 | AZ89: 0 | BL89: 0 | BM89: 0 | BN89: 0 | BO89: 0 | BP89: 0 | BQ89: 0 | CC89: 0 | CD89: 0 | CE89: 0 | CF89: 0 | CG89: 0 | CH89: 0 | CT89: 0 | CU89: 0 | CV89: 0 | CW89: 0 | CX89: 0 | CY89: 0 | DK89: 0 | DL89: 0 | DM89: 0 | DN89: 0 | DO89: 0 | DP89: 0 | DR89: 0 | DS89: 0 | DT89: 0 | DU89: 0 | DV89: 0 | DW89: 0 | DX89: 0
A90: 7.10 | M90: 0 | N90: =SUMPRODUCT(C$11:L$11,C90:L90) -> 0 | O90: 0 | P90: =L90 -> 0 | Q90: =SUM(N90:P90) -> 0 | R90: =(N90+O90)*$J$4 -> 0 | AD90: 0 | AE90: 0 | AF90: 0 | AG90: 0 | AH90: 0 | AI90: 0 | AU90: 0 | AV90: 0 | AW90: 0 | AX90: 0 | AY90: 0 | AZ90: 0 | BL90: 0 | BM90: 0 | BN90: 0 | BO90: 0 | BP90: 0 | BQ90: 0 | CC90: 0 | CD90: 0 | CE90: 0 | CF90: 0 | CG90: 0 | CH90: 0 | CT90: 0 | CU90: 0 | CV90: 0 | CW90: 0 | CX90: 0 | CY90: 0 | DK90: 0 | DL90: 0 | DM90: 0 | DN90: 0 | DO90: 0 | DP90: 0 | DR90: 0 | DS90: 0 | DT90: 0 | DU90: 0 | DV90: 0 | DW90: 0 | DX90: 0
A91: 8 | C91: =SUBTOTAL(9,C92:C101) -> 0 | D91: 0 | E91: 0 | F91: 0 | G91: 0 | H91: 0 | I91: 0 | J91: 0 | K91: 0 | L91: 0 | M91: 0 | N91: 0 | O91: 0 | P91: 0 | Q91: 0 | R91: 0 | T91: =SUBTOTAL(9,T92:T101) -> 0 | U91: 0 | V91: 0 | W91: 0 | X91: 0 | Y91: 0 | Z91: 0 | AA91: 0 | AB91: 0 | AC91: 0 | AD91: 0 | AE91: 0 | AF91: 0 | AG91: 0 | AH91: 0 | AI91: 0 | AK91: =SUBTOTAL(9,AK92:AK101) -> 0 | AL91: 0 | AM91: 0 | AN91: 0 | AO91: 0 | AP91: 0 | AQ91: 0 | AR91: 0 | AS91: 0 | AT91: 0 | AU91: 0 | AV91: 0 | AW91: 0 | AX91: 0 | AY91: 0 | AZ91: 0 | BB91: =SUBTOTAL(9,BB92:BB101) -> 0 | BC91: 0 | BD91: 0 | BE91: 0 | BF91: 0 | BG91: 0 | BH91: 0 | BI91: 0 | BJ91: 0 | BK91: 0 | BL91: 0 | BM91: 0 | BN91: 0 | BO91: 0 | BP91: 0 | BQ91: 0 | BS91: =SUBTOTAL(9,BS92:BS101) -> 0 | BT91: 0 | BU91: 0 | BV91: 0 | BW91: 0 | BX91: 0 | BY91: 0 | BZ91: 0 | CA91: 0 | CB91: 0 | CC91: 0 | CD91: 0 | CE91: 0 | CF91: 0 | CG91: 0 | CH91: 0 | CJ91: =SUBTOTAL(9,CJ92:CJ101) -> 0 | CK91: 0 | CL91: 0 | CM91: 0 | CN91: 0 | CO91: 0 | CP91: 0 | CQ91: 0 | CR91: 0 | CS91: 0 | CT91: 0 | CU91: 0 | CV91: 0 | CW91: 0 | CX91: 0 | CY91: 0 | DA91: =SUBTOTAL(9,DA92:DA101) -> 0 | DB91: 0 | DC91: 0 | DD91: 0 | DE91: 0 | DF91: 0 | DG91: 0 | DH91: 0 | DI91: 0 | DJ91: 0 | DK91: 0 | DL91: 0 | DM91: 0 | DN91: 0 | DO91: 0 | DP91: 0 | DR91: =SUMIF($C$9:$DP$9,DR$9,$C91:$DP91) -> 0 | DS91: 0 | DT91: 0 | DU91: 0 | DV91: 0 | DW91: 0 | DX91: =DV91+DW91 -> 0 | DY91: =(DV91-DU91)/(DV$124-DU$124) -> 
A92: 8.1 | M92: =SUM(C92:K92) -> 0 | N92: =SUMPRODUCT(C$11:L$11,C92:L92) -> 0 | O92: =(N92*$J$2)+(N92*$J$3) -> 0 | P92: =L92 -> 0 | Q92: =SUM(N92:P92) -> 0 | R92: =(N92+O92)*$J$4 -> 0 | AD92: =SUM(T92:AB92) -> 0 | AE92: =SUMPRODUCT(T$11:AB$11,T92:AB92) -> 0 | AF92: =(AE92*AA$2)+(AE92*AA$3) -> 0 | AG92: =AC92 -> 0 | AH92: =SUM(AE92:AG92) -> 0 | AI92: =(AE92+AF92)*AA$4 -> 0 | AU92: =SUM(AK92:AS92) -> 0 | AV92: =SUMPRODUCT(AK$11:AS$11,AK92:AS92) -> 0 | AW92: =(AV92*AR$2)+(AV92*AR$3) -> 0 | AX92: =AT92 -> 0 | AY92: =SUM(AV92:AX92) -> 0 | AZ92: =(AV92+AW92)*AR$4 -> 0 | BL92: =SUM(BB92:BJ92) -> 0 | BM92: =SUMPRODUCT(BB$11:BJ$11,BB92:BJ92) -> 0 | BN92: =(BM92*BI$2)+(BM92*BI$3) -> 0 | BO92: =BK92 -> 0 | BP92: =SUM(BM92:BO92) -> 0 | BQ92: =(BM92+BN92)*BI$4 -> 0 | CC92: =SUM(BS92:CA92) -> 0 | CD92: =SUMPRODUCT(BS$11:CA$11,BS92:CA92) -> 0 | CE92: =(CD92*BZ$2)+(CD92*BZ$3) -> 0 | CF92: =CB92 -> 0 | CG92: =SUM(CD92:CF92) -> 0 | CH92: =(CD92+CE92)*BZ$4 -> 0 | CT92: =SUM(CJ92:CR92) -> 0 | CU92: =SUMPRODUCT(CJ$11:CR$11,CJ92:CR92) -> 0 | CV92: =(CU92*CQ$2)+(CU92*CQ$3) -> 0 | CW92: =CS92 -> 0 | CX92: =SUM(CU92:CW92) -> 0 | CY92: =(CU92+CV92)*CQ$4 -> 0 | DK92: =SUM(DA92:DI92) -> 0 | DL92: =SUMPRODUCT(DA$11:DI$11,DA92:DI92) -> 0 | DM92: =(DL92*DH$2)+(DL92*DH$3) -> 0 | DN92: =DJ92 -> 0 | DO92: =SUM(DL92:DN92) -> 0 | DP92: =(DL92+DM92)*DH$4 -> 0 | DR92: 0 | DS92: 0 | DT92: 0 | DU92: 0 | DV92: 0 | DW92: 0 | DX92: 0
A93: 8.2 | M93: 0 | N93: =SUMPRODUCT(C$11:L$11,C93:L93) -> 0 | O93: 0 | P93: =L93 -> 0 | Q93: =SUM(N93:P93) -> 0 | R93: =(N93+O93)*$J$4 -> 0 | AD93: 0 | AE93: =SUMPRODUCT(T$11:AB$11,T93:AB93) -> 0 | AF93: =(AE93*AA$2)+(AE93*AA$3) -> 0 | AG93: =AC93 -> 0 | AH93: =SUM(AE93:AG93) -> 0 | AI93: =(AE93+AF93)*AA$4 -> 0 | AU93: 0 | AV93: =SUMPRODUCT(AK$11:AS$11,AK93:AS93) -> 0 | AW93: =(AV93*AR$2)+(AV93*AR$3) -> 0 | AX93: =AT93 -> 0 | AY93: =SUM(AV93:AX93) -> 0 | AZ93: =(AV93+AW93)*AR$4 -> 0 | BL93: 0 | BM93: =SUMPRODUCT(BB$11:BJ$11,BB93:BJ93) -> 0 | BN93: =(BM93*BI$2)+(BM93*BI$3) -> 0 | BO93: =BK93 -> 0 | BP93: =SUM(BM93:BO93) -> 0 | BQ93: =(BM93+BN93)*BI$4 -> 0 | CC93: 0 | CD93: =SUMPRODUCT(BS$11:CA$11,BS93:CA93) -> 0 | CE93: =(CD93*BZ$2)+(CD93*BZ$3) -> 0 | CF93: =CB93 -> 0 | CG93: =SUM(CD93:CF93) -> 0 | CH93: =(CD93+CE93)*BZ$4 -> 0 | CT93: 0 | CU93: =SUMPRODUCT(CJ$11:CR$11,CJ93:CR93) -> 0 | CV93: =(CU93*CQ$2)+(CU93*CQ$3) -> 0 | CW93: =CS93 -> 0 | CX93: =SUM(CU93:CW93) -> 0 | CY93: =(CU93+CV93)*CQ$4 -> 0 | DK93: 0 | DL93: =SUMPRODUCT(DA$11:DI$11,DA93:DI93) -> 0 | DM93: =(DL93*DH$2)+(DL93*DH$3) -> 0 | DN93: =DJ93 -> 0 | DO93: =SUM(DL93:DN93) -> 0 | DP93: =(DL93+DM93)*DH$4 -> 0 | DR93: 0 | DS93: 0 | DT93: 0 | DU93: 0 | DV93: 0 | DW93: 0 | DX93: 0
A94: 8.3 | M94: 0 | N94: =SUMPRODUCT(C$11:L$11,C94:L94) -> 0 | O94: 0 | P94: =L94 -> 0 | Q94: =SUM(N94:P94) -> 0 | R94: =(N94+O94)*$J$4 -> 0 | AD94: 0 | AE94: 0 | AF94: 0 | AG94: 0 | AH94: 0 | AI94: 0 | AU94: 0 | AV94: 0 | AW94: 0 | AX94: 0 | AY94: 0 | AZ94: 0 | BL94: 0 | BM94: 0 | BN94: 0 | BO94: 0 | BP94: 0 | BQ94: 0 | CC94: 0 | CD94: 0 | CE94: 0 | CF94: 0 | CG94: 0 | CH94: 0 | CT94: 0 | CU94: 0 | CV94: 0 | CW94: 0 | CX94: 0 | CY94: 0 | DK94: 0 | DL94: 0 | DM94: 0 | DN94: 0 | DO94: 0 | DP94: 0 | DR94: 0 | DS94: 0 | DT94: 0 | DU94: 0 | DV94: 0 | DW94: 0 | DX94: 0
A95: 8.4 | M95: 0 | N95: 0 | O95: 0 | P95: 0 | Q95: 0 | R95: 0 | AD95: 0 | AE95: 0 | AF95: 0 | AG95: 0 | AH95: 0 | AI95: 0 | AU95: 0 | AV95: 0 | AW95: 0 | AX95: 0 | AY95: 0 | AZ95: 0 | BL95: 0 | BM95: 0 | BN95: 0 | BO95: 0 | BP95: 0 | BQ95: 0 | CC95: 0 | CD95: 0 | CE95: 0 | CF95: 0 | CG95: 0 | CH95: 0 | CT95: 0 | CU95: 0 | CV95: 0 | CW95: 0 | CX95: 0 | CY95: 0 | DK95: 0 | DL95: 0 | DM95: 0 | DN95: 0 | DO95: 0 | DP95: 0 | DR95: 0 | DS95: 0 | DT95: 0 | DU95: 0 | DV95: 0 | DW95: 0 | DX95: 0
A96: 8.5 | M96: 0 | N96: 0 | O96: 0 | P96: 0 | Q96: 0 | R96: 0 | AD96: 0 | AE96: 0 | AF96: 0 | AG96: 0 | AH96: 0 | AI96: 0 | AU96: 0 | AV96: 0 | AW96: 0 | AX96: 0 | AY96: 0 | AZ96: 0 | BL96: 0 | BM96: 0 | BN96: 0 | BO96: 0 | BP96: 0 | BQ96: 0 | CC96: 0 | CD96: 0 | CE96: 0 | CF96: 0 | CG96: 0 | CH96: 0 | CT96: 0 | CU96: 0 | CV96: 0 | CW96: 0 | CX96: 0 | CY96: 0 | DK96: 0 | DL96: 0 | DM96: 0 | DN96: 0 | DO96: 0 | DP96: 0 | DR96: 0 | DS96: 0 | DT96: 0 | DU96: 0 | DV96: 0 | DW96: 0 | DX96: 0
A97: 8.6 | M97: 0 | N97: 0 | O97: 0 | P97: 0 | Q97: 0 | R97: 0 | AD97: 0 | AE97: 0 | AF97: 0 | AG97: 0 | AH97: 0 | AI97: 0 | AU97: 0 | AV97: 0 | AW97: 0 | AX97: 0 | AY97: 0 | AZ97: 0 | BL97: 0 | BM97: 0 | BN97: 0 | BO97: 0 | BP97: 0 | BQ97: 0 | CC97: 0 | CD97: 0 | CE97: 0 | CF97: 0 | CG97: 0 | CH97: 0 | CT97: 0 | CU97: 0 | CV97: 0 | CW97: 0 | CX97: 0 | CY97: 0 | DK97: 0 | DL97: 0 | DM97: 0 | DN97: 0 | DO97: 0 | DP97: 0 | DR97: 0 | DS97: 0 | DT97: 0 | DU97: 0 | DV97: 0 | DW97: 0 | DX97: 0
A98: 8.7 | M98: 0 | N98: 0 | O98: 0 | P98: 0 | Q98: 0 | R98: 0 | AD98: 0 | AE98: 0 | AF98: 0 | AG98: 0 | AH98: 0 | AI98: 0 | AU98: 0 | AV98: 0 | AW98: 0 | AX98: 0 | AY98: 0 | AZ98: 0 | BL98: 0 | BM98: 0 | BN98: 0 | BO98: 0 | BP98: 0 | BQ98: 0 | CC98: 0 | CD98: 0 | CE98: 0 | CF98: 0 | CG98: 0 | CH98: 0 | CT98: 0 | CU98: 0 | CV98: 0 | CW98: 0 | CX98: 0 | CY98: 0 | DK98: 0 | DL98: 0 | DM98: 0 | DN98: 0 | DO98: 0 | DP98: 0 | DR98: 0 | DS98: 0 | DT98: 0 | DU98: 0 | DV98: 0 | DW98: 0 | DX98: 0
A99: 8.8 | M99: 0 | N99: 0 | O99: 0 | P99: 0 | Q99: 0 | R99: 0 | AD99: 0 | AE99: 0 | AF99: 0 | AG99: 0 | AH99: 0 | AI99: 0 | AU99: 0 | AV99: 0 | AW99: 0 | AX99: 0 | AY99: 0 | AZ99: 0 | BL99: 0 | BM99: 0 | BN99: 0 | BO99: 0 | BP99: 0 | BQ99: 0 | CC99: 0 | CD99: 0 | CE99: 0 | CF99: 0 | CG99: 0 | CH99: 0 | CT99: 0 | CU99: 0 | CV99: 0 | CW99: 0 | CX99: 0 | CY99: 0 | DK99: 0 | DL99: 0 | DM99: 0 | DN99: 0 | DO99: 0 | DP99: 0 | DR99: 0 | DS99: 0 | DT99: 0 | DU99: 0 | DV99: 0 | DW99: 0 | DX99: 0
A100: 8.9 | M100: 0 | N100: 0 | O100: 0 | P100: 0 | Q100: 0 | R100: 0 | AD100: 0 | AE100: 0 | AF100: 0 | AG100: 0 | AH100: 0 | AI100: 0 | AU100: 0 | AV100: 0 | AW100: 0 | AX100: 0 | AY100: 0 | AZ100: 0 | BL100: 0 | BM100: 0 | BN100: 0 | BO100: 0 | BP100: 0 | BQ100: 0 | CC100: 0 | CD100: 0 | CE100: 0 | CF100: 0 | CG100: 0 | CH100: 0 | CT100: 0 | CU100: 0 | CV100: 0 | CW100: 0 | CX100: 0 | CY100: 0 | DK100: 0 | DL100: 0 | DM100: 0 | DN100: 0 | DO100: 0 | DP100: 0 | DR100: 0 | DS100: 0 | DT100: 0 | DU100: 0 | DV100: 0 | DW100: 0 | DX100: 0
A101: 8.10 | M101: 0 | N101: =SUMPRODUCT(C$11:L$11,C101:L101) -> 0 | O101: 0 | P101: =L101 -> 0 | Q101: =SUM(N101:P101) -> 0 | R101: =(N101+O101)*$J$4 -> 0 | AD101: 0 | AE101: 0 | AF101: 0 | AG101: 0 | AH101: 0 | AI101: 0 | AU101: 0 | AV101: 0 | AW101: 0 | AX101: 0 | AY101: 0 | AZ101: 0 | BL101: 0 | BM101: 0 | BN101: 0 | BO101: 0 | BP101: 0 | BQ101: 0 | CC101: 0 | CD101: 0 | CE101: 0 | CF101: 0 | CG101: 0 | CH101: 0 | CT101: 0 | CU101: 0 | CV101: 0 | CW101: 0 | CX101: 0 | CY101: 0 | DK101: 0 | DL101: 0 | DM101: 0 | DN101: 0 | DO101: 0 | DP101: 0 | DR101: 0 | DS101: 0 | DT101: 0 | DU101: 0 | DV101: 0 | DW101: 0 | DX101: 0
A102: 9 | C102: =SUBTOTAL(9,C103:C112) -> 0 | D102: 0 | E102: 0 | F102: 0 | G102: 0 | H102: 0 | I102: 0 | J102: 0 | K102: 0 | L102: 0 | M102: 0 | N102: 0 | O102: 0 | P102: 0 | Q102: 0 | R102: 0 | T102: =SUBTOTAL(9,T103:T112) -> 0 | U102: 0 | V102: 0 | W102: 0 | X102: 0 | Y102: 0 | Z102: 0 | AA102: 0 | AB102: 0 | AC102: 0 | AD102: 0 | AE102: 0 | AF102: 0 | AG102: 0 | AH102: 0 | AI102: 0 | AK102: =SUBTOTAL(9,AK103:AK112) -> 0 | AL102: 0 | AM102: 0 | AN102: 0 | AO102: 0 | AP102: 0 | AQ102: 0 | AR102: 0 | AS102: 0 | AT102: 0 | AU102: 0 | AV102: 0 | AW102: 0 | AX102: 0 | AY102: 0 | AZ102: 0 | BB102: =SUBTOTAL(9,BB103:BB112) -> 0 | BC102: 0 | BD102: 0 | BE102: 0 | BF102: 0 | BG102: 0 | BH102: 0 | BI102: 0 | BJ102: 0 | BK102: 0 | BL102: 0 | BM102: 0 | BN102: 0 | BO102: 0 | BP102: 0 | BQ102: 0 | BS102: =SUBTOTAL(9,BS103:BS112) -> 0 | BT102: 0 | BU102: 0 | BV102: 0 | BW102: 0 | BX102: 0 | BY102: 0 | BZ102: 0 | CA102: 0 | CB102: 0 | CC102: 0 | CD102: 0 | CE102: 0 | CF102: 0 | CG102: 0 | CH102: 0 | CJ102: =SUBTOTAL(9,CJ103:CJ112) -> 0 | CK102: 0 | CL102: 0 | CM102: 0 | CN102: 0 | CO102: 0 | CP102: 0 | CQ102: 0 | CR102: 0 | CS102: 0 | CT102: 0 | CU102: 0 | CV102: 0 | CW102: 0 | CX102: 0 | CY102: 0 | DA102: =SUBTOTAL(9,DA103:DA112) -> 0 | DB102: 0 | DC102: 0 | DD102: 0 | DE102: 0 | DF102: 0 | DG102: 0 | DH102: 0 | DI102: 0 | DJ102: 0 | DK102: 0 | DL102: 0 | DM102: 0 | DN102: 0 | DO102: 0 | DP102: 0 | DR102: 0 | DS102: 0 | DT102: 0 | DU102: 0 | DV102: 0 | DW102: 0 | DX102: =DV102+DW102 -> 0 | DY102: =(DV102-DU102)/(DV$124-DU$124) -> 
A103: 9.1 | M103: =SUM(C103:K103) -> 0 | N103: =SUMPRODUCT(C$11:L$11,C103:L103) -> 0 | O103: =(N103*$J$2)+(N103*$J$3) -> 0 | P103: =L103 -> 0 | Q103: =SUM(N103:P103) -> 0 | R103: =(N103+O103)*$J$4 -> 0 | AD103: =SUM(T103:AB103) -> 0 | AE103: =SUMPRODUCT(T$11:AB$11,T103:AB103) -> 0 | AF103: =(AE103*AA$2)+(AE103*AA$3) -> 0 | AG103: =AC103 -> 0 | AH103: =SUM(AE103:AG103) -> 0 | AI103: =(AE103+AF103)*AA$4 -> 0 | AU103: =SUM(AK103:AS103) -> 0 | AV103: =SUMPRODUCT(AK$11:AS$11,AK103:AS103) -> 0 | AW103: =(AV103*AR$2)+(AV103*AR$3) -> 0 | AX103: =AT103 -> 0 | AY103: =SUM(AV103:AX103) -> 0 | AZ103: =(AV103+AW103)*AR$4 -> 0 | BL103: =SUM(BB103:BJ103) -> 0 | BM103: =SUMPRODUCT(BB$11:BJ$11,BB103:BJ103) -> 0 | BN103: =(BM103*BI$2)+(BM103*BI$3) -> 0 | BO103: =BK103 -> 0 | BP103: =SUM(BM103:BO103) -> 0 | BQ103: =(BM103+BN103)*BI$4 -> 0 | CC103: =SUM(BS103:CA103) -> 0 | CD103: =SUMPRODUCT(BS$11:CA$11,BS103:CA103) -> 0 | CE103: =(CD103*BZ$2)+(CD103*BZ$3) -> 0 | CF103: =CB103 -> 0 | CG103: =SUM(CD103:CF103) -> 0 | CH103: =(CD103+CE103)*BZ$4 -> 0 | CT103: =SUM(CJ103:CR103) -> 0 | CU103: =SUMPRODUCT(CJ$11:CR$11,CJ103:CR103) -> 0 | CV103: =(CU103*CQ$2)+(CU103*CQ$3) -> 0 | CW103: =CS103 -> 0 | CX103: =SUM(CU103:CW103) -> 0 | CY103: =(CU103+CV103)*CQ$4 -> 0 | DK103: =SUM(DA103:DI103) -> 0 | DL103: =SUMPRODUCT(DA$11:DI$11,DA103:DI103) -> 0 | DM103: =(DL103*DH$2)+(DL103*DH$3) -> 0 | DN103: =DJ103 -> 0 | DO103: =SUM(DL103:DN103) -> 0 | DP103: =(DL103+DM103)*DH$4 -> 0 | DR103: 0 | DS103: 0 | DT103: 0 | DU103: 0 | DV103: 0 | DW103: 0 | DX103: 0
A104: 9.2 | M104: 0 | N104: =SUMPRODUCT(C$11:L$11,C104:L104) -> 0 | O104: 0 | P104: =L104 -> 0 | Q104: =SUM(N104:P104) -> 0 | R104: =(N104+O104)*$J$4 -> 0 | AD104: 0 | AE104: =SUMPRODUCT(T$11:AB$11,T104:AB104) -> 0 | AF104: =(AE104*AA$2)+(AE104*AA$3) -> 0 | AG104: =AC104 -> 0 | AH104: =SUM(AE104:AG104) -> 0 | AI104: =(AE104+AF104)*AA$4 -> 0 | AU104: 0 | AV104: =SUMPRODUCT(AK$11:AS$11,AK104:AS104) -> 0 | AW104: =(AV104*AR$2)+(AV104*AR$3) -> 0 | AX104: =AT104 -> 0 | AY104: =SUM(AV104:AX104) -> 0 | AZ104: =(AV104+AW104)*AR$4 -> 0 | BL104: 0 | BM104: =SUMPRODUCT(BB$11:BJ$11,BB104:BJ104) -> 0 | BN104: =(BM104*BI$2)+(BM104*BI$3) -> 0 | BO104: =BK104 -> 0 | BP104: =SUM(BM104:BO104) -> 0 | BQ104: =(BM104+BN104)*BI$4 -> 0 | CC104: 0 | CD104: =SUMPRODUCT(BS$11:CA$11,BS104:CA104) -> 0 | CE104: =(CD104*BZ$2)+(CD104*BZ$3) -> 0 | CF104: =CB104 -> 0 | CG104: =SUM(CD104:CF104) -> 0 | CH104: =(CD104+CE104)*BZ$4 -> 0 | CT104: 0 | CU104: =SUMPRODUCT(CJ$11:CR$11,CJ104:CR104) -> 0 | CV104: =(CU104*CQ$2)+(CU104*CQ$3) -> 0 | CW104: =CS104 -> 0 | CX104: =SUM(CU104:CW104) -> 0 | CY104: =(CU104+CV104)*CQ$4 -> 0 | DK104: 0 | DL104: =SUMPRODUCT(DA$11:DI$11,DA104:DI104) -> 0 | DM104: =(DL104*DH$2)+(DL104*DH$3) -> 0 | DN104: =DJ104 -> 0 | DO104: =SUM(DL104:DN104) -> 0 | DP104: =(DL104+DM104)*DH$4 -> 0 | DR104: 0 | DS104: 0 | DT104: 0 | DU104: 0 | DV104: 0 | DW104: 0 | DX104: 0
A105: 9.3 | M105: 0 | N105: =SUMPRODUCT(C$11:L$11,C105:L105) -> 0 | O105: 0 | P105: =L105 -> 0 | Q105: =SUM(N105:P105) -> 0 | R105: =(N105+O105)*$J$4 -> 0 | AD105: 0 | AE105: 0 | AF105: 0 | AG105: 0 | AH105: 0 | AI105: 0 | AU105: 0 | AV105: 0 | AW105: 0 | AX105: 0 | AY105: 0 | AZ105: 0 | BL105: 0 | BM105: 0 | BN105: 0 | BO105: 0 | BP105: 0 | BQ105: 0 | CC105: 0 | CD105: 0 | CE105: 0 | CF105: 0 | CG105: 0 | CH105: 0 | CT105: 0 | CU105: 0 | CV105: 0 | CW105: 0 | CX105: 0 | CY105: 0 | DK105: 0 | DL105: 0 | DM105: 0 | DN105: 0 | DO105: 0 | DP105: 0 | DR105: 0 | DS105: 0 | DT105: 0 | DU105: 0 | DV105: 0 | DW105: 0 | DX105: 0
A106: 9.4 | M106: 0 | N106: 0 | O106: 0 | P106: 0 | Q106: 0 | R106: 0 | AD106: 0 | AE106: 0 | AF106: 0 | AG106: 0 | AH106: 0 | AI106: 0 | AU106: 0 | AV106: 0 | AW106: 0 | AX106: 0 | AY106: 0 | AZ106: 0 | BL106: 0 | BM106: 0 | BN106: 0 | BO106: 0 | BP106: 0 | BQ106: 0 | CC106: 0 | CD106: 0 | CE106: 0 | CF106: 0 | CG106: 0 | CH106: 0 | CT106: 0 | CU106: 0 | CV106: 0 | CW106: 0 | CX106: 0 | CY106: 0 | DK106: 0 | DL106: 0 | DM106: 0 | DN106: 0 | DO106: 0 | DP106: 0 | DR106: 0 | DS106: 0 | DT106: 0 | DU106: 0 | DV106: 0 | DW106: 0 | DX106: 0
A107: 9.5 | M107: 0 | N107: 0 | O107: 0 | P107: 0 | Q107: 0 | R107: 0 | AD107: 0 | AE107: 0 | AF107: 0 | AG107: 0 | AH107: 0 | AI107: 0 | AU107: 0 | AV107: 0 | AW107: 0 | AX107: 0 | AY107: 0 | AZ107: 0 | BL107: 0 | BM107: 0 | BN107: 0 | BO107: 0 | BP107: 0 | BQ107: 0 | CC107: 0 | CD107: 0 | CE107: 0 | CF107: 0 | CG107: 0 | CH107: 0 | CT107: 0 | CU107: 0 | CV107: 0 | CW107: 0 | CX107: 0 | CY107: 0 | DK107: 0 | DL107: 0 | DM107: 0 | DN107: 0 | DO107: 0 | DP107: 0 | DR107: =SUMIF($C$9:$DP$9,DR$9,$C107:$DP107) -> 0 | DS107: 0 | DT107: 0 | DU107: 0 | DV107: 0 | DW107: 0 | DX107: 0
A108: 9.6 | M108: 0 | N108: 0 | O108: 0 | P108: 0 | Q108: 0 | R108: 0 | AD108: 0 | AE108: 0 | AF108: 0 | AG108: 0 | AH108: 0 | AI108: 0 | AU108: 0 | AV108: 0 | AW108: 0 | AX108: 0 | AY108: 0 | AZ108: 0 | BL108: 0 | BM108: 0 | BN108: 0 | BO108: 0 | BP108: 0 | BQ108: 0 | CC108: 0 | CD108: 0 | CE108: 0 | CF108: 0 | CG108: 0 | CH108: 0 | CT108: 0 | CU108: 0 | CV108: 0 | CW108: 0 | CX108: 0 | CY108: 0 | DK108: 0 | DL108: 0 | DM108: 0 | DN108: 0 | DO108: 0 | DP108: 0 | DR108: 0 | DS108: 0 | DT108: 0 | DU108: 0 | DV108: 0 | DW108: 0 | DX108: 0
A109: 9.7 | M109: 0 | N109: 0 | O109: 0 | P109: 0 | Q109: 0 | R109: 0 | AD109: 0 | AE109: 0 | AF109: 0 | AG109: 0 | AH109: 0 | AI109: 0 | AU109: 0 | AV109: 0 | AW109: 0 | AX109: 0 | AY109: 0 | AZ109: 0 | BL109: 0 | BM109: 0 | BN109: 0 | BO109: 0 | BP109: 0 | BQ109: 0 | CC109: 0 | CD109: 0 | CE109: 0 | CF109: 0 | CG109: 0 | CH109: 0 | CT109: 0 | CU109: 0 | CV109: 0 | CW109: 0 | CX109: 0 | CY109: 0 | DK109: 0 | DL109: 0 | DM109: 0 | DN109: 0 | DO109: 0 | DP109: 0 | DR109: 0 | DS109: 0 | DT109: 0 | DU109: 0 | DV109: 0 | DW109: 0 | DX109: 0
A110: 9.8 | M110: 0 | N110: 0 | O110: 0 | P110: 0 | Q110: 0 | R110: 0 | AD110: 0 | AE110: 0 | AF110: 0 | AG110: 0 | AH110: 0 | AI110: 0 | AU110: 0 | AV110: 0 | AW110: 0 | AX110: 0 | AY110: 0 | AZ110: 0 | BL110: 0 | BM110: 0 | BN110: 0 | BO110: 0 | BP110: 0 | BQ110: 0 | CC110: 0 | CD110: 0 | CE110: 0 | CF110: 0 | CG110: 0 | CH110: 0 | CT110: 0 | CU110: 0 | CV110: 0 | CW110: 0 | CX110: 0 | CY110: 0 | DK110: 0 | DL110: 0 | DM110: 0 | DN110: 0 | DO110: 0 | DP110: 0 | DR110: 0 | DS110: 0 | DT110: 0 | DU110: 0 | DV110: 0 | DW110: 0 | DX110: 0
A111: 9.9 | M111: 0 | N111: 0 | O111: 0 | P111: 0 | Q111: 0 | R111: 0 | AD111: 0 | AE111: 0 | AF111: 0 | AG111: 0 | AH111: 0 | AI111: 0 | AU111: 0 | AV111: 0 | AW111: 0 | AX111: 0 | AY111: 0 | AZ111: 0 | BL111: 0 | BM111: 0 | BN111: 0 | BO111: 0 | BP111: 0 | BQ111: 0 | CC111: 0 | CD111: 0 | CE111: 0 | CF111: 0 | CG111: 0 | CH111: 0 | CT111: 0 | CU111: 0 | CV111: 0 | CW111: 0 | CX111: 0 | CY111: 0 | DK111: 0 | DL111: 0 | DM111: 0 | DN111: 0 | DO111: 0 | DP111: 0 | DR111: 0 | DS111: 0 | DT111: 0 | DU111: 0 | DV111: 0 | DW111: 0 | DX111: 0
A112: 9.10 | M112: 0 | N112: =SUMPRODUCT(C$11:L$11,C112:L112) -> 0 | O112: 0 | P112: =L112 -> 0 | Q112: =SUM(N112:P112) -> 0 | R112: =(N112+O112)*$J$4 -> 0 | AD112: 0 | AE112: 0 | AF112: 0 | AG112: 0 | AH112: 0 | AI112: 0 | AU112: 0 | AV112: 0 | AW112: 0 | AX112: 0 | AY112: 0 | AZ112: 0 | BL112: 0 | BM112: 0 | BN112: 0 | BO112: 0 | BP112: 0 | BQ112: 0 | CC112: 0 | CD112: 0 | CE112: 0 | CF112: 0 | CG112: 0 | CH112: 0 | CT112: 0 | CU112: 0 | CV112: 0 | CW112: 0 | CX112: 0 | CY112: 0 | DK112: 0 | DL112: 0 | DM112: 0 | DN112: 0 | DO112: 0 | DP112: 0 | DR112: 0 | DS112: 0 | DT112: 0 | DU112: 0 | DV112: 0 | DW112: 0 | DX112: 0
A113: 10 | C113: =SUBTOTAL(9,C114:C123) -> 0 | D113: 0 | E113: 0 | F113: 0 | G113: 0 | H113: 0 | I113: 0 | J113: 0 | K113: 0 | L113: 0 | M113: =SUBTOTAL(9,M114:M123) -> 0 | N113: 0 | O113: 0 | P113: 0 | Q113: 0 | R113: 0 | T113: =SUBTOTAL(9,T114:T123) -> 0 | U113: =SUBTOTAL(9,U114:U123) -> 0 | V113: 0 | W113: 0 | X113: 0 | Y113: 0 | Z113: 0 | AA113: 0 | AB113: 0 | AC113: 0 | AD113: 0 | AE113: 0 | AF113: 0 | AG113: 0 | AH113: 0 | AI113: 0 | AK113: =SUBTOTAL(9,AK114:AK123) -> 0 | AL113: 0 | AM113: 0 | AN113: 0 | AO113: 0 | AP113: 0 | AQ113: 0 | AR113: 0 | AS113: 0 | AT113: 0 | AU113: 0 | AV113: 0 | AW113: 0 | AX113: 0 | AY113: 0 | AZ113: 0 | BB113: =SUBTOTAL(9,BB114:BB123) -> 0 | BC113: 0 | BD113: 0 | BE113: 0 | BF113: 0 | BG113: 0 | BH113: 0 | BI113: 0 | BJ113: 0 | BK113: 0 | BL113: 0 | BM113: 0 | BN113: 0 | BO113: 0 | BP113: 0 | BQ113: 0 | BS113: =SUBTOTAL(9,BS114:BS123) -> 0 | BT113: 0 | BU113: 0 | BV113: 0 | BW113: 0 | BX113: 0 | BY113: 0 | BZ113: 0 | CA113: 0 | CB113: 0 | CC113: 0 | CD113: 0 | CE113: 0 | CF113: 0 | CG113: 0 | CH113: 0 | CJ113: =SUBTOTAL(9,CJ114:CJ123) -> 0 | CK113: 0 | CL113: 0 | CM113: 0 | CN113: 0 | CO113: 0 | CP113: 0 | CQ113: 0 | CR113: 0 | CS113: 0 | CT113: 0 | CU113: 0 | CV113: 0 | CW113: 0 | CX113: 0 | CY113: 0 | DA113: =SUBTOTAL(9,DA114:DA123) -> 0 | DB113: 0 | DC113: 0 | DD113: 0 | DE113: 0 | DF113: 0 | DG113: 0 | DH113: 0 | DI113: 0 | DJ113: 0 | DK113: 0 | DL113: 0 | DM113: 0 | DN113: 0 | DO113: 0 | DP113: 0 | DR113: =SUMIF($C$9:$DP$9,DR$9,$C113:$DP113) -> 0 | DS113: 0 | DT113: 0 | DU113: 0 | DV113: 0 | DW113: 0 | DX113: 0
A114: 10.1 | M114: =SUM(C114:K114) -> 0 | N114: =SUMPRODUCT(C$11:L$11,C114:L114) -> 0 | O114: 0 | P114: =L114 -> 0 | Q114: =SUM(N114:P114) -> 0 | R114: =(N114+O114)*$J$4 -> 0 | AD114: =SUM(T114:AB114) -> 0 | AE114: =SUMPRODUCT(T$11:AB$11,T114:AB114) -> 0 | AF114: =(AE114*AA$2)+(AE114*AA$3) -> 0 | AG114: =AC114 -> 0 | AH114: =SUM(AE114:AG114) -> 0 | AI114: =(AE114+AF114)*AA$4 -> 0 | AU114: =SUM(AK114:AS114) -> 0 | AV114: =SUMPRODUCT(AK$11:AS$11,AK114:AS114) -> 0 | AW114: =(AV114*AR$2)+(AV114*AR$3) -> 0 | AX114: =AT114 -> 0 | AY114: =SUM(AV114:AX114) -> 0 | AZ114: =(AV114+AW114)*AR$4 -> 0 | BL114: =SUM(BB114:BJ114) -> 0 | BM114: =SUMPRODUCT(BB$11:BJ$11,BB114:BJ114) -> 0 | BN114: =(BM114*BI$2)+(BM114*BI$3) -> 0 | BO114: =BK114 -> 0 | BP114: =SUM(BM114:BO114) -> 0 | BQ114: =(BM114+BN114)*BI$4 -> 0 | CC114: =SUM(BS114:CA114) -> 0 | CD114: =SUMPRODUCT(BS$11:CA$11,BS114:CA114) -> 0 | CE114: =(CD114*BZ$2)+(CD114*BZ$3) -> 0 | CF114: =CB114 -> 0 | CG114: =SUM(CD114:CF114) -> 0 | CH114: =(CD114+CE114)*BZ$4 -> 0 | CT114: =SUM(CJ114:CR114) -> 0 | CU114: =SUMPRODUCT(CJ$11:CR$11,CJ114:CR114) -> 0 | CV114: =(CU114*CQ$2)+(CU114*CQ$3) -> 0 | CW114: =CS114 -> 0 | CX114: =SUM(CU114:CW114) -> 0 | CY114: =(CU114+CV114)*CQ$4 -> 0 | DK114: =SUM(DA114:DI114) -> 0 | DL114: =SUMPRODUCT(DA$11:DI$11,DA114:DI114) -> 0 | DM114: =(DL114*DH$2)+(DL114*DH$3) -> 0 | DN114: =DJ114 -> 0 | DO114: =SUM(DL114:DN114) -> 0 | DP114: =(DL114+DM114)*DH$4 -> 0 | DR114: 0 | DS114: 0 | DT114: 0 | DU114: 0 | DV114: 0 | DW114: 0 | DX114: 0
A115: 10.2 | M115: 0 | N115: =SUMPRODUCT(C$11:L$11,C115:L115) -> 0 | O115: 0 | P115: =L115 -> 0 | Q115: =SUM(N115:P115) -> 0 | R115: =(N115+O115)*$J$4 -> 0 | AD115: 0 | AE115: =SUMPRODUCT(T$11:AB$11,T115:AB115) -> 0 | AF115: =(AE115*AA$2)+(AE115*AA$3) -> 0 | AG115: =AC115 -> 0 | AH115: =SUM(AE115:AG115) -> 0 | AI115: =(AE115+AF115)*AA$4 -> 0 | AU115: 0 | AV115: =SUMPRODUCT(AK$11:AS$11,AK115:AS115) -> 0 | AW115: =(AV115*AR$2)+(AV115*AR$3) -> 0 | AX115: =AT115 -> 0 | AY115: =SUM(AV115:AX115) -> 0 | AZ115: =(AV115+AW115)*AR$4 -> 0 | BL115: 0 | BM115: =SUMPRODUCT(BB$11:BJ$11,BB115:BJ115) -> 0 | BN115: =(BM115*BI$2)+(BM115*BI$3) -> 0 | BO115: =BK115 -> 0 | BP115: =SUM(BM115:BO115) -> 0 | BQ115: =(BM115+BN115)*BI$4 -> 0 | CC115: 0 | CD115: =SUMPRODUCT(BS$11:CA$11,BS115:CA115) -> 0 | CE115: =(CD115*BZ$2)+(CD115*BZ$3) -> 0 | CF115: =CB115 -> 0 | CG115: =SUM(CD115:CF115) -> 0 | CH115: =(CD115+CE115)*BZ$4 -> 0 | CT115: 0 | CU115: =SUMPRODUCT(CJ$11:CR$11,CJ115:CR115) -> 0 | CV115: =(CU115*CQ$2)+(CU115*CQ$3) -> 0 | CW115: =CS115 -> 0 | CX115: =SUM(CU115:CW115) -> 0 | CY115: =(CU115+CV115)*CQ$4 -> 0 | DK115: 0 | DL115: =SUMPRODUCT(DA$11:DI$11,DA115:DI115) -> 0 | DM115: =(DL115*DH$2)+(DL115*DH$3) -> 0 | DN115: =DJ115 -> 0 | DO115: =SUM(DL115:DN115) -> 0 | DP115: =(DL115+DM115)*DH$4 -> 0 | DR115: 0 | DS115: 0 | DT115: 0 | DU115: 0 | DV115: 0 | DW115: 0 | DX115: 0
A116: 10.3 | M116: 0 | N116: =SUMPRODUCT(C$11:L$11,C116:L116) -> 0 | O116: 0 | P116: =L116 -> 0 | Q116: =SUM(N116:P116) -> 0 | R116: =(N116+O116)*$J$4 -> 0 | AD116: 0 | AE116: 0 | AF116: 0 | AG116: 0 | AH116: 0 | AI116: 0 | AU116: 0 | AV116: 0 | AW116: 0 | AX116: 0 | AY116: 0 | AZ116: 0 | BL116: 0 | BM116: 0 | BN116: 0 | BO116: 0 | BP116: 0 | BQ116: 0 | CC116: 0 | CD116: 0 | CE116: 0 | CF116: 0 | CG116: 0 | CH116: 0 | CT116: 0 | CU116: 0 | CV116: 0 | CW116: 0 | CX116: 0 | CY116: 0 | DK116: 0 | DL116: 0 | DM116: 0 | DN116: 0 | DO116: 0 | DP116: 0 | DR116: 0 | DS116: 0 | DT116: 0 | DU116: 0 | DV116: 0 | DW116: 0 | DX116: 0
A117: 10.4 | M117: 0 | N117: 0 | O117: 0 | P117: 0 | Q117: 0 | R117: 0 | AD117: 0 | AE117: 0 | AF117: 0 | AG117: 0 | AH117: 0 | AI117: 0 | AU117: 0 | AV117: 0 | AW117: 0 | AX117: 0 | AY117: 0 | AZ117: 0 | BL117: 0 | BM117: 0 | BN117: 0 | BO117: 0 | BP117: 0 | BQ117: 0 | CC117: 0 | CD117: 0 | CE117: 0 | CF117: 0 | CG117: 0 | CH117: 0 | CT117: 0 | CU117: 0 | CV117: 0 | CW117: 0 | CX117: 0 | CY117: 0 | DK117: 0 | DL117: 0 | DM117: 0 | DN117: 0 | DO117: 0 | DP117: 0 | DR117: 0 | DS117: 0 | DT117: 0 | DU117: 0 | DV117: 0 | DW117: 0 | DX117: 0
A118: 10.5 | M118: 0 | N118: 0 | O118: 0 | P118: 0 | Q118: 0 | R118: 0 | AD118: 0 | AE118: 0 | AF118: 0 | AG118: 0 | AH118: 0 | AI118: 0 | AU118: 0 | AV118: 0 | AW118: 0 | AX118: 0 | AY118: 0 | AZ118: 0 | BL118: 0 | BM118: 0 | BN118: 0 | BO118: 0 | BP118: 0 | BQ118: 0 | CC118: 0 | CD118: 0 | CE118: 0 | CF118: 0 | CG118: 0 | CH118: 0 | CT118: 0 | CU118: 0 | CV118: 0 | CW118: 0 | CX118: 0 | CY118: 0 | DK118: 0 | DL118: 0 | DM118: 0 | DN118: 0 | DO118: 0 | DP118: 0 | DR118: =SUMIF($C$9:$DP$9,DR$9,$C118:$DP118) -> 0 | DS118: =SUMIF($C$9:$DP$9,DS$9,$C118:$DP118) -> 0 | DT118: =SUMIF($C$9:$DP$9,DT$9,$C118:$DP118) -> 0 | DU118: =SUMIF($C$9:$DP$9,DU$9,$C118:$DP118) -> 0 | DV118: 0 | DW118: 0 | DX118: 0
A119: 10.6 | M119: 0 | N119: 0 | O119: 0 | P119: 0 | Q119: 0 | R119: 0 | AD119: 0 | AE119: 0 | AF119: 0 | AG119: 0 | AH119: 0 | AI119: 0 | AU119: 0 | AV119: 0 | AW119: 0 | AX119: 0 | AY119: 0 | AZ119: 0 | BL119: 0 | BM119: 0 | BN119: 0 | BO119: 0 | BP119: 0 | BQ119: 0 | CC119: 0 | CD119: 0 | CE119: 0 | CF119: 0 | CG119: 0 | CH119: 0 | CT119: 0 | CU119: 0 | CV119: 0 | CW119: 0 | CX119: 0 | CY119: 0 | DK119: 0 | DL119: 0 | DM119: 0 | DN119: 0 | DO119: 0 | DP119: 0 | DR119: 0 | DS119: 0 | DT119: 0 | DU119: 0 | DV119: 0 | DW119: 0 | DX119: 0
A120: 10.7 | M120: 0 | N120: 0 | O120: 0 | P120: 0 | Q120: 0 | R120: 0 | AD120: 0 | AE120: 0 | AF120: 0 | AG120: 0 | AH120: 0 | AI120: 0 | AU120: 0 | AV120: 0 | AW120: 0 | AX120: 0 | AY120: 0 | AZ120: 0 | BL120: 0 | BM120: 0 | BN120: 0 | BO120: 0 | BP120: 0 | BQ120: 0 | CC120: 0 | CD120: 0 | CE120: 0 | CF120: 0 | CG120: 0 | CH120: 0 | CT120: 0 | CU120: 0 | CV120: 0 | CW120: 0 | CX120: 0 | CY120: 0 | DK120: 0 | DL120: 0 | DM120: 0 | DN120: 0 | DO120: 0 | DP120: 0 | DR120: 0 | DS120: 0 | DT120: 0 | DU120: 0 | DV120: 0 | DW120: 0 | DX120: 0
A121: 10.8 | M121: 0 | N121: 0 | O121: 0 | P121: 0 | Q121: 0 | R121: 0 | AD121: 0 | AE121: 0 | AF121: 0 | AG121: 0 | AH121: 0 | AI121: 0 | AU121: 0 | AV121: 0 | AW121: 0 | AX121: 0 | AY121: 0 | AZ121: 0 | BL121: 0 | BM121: 0 | BN121: 0 | BO121: 0 | BP121: 0 | BQ121: 0 | CC121: 0 | CD121: 0 | CE121: 0 | CF121: 0 | CG121: 0 | CH121: 0 | CT121: 0 | CU121: 0 | CV121: 0 | CW121: 0 | CX121: 0 | CY121: 0 | DK121: 0 | DL121: 0 | DM121: 0 | DN121: 0 | DO121: 0 | DP121: 0 | DR121: 0 | DS121: 0 | DT121: 0 | DU121: 0 | DV121: 0 | DW121: 0 | DX121: 0
A122: 10.9 | M122: 0 | N122: 0 | O122: 0 | P122: 0 | Q122: 0 | R122: 0 | AD122: 0 | AE122: 0 | AF122: 0 | AG122: 0 | AH122: 0 | AI122: 0 | AU122: 0 | AV122: 0 | AW122: 0 | AX122: 0 | AY122: 0 | AZ122: 0 | BL122: 0 | BM122: 0 | BN122: 0 | BO122: 0 | BP122: 0 | BQ122: 0 | CC122: 0 | CD122: 0 | CE122: 0 | CF122: 0 | CG122: 0 | CH122: 0 | CT122: 0 | CU122: 0 | CV122: 0 | CW122: 0 | CX122: 0 | CY122: 0 | DK122: 0 | DL122: 0 | DM122: 0 | DN122: 0 | DO122: 0 | DP122: 0 | DR122: 0 | DS122: 0 | DT122: 0 | DU122: 0 | DV122: 0 | DW122: 0 | DX122: 0
A123: 10.10 | M123: 0 | N123: =SUMPRODUCT(C$11:L$11,C123:L123) -> 0 | O123: 0 | P123: =L123 -> 0 | Q123: =SUM(N123:P123) -> 0 | R123: =(N123+O123)*$J$4 -> 0 | AD123: 0 | AE123: 0 | AF123: 0 | AG123: 0 | AH123: 0 | AI123: 0 | AU123: 0 | AV123: 0 | AW123: 0 | AX123: 0 | AY123: 0 | AZ123: 0 | BL123: 0 | BM123: 0 | BN123: 0 | BO123: 0 | BP123: 0 | BQ123: 0 | CC123: 0 | CD123: 0 | CE123: 0 | CF123: 0 | CG123: 0 | CH123: 0 | CT123: 0 | CU123: 0 | CV123: 0 | CW123: 0 | CX123: 0 | CY123: 0 | DK123: 0 | DL123: 0 | DM123: 0 | DN123: 0 | DO123: 0 | DP123: 0 | DR123: 0 | DS123: 0 | DT123: 0 | DU123: 0 | DV123: 0 | DW123: 0 | DX123: 0 | DY123: =(DV123-DU123)/(DV$124-DU$124) -> 
B124: TOTAL Non-On-Call Tasks/Deliverables | C124: =+C14+C25+C36+C47+C58+C69+C80+C91+C102+C113 -> 0 | D124: =+D14+D25+D36+D47+D58+D69+D80+D91+D102+D113 -> 0 | E124: 0 | F124: 0 | G124: 0 | H124: 0 | I124: 0 | J124: 0 | K124: 0 | L124: 0 | M124: 0 | N124: 0 | O124: 0 | P124: 0 | Q124: 0 | R124: 0 | T124: 0 | U124: 0 | V124: 0 | W124: 0 | X124: 0 | Y124: 0 | Z124: 0 | AA124: 0 | AB124: 0 | AC124: 0 | AD124: 0 | AE124: 0 | AF124: 0 | AG124: 0 | AH124: 0 | AI124: 0 | AK124: 0 | AL124: 0 | AM124: 0 | AN124: 0 | AO124: 0 | AP124: 0 | AQ124: 0 | AR124: 0 | AS124: 0 | AT124: 0 | AU124: 0 | AV124: 0 | AW124: 0 | AX124: 0 | AY124: 0 | AZ124: 0 | BB124: 0 | BC124: 0 | BD124: 0 | BE124: 0 | BF124: 0 | BG124: 0 | BH124: 0 | BI124: 0 | BJ124: 0 | BK124: 0 | BL124: 0 | BM124: 0 | BN124: 0 | BO124: 0 | BP124: =+BP14+BP25+BP36+BP47+BP58+BP69+BP80+BP91+BP102+BP113 -> 0 | BQ124: =+BQ14+BQ25+BQ36+BQ47+BQ58+BQ69+BQ80+BQ91+BQ102+BQ113 -> 0 | BS124: =+BS14+BS25+BS36+BS47+BS58+BS69+BS80+BS91+BS102+BS113 -> 0 | BT124: 0 | BU124: 0 | BV124: 0 | BW124: 0 | BX124: 0 | BY124: 0 | BZ124: 0 | CA124: 0 | CB124: 0 | CC124: 0 | CD124: 0 | CE124: 0 | CF124: 0 | CG124: 0 | CH124: 0 | CJ124: =+CJ14+CJ25+CJ36+CJ47+CJ58+CJ69+CJ80+CJ91+CJ102+CJ113 -> 0 | CK124: 0 | CL124: 0 | CM124: 0 | CN124: 0 | CO124: 0 | CP124: 0 | CQ124: 0 | CR124: 0 | CS124: 0 | CT124: 0 | CU124: 0 | CV124: 0 | CW124: 0 | CX124: 0 | CY124: 0 | DA124: =+DA14+DA25+DA36+DA47+DA58+DA69+DA80+DA91+DA102+DA113 -> 0 | DB124: 0 | DC124: 0 | DD124: 0 | DE124: 0 | DF124: 0 | DG124: 0 | DH124: 0 | DI124: 0 | DJ124: 0 | DK124: 0 | DL124: 0 | DM124: 0 | DN124: 0 | DO124: 0 | DP124: 0 | DR124: 0 | DS124: 0 | DT124: 0 | DU124: 0 | DV124: 0 | DW124: 0 | DX124: 0 | DY124: =(DV124/(DV$124+DU$124)) -> 
A126: ON-CALL TASKS/DELIVERABLES
A127: O1 | C127: 0 | D127: =SUBTOTAL(9,D128:D137) -> 0 | E127: 0 | F127: 0 | G127: 0 | H127: 0 | I127: 0 | J127: 0 | K127: 0 | L127: 0 | M127: =SUBTOTAL(9,M128:M137) -> 0 | N127: 0 | O127: 0 | P127: 0 | Q127: 0 | R127: 0 | T127: =SUBTOTAL(9,T128:T137) -> 0 | U127: 0 | V127: 0 | W127: 0 | X127: 0 | Y127: 0 | Z127: 0 | AA127: 0 | AB127: 0 | AC127: 0 | AD127: 0 | AE127: 0 | AF127: 0 | AG127: 0 | AH127: 0 | AI127: 0 | AK127: =SUBTOTAL(9,AK128:AK137) -> 0 | AL127: 0 | AM127: 0 | AN127: 0 | AO127: 0 | AP127: 0 | AQ127: 0 | AR127: 0 | AS127: 0 | AT127: 0 | AU127: 0 | AV127: 0 | AW127: 0 | AX127: 0 | AY127: 0 | AZ127: 0 | BB127: =SUBTOTAL(9,BB128:BB137) -> 0 | BC127: 0 | BD127: 0 | BE127: 0 | BF127: 0 | BG127: 0 | BH127: 0 | BI127: 0 | BJ127: 0 | BK127: 0 | BL127: 0 | BM127: 0 | BN127: 0 | BO127: 0 | BP127: 0 | BQ127: 0 | BS127: =SUBTOTAL(9,BS128:BS137) -> 0 | BT127: 0 | BU127: 0 | BV127: 0 | BW127: 0 | BX127: 0 | BY127: 0 | BZ127: 0 | CA127: 0 | CB127: 0 | CC127: 0 | CD127: 0 | CE127: 0 | CF127: 0 | CG127: 0 | CH127: 0 | CJ127: =SUBTOTAL(9,CJ128:CJ137) -> 0 | CK127: 0 | CL127: 0 | CM127: 0 | CN127: 0 | CO127: 0 | CP127: 0 | CQ127: 0 | CR127: 0 | CS127: 0 | CT127: 0 | CU127: 0 | CV127: 0 | CW127: 0 | CX127: 0 | CY127: 0 | DA127: =SUBTOTAL(9,DA128:DA137) -> 0 | DB127: 0 | DC127: 0 | DD127: 0 | DE127: 0 | DF127: 0 | DG127: 0 | DH127: 0 | DI127: 0 | DJ127: 0 | DK127: 0 | DL127: 0 | DM127: 0 | DN127: 0 | DO127: 0 | DP127: 0 | DR127: =SUMIF($C$9:$DP$9,DR$9,$C127:$DP127) -> 0 | DS127: 0 | DT127: 0 | DU127: 0 | DV127: 0 | DW127: 0 | DX127: =DV127+DW127 -> 0
A128: O1.1 | M128: =SUM(C128:K128) -> 0 | N128: 0 | O128: =(N128*$J$2)+(N128*$J$3) -> 0 | P128: =L128 -> 0 | Q128: =SUM(N128:P128) -> 0 | R128: =(N128+O128)*$J$4 -> 0 | AD128: =SUM(T128:AB128) -> 0 | AE128: =SUMPRODUCT(T$11:AB$11,T128:AB128) -> 0 | AF128: =(AE128*AA$2)+(AE128*AA$3) -> 0 | AG128: =AC128 -> 0 | AH128: =SUM(AE128:AG128) -> 0 | AI128: =(AE128+AF128)*AA$4 -> 0 | AU128: =SUM(AK128:AS128) -> 0 | AV128: =SUMPRODUCT(AK$11:AS$11,AK128:AS128) -> 0 | AW128: =(AV128*AR$2)+(AV128*AR$3) -> 0 | AX128: =AT128 -> 0 | AY128: =SUM(AV128:AX128) -> 0 | AZ128: =(AV128+AW128)*AR$4 -> 0 | BL128: =SUM(BB128:BJ128) -> 0 | BM128: =SUMPRODUCT(BB$11:BJ$11,BB128:BJ128) -> 0 | BN128: =(BM128*BI$2)+(BM128*BI$3) -> 0 | BO128: =BK128 -> 0 | BP128: =SUM(BM128:BO128) -> 0 | BQ128: =(BM128+BN128)*BI$4 -> 0 | CC128: =SUM(BS128:CA128) -> 0 | CD128: =SUMPRODUCT(BS$11:CA$11,BS128:CA128) -> 0 | CE128: =(CD128*BZ$2)+(CD128*BZ$3) -> 0 | CF128: =CB128 -> 0 | CG128: =SUM(CD128:CF128) -> 0 | CH128: =(CD128+CE128)*BZ$4 -> 0 | CT128: =SUM(CJ128:CR128) -> 0 | CU128: =SUMPRODUCT(CJ$11:CR$11,CJ128:CR128) -> 0 | CV128: =(CU128*CQ$2)+(CU128*CQ$3) -> 0 | CW128: =CS128 -> 0 | CX128: =SUM(CU128:CW128) -> 0 | CY128: =(CU128+CV128)*CQ$4 -> 0 | DK128: =SUM(DA128:DI128) -> 0 | DL128: =SUMPRODUCT(DA$11:DI$11,DA128:DI128) -> 0 | DM128: =(DL128*DH$2)+(DL128*DH$3) -> 0 | DN128: =DJ128 -> 0 | DO128: =SUM(DL128:DN128) -> 0 | DP128: =(DL128+DM128)*DH$4 -> 0 | DR128: 0 | DS128: 0 | DT128: 0 | DU128: 0 | DV128: 0 | DW128: 0 | DX128: 0
A129: O1.2 | M129: 0 | N129: =SUMPRODUCT(C$11:L$11,C129:L129) -> 0 | O129: 0 | P129: =L129 -> 0 | Q129: =SUM(N129:P129) -> 0 | R129: =(N129+O129)*$J$4 -> 0 | AD129: 0 | AE129: =SUMPRODUCT(T$11:AB$11,T129:AB129) -> 0 | AF129: =(AE129*AA$2)+(AE129*AA$3) -> 0 | AG129: =AC129 -> 0 | AH129: =SUM(AE129:AG129) -> 0 | AI129: =(AE129+AF129)*AA$4 -> 0 | AU129: 0 | AV129: =SUMPRODUCT(AK$11:AS$11,AK129:AS129) -> 0 | AW129: =(AV129*AR$2)+(AV129*AR$3) -> 0 | AX129: 0 | AY129: 0 | AZ129: =(AV129+AW129)*AR$4 -> 0 | BL129: 0 | BM129: =SUMPRODUCT(BB$11:BJ$11,BB129:BJ129) -> 0 | BN129: =(BM129*BI$2)+(BM129*BI$3) -> 0 | BO129: =BK129 -> 0 | BP129: =SUM(BM129:BO129) -> 0 | BQ129: =(BM129+BN129)*BI$4 -> 0 | CC129: 0 | CD129: =SUMPRODUCT(BS$11:CA$11,BS129:CA129) -> 0 | CE129: =(CD129*BZ$2)+(CD129*BZ$3) -> 0 | CF129: =CB129 -> 0 | CG129: =SUM(CD129:CF129) -> 0 | CH129: =(CD129+CE129)*BZ$4 -> 0 | CT129: 0 | CU129: =SUMPRODUCT(CJ$11:CR$11,CJ129:CR129) -> 0 | CV129: =(CU129*CQ$2)+(CU129*CQ$3) -> 0 | CW129: =CS129 -> 0 | CX129: =SUM(CU129:CW129) -> 0 | CY129: =(CU129+CV129)*CQ$4 -> 0 | DK129: 0 | DL129: =SUMPRODUCT(DA$11:DI$11,DA129:DI129) -> 0 | DM129: =(DL129*DH$2)+(DL129*DH$3) -> 0 | DN129: =DJ129 -> 0 | DO129: =SUM(DL129:DN129) -> 0 | DP129: =(DL129+DM129)*DH$4 -> 0 | DR129: 0 | DS129: 0 | DT129: 0 | DU129: 0 | DV129: 0 | DW129: 0 | DX129: 0
A130: O1.3 | M130: 0 | N130: =SUMPRODUCT(C$11:L$11,C130:L130) -> 0 | O130: 0 | P130: 0 | Q130: =SUM(N130:P130) -> 0 | R130: =(N130+O130)*$J$4 -> 0 | AD130: 0 | AE130: 0 | AF130: 0 | AG130: 0 | AH130: 0 | AI130: 0 | AU130: 0 | AV130: 0 | AW130: 0 | AX130: 0 | AY130: 0 | AZ130: 0 | BL130: 0 | BM130: 0 | BN130: 0 | BO130: 0 | BP130: 0 | BQ130: 0 | CC130: 0 | CD130: 0 | CE130: 0 | CF130: 0 | CG130: 0 | CH130: 0 | CT130: 0 | CU130: 0 | CV130: 0 | CW130: 0 | CX130: 0 | CY130: 0 | DK130: 0 | DL130: 0 | DM130: 0 | DN130: 0 | DO130: 0 | DP130: 0 | DR130: 0 | DS130: 0 | DT130: 0 | DU130: 0 | DV130: 0 | DW130: 0 | DX130: 0
A131: O1.4 | M131: 0 | N131: 0 | O131: 0 | P131: 0 | Q131: 0 | R131: 0 | AD131: 0 | AE131: 0 | AF131: 0 | AG131: 0 | AH131: 0 | AI131: 0 | AU131: 0 | AV131: 0 | AW131: 0 | AX131: 0 | AY131: 0 | AZ131: 0 | BL131: 0 | BM131: 0 | BN131: 0 | BO131: 0 | BP131: 0 | BQ131: 0 | CC131: 0 | CD131: 0 | CE131: 0 | CF131: 0 | CG131: 0 | CH131: 0 | CT131: 0 | CU131: 0 | CV131: 0 | CW131: 0 | CX131: 0 | CY131: 0 | DK131: 0 | DL131: 0 | DM131: 0 | DN131: 0 | DO131: 0 | DP131: 0 | DR131: 0 | DS131: 0 | DT131: 0 | DU131: 0 | DV131: 0 | DW131: 0 | DX131: 0
A132: O1.5 | M132: 0 | N132: 0 | O132: 0 | P132: 0 | Q132: 0 | R132: 0 | AD132: 0 | AE132: 0 | AF132: 0 | AG132: 0 | AH132: 0 | AI132: 0 | AU132: 0 | AV132: 0 | AW132: 0 | AX132: 0 | AY132: 0 | AZ132: 0 | BL132: 0 | BM132: 0 | BN132: 0 | BO132: 0 | BP132: 0 | BQ132: 0 | CC132: 0 | CD132: 0 | CE132: 0 | CF132: 0 | CG132: 0 | CH132: 0 | CT132: 0 | CU132: 0 | CV132: 0 | CW132: 0 | CX132: 0 | CY132: 0 | DK132: 0 | DL132: 0 | DM132: 0 | DN132: 0 | DO132: 0 | DP132: 0 | DR132: 0 | DS132: 0 | DT132: 0 | DU132: 0 | DV132: 0 | DW132: 0 | DX132: 0
A133: O1.6 | M133: 0 | N133: 0 | O133: 0 | P133: 0 | Q133: 0 | R133: 0 | AD133: 0 | AE133: 0 | AF133: 0 | AG133: 0 | AH133: 0 | AI133: 0 | AU133: 0 | AV133: 0 | AW133: 0 | AX133: 0 | AY133: 0 | AZ133: 0 | BL133: 0 | BM133: 0 | BN133: 0 | BO133: 0 | BP133: 0 | BQ133: 0 | CC133: 0 | CD133: 0 | CE133: 0 | CF133: 0 | CG133: 0 | CH133: 0 | CT133: 0 | CU133: 0 | CV133: 0 | CW133: 0 | CX133: 0 | CY133: 0 | DK133: 0 | DL133: 0 | DM133: 0 | DN133: 0 | DO133: 0 | DP133: 0 | DR133: 0 | DS133: 0 | DT133: 0 | DU133: 0 | DV133: 0 | DW133: 0 | DX133: 0
A134: O1.7 | M134: 0 | N134: 0 | O134: 0 | P134: 0 | Q134: 0 | R134: 0 | AD134: 0 | AE134: 0 | AF134: 0 | AG134: 0 | AH134: 0 | AI134: 0 | AU134: 0 | AV134: 0 | AW134: 0 | AX134: 0 | AY134: 0 | AZ134: 0 | BL134: 0 | BM134: 0 | BN134: 0 | BO134: 0 | BP134: 0 | BQ134: 0 | CC134: 0 | CD134: 0 | CE134: 0 | CF134: 0 | CG134: 0 | CH134: 0 | CT134: 0 | CU134: 0 | CV134: 0 | CW134: 0 | CX134: 0 | CY134: 0 | DK134: 0 | DL134: 0 | DM134: 0 | DN134: 0 | DO134: 0 | DP134: 0 | DR134: 0 | DS134: 0 | DT134: 0 | DU134: 0 | DV134: 0 | DW134: 0 | DX134: 0
A135: O1.8 | M135: 0 | N135: 0 | O135: 0 | P135: 0 | Q135: 0 | R135: 0 | AD135: 0 | AE135: 0 | AF135: 0 | AG135: 0 | AH135: 0 | AI135: 0 | AU135: 0 | AV135: 0 | AW135: 0 | AX135: 0 | AY135: 0 | AZ135: 0 | BL135: 0 | BM135: 0 | BN135: 0 | BO135: 0 | BP135: 0 | BQ135: 0 | CC135: 0 | CD135: 0 | CE135: 0 | CF135: 0 | CG135: 0 | CH135: 0 | CT135: 0 | CU135: 0 | CV135: 0 | CW135: 0 | CX135: 0 | CY135: 0 | DK135: 0 | DL135: 0 | DM135: 0 | DN135: 0 | DO135: 0 | DP135: 0 | DR135: 0 | DS135: 0 | DT135: 0 | DU135: 0 | DV135: 0 | DW135: 0 | DX135: 0
A136: O1.9 | M136: 0 | N136: 0 | O136: 0 | P136: 0 | Q136: 0 | R136: 0 | AD136: 0 | AE136: 0 | AF136: 0 | AG136: 0 | AH136: 0 | AI136: 0 | AU136: 0 | AV136: 0 | AW136: 0 | AX136: 0 | AY136: 0 | AZ136: 0 | BL136: 0 | BM136: 0 | BN136: 0 | BO136: 0 | BP136: 0 | BQ136: 0 | CC136: 0 | CD136: 0 | CE136: 0 | CF136: 0 | CG136: 0 | CH136: 0 | CT136: 0 | CU136: 0 | CV136: 0 | CW136: 0 | CX136: 0 | CY136: 0 | DK136: 0 | DL136: 0 | DM136: 0 | DN136: 0 | DO136: 0 | DP136: 0 | DR136: 0 | DS136: 0 | DT136: 0 | DU136: 0 | DV136: 0 | DW136: 0 | DX136: 0
A137: O1.10 | M137: 0 | N137: =SUMPRODUCT(C$11:L$11,C137:L137) -> 0 | O137: 0 | P137: =L137 -> 0 | Q137: =SUM(N137:P137) -> 0 | R137: =(N137+O137)*$J$4 -> 0 | AD137: 0 | AE137: 0 | AF137: 0 | AG137: 0 | AH137: 0 | AI137: 0 | AU137: 0 | AV137: 0 | AW137: 0 | AX137: =AT137 -> 0 | AY137: =SUM(AV137:AX137) -> 0 | AZ137: 0 | BL137: 0 | BM137: 0 | BN137: 0 | BO137: 0 | BP137: 0 | BQ137: 0 | CC137: 0 | CD137: 0 | CE137: 0 | CF137: 0 | CG137: 0 | CH137: 0 | CT137: 0 | CU137: 0 | CV137: 0 | CW137: 0 | CX137: 0 | CY137: 0 | DK137: 0 | DL137: 0 | DM137: 0 | DN137: 0 | DO137: 0 | DP137: 0 | DR137: 0 | DS137: 0 | DT137: 0 | DU137: 0 | DV137: 0 | DW137: 0 | DX137: 0
A138: O2 | C138: =SUBTOTAL(9,C139:C148) -> 0 | D138: 0 | E138: 0 | F138: 0 | G138: 0 | H138: 0 | I138: 0 | J138: 0 | K138: 0 | L138: 0 | M138: =SUBTOTAL(9,M139:M148) -> 0 | N138: 0 | O138: 0 | P138: 0 | Q138: 0 | R138: 0 | T138: =SUBTOTAL(9,T139:T148) -> 0 | U138: 0 | V138: 0 | W138: 0 | X138: 0 | Y138: 0 | Z138: 0 | AA138: 0 | AB138: 0 | AC138: 0 | AD138: 0 | AE138: 0 | AF138: 0 | AG138: 0 | AH138: 0 | AI138: 0 | AK138: =SUBTOTAL(9,AK139:AK148) -> 0 | AL138: 0 | AM138: 0 | AN138: 0 | AO138: 0 | AP138: 0 | AQ138: 0 | AR138: 0 | AS138: 0 | AT138: 0 | AU138: 0 | AV138: 0 | AW138: 0 | AX138: 0 | AY138: 0 | AZ138: 0 | BB138: =SUBTOTAL(9,BB139:BB148) -> 0 | BC138: 0 | BD138: 0 | BE138: 0 | BF138: 0 | BG138: 0 | BH138: 0 | BI138: 0 | BJ138: 0 | BK138: 0 | BL138: 0 | BM138: 0 | BN138: 0 | BO138: 0 | BP138: 0 | BQ138: 0 | BS138: =SUBTOTAL(9,BS139:BS148) -> 0 | BT138: 0 | BU138: 0 | BV138: 0 | BW138: 0 | BX138: 0 | BY138: 0 | BZ138: 0 | CA138: 0 | CB138: 0 | CC138: 0 | CD138: 0 | CE138: 0 | CF138: 0 | CG138: 0 | CH138: 0 | CJ138: =SUBTOTAL(9,CJ139:CJ148) -> 0 | CK138: 0 | CL138: 0 | CM138: 0 | CN138: 0 | CO138: 0 | CP138: 0 | CQ138: 0 | CR138: 0 | CS138: 0 | CT138: 0 | CU138: 0 | CV138: 0 | CW138: 0 | CX138: 0 | CY138: 0 | DA138: =SUBTOTAL(9,DA139:DA148) -> 0 | DB138: 0 | DC138: 0 | DD138: 0 | DE138: 0 | DF138: 0 | DG138: 0 | DH138: 0 | DI138: 0 | DJ138: 0 | DK138: 0 | DL138: 0 | DM138: 0 | DN138: 0 | DO138: 0 | DP138: 0 | DR138: 0 | DS138: 0 | DT138: 0 | DU138: 0 | DV138: 0 | DW138: 0 | DX138: 0
A139: O2.1 | M139: =SUM(C139:K139) -> 0 | N139: =SUMPRODUCT(C$11:L$11,C139:L139) -> 0 | O139: =(N139*$J$2)+(N139*$J$3) -> 0 | P139: =L139 -> 0 | Q139: =SUM(N139:P139) -> 0 | R139: =(N139+O139)*$J$4 -> 0 | AD139: =SUM(T139:AB139) -> 0 | AE139: =SUMPRODUCT(T$11:AB$11,T139:AB139) -> 0 | AF139: =(AE139*AA$2)+(AE139*AA$3) -> 0 | AG139: =AC139 -> 0 | AH139: =SUM(AE139:AG139) -> 0 | AI139: =(AE139+AF139)*AA$4 -> 0 | AU139: =SUM(AK139:AS139) -> 0 | AV139: =SUMPRODUCT(AK$11:AS$11,AK139:AS139) -> 0 | AW139: =(AV139*AR$2)+(AV139*AR$3) -> 0 | AX139: =AT139 -> 0 | AY139: =SUM(AV139:AX139) -> 0 | AZ139: =(AV139+AW139)*AR$4 -> 0 | BL139: =SUM(BB139:BJ139) -> 0 | BM139: =SUMPRODUCT(BB$11:BJ$11,BB139:BJ139) -> 0 | BN139: =(BM139*BI$2)+(BM139*BI$3) -> 0 | BO139: =BK139 -> 0 | BP139: =SUM(BM139:BO139) -> 0 | BQ139: =(BM139+BN139)*BI$4 -> 0 | CC139: =SUM(BS139:CA139) -> 0 | CD139: =SUMPRODUCT(BS$11:CA$11,BS139:CA139) -> 0 | CE139: =(CD139*BZ$2)+(CD139*BZ$3) -> 0 | CF139: =CB139 -> 0 | CG139: =SUM(CD139:CF139) -> 0 | CH139: =(CD139+CE139)*BZ$4 -> 0 | CT139: =SUM(CJ139:CR139) -> 0 | CU139: =SUMPRODUCT(CJ$11:CR$11,CJ139:CR139) -> 0 | CV139: =(CU139*CQ$2)+(CU139*CQ$3) -> 0 | CW139: =CS139 -> 0 | CX139: =SUM(CU139:CW139) -> 0 | CY139: =(CU139+CV139)*CQ$4 -> 0 | DK139: =SUM(DA139:DI139) -> 0 | DL139: =SUMPRODUCT(DA$11:DI$11,DA139:DI139) -> 0 | DM139: =(DL139*DH$2)+(DL139*DH$3) -> 0 | DN139: =DJ139 -> 0 | DO139: =SUM(DL139:DN139) -> 0 | DP139: =(DL139+DM139)*DH$4 -> 0 | DR139: 0 | DS139: 0 | DT139: 0 | DU139: 0 | DV139: 0 | DW139: 0 | DX139: 0
A140: O2.2 | M140: 0 | N140: 0 | O140: 0 | P140: 0 | Q140: 0 | R140: 0 | AD140: 0 | AE140: =SUMPRODUCT(T$11:AB$11,T140:AB140) -> 0 | AF140: =(AE140*AA$2)+(AE140*AA$3) -> 0 | AG140: =AC140 -> 0 | AH140: =SUM(AE140:AG140) -> 0 | AI140: =(AE140+AF140)*AA$4 -> 0 | AU140: 0 | AV140: =SUMPRODUCT(AK$11:AS$11,AK140:AS140) -> 0 | AW140: =(AV140*AR$2)+(AV140*AR$3) -> 0 | AX140: 0 | AY140: 0 | AZ140: =(AV140+AW140)*AR$4 -> 0 | BL140: 0 | BM140: =SUMPRODUCT(BB$11:BJ$11,BB140:BJ140) -> 0 | BN140: =(BM140*BI$2)+(BM140*BI$3) -> 0 | BO140: =BK140 -> 0 | BP140: =SUM(BM140:BO140) -> 0 | BQ140: =(BM140+BN140)*BI$4 -> 0 | CC140: 0 | CD140: =SUMPRODUCT(BS$11:CA$11,BS140:CA140) -> 0 | CE140: =(CD140*BZ$2)+(CD140*BZ$3) -> 0 | CF140: =CB140 -> 0 | CG140: =SUM(CD140:CF140) -> 0 | CH140: =(CD140+CE140)*BZ$4 -> 0 | CT140: 0 | CU140: =SUMPRODUCT(CJ$11:CR$11,CJ140:CR140) -> 0 | CV140: =(CU140*CQ$2)+(CU140*CQ$3) -> 0 | CW140: =CS140 -> 0 | CX140: =SUM(CU140:CW140) -> 0 | CY140: =(CU140+CV140)*CQ$4 -> 0 | DK140: 0 | DL140: =SUMPRODUCT(DA$11:DI$11,DA140:DI140) -> 0 | DM140: =(DL140*DH$2)+(DL140*DH$3) -> 0 | DN140: =DJ140 -> 0 | DO140: =SUM(DL140:DN140) -> 0 | DP140: =(DL140+DM140)*DH$4 -> 0 | DR140: 0 | DS140: 0 | DT140: 0 | DU140: 0 | DV140: 0 | DW140: 0 | DX140: 0
A141: O2.3 | M141: 0 | N141: 0 | O141: 0 | P141: 0 | Q141: 0 | R141: 0 | AD141: 0 | AE141: 0 | AF141: 0 | AG141: 0 | AH141: 0 | AI141: 0 | AU141: 0 | AV141: 0 | AW141: 0 | AX141: 0 | AY141: 0 | AZ141: 0 | BL141: 0 | BM141: 0 | BN141: 0 | BO141: 0 | BP141: 0 | BQ141: 0 | CC141: 0 | CD141: 0 | CE141: 0 | CF141: 0 | CG141: 0 | CH141: 0 | CT141: 0 | CU141: 0 | CV141: 0 | CW141: 0 | CX141: 0 | CY141: 0 | DK141: 0 | DL141: 0 | DM141: 0 | DN141: 0 | DO141: 0 | DP141: 0 | DR141: 0 | DS141: 0 | DT141: 0 | DU141: 0 | DV141: 0 | DW141: 0 | DX141: 0
A142: O2.4 | M142: 0 | N142: 0 | O142: 0 | P142: 0 | Q142: 0 | R142: 0 | AD142: 0 | AE142: 0 | AF142: 0 | AG142: 0 | AH142: 0 | AI142: 0 | AU142: 0 | AV142: 0 | AW142: 0 | AX142: 0 | AY142: 0 | AZ142: 0 | BL142: 0 | BM142: 0 | BN142: 0 | BO142: 0 | BP142: 0 | BQ142: 0 | CC142: 0 | CD142: 0 | CE142: 0 | CF142: 0 | CG142: 0 | CH142: 0 | CT142: 0 | CU142: 0 | CV142: 0 | CW142: 0 | CX142: 0 | CY142: 0 | DK142: 0 | DL142: 0 | DM142: 0 | DN142: 0 | DO142: 0 | DP142: 0 | DR142: 0 | DS142: 0 | DT142: 0 | DU142: 0 | DV142: 0 | DW142: 0 | DX142: 0
A143: O2.5 | M143: 0 | N143: 0 | O143: 0 | P143: 0 | Q143: 0 | R143: 0 | AD143: 0 | AE143: 0 | AF143: 0 | AG143: 0 | AH143: 0 | AI143: 0 | AU143: 0 | AV143: 0 | AW143: 0 | AX143: 0 | AY143: 0 | AZ143: 0 | BL143: 0 | BM143: 0 | BN143: 0 | BO143: 0 | BP143: 0 | BQ143: 0 | CC143: 0 | CD143: 0 | CE143: 0 | CF143: 0 | CG143: 0 | CH143: 0 | CT143: 0 | CU143: 0 | CV143: 0 | CW143: 0 | CX143: 0 | CY143: 0 | DK143: 0 | DL143: 0 | DM143: 0 | DN143: 0 | DO143: 0 | DP143: 0 | DR143: 0 | DS143: 0 | DT143: 0 | DU143: 0 | DV143: 0 | DW143: 0 | DX143: 0
A144: O2.6 | M144: 0 | N144: 0 | O144: 0 | P144: 0 | Q144: 0 | R144: 0 | AD144: 0 | AE144: 0 | AF144: 0 | AG144: 0 | AH144: 0 | AI144: 0 | AU144: 0 | AV144: 0 | AW144: 0 | AX144: 0 | AY144: 0 | AZ144: 0 | BL144: 0 | BM144: 0 | BN144: 0 | BO144: 0 | BP144: 0 | BQ144: 0 | CC144: 0 | CD144: 0 | CE144: 0 | CF144: 0 | CG144: 0 | CH144: 0 | CT144: 0 | CU144: 0 | CV144: 0 | CW144: 0 | CX144: 0 | CY144: 0 | DK144: 0 | DL144: 0 | DM144: 0 | DN144: 0 | DO144: 0 | DP144: 0 | DR144: 0 | DS144: 0 | DT144: 0 | DU144: 0 | DV144: 0 | DW144: 0 | DX144: 0
A145: O2.7 | M145: 0 | N145: 0 | O145: 0 | P145: 0 | Q145: 0 | R145: 0 | AD145: 0 | AE145: 0 | AF145: 0 | AG145: 0 | AH145: 0 | AI145: 0 | AU145: 0 | AV145: 0 | AW145: 0 | AX145: 0 | AY145: 0 | AZ145: 0 | BL145: 0 | BM145: 0 | BN145: 0 | BO145: 0 | BP145: 0 | BQ145: 0 | CC145: 0 | CD145: 0 | CE145: 0 | CF145: 0 | CG145: 0 | CH145: 0 | CT145: 0 | CU145: 0 | CV145: 0 | CW145: 0 | CX145: 0 | CY145: 0 | DK145: 0 | DL145: 0 | DM145: 0 | DN145: 0 | DO145: 0 | DP145: 0 | DR145: 0 | DS145: 0 | DT145: 0 | DU145: 0 | DV145: 0 | DW145: 0 | DX145: 0
A146: O2.8 | M146: 0 | N146: 0 | O146: 0 | P146: 0 | Q146: 0 | R146: 0 | AD146: 0 | AE146: 0 | AF146: 0 | AG146: 0 | AH146: 0 | AI146: 0 | AU146: 0 | AV146: 0 | AW146: 0 | AX146: 0 | AY146: 0 | AZ146: 0 | BL146: 0 | BM146: 0 | BN146: 0 | BO146: 0 | BP146: 0 | BQ146: 0 | CC146: 0 | CD146: 0 | CE146: 0 | CF146: 0 | CG146: 0 | CH146: 0 | CT146: 0 | CU146: 0 | CV146: 0 | CW146: 0 | CX146: 0 | CY146: 0 | DK146: 0 | DL146: 0 | DM146: 0 | DN146: 0 | DO146: 0 | DP146: 0 | DR146: 0 | DS146: 0 | DT146: 0 | DU146: 0 | DV146: 0 | DW146: 0 | DX146: 0
A147: O2.9 | M147: 0 | N147: 0 | O147: 0 | P147: 0 | Q147: 0 | R147: 0 | AD147: 0 | AE147: 0 | AF147: 0 | AG147: 0 | AH147: 0 | AI147: 0 | AU147: 0 | AV147: 0 | AW147: 0 | AX147: 0 | AY147: 0 | AZ147: 0 | BL147: 0 | BM147: 0 | BN147: 0 | BO147: 0 | BP147: 0 | BQ147: 0 | CC147: 0 | CD147: 0 | CE147: 0 | CF147: 0 | CG147: 0 | CH147: 0 | CT147: 0 | CU147: 0 | CV147: 0 | CW147: 0 | CX147: 0 | CY147: 0 | DK147: 0 | DL147: 0 | DM147: 0 | DN147: 0 | DO147: 0 | DP147: 0 | DR147: 0 | DS147: 0 | DT147: 0 | DU147: 0 | DV147: 0 | DW147: 0 | DX147: 0
A148: O2.10 | M148: 0 | N148: =SUMPRODUCT(C$11:L$11,C148:L148) -> 0 | O148: 0 | P148: =L148 -> 0 | Q148: =SUM(N148:P148) -> 0 | R148: =(N148+O148)*$J$4 -> 0 | AD148: 0 | AE148: 0 | AF148: 0 | AG148: 0 | AH148: 0 | AI148: 0 | AU148: 0 | AV148: 0 | AW148: 0 | AX148: =AT148 -> 0 | AY148: =SUM(AV148:AX148) -> 0 | AZ148: 0 | BL148: 0 | BM148: 0 | BN148: 0 | BO148: 0 | BP148: 0 | BQ148: 0 | CC148: 0 | CD148: 0 | CE148: 0 | CF148: 0 | CG148: 0 | CH148: 0 | CT148: 0 | CU148: 0 | CV148: 0 | CW148: 0 | CX148: 0 | CY148: 0 | DK148: 0 | DL148: 0 | DM148: 0 | DN148: 0 | DO148: 0 | DP148: 0 | DR148: 0 | DS148: 0 | DT148: 0 | DU148: 0 | DV148: 0 | DW148: 0 | DX148: 0
A149: O3 | C149: =SUBTOTAL(9,C150:C159) -> 0 | D149: 0 | E149: 0 | F149: 0 | G149: 0 | H149: 0 | I149: 0 | J149: 0 | K149: 0 | L149: 0 | M149: =SUBTOTAL(9,M150:M159) -> 0 | N149: 0 | O149: 0 | P149: 0 | Q149: 0 | R149: 0 | T149: =SUBTOTAL(9,T150:T159) -> 0 | U149: 0 | V149: 0 | W149: 0 | X149: 0 | Y149: 0 | Z149: 0 | AA149: 0 | AB149: 0 | AC149: 0 | AD149: 0 | AE149: 0 | AF149: 0 | AG149: 0 | AH149: 0 | AI149: 0 | AK149: =SUBTOTAL(9,AK150:AK159) -> 0 | AL149: 0 | AM149: 0 | AN149: 0 | AO149: 0 | AP149: 0 | AQ149: 0 | AR149: 0 | AS149: 0 | AT149: 0 | AU149: 0 | AV149: 0 | AW149: 0 | AX149: 0 | AY149: 0 | AZ149: 0 | BB149: =SUBTOTAL(9,BB150:BB159) -> 0 | BC149: 0 | BD149: 0 | BE149: 0 | BF149: 0 | BG149: 0 | BH149: 0 | BI149: 0 | BJ149: 0 | BK149: 0 | BL149: 0 | BM149: 0 | BN149: 0 | BO149: 0 | BP149: 0 | BQ149: 0 | BS149: =SUBTOTAL(9,BS150:BS159) -> 0 | BT149: 0 | BU149: 0 | BV149: 0 | BW149: 0 | BX149: 0 | BY149: 0 | BZ149: 0 | CA149: 0 | CB149: 0 | CC149: 0 | CD149: 0 | CE149: 0 | CF149: 0 | CG149: 0 | CH149: 0 | CJ149: =SUBTOTAL(9,CJ150:CJ159) -> 0 | CK149: 0 | CL149: 0 | CM149: 0 | CN149: 0 | CO149: 0 | CP149: 0 | CQ149: 0 | CR149: 0 | CS149: 0 | CT149: 0 | CU149: 0 | CV149: 0 | CW149: 0 | CX149: 0 | CY149: 0 | DA149: =SUBTOTAL(9,DA150:DA159) -> 0 | DB149: 0 | DC149: 0 | DD149: 0 | DE149: 0 | DF149: 0 | DG149: 0 | DH149: 0 | DI149: 0 | DJ149: 0 | DK149: 0 | DL149: 0 | DM149: 0 | DN149: 0 | DO149: 0 | DP149: 0 | DR149: 0 | DS149: 0 | DT149: 0 | DU149: 0 | DV149: 0 | DW149: 0 | DX149: 0
A150: O3.1 | M150: =SUM(C150:K150) -> 0 | N150: =SUMPRODUCT(C$11:L$11,C150:L150) -> 0 | O150: =(N150*$J$2)+(N150*$J$3) -> 0 | P150: =L150 -> 0 | Q150: =SUM(N150:P150) -> 0 | R150: =(N150+O150)*$J$4 -> 0 | AD150: =SUM(T150:AB150) -> 0 | AE150: =SUMPRODUCT(T$11:AB$11,T150:AB150) -> 0 | AF150: =(AE150*AA$2)+(AE150*AA$3) -> 0 | AG150: =AC150 -> 0 | AH150: =SUM(AE150:AG150) -> 0 | AI150: =(AE150+AF150)*AA$4 -> 0 | AU150: =SUM(AK150:AS150) -> 0 | AV150: =SUMPRODUCT(AK$11:AS$11,AK150:AS150) -> 0 | AW150: =(AV150*AR$2)+(AV150*AR$3) -> 0 | AX150: =AT150 -> 0 | AY150: =SUM(AV150:AX150) -> 0 | AZ150: =(AV150+AW150)*AR$4 -> 0 | BL150: =SUM(BB150:BJ150) -> 0 | BM150: =SUMPRODUCT(BB$11:BJ$11,BB150:BJ150) -> 0 | BN150: =(BM150*BI$2)+(BM150*BI$3) -> 0 | BO150: =BK150 -> 0 | BP150: =SUM(BM150:BO150) -> 0 | BQ150: =(BM150+BN150)*BI$4 -> 0 | CC150: =SUM(BS150:CA150) -> 0 | CD150: =SUMPRODUCT(BS$11:CA$11,BS150:CA150) -> 0 | CE150: =(CD150*BZ$2)+(CD150*BZ$3) -> 0 | CF150: =CB150 -> 0 | CG150: =SUM(CD150:CF150) -> 0 | CH150: =(CD150+CE150)*BZ$4 -> 0 | CT150: =SUM(CJ150:CR150) -> 0 | CU150: =SUMPRODUCT(CJ$11:CR$11,CJ150:CR150) -> 0 | CV150: =(CU150*CQ$2)+(CU150*CQ$3) -> 0 | CW150: =CS150 -> 0 | CX150: =SUM(CU150:CW150) -> 0 | CY150: =(CU150+CV150)*CQ$4 -> 0 | DK150: =SUM(DA150:DI150) -> 0 | DL150: =SUMPRODUCT(DA$11:DI$11,DA150:DI150) -> 0 | DM150: =(DL150*DH$2)+(DL150*DH$3) -> 0 | DN150: =DJ150 -> 0 | DO150: =SUM(DL150:DN150) -> 0 | DP150: =(DL150+DM150)*DH$4 -> 0 | DR150: 0 | DS150: 0 | DT150: 0 | DU150: 0 | DV150: 0 | DW150: 0 | DX150: 0
A151: O3.2 | M151: 0 | N151: 0 | O151: 0 | P151: 0 | Q151: 0 | R151: 0 | AD151: 0 | AE151: =SUMPRODUCT(T$11:AB$11,T151:AB151) -> 0 | AF151: =(AE151*AA$2)+(AE151*AA$3) -> 0 | AG151: =AC151 -> 0 | AH151: =SUM(AE151:AG151) -> 0 | AI151: =(AE151+AF151)*AA$4 -> 0 | AU151: 0 | AV151: =SUMPRODUCT(AK$11:AS$11,AK151:AS151) -> 0 | AW151: =(AV151*AR$2)+(AV151*AR$3) -> 0 | AX151: 0 | AY151: 0 | AZ151: =(AV151+AW151)*AR$4 -> 0 | BL151: 0 | BM151: =SUMPRODUCT(BB$11:BJ$11,BB151:BJ151) -> 0 | BN151: =(BM151*BI$2)+(BM151*BI$3) -> 0 | BO151: =BK151 -> 0 | BP151: =SUM(BM151:BO151) -> 0 | BQ151: =(BM151+BN151)*BI$4 -> 0 | CC151: 0 | CD151: =SUMPRODUCT(BS$11:CA$11,BS151:CA151) -> 0 | CE151: =(CD151*BZ$2)+(CD151*BZ$3) -> 0 | CF151: =CB151 -> 0 | CG151: =SUM(CD151:CF151) -> 0 | CH151: =(CD151+CE151)*BZ$4 -> 0 | CT151: 0 | CU151: =SUMPRODUCT(CJ$11:CR$11,CJ151:CR151) -> 0 | CV151: =(CU151*CQ$2)+(CU151*CQ$3) -> 0 | CW151: =CS151 -> 0 | CX151: =SUM(CU151:CW151) -> 0 | CY151: =(CU151+CV151)*CQ$4 -> 0 | DK151: 0 | DL151: =SUMPRODUCT(DA$11:DI$11,DA151:DI151) -> 0 | DM151: =(DL151*DH$2)+(DL151*DH$3) -> 0 | DN151: =DJ151 -> 0 | DO151: =SUM(DL151:DN151) -> 0 | DP151: =(DL151+DM151)*DH$4 -> 0 | DR151: 0 | DS151: 0 | DT151: 0 | DU151: 0 | DV151: 0 | DW151: 0 | DX151: 0
A152: O3.3 | M152: 0 | N152: 0 | O152: 0 | P152: 0 | Q152: 0 | R152: 0 | AD152: 0 | AE152: 0 | AF152: 0 | AG152: 0 | AH152: 0 | AI152: 0 | AU152: 0 | AV152: 0 | AW152: 0 | AX152: 0 | AY152: 0 | AZ152: 0 | BL152: 0 | BM152: 0 | BN152: 0 | BO152: 0 | BP152: 0 | BQ152: 0 | CC152: 0 | CD152: 0 | CE152: 0 | CF152: 0 | CG152: 0 | CH152: 0 | CT152: 0 | CU152: 0 | CV152: 0 | CW152: 0 | CX152: 0 | CY152: 0 | DK152: 0 | DL152: 0 | DM152: 0 | DN152: 0 | DO152: 0 | DP152: 0 | DR152: 0 | DS152: 0 | DT152: 0 | DU152: 0 | DV152: 0 | DW152: 0 | DX152: 0
A153: O3.4 | M153: 0 | N153: 0 | O153: 0 | P153: 0 | Q153: 0 | R153: 0 | AD153: 0 | AE153: 0 | AF153: 0 | AG153: 0 | AH153: 0 | AI153: 0 | AU153: 0 | AV153: 0 | AW153: 0 | AX153: 0 | AY153: 0 | AZ153: 0 | BL153: 0 | BM153: 0 | BN153: 0 | BO153: 0 | BP153: 0 | BQ153: 0 | CC153: 0 | CD153: 0 | CE153: 0 | CF153: 0 | CG153: 0 | CH153: 0 | CT153: 0 | CU153: 0 | CV153: 0 | CW153: 0 | CX153: 0 | CY153: 0 | DK153: 0 | DL153: 0 | DM153: 0 | DN153: 0 | DO153: 0 | DP153: 0 | DR153: 0 | DS153: 0 | DT153: 0 | DU153: 0 | DV153: 0 | DW153: 0 | DX153: 0
A154: O3.5 | M154: 0 | N154: 0 | O154: 0 | P154: 0 | Q154: 0 | R154: 0 | AD154: 0 | AE154: 0 | AF154: 0 | AG154: 0 | AH154: 0 | AI154: 0 | AU154: 0 | AV154: 0 | AW154: 0 | AX154: 0 | AY154: 0 | AZ154: 0 | BL154: 0 | BM154: 0 | BN154: 0 | BO154: 0 | BP154: 0 | BQ154: 0 | CC154: 0 | CD154: 0 | CE154: 0 | CF154: 0 | CG154: 0 | CH154: 0 | CT154: 0 | CU154: 0 | CV154: 0 | CW154: 0 | CX154: 0 | CY154: 0 | DK154: 0 | DL154: 0 | DM154: 0 | DN154: 0 | DO154: 0 | DP154: 0 | DR154: 0 | DS154: 0 | DT154: 0 | DU154: 0 | DV154: 0 | DW154: 0 | DX154: 0
A155: O3.6 | M155: 0 | N155: 0 | O155: 0 | P155: 0 | Q155: 0 | R155: 0 | AD155: 0 | AE155: 0 | AF155: 0 | AG155: 0 | AH155: 0 | AI155: 0 | AU155: 0 | AV155: 0 | AW155: 0 | AX155: 0 | AY155: 0 | AZ155: 0 | BL155: 0 | BM155: 0 | BN155: 0 | BO155: 0 | BP155: 0 | BQ155: 0 | CC155: 0 | CD155: 0 | CE155: 0 | CF155: 0 | CG155: 0 | CH155: 0 | CT155: 0 | CU155: 0 | CV155: 0 | CW155: 0 | CX155: 0 | CY155: 0 | DK155: 0 | DL155: 0 | DM155: 0 | DN155: 0 | DO155: 0 | DP155: 0 | DR155: 0 | DS155: 0 | DT155: 0 | DU155: 0 | DV155: 0 | DW155: 0 | DX155: 0
A156: O3.7 | M156: 0 | N156: 0 | O156: 0 | P156: 0 | Q156: 0 | R156: 0 | AD156: 0 | AE156: 0 | AF156: 0 | AG156: 0 | AH156: 0 | AI156: 0 | AU156: 0 | AV156: 0 | AW156: 0 | AX156: 0 | AY156: 0 | AZ156: 0 | BL156: 0 | BM156: 0 | BN156: 0 | BO156: 0 | BP156: 0 | BQ156: 0 | CC156: 0 | CD156: 0 | CE156: 0 | CF156: 0 | CG156: 0 | CH156: 0 | CT156: 0 | CU156: 0 | CV156: 0 | CW156: 0 | CX156: 0 | CY156: 0 | DK156: 0 | DL156: 0 | DM156: 0 | DN156: 0 | DO156: 0 | DP156: 0 | DR156: 0 | DS156: 0 | DT156: 0 | DU156: 0 | DV156: 0 | DW156: 0 | DX156: 0
A157: O3.8 | M157: 0 | N157: 0 | O157: 0 | P157: 0 | Q157: 0 | R157: 0 | AD157: 0 | AE157: 0 | AF157: 0 | AG157: 0 | AH157: 0 | AI157: 0 | AU157: 0 | AV157: 0 | AW157: 0 | AX157: 0 | AY157: 0 | AZ157: 0 | BL157: 0 | BM157: 0 | BN157: 0 | BO157: 0 | BP157: 0 | BQ157: 0 | CC157: 0 | CD157: 0 | CE157: 0 | CF157: 0 | CG157: 0 | CH157: 0 | CT157: 0 | CU157: 0 | CV157: 0 | CW157: 0 | CX157: 0 | CY157: 0 | DK157: 0 | DL157: 0 | DM157: 0 | DN157: 0 | DO157: 0 | DP157: 0 | DR157: 0 | DS157: 0 | DT157: 0 | DU157: 0 | DV157: 0 | DW157: 0 | DX157: 0
A158: O3.9 | M158: 0 | N158: 0 | O158: 0 | P158: 0 | Q158: 0 | R158: 0 | AD158: 0 | AE158: 0 | AF158: 0 | AG158: 0 | AH158: 0 | AI158: 0 | AU158: 0 | AV158: 0 | AW158: 0 | AX158: 0 | AY158: 0 | AZ158: 0 | BL158: 0 | BM158: 0 | BN158: 0 | BO158: 0 | BP158: 0 | BQ158: 0 | CC158: 0 | CD158: 0 | CE158: 0 | CF158: 0 | CG158: 0 | CH158: 0 | CT158: 0 | CU158: 0 | CV158: 0 | CW158: 0 | CX158: 0 | CY158: 0 | DK158: 0 | DL158: 0 | DM158: 0 | DN158: 0 | DO158: 0 | DP158: 0 | DR158: 0 | DS158: 0 | DT158: 0 | DU158: 0 | DV158: 0 | DW158: 0 | DX158: 0
A159: O3.10 | M159: 0 | N159: =SUMPRODUCT(C$11:L$11,C159:L159) -> 0 | O159: 0 | P159: =L159 -> 0 | Q159: =SUM(N159:P159) -> 0 | R159: =(N159+O159)*$J$4 -> 0 | AD159: =SUM(T159:AB159) -> 0 | AE159: 0 | AF159: 0 | AG159: 0 | AH159: 0 | AI159: 0 | AU159: 0 | AV159: 0 | AW159: 0 | AX159: =AT159 -> 0 | AY159: =SUM(AV159:AX159) -> 0 | AZ159: 0 | BL159: =SUM(BB159:BJ159) -> 0 | BM159: 0 | BN159: 0 | BO159: 0 | BP159: 0 | BQ159: 0 | CC159: 0 | CD159: 0 | CE159: 0 | CF159: 0 | CG159: 0 | CH159: 0 | CT159: =SUM(CJ159:CR159) -> 0 | CU159: 0 | CV159: 0 | CW159: 0 | CX159: 0 | CY159: 0 | DK159: 0 | DL159: 0 | DM159: 0 | DN159: 0 | DO159: 0 | DP159: 0 | DR159: 0 | DS159: 0 | DT159: 0 | DU159: 0 | DV159: 0 | DW159: 0 | DX159: 0
B160: TOTAL On-Call Tasks/Deliverables | C160: =+C127+C138+C149 -> 0 | D160: 0 | E160: 0 | F160: 0 | G160: 0 | H160: 0 | I160: 0 | J160: 0 | K160: 0 | L160: 0 | M160: 0 | N160: 0 | O160: 0 | P160: 0 | Q160: 0 | R160: 0 | T160: =+T127+T138+T149 -> 0 | U160: 0 | V160: 0 | W160: 0 | X160: 0 | Y160: 0 | Z160: 0 | AA160: 0 | AB160: 0 | AC160: 0 | AD160: 0 | AE160: 0 | AF160: 0 | AG160: 0 | AH160: 0 | AI160: 0 | AK160: =+AK127+AK138+AK149 -> 0 | AL160: 0 | AM160: 0 | AN160: 0 | AO160: 0 | AP160: 0 | AQ160: 0 | AR160: 0 | AS160: 0 | AT160: 0 | AU160: 0 | AV160: 0 | AW160: 0 | AX160: 0 | AY160: 0 | AZ160: 0 | BB160: =+BB127+BB138+BB149 -> 0 | BC160: 0 | BD160: 0 | BE160: 0 | BF160: 0 | BG160: 0 | BH160: 0 | BI160: 0 | BJ160: 0 | BK160: 0 | BL160: 0 | BM160: 0 | BN160: 0 | BO160: 0 | BP160: 0 | BQ160: 0 | BS160: =+BS127+BS138+BS149 -> 0 | BT160: 0 | BU160: 0 | BV160: 0 | BW160: 0 | BX160: 0 | BY160: 0 | BZ160: 0 | CA160: 0 | CB160: 0 | CC160: 0 | CD160: 0 | CE160: 0 | CF160: 0 | CG160: 0 | CH160: 0 | CJ160: =+CJ127+CJ138+CJ149 -> 0 | CK160: 0 | CL160: 0 | CM160: 0 | CN160: 0 | CO160: 0 | CP160: 0 | CQ160: 0 | CR160: 0 | CS160: 0 | CT160: 0 | CU160: 0 | CV160: 0 | CW160: 0 | CX160: 0 | CY160: 0 | DA160: =+DA127+DA138+DA149 -> 0 | DB160: 0 | DC160: 0 | DD160: 0 | DE160: 0 | DF160: 0 | DG160: 0 | DH160: 0 | DI160: 0 | DJ160: 0 | DK160: 0 | DL160: 0 | DM160: 0 | DN160: 0 | DO160: 0 | DP160: 0 | DR160: 0 | DS160: 0 | DT160: 0 | DU160: 0 | DV160: 0 | DW160: 0 | DX160: 0
B162: TOTAL | C162: =C160+C124 -> 0 | D162: 0 | E162: 0 | F162: 0 | G162: 0 | H162: 0 | I162: 0 | J162: 0 | K162: 0 | L162: 0 | M162: 0 | N162: 0 | O162: 0 | P162: 0 | Q162: 0 | R162: 0 | T162: =T160+T124 -> 0 | U162: 0 | V162: 0 | W162: 0 | X162: 0 | Y162: 0 | Z162: 0 | AA162: 0 | AB162: 0 | AC162: 0 | AD162: 0 | AE162: 0 | AF162: 0 | AG162: 0 | AH162: 0 | AI162: 0 | AK162: =AK160+AK124 -> 0 | AL162: 0 | AM162: 0 | AN162: 0 | AO162: 0 | AP162: 0 | AQ162: 0 | AR162: 0 | AS162: 0 | AT162: 0 | AU162: 0 | AV162: 0 | AW162: 0 | AX162: 0 | AY162: 0 | AZ162: 0 | BB162: =BB160+BB124 -> 0 | BC162: 0 | BD162: 0 | BE162: 0 | BF162: 0 | BG162: 0 | BH162: 0 | BI162: 0 | BJ162: 0 | BK162: 0 | BL162: 0 | BM162: 0 | BN162: 0 | BO162: 0 | BP162: 0 | BQ162: 0 | BS162: =BS160+BS124 -> 0 | BT162: 0 | BU162: 0 | BV162: 0 | BW162: 0 | BX162: 0 | BY162: 0 | BZ162: 0 | CA162: 0 | CB162: 0 | CC162: 0 | CD162: 0 | CE162: 0 | CF162: 0 | CG162: 0 | CH162: 0 | CJ162: =CJ160+CJ124 -> 0 | CK162: 0 | CL162: 0 | CM162: 0 | CN162: 0 | CO162: 0 | CP162: 0 | CQ162: 0 | CR162: 0 | CS162: 0 | CT162: 0 | CU162: 0 | CV162: 0 | CW162: 0 | CX162: 0 | CY162: 0 | DA162: =DA160+DA124 -> 0 | DB162: 0 | DC162: 0 | DD162: 0 | DE162: 0 | DF162: 0 | DG162: 0 | DH162: 0 | DI162: 0 | DJ162: 0 | DK162: 0 | DL162: 0 | DM162: 0 | DN162: 0 | DO162: 0 | DP162: 0 | DR162: =DR160+DR124 -> 0 | DS162: 0 | DT162: 0 | DU162: 0 | DV162: 0 | DW162: 0 | DX162: 0

Sheet B2_Expense_Detail
A1: Form B2: Expense Detail | D1: PROCURING AGENCY TO COMPLETE THIS SECTION
A2: Firm: | D2: Name of Reviewer:
A3: [Type Name of Firm here; e.g., "Acme Prime, Inc."] | D3: /S/ [Type Name of Reviewer here]
A4: • THIS FORM IS REQUIRED IF DIRECT EXPENSES/OTHER DIRECT COSTS ARE INCLUDED. • COMPLETE ONE SEPARATE SHEET PER FIRM (Prime Consultant and Subconsultant). • TOTALS MUST BE MANUALLY ENTERED INTO THE "BREAKDOWN OF COSTS" WORKSHEET.
A6: Task # | B6: Description of Work, Service, or Materials Supplied | C6: Firm/Contractor/Vendor | D6: Basis of Estimate | E6: Amount
A7: NON-CONTINGENCY TASKS/DELIVERABLES | C7: For all Name of firm in Row 2 or vendor subcontracted under the firm listed in Row 2 providing goods or services; or, as applicable, "TBD" or "N/A". | D7: Include quote detail or enough detail for reviewer to understand how the estimate was determined; see examples.
B8: Sample Task for Instructional Purposes Only: | E8: =SUM(E9:E11) -> 780.91
A9: #.# | B9: Lodging | C9: N/A | D9: 2 nights @ $81 per night (Bend, OR) for 2 people | E9: =2*81*2 -> 324
A10: #.# | B10: Per Diem | C10: N/A | D10: 3 days @ $44 per day (Bend, OR) for 2 people | E10: =3*44*2 -> 264
A11: #.# | B11: Mileage | C11: N/A | D11: 382 miles roundtrip from Roseburg to Bend @ 50.5 cents per mile | E11: =382*0.505 -> 192.91
A12: #.# | B12: Fact Sheets | C12: Acme Prime, Inc. (in-house) | D12: 400 2-sided color handouts @ $1.40 per handout | E12: =400*1.4 -> 560
A13: #.# | B13: Exhibit Boards | C13: 123 Printing Press Co. | D13: 3 exhibit boards @ $140 each | E13: =3*140 -> 420
A14: #.# | B14: Vehicle occupancy counts | C14: Movement Counts, Inc. | D14: 513 monitored ln-hrs (4 locations x 2 days x 9.5 to 10 pk hrs/day x 4 to 6 lns/location) @ quoted $91.45 per monitored hour | E14: =513*91.45 -> 46913.85
A15: #.# | B15: 72-hour continuous midweek video average daily traffic (ADT) counts | C15: TBD | D15: 4 midweek locations (2 EB/2WB) @ estimated $1,238 per location | E15: =4*1238 -> 4952
A16: =B1_Breakdown_of_Costs!A14 -> 1 | B16: =IF(ISBLANK(B1_Breakdown_of_Costs!B14),"",B1_Breakdown_of_Costs!B14) ->  | E16: =B1_Breakdown_of_Costs!DX14 -> 0
A17: =B1_Breakdown_of_Costs!A15 -> 1.1 | E17: =B1_Breakdown_of_Costs!DX15 -> 0
A18: =B1_Breakdown_of_Costs!A16 -> 1.2 | E18: =B1_Breakdown_of_Costs!DX16 -> 0
A19: =B1_Breakdown_of_Costs!A17 -> 1.3 | E19: =B1_Breakdown_of_Costs!DX17 -> 0
A20: =B1_Breakdown_of_Costs!A18 -> 1.4 | B20: =IF(ISBLANK(B1_Breakdown_of_Costs!B18),"",B1_Breakdown_of_Costs!B18) ->  | E20: =B1_Breakdown_of_Costs!DX18 -> 0
A21: =B1_Breakdown_of_Costs!A19 -> 1.5 | B21: =IF(ISBLANK(B1_Breakdown_of_Costs!B19),"",B1_Breakdown_of_Costs!B19) ->  | E21: =B1_Breakdown_of_Costs!DX19 -> 0
A22: =B1_Breakdown_of_Costs!A20 -> 1.6 | B22: =IF(ISBLANK(B1_Breakdown_of_Costs!B20),"",B1_Breakdown_of_Costs!B20) ->  | E22: =B1_Breakdown_of_Costs!DX20 -> 0
A23: =B1_Breakdown_of_Costs!A21 -> 1.7 | B23: =IF(ISBLANK(B1_Breakdown_of_Costs!B21),"",B1_Breakdown_of_Costs!B21) ->  | E23: =B1_Breakdown_of_Costs!DX21 -> 0
A24: =B1_Breakdown_of_Costs!A22 -> 1.8 | B24: =IF(ISBLANK(B1_Breakdown_of_Costs!B22),"",B1_Breakdown_of_Costs!B22) ->  | E24: =B1_Breakdown_of_Costs!DX22 -> 0
A25: =B1_Breakdown_of_Costs!A23 -> 1.9 | B25: =IF(ISBLANK(B1_Breakdown_of_Costs!B23),"",B1_Breakdown_of_Costs!B23) ->  | E25: =B1_Breakdown_of_Costs!DX23 -> 0
A26: =B1_Breakdown_of_Costs!A24 -> 1.10 | B26: =IF(ISBLANK(B1_Breakdown_of_Costs!B24),"",B1_Breakdown_of_Costs!B24) ->  | E26: =B1_Breakdown_of_Costs!DX24 -> 0
A27: =B1_Breakdown_of_Costs!A25 -> 2 | B27: =IF(ISBLANK(B1_Breakdown_of_Costs!B25),"",B1_Breakdown_of_Costs!B25) ->  | E27: =B1_Breakdown_of_Costs!DX25 -> 0
A28: =B1_Breakdown_of_Costs!A26 -> 2.1 | E28: =B1_Breakdown_of_Costs!DX26 -> 0
A29: =B1_Breakdown_of_Costs!A27 -> 2.2 | B29: =IF(ISBLANK(B1_Breakdown_of_Costs!B27),"",B1_Breakdown_of_Costs!B27) ->  | E29: =B1_Breakdown_of_Costs!DX27 -> 0
A30: =B1_Breakdown_of_Costs!A28 -> 2.3 | B30: =IF(ISBLANK(B1_Breakdown_of_Costs!B28),"",B1_Breakdown_of_Costs!B28) ->  | E30: =B1_Breakdown_of_Costs!DX28 -> 0
A31: =B1_Breakdown_of_Costs!A29 -> 2.4 | B31: =IF(ISBLANK(B1_Breakdown_of_Costs!B29),"",B1_Breakdown_of_Costs!B29) ->  | E31: =B1_Breakdown_of_Costs!DX29 -> 0
A32: =B1_Breakdown_of_Costs!A30 -> 2.5 | B32: =IF(ISBLANK(B1_Breakdown_of_Costs!B30),"",B1_Breakdown_of_Costs!B30) ->  | E32: =B1_Breakdown_of_Costs!DX30 -> 0
A33: =B1_Breakdown_of_Costs!A31 -> 2.6 | B33: =IF(ISBLANK(B1_Breakdown_of_Costs!B31),"",B1_Breakdown_of_Costs!B31) ->  | E33: =B1_Breakdown_of_Costs!DX31 -> 0
A34: =B1_Breakdown_of_Costs!A32 -> 2.7 | B34: =IF(ISBLANK(B1_Breakdown_of_Costs!B32),"",B1_Breakdown_of_Costs!B32) ->  | E34: =B1_Breakdown_of_Costs!DX32 -> 0
A35: =B1_Breakdown_of_Costs!A33 -> 2.8 | B35: =IF(ISBLANK(B1_Breakdown_of_Costs!B33),"",B1_Breakdown_of_Costs!B33) ->  | E35: =B1_Breakdown_of_Costs!DX33 -> 0
A36: =B1_Breakdown_of_Costs!A34 -> 2.9 | B36: =IF(ISBLANK(B1_Breakdown_of_Costs!B34),"",B1_Breakdown_of_Costs!B34) ->  | E36: =B1_Breakdown_of_Costs!DX34 -> 0
A37: =B1_Breakdown_of_Costs!A35 -> 2.10 | B37: =IF(ISBLANK(B1_Breakdown_of_Costs!B35),"",B1_Breakdown_of_Costs!B35) ->  | E37: =B1_Breakdown_of_Costs!DX35 -> 0
A38: =B1_Breakdown_of_Costs!A36 -> 3 | B38: =IF(ISBLANK(B1_Breakdown_of_Costs!B36),"",B1_Breakdown_of_Costs!B36) ->  | E38: =B1_Breakdown_of_Costs!DX36 -> 0
A39: =B1_Breakdown_of_Costs!A37 -> 3.1 | B39: =IF(ISBLANK(B1_Breakdown_of_Costs!B37),"",B1_Breakdown_of_Costs!B37) ->  | E39: =B1_Breakdown_of_Costs!DX37 -> 0
A40: =B1_Breakdown_of_Costs!A38 -> 3.2 | B40: =IF(ISBLANK(B1_Breakdown_of_Costs!B38),"",B1_Breakdown_of_Costs!B38) ->  | E40: =B1_Breakdown_of_Costs!DX38 -> 0
A41: =B1_Breakdown_of_Costs!A39 -> 3.3 | B41: =IF(ISBLANK(B1_Breakdown_of_Costs!B39),"",B1_Breakdown_of_Costs!B39) ->  | E41: =B1_Breakdown_of_Costs!DX39 -> 0
A42: =B1_Breakdown_of_Costs!A40 -> 3.4 | B42: =IF(ISBLANK(B1_Breakdown_of_Costs!B40),"",B1_Breakdown_of_Costs!B40) ->  | E42: =B1_Breakdown_of_Costs!DX40 -> 0
A43: =B1_Breakdown_of_Costs!A41 -> 3.5 | B43: =IF(ISBLANK(B1_Breakdown_of_Costs!B41),"",B1_Breakdown_of_Costs!B41) ->  | E43: =B1_Breakdown_of_Costs!DX41 -> 0
A44: =B1_Breakdown_of_Costs!A42 -> 3.6 | B44: =IF(ISBLANK(B1_Breakdown_of_Costs!B42),"",B1_Breakdown_of_Costs!B42) ->  | E44: =B1_Breakdown_of_Costs!DX42 -> 0
A45: =B1_Breakdown_of_Costs!A43 -> 3.7 | B45: =IF(ISBLANK(B1_Breakdown_of_Costs!B43),"",B1_Breakdown_of_Costs!B43) ->  | E45: =B1_Breakdown_of_Costs!DX43 -> 0
A46: =B1_Breakdown_of_Costs!A44 -> 3.8 | B46: =IF(ISBLANK(B1_Breakdown_of_Costs!B44),"",B1_Breakdown_of_Costs!B44) ->  | E46: =B1_Breakdown_of_Costs!DX44 -> 0
A47: =B1_Breakdown_of_Costs!A45 -> 3.9 | B47: =IF(ISBLANK(B1_Breakdown_of_Costs!B45),"",B1_Breakdown_of_Costs!B45) ->  | E47: =B1_Breakdown_of_Costs!DX45 -> 0
A48: =B1_Breakdown_of_Costs!A46 -> 3.10 | B48: =IF(ISBLANK(B1_Breakdown_of_Costs!B46),"",B1_Breakdown_of_Costs!B46) ->  | E48: =B1_Breakdown_of_Costs!DX46 -> 0
A49: =B1_Breakdown_of_Costs!A47 -> 4 | B49: =IF(ISBLANK(B1_Breakdown_of_Costs!B47),"",B1_Breakdown_of_Costs!B47) ->  | E49: =B1_Breakdown_of_Costs!DX47 -> 0
A50: =B1_Breakdown_of_Costs!A48 -> 4.1 | B50: =IF(ISBLANK(B1_Breakdown_of_Costs!B48),"",B1_Breakdown_of_Costs!B48) ->  | E50: =B1_Breakdown_of_Costs!DX48 -> 0
A51: =B1_Breakdown_of_Costs!A49 -> 4.2 | B51: =IF(ISBLANK(B1_Breakdown_of_Costs!B49),"",B1_Breakdown_of_Costs!B49) ->  | E51: =B1_Breakdown_of_Costs!DX49 -> 0
A52: =B1_Breakdown_of_Costs!A50 -> 4.3 | B52: =IF(ISBLANK(B1_Breakdown_of_Costs!B50),"",B1_Breakdown_of_Costs!B50) ->  | E52: =B1_Breakdown_of_Costs!DX50 -> 0
A53: =B1_Breakdown_of_Costs!A51 -> 4.4 | B53: =IF(ISBLANK(B1_Breakdown_of_Costs!B51),"",B1_Breakdown_of_Costs!B51) ->  | E53: =B1_Breakdown_of_Costs!DX51 -> 0
A54: =B1_Breakdown_of_Costs!A52 -> 4.5 | B54: =IF(ISBLANK(B1_Breakdown_of_Costs!B52),"",B1_Breakdown_of_Costs!B52) ->  | E54: =B1_Breakdown_of_Costs!DX52 -> 0
A55: =B1_Breakdown_of_Costs!A53 -> 4.6 | B55: =IF(ISBLANK(B1_Breakdown_of_Costs!B53),"",B1_Breakdown_of_Costs!B53) ->  | E55: =B1_Breakdown_of_Costs!DX53 -> 0
A56: =B1_Breakdown_of_Costs!A54 -> 4.7 | B56: =IF(ISBLANK(B1_Breakdown_of_Costs!B54),"",B1_Breakdown_of_Costs!B54) ->  | E56: =B1_Breakdown_of_Costs!DX54 -> 0
A57: =B1_Breakdown_of_Costs!A55 -> 4.8 | B57: =IF(ISBLANK(B1_Breakdown_of_Costs!B55),"",B1_Breakdown_of_Costs!B55) ->  | E57: =B1_Breakdown_of_Costs!DX55 -> 0
A58: =B1_Breakdown_of_Costs!A56 -> 4.9 | B58: =IF(ISBLANK(B1_Breakdown_of_Costs!B56),"",B1_Breakdown_of_Costs!B56) ->  | E58: =B1_Breakdown_of_Costs!DX56 -> 0
A59: =B1_Breakdown_of_Costs!A57 -> 4.10 | B59: =IF(ISBLANK(B1_Breakdown_of_Costs!B57),"",B1_Breakdown_of_Costs!B57) ->  | E59: =B1_Breakdown_of_Costs!DX57 -> 0
A60: =B1_Breakdown_of_Costs!A58 -> 5 | B60: =IF(ISBLANK(B1_Breakdown_of_Costs!B58),"",B1_Breakdown_of_Costs!B58) ->  | E60: =B1_Breakdown_of_Costs!DX58 -> 0
A61: =B1_Breakdown_of_Costs!A59 -> 5.1 | B61: =IF(ISBLANK(B1_Breakdown_of_Costs!B59),"",B1_Breakdown_of_Costs!B59) ->  | E61: =B1_Breakdown_of_Costs!DX59 -> 0
A62: =B1_Breakdown_of_Costs!A60 -> 5.2 | B62: =IF(ISBLANK(B1_Breakdown_of_Costs!B60),"",B1_Breakdown_of_Costs!B60) ->  | E62: =B1_Breakdown_of_Costs!DX60 -> 0
A63: =B1_Breakdown_of_Costs!A61 -> 5.3 | B63: =IF(ISBLANK(B1_Breakdown_of_Costs!B61),"",B1_Breakdown_of_Costs!B61) ->  | E63: =B1_Breakdown_of_Costs!DX61 -> 0
A64: =B1_Breakdown_of_Costs!A62 -> 5.4 | B64: =IF(ISBLANK(B1_Breakdown_of_Costs!B62),"",B1_Breakdown_of_Costs!B62) ->  | E64: =B1_Breakdown_of_Costs!DX62 -> 0
A65: =B1_Breakdown_of_Costs!A63 -> 5.5 | B65: =IF(ISBLANK(B1_Breakdown_of_Costs!B63),"",B1_Breakdown_of_Costs!B63) ->  | E65: =B1_Breakdown_of_Costs!DX63 -> 0
A66: =B1_Breakdown_of_Costs!A64 -> 5.6 | B66: =IF(ISBLANK(B1_Breakdown_of_Costs!B64),"",B1_Breakdown_of_Costs!B64) ->  | E66: =B1_Breakdown_of_Costs!DX64 -> 0
A67: =B1_Breakdown_of_Costs!A65 -> 5.7 | B67: =IF(ISBLANK(B1_Breakdown_of_Costs!B65),"",B1_Breakdown_of_Costs!B65) ->  | E67: =B1_Breakdown_of_Costs!DX65 -> 0
A68: =B1_Breakdown_of_Costs!A66 -> 5.8 | B68: =IF(ISBLANK(B1_Breakdown_of_Costs!B66),"",B1_Breakdown_of_Costs!B66) ->  | E68: =B1_Breakdown_of_Costs!DX66 -> 0
A69: =B1_Breakdown_of_Costs!A67 -> 5.9 | B69: =IF(ISBLANK(B1_Breakdown_of_Costs!B67),"",B1_Breakdown_of_Costs!B67) ->  | E69: =B1_Breakdown_of_Costs!DX67 -> 0
A70: =B1_Breakdown_of_Costs!A68 -> 5.10 | B70: =IF(ISBLANK(B1_Breakdown_of_Costs!B68),"",B1_Breakdown_of_Costs!B68) ->  | E70: =B1_Breakdown_of_Costs!DX68 -> 0
A71: =B1_Breakdown_of_Costs!A69 -> 6 | B71: =IF(ISBLANK(B1_Breakdown_of_Costs!B69),"",B1_Breakdown_of_Costs!B69) ->  | E71: =B1_Breakdown_of_Costs!DX69 -> 0
A72: =B1_Breakdown_of_Costs!A70 -> 6.1 | B72: =IF(ISBLANK(B1_Breakdown_of_Costs!B70),"",B1_Breakdown_of_Costs!B70) ->  | E72: =B1_Breakdown_of_Costs!DX70 -> 0
A73: =B1_Breakdown_of_Costs!A71 -> 6.2 | B73: =IF(ISBLANK(B1_Breakdown_of_Costs!B71),"",B1_Breakdown_of_Costs!B71) ->  | E73: =B1_Breakdown_of_Costs!DX71 -> 0
A74: =B1_Breakdown_of_Costs!A72 -> 6.3 | B74: =IF(ISBLANK(B1_Breakdown_of_Costs!B72),"",B1_Breakdown_of_Costs!B72) ->  | E74: =B1_Breakdown_of_Costs!DX72 -> 0
A75: =B1_Breakdown_of_Costs!A73 -> 6.4 | B75: =IF(ISBLANK(B1_Breakdown_of_Costs!B73),"",B1_Breakdown_of_Costs!B73) ->  | E75: =B1_Breakdown_of_Costs!Q73 -> 0
A76: =B1_Breakdown_of_Costs!A74 -> 6.5 | B76: =IF(ISBLANK(B1_Breakdown_of_Costs!B74),"",B1_Breakdown_of_Costs!B74) ->  | E76: =B1_Breakdown_of_Costs!Q74 -> 0
A77: =B1_Breakdown_of_Costs!A75 -> 6.6 | B77: =IF(ISBLANK(B1_Breakdown_of_Costs!B75),"",B1_Breakdown_of_Costs!B75) ->  | E77: =B1_Breakdown_of_Costs!Q75 -> 0
A78: =B1_Breakdown_of_Costs!A76 -> 6.7 | B78: =IF(ISBLANK(B1_Breakdown_of_Costs!B76),"",B1_Breakdown_of_Costs!B76) ->  | E78: =B1_Breakdown_of_Costs!Q76 -> 0
A79: =B1_Breakdown_of_Costs!A77 -> 6.8 | B79: =IF(ISBLANK(B1_Breakdown_of_Costs!B77),"",B1_Breakdown_of_Costs!B77) ->  | E79: =B1_Breakdown_of_Costs!Q77 -> 0
A80: =B1_Breakdown_of_Costs!A78 -> 6.9 | B80: =IF(ISBLANK(B1_Breakdown_of_Costs!B78),"",B1_Breakdown_of_Costs!B78) ->  | E80: =B1_Breakdown_of_Costs!Q78 -> 0
A81: =B1_Breakdown_of_Costs!A79 -> 6.10 | B81: =IF(ISBLANK(B1_Breakdown_of_Costs!B79),"",B1_Breakdown_of_Costs!B79) ->  | E81: =B1_Breakdown_of_Costs!Q79 -> 0
A82: =B1_Breakdown_of_Costs!A80 -> 7 | B82: =IF(ISBLANK(B1_Breakdown_of_Costs!B80),"",B1_Breakdown_of_Costs!B80) ->  | E82: =B1_Breakdown_of_Costs!Q80 -> 0
A83: =B1_Breakdown_of_Costs!A81 -> 7.1 | B83: =IF(ISBLANK(B1_Breakdown_of_Costs!B81),"",B1_Breakdown_of_Costs!B81) ->  | E83: =B1_Breakdown_of_Costs!Q81 -> 0
A84: =B1_Breakdown_of_Costs!A82 -> 7.2 | B84: =IF(ISBLANK(B1_Breakdown_of_Costs!B82),"",B1_Breakdown_of_Costs!B82) ->  | E84: =B1_Breakdown_of_Costs!Q82 -> 0
A85: =B1_Breakdown_of_Costs!A83 -> 7.3 | B85: =IF(ISBLANK(B1_Breakdown_of_Costs!B83),"",B1_Breakdown_of_Costs!B83) ->  | E85: =B1_Breakdown_of_Costs!Q83 -> 0
A86: =B1_Breakdown_of_Costs!A84 -> 7.4 | B86: =IF(ISBLANK(B1_Breakdown_of_Costs!B84),"",B1_Breakdown_of_Costs!B84) ->  | E86: =B1_Breakdown_of_Costs!Q84 -> 0
A87: =B1_Breakdown_of_Costs!A85 -> 7.5 | B87: =IF(ISBLANK(B1_Breakdown_of_Costs!B85),"",B1_Breakdown_of_Costs!B85) ->  | E87: =B1_Breakdown_of_Costs!Q85 -> 0
A88: =B1_Breakdown_of_Costs!A86 -> 7.6 | B88: =IF(ISBLANK(B1_Breakdown_of_Costs!B86),"",B1_Breakdown_of_Costs!B86) ->  | E88: =B1_Breakdown_of_Costs!Q86 -> 0
A89: =B1_Breakdown_of_Costs!A87 -> 7.7 | B89: =IF(ISBLANK(B1_Breakdown_of_Costs!B87),"",B1_Breakdown_of_Costs!B87) ->  | E89: =B1_Breakdown_of_Costs!Q87 -> 0
A90: =B1_Breakdown_of_Costs!A88 -> 7.8 | B90: =IF(ISBLANK(B1_Breakdown_of_Costs!B88),"",B1_Breakdown_of_Costs!B88) ->  | E90: =B1_Breakdown_of_Costs!Q88 -> 0
A91: =B1_Breakdown_of_Costs!A89 -> 7.9 | B91: =IF(ISBLANK(B1_Breakdown_of_Costs!B89),"",B1_Breakdown_of_Costs!B89) ->  | E91: =B1_Breakdown_of_Costs!Q89 -> 0
A92: =B1_Breakdown_of_Costs!A90 -> 7.10 | B92: =IF(ISBLANK(B1_Breakdown_of_Costs!B90),"",B1_Breakdown_of_Costs!B90) ->  | E92: =B1_Breakdown_of_Costs!Q90 -> 0
A93: =B1_Breakdown_of_Costs!A91 -> 8 | B93: =IF(ISBLANK(B1_Breakdown_of_Costs!B91),"",B1_Breakdown_of_Costs!B91) ->  | E93: =B1_Breakdown_of_Costs!Q91 -> 0
A94: =B1_Breakdown_of_Costs!A92 -> 8.1 | B94: =IF(ISBLANK(B1_Breakdown_of_Costs!B92),"",B1_Breakdown_of_Costs!B92) ->  | E94: =B1_Breakdown_of_Costs!Q92 -> 0
A95: =B1_Breakdown_of_Costs!A93 -> 8.2 | B95: =IF(ISBLANK(B1_Breakdown_of_Costs!B93),"",B1_Breakdown_of_Costs!B93) ->  | E95: =B1_Breakdown_of_Costs!Q93 -> 0
A96: =B1_Breakdown_of_Costs!A94 -> 8.3 | B96: =IF(ISBLANK(B1_Breakdown_of_Costs!B94),"",B1_Breakdown_of_Costs!B94) ->  | E96: =B1_Breakdown_of_Costs!Q94 -> 0
A97: =B1_Breakdown_of_Costs!A95 -> 8.4 | B97: =IF(ISBLANK(B1_Breakdown_of_Costs!B95),"",B1_Breakdown_of_Costs!B95) ->  | E97: =B1_Breakdown_of_Costs!Q95 -> 0
A98: =B1_Breakdown_of_Costs!A96 -> 8.5 | B98: =IF(ISBLANK(B1_Breakdown_of_Costs!B96),"",B1_Breakdown_of_Costs!B96) ->  | E98: =B1_Breakdown_of_Costs!Q96 -> 0
A99: =B1_Breakdown_of_Costs!A97 -> 8.6 | B99: =IF(ISBLANK(B1_Breakdown_of_Costs!B97),"",B1_Breakdown_of_Costs!B97) ->  | E99: =B1_Breakdown_of_Costs!Q97 -> 0
A100: =B1_Breakdown_of_Costs!A98 -> 8.7 | B100: =IF(ISBLANK(B1_Breakdown_of_Costs!B98),"",B1_Breakdown_of_Costs!B98) ->  | E100: =B1_Breakdown_of_Costs!Q98 -> 0
A101: =B1_Breakdown_of_Costs!A99 -> 8.8 | B101: =IF(ISBLANK(B1_Breakdown_of_Costs!B99),"",B1_Breakdown_of_Costs!B99) ->  | E101: =B1_Breakdown_of_Costs!Q99 -> 0
A102: =B1_Breakdown_of_Costs!A100 -> 8.9 | B102: =IF(ISBLANK(B1_Breakdown_of_Costs!B100),"",B1_Breakdown_of_Costs!B100) ->  | E102: =B1_Breakdown_of_Costs!Q100 -> 0
A103: =B1_Breakdown_of_Costs!A101 -> 8.10 | B103: =IF(ISBLANK(B1_Breakdown_of_Costs!B101),"",B1_Breakdown_of_Costs!B101) ->  | E103: =B1_Breakdown_of_Costs!Q101 -> 0
A104: =B1_Breakdown_of_Costs!A102 -> 9 | B104: =IF(ISBLANK(B1_Breakdown_of_Costs!B102),"",B1_Breakdown_of_Costs!B102) ->  | E104: =B1_Breakdown_of_Costs!Q102 -> 0
A105: =B1_Breakdown_of_Costs!A103 -> 9.1 | B105: =IF(ISBLANK(B1_Breakdown_of_Costs!B103),"",B1_Breakdown_of_Costs!B103) ->  | E105: =B1_Breakdown_of_Costs!Q103 -> 0
A106: =B1_Breakdown_of_Costs!A104 -> 9.2 | B106: =IF(ISBLANK(B1_Breakdown_of_Costs!B104),"",B1_Breakdown_of_Costs!B104) ->  | E106: =B1_Breakdown_of_Costs!Q104 -> 0
A107: =B1_Breakdown_of_Costs!A105 -> 9.3 | B107: =IF(ISBLANK(B1_Breakdown_of_Costs!B105),"",B1_Breakdown_of_Costs!B105) ->  | E107: =B1_Breakdown_of_Costs!Q105 -> 0
A108: =B1_Breakdown_of_Costs!A106 -> 9.4 | B108: =IF(ISBLANK(B1_Breakdown_of_Costs!B106),"",B1_Breakdown_of_Costs!B106) ->  | E108: =B1_Breakdown_of_Costs!Q106 -> 0
A109: =B1_Breakdown_of_Costs!A107 -> 9.5 | B109: =IF(ISBLANK(B1_Breakdown_of_Costs!B107),"",B1_Breakdown_of_Costs!B107) ->  | E109: =B1_Breakdown_of_Costs!Q107 -> 0
A110: =B1_Breakdown_of_Costs!A108 -> 9.6 | B110: =IF(ISBLANK(B1_Breakdown_of_Costs!B108),"",B1_Breakdown_of_Costs!B108) ->  | E110: =B1_Breakdown_of_Costs!Q108 -> 0
A111: =B1_Breakdown_of_Costs!A109 -> 9.7 | B111: =IF(ISBLANK(B1_Breakdown_of_Costs!B109),"",B1_Breakdown_of_Costs!B109) ->  | E111: =B1_Breakdown_of_Costs!Q109 -> 0
A112: =B1_Breakdown_of_Costs!A110 -> 9.8 | B112: =IF(ISBLANK(B1_Breakdown_of_Costs!B110),"",B1_Breakdown_of_Costs!B110) ->  | E112: =B1_Breakdown_of_Costs!Q110 -> 0
A113: =B1_Breakdown_of_Costs!A111 -> 9.9 | B113: =IF(ISBLANK(B1_Breakdown_of_Costs!B111),"",B1_Breakdown_of_Costs!B111) ->  | E113: =B1_Breakdown_of_Costs!Q111 -> 0
A114: =B1_Breakdown_of_Costs!A112 -> 9.10 | B114: =IF(ISBLANK(B1_Breakdown_of_Costs!B112),"",B1_Breakdown_of_Costs!B112) ->  | E114: =B1_Breakdown_of_Costs!Q112 -> 0
A115: =B1_Breakdown_of_Costs!A113 -> 10 | B115: =IF(ISBLANK(B1_Breakdown_of_Costs!B113),"",B1_Breakdown_of_Costs!B113) ->  | E115: =B1_Breakdown_of_Costs!Q113 -> 0
A116: =B1_Breakdown_of_Costs!A114 -> 10.1 | B116: =IF(ISBLANK(B1_Breakdown_of_Costs!B114),"",B1_Breakdown_of_Costs!B114) ->  | E116: =B1_Breakdown_of_Costs!Q114 -> 0
A117: =B1_Breakdown_of_Costs!A115 -> 10.2 | B117: =IF(ISBLANK(B1_Breakdown_of_Costs!B115),"",B1_Breakdown_of_Costs!B115) ->  | E117: =B1_Breakdown_of_Costs!Q115 -> 0
A118: =B1_Breakdown_of_Costs!A116 -> 10.3 | B118: =IF(ISBLANK(B1_Breakdown_of_Costs!B116),"",B1_Breakdown_of_Costs!B116) ->  | E118: =B1_Breakdown_of_Costs!Q116 -> 0
A119: =B1_Breakdown_of_Costs!A117 -> 10.4 | B119: =IF(ISBLANK(B1_Breakdown_of_Costs!B117),"",B1_Breakdown_of_Costs!B117) ->  | E119: =B1_Breakdown_of_Costs!Q117 -> 0
A120: =B1_Breakdown_of_Costs!A118 -> 10.5 | B120: =IF(ISBLANK(B1_Breakdown_of_Costs!B118),"",B1_Breakdown_of_Costs!B118) ->  | E120: =B1_Breakdown_of_Costs!Q118 -> 0
A121: =B1_Breakdown_of_Costs!A119 -> 10.6 | B121: =IF(ISBLANK(B1_Breakdown_of_Costs!B119),"",B1_Breakdown_of_Costs!B119) ->  | E121: =B1_Breakdown_of_Costs!Q119 -> 0
A122: =B1_Breakdown_of_Costs!A120 -> 10.7 | B122: =IF(ISBLANK(B1_Breakdown_of_Costs!B120),"",B1_Breakdown_of_Costs!B120) ->  | E122: =B1_Breakdown_of_Costs!Q120 -> 0
A123: =B1_Breakdown_of_Costs!A121 -> 10.8 | B123: =IF(ISBLANK(B1_Breakdown_of_Costs!B121),"",B1_Breakdown_of_Costs!B121) ->  | E123: =B1_Breakdown_of_Costs!Q121 -> 0
A124: =B1_Breakdown_of_Costs!A122 -> 10.9 | B124: =IF(ISBLANK(B1_Breakdown_of_Costs!B122),"",B1_Breakdown_of_Costs!B122) ->  | E124: =B1_Breakdown_of_Costs!Q122 -> 0
A125: =B1_Breakdown_of_Costs!A123 -> 10.10 | B125: =IF(ISBLANK(B1_Breakdown_of_Costs!B123),"",B1_Breakdown_of_Costs!B123) ->  | E125: =B1_Breakdown_of_Costs!Q123 -> 0
B126: TOTAL Non-Contingency
A127: CONTINGENCY TASKS/DELIVERABLES | C127: Name of firm providing goods or services, or, as applicable, "TBD" or "N/A". | D127: Include enough detail for reviewer to understand how the estimate was determined.
A128: =B1_Breakdown_of_Costs!A127 -> O1 | B128: =IF(ISBLANK(B1_Breakdown_of_Costs!B127),"",B1_Breakdown_of_Costs!B127) ->  | E128: =B1_Breakdown_of_Costs!DX127 -> 0
A129: =B1_Breakdown_of_Costs!A128 -> O1.1 | B129: =IF(ISBLANK(B1_Breakdown_of_Costs!B128),"",B1_Breakdown_of_Costs!B128) ->  | E129: =B1_Breakdown_of_Costs!DX128 -> 0
A130: =B1_Breakdown_of_Costs!A129 -> O1.2 | B130: =IF(ISBLANK(B1_Breakdown_of_Costs!B129),"",B1_Breakdown_of_Costs!B129) ->  | E130: =B1_Breakdown_of_Costs!DX129 -> 0
A131: =B1_Breakdown_of_Costs!A130 -> O1.3 | B131: =IF(ISBLANK(B1_Breakdown_of_Costs!B130),"",B1_Breakdown_of_Costs!B130) ->  | E131: =B1_Breakdown_of_Costs!DX130 -> 0
A132: =B1_Breakdown_of_Costs!A131 -> O1.4 | B132: =IF(ISBLANK(B1_Breakdown_of_Costs!B131),"",B1_Breakdown_of_Costs!B131) ->  | E132: =B1_Breakdown_of_Costs!DX131 -> 0
A133: =B1_Breakdown_of_Costs!A132 -> O1.5 | B133: =IF(ISBLANK(B1_Breakdown_of_Costs!B132),"",B1_Breakdown_of_Costs!B132) ->  | E133: =B1_Breakdown_of_Costs!DX132 -> 0
A134: =B1_Breakdown_of_Costs!A133 -> O1.6 | B134: =IF(ISBLANK(B1_Breakdown_of_Costs!B133),"",B1_Breakdown_of_Costs!B133) ->  | E134: =B1_Breakdown_of_Costs!DX133 -> 0
A135: =B1_Breakdown_of_Costs!A134 -> O1.7 | B135: =IF(ISBLANK(B1_Breakdown_of_Costs!B134),"",B1_Breakdown_of_Costs!B134) ->  | E135: =B1_Breakdown_of_Costs!DX134 -> 0
A136: =B1_Breakdown_of_Costs!A135 -> O1.8 | B136: =IF(ISBLANK(B1_Breakdown_of_Costs!B135),"",B1_Breakdown_of_Costs!B135) ->  | E136: =B1_Breakdown_of_Costs!DX135 -> 0
A137: =B1_Breakdown_of_Costs!A136 -> O1.9 | B137: =IF(ISBLANK(B1_Breakdown_of_Costs!B136),"",B1_Breakdown_of_Costs!B136) ->  | E137: =B1_Breakdown_of_Costs!DX136 -> 0
A138: =B1_Breakdown_of_Costs!A137 -> O1.10 | B138: =IF(ISBLANK(B1_Breakdown_of_Costs!B137),"",B1_Breakdown_of_Costs!B137) ->  | E138: =B1_Breakdown_of_Costs!DX137 -> 0
A139: =B1_Breakdown_of_Costs!A138 -> O2 | B139: =IF(ISBLANK(B1_Breakdown_of_Costs!B138),"",B1_Breakdown_of_Costs!B138) ->  | E139: =B1_Breakdown_of_Costs!DX138 -> 0
A140: =B1_Breakdown_of_Costs!A139 -> O2.1 | B140: =IF(ISBLANK(B1_Breakdown_of_Costs!B139),"",B1_Breakdown_of_Costs!B139) ->  | E140: =B1_Breakdown_of_Costs!DX139 -> 0
A141: =B1_Breakdown_of_Costs!A140 -> O2.2 | B141: =IF(ISBLANK(B1_Breakdown_of_Costs!B140),"",B1_Breakdown_of_Costs!B140) ->  | E141: =B1_Breakdown_of_Costs!DX140 -> 0
A142: =B1_Breakdown_of_Costs!A141 -> O2.3 | B142: =IF(ISBLANK(B1_Breakdown_of_Costs!B141),"",B1_Breakdown_of_Costs!B141) ->  | E142: =B1_Breakdown_of_Costs!DX141 -> 0
A143: =B1_Breakdown_of_Costs!A142 -> O2.4 | B143: =IF(ISBLANK(B1_Breakdown_of_Costs!B142),"",B1_Breakdown_of_Costs!B142) ->  | E143: =B1_Breakdown_of_Costs!DX142 -> 0
A144: =B1_Breakdown_of_Costs!A143 -> O2.5 | B144: =IF(ISBLANK(B1_Breakdown_of_Costs!B143),"",B1_Breakdown_of_Costs!B143) ->  | E144: =B1_Breakdown_of_Costs!DX143 -> 0
A145: =B1_Breakdown_of_Costs!A144 -> O2.6 | B145: =IF(ISBLANK(B1_Breakdown_of_Costs!B144),"",B1_Breakdown_of_Costs!B144) ->  | E145: =B1_Breakdown_of_Costs!DX144 -> 0
A146: =B1_Breakdown_of_Costs!A145 -> O2.7 | B146: =IF(ISBLANK(B1_Breakdown_of_Costs!B145),"",B1_Breakdown_of_Costs!B145) ->  | E146: =B1_Breakdown_of_Costs!DX145 -> 0
A147: =B1_Breakdown_of_Costs!A146 -> O2.8 | B147: =IF(ISBLANK(B1_Breakdown_of_Costs!B146),"",B1_Breakdown_of_Costs!B146) ->  | E147: =B1_Breakdown_of_Costs!DX146 -> 0
A148: =B1_Breakdown_of_Costs!A147 -> O2.9 | B148: =IF(ISBLANK(B1_Breakdown_of_Costs!B147),"",B1_Breakdown_of_Costs!B147) ->  | E148: =B1_Breakdown_of_Costs!DX147 -> 0
A149: =B1_Breakdown_of_Costs!A148 -> O2.10 | B149: =IF(ISBLANK(B1_Breakdown_of_Costs!B148),"",B1_Breakdown_of_Costs!B148) ->  | E149: =B1_Breakdown_of_Costs!DX148 -> 0
A150: =B1_Breakdown_of_Costs!A149 -> O3 | B150: =IF(ISBLANK(B1_Breakdown_of_Costs!B149),"",B1_Breakdown_of_Costs!B149) ->  | E150: =B1_Breakdown_of_Costs!DX149 -> 0
A151: =B1_Breakdown_of_Costs!A150 -> O3.1 | B151: =IF(ISBLANK(B1_Breakdown_of_Costs!B150),"",B1_Breakdown_of_Costs!B150) ->  | E151: =B1_Breakdown_of_Costs!DX150 -> 0
A152: =B1_Breakdown_of_Costs!A151 -> O3.2 | B152: =IF(ISBLANK(B1_Breakdown_of_Costs!B151),"",B1_Breakdown_of_Costs!B151) ->  | E152: =B1_Breakdown_of_Costs!DX151 -> 0
A153: =B1_Breakdown_of_Costs!A152 -> O3.3 | B153: =IF(ISBLANK(B1_Breakdown_of_Costs!B152),"",B1_Breakdown_of_Costs!B152) ->  | E153: =B1_Breakdown_of_Costs!DX152 -> 0
A154: =B1_Breakdown_of_Costs!A153 -> O3.4 | B154: =IF(ISBLANK(B1_Breakdown_of_Costs!B153),"",B1_Breakdown_of_Costs!B153) ->  | E154: =B1_Breakdown_of_Costs!DX153 -> 0
A155: =B1_Breakdown_of_Costs!A154 -> O3.5 | B155: =IF(ISBLANK(B1_Breakdown_of_Costs!B154),"",B1_Breakdown_of_Costs!B154) ->  | E155: =B1_Breakdown_of_Costs!DX154 -> 0
A156: =B1_Breakdown_of_Costs!A155 -> O3.6 | B156: =IF(ISBLANK(B1_Breakdown_of_Costs!B155),"",B1_Breakdown_of_Costs!B155) ->  | E156: =B1_Breakdown_of_Costs!DX155 -> 0
A157: =B1_Breakdown_of_Costs!A156 -> O3.7 | B157: =IF(ISBLANK(B1_Breakdown_of_Costs!B156),"",B1_Breakdown_of_Costs!B156) ->  | E157: =B1_Breakdown_of_Costs!DX156 -> 0
A158: =B1_Breakdown_of_Costs!A157 -> O3.8 | B158: =IF(ISBLANK(B1_Breakdown_of_Costs!B157),"",B1_Breakdown_of_Costs!B157) ->  | E158: =B1_Breakdown_of_Costs!DX157 -> 0
A159: =B1_Breakdown_of_Costs!A158 -> O3.9 | B159: =IF(ISBLANK(B1_Breakdown_of_Costs!B158),"",B1_Breakdown_of_Costs!B158) ->  | E159: =B1_Breakdown_of_Costs!DX158 -> 0
A160: =B1_Breakdown_of_Costs!A159 -> O3.10 | B160: =IF(ISBLANK(B1_Breakdown_of_Costs!B159),"",B1_Breakdown_of_Costs!B159) ->  | E160: =B1_Breakdown_of_Costs!DX159 -> 0
B161: TOTAL Contingency | E161: =B1_Breakdown_of_Costs!DX160 -> 0
B163: TOTAL Non-Contingency + Contingency | E163: =B1_Breakdown_of_Costs!DX162 -> 0

Sheet B3_Cost_Summary
A1: Form B3: Breakdown of Costs Summary
A3: =B1_Breakdown_of_Costs!A4 -> PROJECT NAME:
A5: Total Non-Contingency Hours | B5: =B1_Breakdown_of_Costs!DR124 -> 0
A6: Total Non-Contingency Labor Costs | B6: =B1_Breakdown_of_Costs!DV124-B1_Breakdown_of_Costs!DU124 -> 0
A7: Total Non-Contingency Direct Expenses | B7: =B1_Breakdown_of_Costs!DU124 -> 0
A8: Total Non-Contingency Costs | B8: =B1_Breakdown_of_Costs!DV124 -> 0
A9: Total Non-Contingency Profit | B9: =B1_Breakdown_of_Costs!DW124 -> 0
A10: Total Non-Contingency Cost + Profit | B10: =B1_Breakdown_of_Costs!DX124 -> 0
A13: Total Contingency Hours | B13: =B1_Breakdown_of_Costs!DR160 -> 0
A14: Total Contingency Labor Costs | B14: =B1_Breakdown_of_Costs!DV160-B1_Breakdown_of_Costs!DU160 -> 0
A15: Total Contingency Direct Expenses | B15: =B1_Breakdown_of_Costs!DU160 -> 0
A16: Total Contingency Costs | B16: =B1_Breakdown_of_Costs!DV160 -> 0
A17: Total Contingency Profit | B17: =B1_Breakdown_of_Costs!DW160 -> 0
A18: Total Contingency Cost + Profit | B18: =B1_Breakdown_of_Costs!DX160 -> 0

Sheet B4_LBCE_Participation
A1: Form B4: LBCE Program Participation Summary | E1: PROCURING AGENCY TO COMPLETE THIS SECTION
E2: Name of Reviewer:
E3: /S/ [Type Name of Reviewer here]
A4: THIS TAB IS REQUIRED FOR PROCUREMENTS SUBJECT TO THE LOCAL BUSINESS CONTRACT EQUITY (LBCE) PROGRAM REQUIREMENTS; DO NOT USE FOR DISADVANTAGED BUSINESS ENTERPRISE (DBE).
A5: The LBCE Program goals for professional services are 70.0% for Local Business Enterprise (LBE) and 30.0% for Small Local Business Enterprise (SLBE).
A6: • Complete all yellow fields below as applicable. See examples below in the lighter gray fields.
A7: • Please use one line per firm (any business - subconsultants, subcontractors, vendors, etc.) regardless of tier. If a vendor is under a subconsultant, such vendor's budget should be removed from the subconsultant and included below as an independent line item.
A8: • Firms (any business - subconsultants, subcontractors, vendors, etc.) that are unconfirmed or yet to be identified should be listed under the Firm column as "To be determined"
A9: • The Certification Status must be updated according to, and supported by, proof of certification.
A10: • The LBE/SLBE participation below must be consistent with the cost proposal.
A11: • Do not include optional tasks (i.e., contingency).
A13: Firm | B13: Tier | C13: Budget | D13: LBE | E13: SLBE | F13: VSLBE | G13: Certification Status | H13: LBE | I13: SLBE | J13: VSLBE
A14: Sample Detail for Instructional Purposes Only
A15: Prime Name | B15: Prime | C15: 100000 | D15: =IF(H15<>"",$C15,"$0") -> 100000 | E15: - | F15: - | G15: Alameda CTC LBE exp. YYYY-MM-DD | H15: x
A16: Subconsultant/Vendor Name | B16: Tier 1 | C16: 10000 | D16: =IF(H16<>"",$C16,"$0") -> 10000 | E16: =IF(I16<>"",$C16,"$0") -> 10000 | F16: - | G16: Alameda CTC LBE, SLBE exp. YYYY-MM-DD | H16: x | I16: x
A17: Subconsultant/Vendor Name | B17: Tier 2 under Subconsultant Name | C17: 5000 | D17: 5000 | E17: 5000 | F17: =IF(J17<>"",$C17,"$0") -> 5000 | G17: Alameda CTC LBE, SLBE, VSLBE exp. YYYY-MM-DD | H17: x | I17: x | J17: x
A18: E.g.: Aerial Maps, Inc. | B18: E.g.: Tier 1 | C18: 59000 | D18: 59000 | E18: 59000 | F18: - | G18: Alameda CTC LBE, SLBE exp. YYYY-MM-DD | H18: x | I18: x
A19: E.g.: Printers, Inc. | B19: E.g.: Tier 2 under Aerial Maps, Inc. | C19: 1000 | D19: - | E19: - | F19: - | G19: None
A20: E.g.: To be determined | B20: E.g.: Tier 2 under Aerial Maps, Inc. | C20: 500 | D20: 500 | E20: - | F20: - | G20: Alameda CTC LBE exp. YYYY-MM-DD | H20: x
A21: etc. | B21: etc. | C21: 0 | D21: - | E21: - | F21: - | G21: etc. | H21: etc.
B22: TOTAL NON-CONTINGENCY | C22: =SUM(C11:C21) -> 175500 | D22: =SUM(D11:D21) -> 174500 | E22: =SUM(E11:E21) -> 74000 | F22: =SUM(F11:F21) -> 5000
C23: GOAL ACHIEVEMENT | D23: =+D22/$C$22 -> 0.9943019943 | E23: =+E22/$C$22 -> 0.4216524217 | F23: 0.02849002849
A24: NON-CONTINGENCY TASKS/DELIVERABLES
C25: 0 | D25: $0 | E25: $0 | F25: $0
C26: 0 | D26: $0 | E26: $0 | F26: $0
C27: 0 | D27: $0 | E27: $0 | F27: $0
C28: 0 | D28: $0 | E28: $0 | F28: $0
C29: 0 | D29: $0 | E29: $0 | F29: $0
C30: 0 | D30: $0 | E30: $0 | F30: $0
C31: 0 | D31: $0 | E31: $0 | F31: $0
C32: 0 | D32: $0 | E32: $0 | F32: $0
C33: 0 | D33: $0 | E33: $0 | F33: $0
C34: 0 | D34: 0 | E34: 0 | F34: $0
C35: 0 | D35: $0 | E35: $0 | F35: $0
B36: TOTAL NON-CONTINGENCY | C36: =SUM(C25:C35) -> 0 | D36: =SUM(D25:D35) -> 0 | E36: =SUM(E25:E35) -> 0 | F36: =SUM(F25:F35) -> 0
C37: GOAL ACHIEVEMENT | D37: =+D36/$C$36 ->  | E37: =+E36/$C$36 ->  | F37: =+F36/$C$36 -> 

Sheet B5_Prime_and_Sub_Contact_Info
A1: Form B5: Prime Consultant and Subconsultant Contact Information
A3: # | B3: Firm Name | C3: LBE, SLBE, VSLBE and/or DBE Status | D3: Street Address | E3: City | F3: State | G3: Zip Code | H3: Contact Name | I3: Contact Title | J3: Phone No. | K3: Email
A4: 1
A5: =A4+1 -> 2
A6: =A5+1 -> 3
A7: 4
A8: 5 | B8: [___Insert Additional Rows as Needed___]

Sheet C1
A1: FOR AWARDED CONTRACTS ONLY - NOT REQUIRED FOR RFP PROPOSALS
A2: Table C-1: Project Cost Basis
F3: Reallocation for Amendments Only
B4: Task No. | C4: Task Description | D4: Task Budget | F4: Task Budget Adjustment | G4: Revised Task Budget Totals
B5: 1 | C5: =(B1_Breakdown_of_Costs!B14) -> 0 | D5: =SUM(B1_Breakdown_of_Costs!DX14:DX19) -> 0 | G5: =D5+F5 -> 0
B6: 2 | C6: =(B1_Breakdown_of_Costs!B25) -> 0 | D6: =SUM(B1_Breakdown_of_Costs!D25:DX30) -> 0 | G6: 0
B7: 3 | C7: =(B1_Breakdown_of_Costs!B36) -> 0 | D7: =SUM(B1_Breakdown_of_Costs!DX36:DX41) -> 0 | G7: 0
B8: 4 | C8: =(B1_Breakdown_of_Costs!B47) -> 0 | D8: =SUM(B1_Breakdown_of_Costs!DX47:DX52) -> 0 | G8: 0
B9: 5 | C9: =(B1_Breakdown_of_Costs!B58) -> 0 | D9: =SUM(B1_Breakdown_of_Costs!DX58:DX63) -> 0 | G9: 0
B10: 6 | C10: =(B1_Breakdown_of_Costs!B69) -> 0 | D10: =SUM(B1_Breakdown_of_Costs!DX69:DX74) -> 0 | G10: 0
B11: 7 | C11: =(B1_Breakdown_of_Costs!B80) -> 0 | D11: =SUM(B1_Breakdown_of_Costs!DX80:DX85) -> 0 | G11: 0
B12: O1 | C12: =(B1_Breakdown_of_Costs!B127) -> 0 | D12: =SUM(B1_Breakdown_of_Costs!DX127:DX130) -> 0 | G12: 0
B13: O1.1 | C13: =(B1_Breakdown_of_Costs!B128) -> 0 | D13: =(B1_Breakdown_of_Costs!DX128) -> 0 | G13: 0
B14: O2 | C14: =(B1_Breakdown_of_Costs!B138) -> 0 | D14: =SUM(B1_Breakdown_of_Costs!DX138:DX141) -> 0 | G14: 0
B15: TOTAL | D15: =SUM(D5:D14) -> 0 | F15: =SUM(F5:F14) -> 0 | G15: =SUM(G5:G14) -> 0

Sheet C2
A1: FOR AWARDED CONTRACTS ONLY - NOT REQUIRED FOR RFP PROPOSALS
A2: Table C-2: Consultant and Subconsultant Budget
G3: Reallocation for Amendments Only
B4: Vendor | C4: Tier | D4: Certification (LBE, SLBE, VSLBE and/or DBE) | E4: Budget | G4: Budget Adjustment | H4: Revised Budget Totals
B5: Prime | E5: 0 | H5: =E5+G5 -> 0
B6: Sub 1 | E6: 0 | H6: =E6+G6 -> 0
B7: Sub 2 | E7: 0 | H7: 0
B8: Sub 3 | E8: =(B1_Breakdown_of_Costs!BP12) -> 0 | H8: 0
B9: Sub 4 | E9: =(B1_Breakdown_of_Costs!CG12) -> 0 | H9: 0
B10: Sub 5 | E10: =(B1_Breakdown_of_Costs!CX12) -> 0 | H10: 0
B11: Sub 6 | E11: =(B1_Breakdown_of_Costs!DO12) -> 0 | H11: 0
B12: On-Call Task 1 | E12: =SUM(B1_Breakdown_of_Costs!Q128:Q137) -> 0 | H12: 0
B13: On-Call Task 2 | E13: =SUM(B1_Breakdown_of_Costs!Q139:Q148) -> 0 | H13: =E12+G13 -> 0
B14: On-Call Task 3 | E14: =SUM(B1_Breakdown_of_Costs!Q150:Q159) -> 0 | H14: =E13+G14 -> 0
D15: TOTAL | E15: =SUM(E5:E14) -> 0 | G15: =SUM(G5:G14) -> 0 | H15: =SUM(H5:H14) -> 0
D16: DBE Total | E16: =(SUMIF(D5:D14,"*DBE*",E5:E14))/$E15 ->  | G16: =H16-E16 ->  | H16: =(SUMIF(D5:D14,"*DBE*",H5:H14))/$H15 -> 
D17: LBE Total | E17: =(SUMIF(D5:D14,"*LBE*",E5:E14))/$E15 ->  | G17: =H17-E17 ->  | H17: =(SUMIF(D5:D14,"*LBE*",H5:H14))/$H15 -> 
D18: SLBE Total | E18: =(SUMIF(D5:D14,"*SLBE*",E5:E14))/$E15 ->  | H18: =(SUMIF(D5:D14,"*SLBE*",H5:H14))/$H15 -> 

Sheet C3
A1: FOR AWARDED CONTRACTS ONLY - NOT REQUIRED FOR RFP PROPOSALS
A2: Table C-3: Consultant and Subconsultant Fixed Hourly Rate Schedule and Key Personnel
B4: Vendor Name | C4: Personnel Name | D4: Title and/or Role | E4: Direct Salary Rate | F4: Fringe Rate | G4: Overhead Rate | H4: Indirect Cost Rate | I4: Profit Rate | J4: Fixed Hourly Rate | K4: Fixed Hourly Rate | L4: Fixed Hourly Rate | M4: Annual Escalation Rate
E5: ($) | F5: (%) | G5: (%) | H5: (%) | I5: (%) | J5: ($) | K5: ($) | L5: ($) | M5: (%)
J6: Effective Period | K6: Effective Period | L6: Effective Period
J7: MM/DD/YY-MM/DD/YY | K7: MM/DD/YY-MM/DD/YY | L7: MM/DD/YY-MM/DD/YY
B8: i.e. Prime | C8: =B1_Breakdown_of_Costs!C9 -> [__Insert Name and Classification__] | E8: =(B1_Breakdown_of_Costs!C10) -> 0 | F8: =(B1_Breakdown_of_Costs!J3) -> 0 | G8: =(B1_Breakdown_of_Costs!J2) -> 0 | H8: 0 | I8: =(B1_Breakdown_of_Costs!J4) -> 0.08 | J8: =(B1_Breakdown_of_Costs!C12) -> 0 | K8: 0 | L8: 0 | M8: =(B1_Breakdown_of_Costs!J5) -> 0.03
B9: i.e. Prime | C9: =B1_Breakdown_of_Costs!D9 -> [__Insert Name and Classification__] | E9: =(B1_Breakdown_of_Costs!D10) -> 0 | F9: =(B1_Breakdown_of_Costs!J3) -> 0 | G9: =(B1_Breakdown_of_Costs!J2) -> 0 | H9: 0 | I9: =(B1_Breakdown_of_Costs!J4) -> 0.08 | J9: =(B1_Breakdown_of_Costs!D12) -> 0 | K9: 0 | L9: 0 | M9: =(B1_Breakdown_of_Costs!J5) -> 0.03
B10: i.e. Sub | C10: =B1_Breakdown_of_Costs!AK9 -> [__Insert Name and Classification__] | E10: =(B1_Breakdown_of_Costs!T10) -> 0 | F10: =(B1_Breakdown_of_Costs!AA3) -> 0 | G10: =(B1_Breakdown_of_Costs!AA2) -> 0 | H10: 0 | I10: =(B1_Breakdown_of_Costs!AA4) -> 0.08 | J10: =(B1_Breakdown_of_Costs!T12) -> 0 | K10: 0 | L10: 0 | M10: =(B1_Breakdown_of_Costs!AA5) -> 0.03
B11: i.e. Sub | C11: =B1_Breakdown_of_Costs!AL9 -> [__Insert Name and Classification__] | E11: =(B1_Breakdown_of_Costs!U10) -> 0 | F11: =(B1_Breakdown_of_Costs!AA3) -> 0 | G11: =(B1_Breakdown_of_Costs!AA2) -> 0 | H11: 0 | I11: =(B1_Breakdown_of_Costs!AA4) -> 0.08 | J11: =(B1_Breakdown_of_Costs!U12) -> 0 | K11: 0 | L11: 0 | M11: =(B1_Breakdown_of_Costs!AA5) -> 0.03
E12: 0 | F12: 0 | G12: 0 | H12: 0 | I12: 0 | J12: 0 | K12: 0 | L12: 0 | M12: 0
E13: 0 | F13: 0 | G13: 0 | H13: 0 | I13: 0 | J13: 0 | K13: 0 | L13: 0 | M13: 0
E14: 0 | F14: 0 | G14: 0 | H14: 0 | I14: 0 | J14: 0 | K14: 0 | L14: 0 | M14: 0
E15: 0 | F15: 0 | G15: 0 | H15: 0 | I15: 0 | J15: 0 | K15: 0 | L15: 0 | M15: 0
E16: 0 | F16: 0 | G16: 0 | H16: 0 | I16: 0 | J16: 0 | K16: 0 | L16: 0 | M16: 0
E17: 0 | F17: 0 | G17: 0 | H17: 0 | I17: 0 | J17: 0 | K17: 0 | L17: 0 | M17: 0
E18: 0 | F18: 0 | G18: 0 | H18: 0 | I18: 0 | J18: 0 | K18: 0 | L18: 0 | M18: 0
E19: 0 | F19: 0 | G19: 0 | H19: 0 | I19: 0 | J19: 0 | K19: 0 | L19: 0 | M19: 0
E20: 0 | F20: 0 | G20: 0 | H20: 0 | I20: 0 | J20: 0 | K20: 0 | L20: 0 | M20: 0
E21: 0 | F21: 0 | G21: 0 | H21: 0 | I21: 0 | J21: 0 | K21: 0 | L21: 0 | M21: 0
E22: 0 | F22: 0 | G22: 0 | H22: 0 | I22: 0 | J22: 0 | K22: 0 | L22: 0 | M22: 0
E23: 0 | F23: 0 | G23: 0 | H23: 0 | I23: 0 | J23: 0 | K23: 0 | L23: 0 | M23: 0
E24: 0 | F24: 0 | G24: 0 | H24: 0 | I24: 0 | J24: 0 | K24: 0 | L24: 0 | M24: 0
E25: 0 | F25: 0 | G25: 0 | H25: 0 | I25: 0 | J25: 0 | K25: 0 | L25: 0 | M25: 0
E26: 0 | F26: 0 | G26: 0 | H26: 0 | I26: 0 | J26: 0 | K26: 0 | L26: 0 | M26: 0
E27: 0 | F27: 0 | G27: 0 | H27: 0 | I27: 0 | J27: 0 | K27: 0 | L27: 0 | M27: 0
E28: 0 | F28: 0 | G28: 0 | H28: 0 | I28: 0 | J28: 0 | K28: 0 | L28: 0 | M28: 0
E29: 0 | F29: 0 | G29: 0 | H29: 0 | I29: 0 | J29: 0 | K29: 0 | L29: 0 | M29: 0
E30: 0 | F30: 0 | G30: 0 | H30: 0 | I30: 0 | J30: 0 | K30: 0 | L30: 0 | M30: 0
E31: 0 | F31: 0 | G31: 0 | H31: 0 | I31: 0 | J31: 0 | K31: 0 | L31: 0 | M31: 0
E32: 0 | F32: 0 | G32: 0 | H32: 0 | I32: 0 | J32: 0 | K32: 0 | L32: 0 | M32: 0

Sheet C4
A1: FOR AWARDED CONTRACTS ONLY - NOT REQUIRED FOR RFP PROPOSALS
A2: Table C-4: Consultant and Subconsultant Unit Costs
B4: Task No. | C4: Vendor Name (List Order: Prime Consultant then Subconsultants alphabetically) | D4: Vendor Tier | E4: Description | F4: Quantity | G4: Unit | H4: Unit Cost | I4: Total
B5: 1 | C5: =(B2_Expense_Detail!C16) -> 0 | D5: E.g.: • Prime • Tier 1 (under Prime) • Tier 2 under SubconsultantName | E5: =(B2_Expense_Detail!B16) ->  | F5: Break out from B2 "Expense Details" → "Basis of Estimate" | G5: Break out from B2 "Expense Details" → "Basis of Estimate" | H5: Break out from B2 "Expense Details" → "Basis of Estimate" | I5: =(B2_Expense_Detail!E16) -> 0
B6: 1.1 | C6: =(B2_Expense_Detail!C17) -> 0 | E6: =(B2_Expense_Detail!B17) -> 0 | I6: =(B2_Expense_Detail!E17) -> 0
B7: 1.2 | C7: =(B2_Expense_Detail!C18) -> 0 | E7: =(B2_Expense_Detail!B18) -> 0 | I7: =(B2_Expense_Detail!E18) -> 0
B8: 1.3 | C8: =(B2_Expense_Detail!C19) -> 0 | E8: =(B2_Expense_Detail!B19) -> 0 | I8: =(B2_Expense_Detail!E19) -> 0
B9: 2 | C9: =(B2_Expense_Detail!C27) -> 0 | E9: =(B2_Expense_Detail!B27) ->  | I9: =(B2_Expense_Detail!E28) -> 0
B10: 2.1 | C10: =(B2_Expense_Detail!C28) -> 0 | E10: =(B2_Expense_Detail!B28) -> 0 | I10: =(B2_Expense_Detail!E28) -> 0
